Workbook

Sheet Steam_Calculator (hidden)
B2: Selection turbine | C2: Backpressure steam turbine | E2: Escalation Factor | F2: 10
B3: Steam pressure | C3: 20 bar
B4: Boiler efficiency | C4: 0.63 | D4: biomass wet
B5: Turbine | C5: 0.17
B6: ΔH Turbine P2 (latent) | C6: =+E14 -> 1888.65 | D6: kJ/kg
B7: ΔH Turbine P2 ==>P1 (saturated) | C7: =+F14*(D14-D11) -> 521.9862 | D7: kJ/kg
B8: ΔH Boiler P0 ==>P2 (MP steam) | C8: =+F14*(D14-25) -> 867.5231 | D8: kJ/kg
B9: Water make-up | C9: 0.35 | G9: http://www1.eere.energy.gov/manufacturing/tech_assistance/pdfs/steam8_boiler.pdf
B10: Steam Data | C10: P (Bar) | D10: T Boiling (°C) | E10: Latent heat of vaporization (kJ/kg) | F10: Specific heat liq (kJ/kg.K) | G10: http://www.engineeringtoolbox.com/saturated-steam-properties-d_457.html
B11: =+"Steam@"&C11 -> Steam@1 bar | C11: 1 bar | D11: 99.63 | E11: 2257.92 | F11: 4.219
B12: =+"Steam@"&C12 -> Steam@5 bar | C12: 5 bar | D12: 151.85 | E12: 2107.42 | F12: 4.32
B13: =+"Steam@"&C13 -> Steam@10 bar | C13: 10 bar | D13: 179.88 | E13: 2013.56 | F13: 4.42
B14: =+"Steam@"&C14 -> Steam@20 bar | C14: 20 bar | D14: 212.37 | E14: 1888.65 | F14: 4.63
B16: Equipment | C16: Efficiency (%) | D16: Excess Air (%) | E16: T exhaust Gas/steam (C) | F16: P output (Bar)
B17: Boiler stoker | C17: 0.8 | D17: 0.5 | E17: 177 | F17: N/A | G17: http://www1.eere.energy.gov/manufacturing/tech_assistance/pdfs/steam22_backpressure.pdf
B18: Microturbine | C18: 0.7 | D18: N/A | E18: =+D12 -> 151.85 | F18: 5 bar
B19: Backpreassure steam turbine | C19: 0.55 | D19: N/A | E19: =+D12 -> 151.85 | F19: 5 bar | G19: http://www.massengineers.com/turbines%20CPH/steam_turbines_used_for_chp.htm
B20: Condesing steam turbine | C20: 0.5 | D20: N/A | E20: =+D11 -> 99.63 | F20: 1 bar
B22: Steam pressure bar | C22: Boiler cost factor (BCF)
B23: 10 bar | C23: 1
B24: 20 bar | C24: 1.15
B25: 50 bar | C25: 1.25
B26: 75 bar | C26: 1.5
B27: 100 bar | C27: 2
B29: Equipment | C29: Cost (USD/kg steam)
B30: Boiler stoker | C30: 111.1652237 | D30: USD/kg steam
B31: Other equipment and installation (condenser, cyclone, water pump,cooling tower) | C31: 110.4624285 | D31: USD/kg steam
B32: Condesing steam turbine | C32: 337.5536481 | D32: USD/kW
B33: Back pressure steam turbine | C33: 561.1111111 | D33: USD/kW
B34: =title420 -> Generator | C34: 400 | D34: USD/kW | E34: Mainteinance | F34: 2% investement
B35: Microturbine | C35: 700 | D35: USD/kW
B37: Total Jobs Proxy | C37: 4.8 | D37: Jobs/MW | E37: Renewable Energy: A Global Review of Technologies, Policies and Markets | F37: http://books.google.com.co/books?id=hNPv1vzsorMC&pg=PA8&lpg=PA8&dq=cogeneration%22JOBS/MW%22&source=bl&ots=2M7bUapsHp&sig=eYgbbd5zUhPN3VHjpkQdQx6FNcA&hl=es-419&sa=X&ei=7K0QVIKOM8LDggS3nYHIBA&ved=0CDYQ6AEwAw#v=onepage&q=cogeneration%22JOBS%2FMW%22&f=false
B38: Unskilled | C38: =C37*3/4 -> 3.6 | D38: Jobs/MW
B39: Skilled | C39: =C37/4 -> 1.2 | D39: Jobs/MW

Sheet dummy_database (hidden)
D1: Moisture (%) | E1: Particle size (mm) | F1: C (%) | G1: H (%) | H1: O (%) | I1: N (%) | J1: S (%) | K1: HHV (MJ/KG) | L1: LHV Comb. (MJ/KG) | M1: LHV Gasification (MJ/kg)
A2: =title126 -> barley | B2: =title149 -> straw | C2: =+A2&B2 -> barleystraw | D2: 0.11 | E2: 38 | F2: 0.468 | G2: 0.0553 | H2: 0.419 | I2: 0.0041 | J2: =100%-SUM(F2:I2) -> 0.0536 | K2: =(0.3516*$F2+1.16225*$G2-0.1109*$H2+0.0628*$I2+0.10465*$J2)*100 -> 18.8220845 | L2: =+K2-0.212*$G2*100-0.0245*$D2*100-0.008*$H2 -> 17.3768725 | M2: 16.22285518 | N2: HHV equation | O2: http://www.sciencedirect.com/science/article/pii/S1364032111000578
A3: =title127 -> cacao | B3: =title154 -> pods | C3: cacaopods | D3: 0.08 | E3: 44 | F3: 0.5062375 | G3: 0.0671125 | H3: 0.3874125 | I3: 0.0176125 | J3: =100%-SUM(F3:I3) -> 0.021625 | K3: =(0.3516*$F3+1.16225*$G3-0.1109*$H3+0.0628*$I3+0.10465*$J3)*100 -> 21.63996831 | L3: =+K3-0.212*$G3*100-0.0245*$D3*100-0.008*$H3 -> 20.01808401 | M3: 21.86067432 | N3: LHV CONVERSION | O3: 2006 IPCC Guidelines, Vol. II, Section 1.4.1.2, Box 1.1
A4: =title128 -> cassava | B4: =title143 -> stalk | C4: cassavastalk | D4: 0.12 | E4: 77 | F4: 0.537 | G4: 0.071 | H4: 0.379 | I4: 0.012 | J4: 0.001 | K4: 23.01561 | L4: 21.213378 | M4: 23.24811937 | N4: Density Syngas | O4: 0.95 | P4: Kg/m3
A5: =title129 -> coconut | B5: =title144 -> fronds | C5: coconutfronds | D5: 0.05 | E5: 36 | F5: 0.5062375 | G5: 0.0671125 | H5: 0.3874125 | I5: 0.0176125 | J5: 0.021625 | K5: 21.63996831 | L5: 20.09158401 | M5: 21.86067432 | N5: syngas yield | O5: 3.29 | P5: m3/kg biomass
A6: =title129 -> coconut | B6: =title145 -> husk | C6: coconuthusk | D6: 0.0667 | E6: 56 | F6: 0.3949 | G6: 0.06068 | H6: 0.53979 | I6: 0.00399 | J6: 0.00064 | K6: 14.9827007 | L6: 13.52855138 | M6: 27.97514702
A7: =title129 -> coconut | B7: =title146 -> shell | C7: coconutshell | D7: 0.057 | E7: 77 | F7: 0.539 | G7: 0.057 | H7: 0.3944 | I7: 0.001 | J7: 0.0002 | K7: 21.210542 | L7: 19.8593368 | M7: 18.63460289
A8: =title130 -> coffee | B8: =title145 -> husk | C8: coffeehusk | D8: 0.0766 | E8: 56 | F8: 0.5062375 | G8: 0.0671125 | H8: 0.3874125 | I8: 0.0176125 | J8: 0.021625 | K8: 21.63996831 | L8: 20.02641401 | M8: 21.86067432
A9: =title131 -> cotton | B9: =title155 -> hull | C9: cottonhull | D9: 0.09 | E9: 49 | F9: 0.4643 | G9: 0.0618 | H9: 0.4262 | I9: 0.008 | J9: 0.0397 | K9: 19.2466355 | L9: 17.7125659 | M9: 21.76796007
A10: =title131 -> cotton | B10: =title143 -> stalk | C10: cottonstalk | D10: 0.0766 | E10: 40 | F10: 0.461 | G10: 0.0685 | H10: 0.4335 | I10: 0.0109 | J10: 0.0026 | K10: 19.4583185 | L10: 17.8149805 | M10: 24.91614876
A11: =title132 -> groundnut | B11: =title146 -> shell | C11: groundnutshell | D11: 0.082 | E11: 59 | F11: 0.5062375 | G11: 0.0671125 | H11: 0.3874125 | I11: 0.0176125 | J11: 0.021625 | K11: 21.63996831 | L11: 20.01318401 | M11: 21.86067432
A12: =title133 -> maize | B12: =title147 -> cob | C12: maizecob | D12: 0.15 | E12: 59 | F12: 0.4658 | G12: 0.0587 | H12: 0.4545 | I12: 0.0047 | J12: 0.0001 | K12: 18.190093 | L12: 16.574517 | M12: 22.40272774
A13: =title133 -> maize | B13: =title145 -> husk | C13: maizehusk | D13: 0.1111 | E13: 38 | F13: 0.4627 | G13: 0.0669 | H13: 0.4543 | I13: 0.016 | J13: 0.0001 | K13: 19.107324 | L13: 17.4132146 | M13: 25.66395802
A14: =title133 -> maize | B14: =title150 -> stover | C14: maizestover | D14: 0.05 | E14: 41 | F14: 0.4365 | G14: 0.0556 | H14: 0.4331 | I14: 0.0061 | J14: 0.0001 | K14: 17.0457255 | L14: 15.7410407 | M14: 19.38251588
A15: =title134 -> millet | B15: =title149 -> straw | C15: milletstraw | D15: 0.14 | E15: 40 | F15: 0.411 | G15: 0.08 | H15: 0.411 | I15: 0.009 | J15: 0.001 | K15: 19.257755 | L15: 17.215467 | M15: 27.46944778
A16: =title135 -> oat | B16: =title149 -> straw | C16: oatstraw | D16: 0.092 | E16: 68 | F16: 0.468 | G16: 0.0582 | H16: 0.4698 | I16: 0.0031 | J16: 0.0009 | K16: 18.0379795 | L16: 16.5749811 | M16: 23.23771568
A17: =title136 -> oil palm | B17: =title151 -> empty bunches | C17: oil palmempty bunches | D17: 0.024 | E17: 25 | F17: 0.5378 | G17: 0.0437 | H17: 0.415 | I17: 0.0035 | J17: 0 | K17: 19.4077105 | L17: 18.4191505 | M17: 14.60840571
A18: =title136 -> oil palm | B18: =title144 -> fronds | C18: oil palmfronds | D18: 0.0533 | E18: 80 | F18: 0.4843 | G18: 0.11 | H18: 0.40207 | I18: 0.00339 | J18: 0.00024 | K18: 25.3775825 | L18: 22.91178094 | M18: 39.88507264
A19: =title136 -> oil palm | B19: =title146 -> shell | C19: oil palmshell | D19: 0.0811 | E19: 61 | F19: 0.4444 | G19: 0.0501 | H19: 0.347 | I19: 0.0028 | J19: 0.1557 | K19: 19.246731 | L19: 17.98314 | M19: 11.57147433
A20: =title137 -> rice | B20: =title149 -> straw | C20: ricestraw | D20: 0.0811 | E20: 52 | F20: 0.392 | G20: 0.051 | H20: 0.358 | I20: 0.006 | J20: 0.001 | K20: 15.78812 | L20: 14.505361 | M20: 12.02637739
A21: =title137 -> rice | B21: =title145 -> husk | C21: ricehusk | D21: 0.09 | E21: 30 | F21: 0.385 | G21: 0.057 | H21: 0.398 | I21: 0.005 | J21: 0 | K21: 15.779005 | L21: 14.346921 | M21: 17.00622728
A22: rye | B22: =title149 -> straw | C22: ryestraw | D22: 0.15 | E22: 77 | F22: 0.478 | G22: 0.051 | H22: 0.389 | I22: 0.001 | J22: 0 | K22: 18.426225 | L22: 16.974413 | M22: 15.11545304
A23: =title138 -> sorghum | B23: =title148 -> straw/stalk | C23: sorghumstraw/stalk | D23: 0.0564 | E23: 51 | F23: 0.458 | G23: 0.053 | H23: 0.423 | I23: 0.01 | J23: 0.001 | K23: 17.6454 | L23: 16.380236 | M23: 17.92597732
A24: =title139 -> soybean | B24: =title149 -> straw | C24: soybeanstraw | D24: 0.188 | E24: 58 | F24: 0.457 | G24: 0.066 | H24: 0.47 | I24: 0.006 | J24: 0.001 | K24: 18.574815 | L24: 16.711255 | M24: 26.26806959
A25: =title139 -> soybean | B25: =title154 -> pods | C25: soybeanpods | D25: 0.132 | E25: 38 | F25: 0.425 | G25: 0.065 | H25: 0.49 | I25: 0.016 | J25: 0.003 | K25: 17.1954 | L25: 15.49008 | M25: 26.79703685
A26: =title140 -> sugarcane | B26: =title152 -> tops/leaves | C26: sugarcanetops/leaves | D26: 0.135 | E26: 23 | F26: 0.3975 | G26: 0.0555 | H26: 0.4682 | I26: 0.0017 | J26: 0.001 | K26: 15.2553905 | L26: 13.7442949 | M26: 21.1872477
A27: =title140 -> sugarcane | B27: =title153 -> baggase | C27: sugarcanebaggase | D27: 0.15 | E27: 51 | F27: 0.449 | G27: 0.054 | H27: 0.396 | I27: 0.004 | J27: 0.0001 | K27: 17.6975165 | L27: 16.1820485 | M27: 16.43797426
A28: =title142 -> wheat | B28: =title149 -> straw | C28: wheatstraw | D28: 0.0863 | E28: 57 | F28: 0.434 | G28: 0.06 | H28: 0.445 | I28: 0.008 | J28: 0.001 | K28: 17.358595 | L28: 15.8716 | M28: 21.91516729
A29: =title156 -> briquettes/pellets | C29: briquettes/pellets | D29: 0.15 | E29: N/A | F29: =AVERAGE(F2:F28) -> 0.4620425926 | G29: =AVERAGE(G2:G28) -> 0.06216407407 | H29: =AVERAGE(H2:H28) -> 0.4209448148 | I29: =AVERAGE(I2:I28) -> 0.008027037037 | J29: =AVERAGE(J2:J28) -> 0.01298074074 | K29: 18.98841231 | L29: 17.29966638 | M29: 17.3453671
A30: =title157 -> Forest | B30: =title159 -> Harv. Res. | C30: ForestHarv. Res. | D30: 0.05 | E30: 60 | F30: 0.511 | G30: 0.07366666667 | H30: 0.2780666667 | I30: 0.007666666667 | J30: 0.0002333333333 | K30: 23.4954975 | L30: =+K30-0.212*$G30*100-0.0245*$D30*100-0.008*$H30 -> 21.80903963 | M30: 17.3453671
A31: =title158 -> Wood | B31: =title160 -> Proc. Res. | C31: WoodProc. Res. | D31: 0.15 | E31: 40 | F31: 0.469 | G31: 0.052 | H31: 0.378 | I31: 0.001 | J31: 0.0004 | K31: 18.352186 | L31: 16.879262 | M31: 14.68395277
B42: =title55 -> Please Select | C42: 1 | D42: Steam @10 Bar | E42: 2013.56 | F42: MJ/t | T42: =title55 -> Please Select
B43: =title176 -> Feedstock | C43: 2 | D43: syngas yield | E43: 3.29 | F43: m3/kg biomass | G43: Assuming optimal conditions | H43: Peres, A., B. H. Lunelli, et al. (2013). "Application of biomass to hydrogen and syngas production." Chemical Engineering Transactions 32: 589-594. | T43: =title56 -> Stand-Alone Energy Production | U43: 1 | V43: Cogeneration plants will be stand-alone and will not depend on processing plants.
B44: =title197 -> Product | C44: 3 | D44: Density Syngas | E44: 0.95 | F44: Kg/m3 | T44: =title57 -> Attached Production | U44: 2 | V44: Cogeneration plants will be attached to processing plants.
D45: Calorific Value | E45: 9 | F45: MJ/m3 | G45: Cogeneration plant using o2 as oxygenant | H45: http://scialert.net/fulltext/?doi=ajsr.2013.187.196&org=11
K46: Syngas | Q46: Combustion
B47: =title175 -> Crop | C47: =title522 -> Residue | D47: =title522 -> Residue | E47: Residue : Product ratio | F47: C (%) | G47: H (%) | H47: O (%) | I47: N (%) | J47: S (%) | K47: CO (%VOL) | L47: CO2 (%VOL) | M47: H2 (%VOL) | N47: N2 (%VOL) | O47: CH4 (%vol) | P47: LHV (MJ/KG) | Q47: LHV (MJ/KG)
B48: =title126 -> barley | C48: =title149 -> straw | D48: =+CONCATENATE(B48,C48) -> barleystraw | E48: 1.3494375 | F48: 0.468 | G48: 0.0553 | H48: 0.419 | I48: 0.0041 | J48: 0.0536 | K48: 0.217705189 | L48: 0.1944819575 | M48: 0.1505676068 | N48: 0.4 | O48: 0.03724524675 | P48: 4.930959022 | Q48: 17.3768725
B49: =title128 -> cassava | C49: =title143 -> stalk | D49: cassavastalk | E49: 0.1337909091 | F49: 0.537 | G49: 0.071 | H49: 0.379 | I49: 0.012 | J49: 0.001 | K49: 0.200892509 | L49: 0.1455489953 | M49: 0.1809698038 | N49: 0.4 | O49: 0.07258869182 | P49: 7.066297682 | Q49: 21.213378
B50: =title129 -> coconut | C50: =title144 -> fronds | D50: coconutfronds | E50: 0.4729677994 | F50: 0.5062375 | G50: 0.0671125 | H50: 0.3874125 | I50: 0.0176125 | J50: 0.021625 | K50: 0.1976672241 | L50: 0.167975047 | M50: 0.1687662094 | N50: 0.4 | O50: 0.06559151947 | P50: 6.644581862 | Q50: 20.09158401
B51: =title129&1 -> coconut1 | C51: =title145 -> husk | D51: coconut1husk | E51: 0.49 | F51: 0.3949 | G51: 0.06068 | H51: 0.53979 | I51: 0.00399 | J51: 0.00064 | K51: 0.2630723453 | L51: 0.07931107215 | M51: 0.1607291237 | N51: 0.4 | O51: 0.09688745884 | P51: 8.503084201 | Q51: 13.52855138
B52: =title129&2 -> coconut2 | C52: =title146 -> shell | D52: coconut2shell | E52: 0.39 | F52: 0.539 | G52: 0.057 | H52: 0.3944 | I52: 0.001 | J52: 0.0002 | K52: 0.230815419 | L52: 0.1734227036 | M52: 0.1694237631 | N52: 0.4 | O52: 0.02633811432 | P52: 5.664013037 | Q52: 19.8593368
B53: =title133 -> maize | C53: =title147 -> cob | D53: maizecob | E53: 0.3307533534 | F53: 0.4658 | G53: 0.0587 | H53: 0.4545 | I53: 0.0047 | J53: 0.0001 | K53: 0.237614857 | L53: 0.1424353657 | M53: 0.1617055573 | N53: 0.4 | O53: 0.05824422005 | P53: 6.809339739 | Q53: 16.574517
B54: =title133&1 -> maize1 | C54: =title145 -> husk | D54: maize1husk | E54: 0.2216666667 | F54: 0.4627 | G54: 0.0669 | H54: 0.4543 | I54: 0.016 | J54: 0.0001 | K54: 0.2254834441 | L54: 0.1168967709 | M54: 0.1698519743 | N54: 0.4 | O54: 0.08776781074 | P54: 7.800595144 | Q54: 17.4132146
B55: =title133&2 -> maize2 | C55: =title150 -> stover | D55: maize2stover | E55: 1.96 | F55: 0.4365 | G55: 0.0556 | H55: 0.4331 | I55: 0.0061 | J55: 0.0001 | K55: 0.2128024951 | L55: 0.1964992985 | M55: 0.1441021917 | N55: 0.4 | O55: 0.04659601465 | P55: 5.891342214 | Q55: 15.7410407
B56: =title136 -> oil palm | C56: =title151 -> empty bunches | D56: oil palmempty bunches | E56: 0.3102 | F56: 0.5378 | G56: 0.0437 | H56: 0.415 | I56: 0.0035 | J56: 0 | K56: 0.2620639202 | L56: 0.1947885257 | M56: 0.1588224276 | N56: 0.4 | O56: 0.02 | P56: 4.440244897 | Q56: 18.4191505
B57: =title136&1 -> oil palm1 | C57: =title144 -> fronds | D57: oil palm1fronds | E57: 2.602666667 | F57: 0.4843 | G57: 0.11 | H57: 0.40207 | I57: 0.00339 | J57: 0.00024 | K57: 0.1427639045 | L57: 0.01943228571 | M57: 0.2131107254 | N57: 0.4 | O57: 0.2246930845 | P57: 12.12312238 | Q57: 22.91178094
B58: =title136&2 -> oil palm2 | C58: =title146 -> shell | D58: oil palm2shell | E58: 0.0575 | F58: 0.4444 | G58: 0.0501 | H58: 0.347 | I58: 0.0028 | J58: 0.1557 | K58: 0.1621653311 | L58: 0.3118472809 | M58: 0.1209747495 | N58: 0.4 | O58: 0.005012638499 | P58: 3.517165449 | Q58: 17.98314
B59: =title138 -> sorghum | C59: =title148 -> straw/stalk | D59: sorghumstraw/stalk | E59: 2.44 | F59: 0.458 | G59: 0.053 | H59: 0.423 | I59: 0.01 | J59: 0.001 | K59: 0.2188925894 | L59: 0.203779613 | M59: 0.1457273488 | N59: 0.4 | O59: 0.03160044874 | P59: 5.448625324 | Q59: 16.380236
B60: =title139 -> soybean | C60: =title149 -> straw | D60: soybeanstraw | E60: 1.53 | F60: 0.457 | G60: 0.066 | H60: 0.47 | I60: 0.006 | J60: 0.001 | K60: 0.2351966893 | L60: 0.1049563278 | M60: 0.1705890276 | N60: 0.4 | O60: 0.08925795532 | P60: 7.984215681 | Q60: 16.711255
B61: =title139&1 -> soybean1 | C61: =title154 -> pods | D61: soybean1pods | E61: 1.09 | F61: 0.425 | G61: 0.065 | H61: 0.49 | I61: 0.016 | J61: 0.003 | K61: 0.2359415706 | L61: 0.1047107 | M61: 0.1638452788 | N61: 0.4 | O61: 0.09550245054 | P61: 8.144996003 | Q61: 15.49008
B62: =title140 -> sugarcane | C62: =title152 -> tops/leaves | D62: sugarcanetops/leaves | E62: 0.2003076923 | F62: 0.3975 | G62: 0.0555 | H62: 0.4682 | I62: 0.0017 | J62: 0.001 | K62: 0.2199147706 | L62: 0.1797511888 | M62: 0.1395614281 | N62: 0.4 | O62: 0.0607726125 | P62: 6.439892918 | Q62: 13.7442949
B63: sugarcane1 | C63: =title153 -> baggase | D63: sugarcane1baggase | E63: 0.2578571429 | F63: 0.449 | G63: 0.054 | H63: 0.396 | I63: 0.004 | J63: 0.0001 | K63: 0.1941984405 | L63: 0.2379157421 | M63: 0.1378831815 | N63: 0.4 | O63: 0.03000263598 | P63: 4.996344759 | Q63: 16.1820485
B64: =title142 -> wheat | C64: =title149 -> straw | D64: wheatstraw | E64: 1.28 | F64: 0.434 | G64: 0.06 | H64: 0.445 | I64: 0.008 | J64: 0.001 | K64: 0.2144646409 | L64: 0.1691359541 | M64: 0.1509246256 | N64: 0.4 | O64: 0.0654747794 | P64: 6.661145072 | Q64: 15.8716
B65: =title576 -> Jatropha | C65: =title579 -> Cake | D65: JatrophaCake | E65: 0.41 | F65: 0.5917 | G65: 0.0652 | H65: 0.3393 | I65: 0.38 | J65: 0.05 | K65: 0.2053563539 | L65: 0.177858134 | M65: 0.1828480758 | N65: 0.4 | O65: 0.03393743634 | P65: 12.42775948 | Q65: 25.9324656
B66: =title577 -> Sugarbeet | C66: pulp | D66: Sugarbeetpulp | E66: 0.5 | P66: 0
B67: =title141 -> sunflower | C67: =title580 -> No Residue Available | D67: sunflowerNo Residue Available
B68: =title578 -> Rapeseed | C68: =title580 -> No Residue Available | D68: RapeseedNo Residue Available | E68: 0
D71: Emission Rates | E71: gCO2 /kWh | G71: =title203 -> Fuel | H71: Calorific Value (MJ/Kg) | I71: Density (kg/L) | J71: kg CO2e/MJ
D72: =title55 -> Please Select | G72: =title55 -> Please Select | P72: Selection | Q72: =VLOOKUP(START!C8,$O$73:$Q$75,3,FALSE) -> 1
D73: =country2 -> Albania | E73: 11 | G73: =title161 -> Gasoline | H73: 44.3 | I73: 0.89 | J73: 0.070985 | O73: EN | P73: English | Q73: 1
D74: =country3 -> Algeria | E74: 576 | G74: =title162 -> Diesel Oil | H74: 43 | I74: 0.73722 | J74: 0.0753909 | O74: FR | P74: French | Q74: 2
D75: =country4 -> Angola | E75: 237 | G75: =title163 -> Waste Oil / Lubrificants | H75: 40.2 | I75: 0.95 | J75: 0.0745909 | O75: ES | P75: Spanish | Q75: 3
D76: =country5 -> Argentina | E76: 355 | G76: =title164 -> LPG | H76: 47.3 | I76: 0.545 | J76: 0.064464 | O76: 1 | P76: 2 | Q76: 3
D77: =country6 -> Armenia | E77: 108 | G77: =title165 -> Natural Gas | H77: 48 | I77: 0.65 | J77: 0.0156 | N77: 2 | O77: Albania | P77: Albanie | Q77: Albania | R77: country | S77: =HLOOKUP($Q$72,$O$76:$Q77,$N77,FALSE) -> Albania | T77: =$R77&$N77 -> country2
D78: =country7 -> Australia | E78: 853 | G78: =title166 -> Peat | H78: 9.76 | I78: 0.6823529412 | J78: 0.000486 | N78: 3 | O78: Algeria | P78: Algérie | Q78: Argelia | R78: country | S78: =HLOOKUP($Q$72,$O$76:$Q78,$N78,FALSE) -> Algeria | T78: =$R78&$N78 -> country3
D79: =country8 -> Austria | E79: 163 | G79: =title167 -> Butane | H79: 45.27677204 | I79: 2 | J79: 0.01948001062 | N79: 4 | O79: Angola | P79: Angola | Q79: Angola | R79: country | S79: =HLOOKUP($Q$72,$O$76:$Q79,$N79,FALSE) -> Angola | T79: country4
D80: =country9 -> Azerbaijan | E80: 443 | G80: =title168 -> Propane | H80: 46.29553566 | I80: 1.92 | J80: 0.01725760354 | N80: 5 | O80: Argentina | P80: Argentine | Q80: Argentina | R80: country | S80: =HLOOKUP($Q$72,$O$76:$Q80,$N80,FALSE) -> Argentina | T80: country5
D81: =country10 -> Bahrain | E81: 665 | G81: =title169 -> Methanol | H81: 20.09356275 | I81: 0.7918 | J81: 0.08642318218 | N81: 6 | O81: Armenia | P81: Arménie | Q81: Armenia | R81: country | S81: =HLOOKUP($Q$72,$O$76:$Q81,$N81,FALSE) -> Armenia | T81: country6
D82: =country11 -> Bangladesh | E82: 585 | G82: =title170 -> Ethanol | H82: 26.95163409 | I82: 0.789 | J82: 0.004227793194 | N82: 7 | O82: Australia | P82: Australie | Q82: Australia | R82: country | S82: =HLOOKUP($Q$72,$O$76:$Q82,$N82,FALSE) -> Australia | T82: country7
D83: =country12 -> Belarus | E83: 302 | G83: =title171 -> Biodiesel | H83: 40.56818182 | I83: 0.88 | J83: 0.004259035631 | N83: 8 | O83: Austria | P83: Autriche | Q83: Austria | R83: country | S83: =HLOOKUP($Q$72,$O$76:$Q83,$N83,FALSE) -> Austria | T83: country8
D84: =country13 -> Belgium | E84: 218 | G84: =title172 -> Other bituminous coal | H84: 22.732203 | I84: 0 | J84: 0.02333333333 | N84: 9 | O84: Azerbaijan | P84: Azerbaïdjan | Q84: Azerbaiyán | R84: country | S84: =HLOOKUP($Q$72,$O$76:$Q84,$N84,FALSE) -> Azerbaijan | T84: country9
D85: =country14 -> Benin | E85: 725 | G85: =title173 -> Sub bituminous coal | H85: 26.12151245 | I85: 0 | J85: 0.02583333333 | N85: 10 | O85: Bahrain | P85: Bahreïn | Q85: Bahrein | R85: country | S85: =HLOOKUP($Q$72,$O$76:$Q85,$N85,FALSE) -> Bahrain | T85: country10
D86: =country15 -> Bolivia | E86: 393 | G86: =title174 -> Lignite brown coal | H86: 28.61019707 | I86: 0 | J86: 0.02638888889 | N86: 11 | O86: Bangladesh | P86: Bangladesh | Q86: Bangladesh | R86: country | S86: =HLOOKUP($Q$72,$O$76:$Q86,$N86,FALSE) -> Bangladesh | T86: country11
D87: =country16 -> Bosnia and Herzegovina | E87: 776 | G87: =title158 -> Wood | H87: 19.55106924 | I87: 0 | J87: 5.196646729e-07 | N87: 12 | O87: Belarus | P87: Bélarus | Q87: Belarús | R87: country | S87: =HLOOKUP($Q$72,$O$76:$Q87,$N87,FALSE) -> Belarus | T87: country12
D88: =country17 -> Botswana | E88: 2063 | N88: 13 | O88: Belgium | P88: Belgique | Q88: Bélgica | R88: country | S88: =HLOOKUP($Q$72,$O$76:$Q88,$N88,FALSE) -> Belgium | T88: country13
D89: =country18 -> Brazil | E89: 64 | N89: 14 | O89: Benin | P89: Bénin | Q89: Benin | R89: country | S89: =HLOOKUP($Q$72,$O$76:$Q89,$N89,FALSE) -> Benin | T89: country14
D90: =country19 -> Brunei Darussalam | E90: 755 | N90: 15 | O90: Bolivia | P90: Bolivie | Q90: Bolivia | R90: country | S90: =HLOOKUP($Q$72,$O$76:$Q90,$N90,FALSE) -> Bolivia | T90: country15
D91: =country20 -> Bulgaria | E91: 463 | N91: 16 | O91: Bosnia and Herzegovina | P91: Bosnie-Herzégovine | Q91: Bosnia y Herzegovina | R91: country | S91: =HLOOKUP($Q$72,$O$76:$Q91,$N91,FALSE) -> Bosnia and Herzegovina | T91: country16
D92: =country21 -> Cambodia | E92: 1151 | N92: 17 | O92: Botswana | P92: Botswana | Q92: Botswana | R92: country | S92: =HLOOKUP($Q$72,$O$76:$Q92,$N92,FALSE) -> Botswana | T92: country17
D93: =country22 -> Cameroon | E93: 243 | N93: 18 | O93: Brazil | P93: Brésil | Q93: Brasil | R93: country | S93: =HLOOKUP($Q$72,$O$76:$Q93,$N93,FALSE) -> Brazil | T93: country18
D94: =country23 -> Chile | E94: 373 | N94: 19 | O94: Brunei Darussalam | P94: Brunéi Darussalam | Q94: Brunei Darussalam | R94: country | S94: =HLOOKUP($Q$72,$O$76:$Q94,$N94,FALSE) -> Brunei Darussalam | T94: country19
D95: =country24 -> Taiwan | E95: 743 | N95: 20 | O95: Bulgaria | P95: Bulgarie | Q95: Bulgaria | R95: country | S95: =HLOOKUP($Q$72,$O$76:$Q95,$N95,FALSE) -> Bulgaria | T95: country20
D96: =country25 -> Chinese Taipei | E96: 635 | N96: 21 | O96: Cambodia | P96: Cambodge | Q96: Camboya | R96: country | S96: =HLOOKUP($Q$72,$O$76:$Q96,$N96,FALSE) -> Cambodia | T96: country21
D97: =country26 -> Colombia | E97: 175 | N97: 22 | O97: Cameroon | P97: Cameroun | Q97: Camerún | R97: country | S97: =HLOOKUP($Q$72,$O$76:$Q97,$N97,FALSE) -> Cameroon | T97: country22
D98: =country27 -> Congo | E98: 207 | N98: 23 | O98: Chile | P98: Chili | Q98: Chile | R98: country | S98: =HLOOKUP($Q$72,$O$76:$Q98,$N98,FALSE) -> Chile | T98: country23
D99: =country28 -> Costa Rica | E99: 40 | N99: 24 | O99: Taiwan | P99: Taiwan | Q99: Taiwan | R99: country | S99: =HLOOKUP($Q$72,$O$76:$Q99,$N99,FALSE) -> Taiwan | T99: country24
D100: =country29 -> Côte d'Ivoire | E100: 426 | N100: 25 | O100: Chinese Taipei | P100: Taipei chinois | Q100: China Taipéi | R100: country | S100: =HLOOKUP($Q$72,$O$76:$Q100,$N100,FALSE) -> Chinese Taipei | T100: country25
D101: =country30 -> Croatia | E101: 283 | N101: 26 | O101: Colombia | P101: Colombie | Q101: Colombia | R101: country | S101: =HLOOKUP($Q$72,$O$76:$Q101,$N101,FALSE) -> Colombia | T101: country26
D102: =country31 -> Cuba | E102: 752 | N102: 27 | O102: Congo | P102: Congo | Q102: Congo | R102: country | S102: =HLOOKUP($Q$72,$O$76:$Q102,$N102,FALSE) -> Congo | T102: country27
D103: =country32 -> Cyprus | E103: 744 | N103: 28 | O103: Costa Rica | P103: Costa Rica | Q103: Costa Rica | R103: country | S103: =HLOOKUP($Q$72,$O$76:$Q103,$N103,FALSE) -> Costa Rica | T103: country28
D104: =country33 -> Czech Republic | E104: 514 | N104: 29 | O104: Côte d'Ivoire | P104: Côte d'Ivoire | Q104: Côte d'Ivoire | R104: country | S104: =HLOOKUP($Q$72,$O$76:$Q104,$N104,FALSE) -> Côte d'Ivoire | T104: country29
D105: =country34 -> Dem. Rep. of .Congo | E105: 3 | N105: 30 | O105: Croatia | P105: Croatie | Q105: Croacia | R105: country | S105: =HLOOKUP($Q$72,$O$76:$Q105,$N105,FALSE) -> Croatia | T105: country30
D106: =country35 -> Denmark | E106: 303 | N106: 31 | O106: Cuba | P106: Cuba | Q106: Cuba | R106: country | S106: =HLOOKUP($Q$72,$O$76:$Q106,$N106,FALSE) -> Cuba | T106: country31
D107: =country36 -> Dominican Republic | E107: 591 | N107: 32 | O107: Cyprus | P107: Chypre | Q107: Chipre | R107: country | S107: =HLOOKUP($Q$72,$O$76:$Q107,$N107,FALSE) -> Cyprus | T107: country32
D108: =country37 -> DPR of Korea | E108: 499 | N108: 33 | O108: Czech Republic | P108: République tchèque | Q108: República Checa | R108: country | S108: =HLOOKUP($Q$72,$O$76:$Q108,$N108,FALSE) -> Czech Republic | T108: country33
D109: =country38 -> Ecuador | E109: 290 | N109: 34 | O109: Dem. Rep. of .Congo | P109: Rép. Dém. du Congo | Q109: República Dem. Congo | R109: country | S109: =HLOOKUP($Q$72,$O$76:$Q109,$N109,FALSE) -> Dem. Rep. of .Congo | T109: country34
D110: =country39 -> Egypt | E110: 466 | N110: 35 | O110: Denmark | P110: Danemark | Q110: Dinamarca | R110: country | S110: =HLOOKUP($Q$72,$O$76:$Q110,$N110,FALSE) -> Denmark | T110: country35
D111: =country40 -> El Salvador | E111: 319 | N111: 36 | O111: Dominican Republic | P111: République dominicaine | Q111: República Dominicana | R111: country | S111: =HLOOKUP($Q$72,$O$76:$Q111,$N111,FALSE) -> Dominican Republic | T111: country36
D112: =country41 -> Eritrea | E112: 672 | N112: 37 | O112: DPR of Korea | P112: RPD de Corée | Q112: RPD de Corea | R112: country | S112: =HLOOKUP($Q$72,$O$76:$Q112,$N112,FALSE) -> DPR of Korea | T112: country37
D113: =country42 -> Estonia | E113: 704 | N113: 38 | O113: Ecuador | P113: Équateur | Q113: Ecuador | R113: country | S113: =HLOOKUP($Q$72,$O$76:$Q113,$N113,FALSE) -> Ecuador | T113: country38
D114: =country43 -> Ethiopia | E114: 118 | N114: 39 | O114: Egypt | P114: Égypte | Q114: Egipto | R114: country | S114: =HLOOKUP($Q$72,$O$76:$Q114,$N114,FALSE) -> Egypt | T114: country39
D115: =country44 -> Finland | E115: 205 | N115: 40 | O115: El Salvador | P115: El Salvador | Q115: El Salvador | R115: country | S115: =HLOOKUP($Q$72,$O$76:$Q115,$N115,FALSE) -> El Salvador | T115: country40
D116: =country45 -> France | E116: 90 | N116: 41 | O116: Eritrea | P116: Érythrée | Q116: Eritrea | R116: country | S116: =HLOOKUP($Q$72,$O$76:$Q116,$N116,FALSE) -> Eritrea | T116: country41
D117: =country46 -> FYR of Macedonia | E117: 710 | N117: 42 | O117: Estonia | P117: Estonie | Q117: Estonia | R117: country | S117: =HLOOKUP($Q$72,$O$76:$Q117,$N117,FALSE) -> Estonia | T117: country42
D118: =country47 -> Gabon | E118: 322 | N118: 43 | O118: Ethiopia | P118: Éthiopie | Q118: Etiopía | R118: country | S118: =HLOOKUP($Q$72,$O$76:$Q118,$N118,FALSE) -> Ethiopia | T118: country43
D119: =country48 -> Georgia | E119: 129 | N119: 44 | O119: Finland | P119: Finlande | Q119: Finlandia | R119: country | S119: =HLOOKUP($Q$72,$O$76:$Q119,$N119,FALSE) -> Finland | T119: country44
D120: =country49 -> Germany | E120: 430 | N120: 45 | O120: France | P120: France | Q120: Francia | R120: country | S120: =HLOOKUP($Q$72,$O$76:$Q120,$N120,FALSE) -> France | T120: country45
D121: =country50 -> Ghana | E121: 187 | N121: 46 | O121: FYR of Macedonia | P121: ARY de Macédoine | Q121: ARY de Macedonia | R121: country | S121: =HLOOKUP($Q$72,$O$76:$Q121,$N121,FALSE) -> FYR of Macedonia | T121: country46
D122: =country51 -> Gibraltar | E122: 740 | N122: 47 | O122: Gabon | P122: Gabon | Q122: Gabón | R122: country | S122: =HLOOKUP($Q$72,$O$76:$Q122,$N122,FALSE) -> Gabon | T122: country47
D123: =country52 -> Greece | E123: 722 | N123: 48 | O123: Georgia | P123: Géorgie | Q123: Georgia | R123: country | S123: =HLOOKUP($Q$72,$O$76:$Q123,$N123,FALSE) -> Georgia | T123: country48
D124: =country53 -> Guatemala | E124: 349 | N124: 49 | O124: Germany | P124: Allemagne | Q124: Alemania | R124: country | S124: =HLOOKUP($Q$72,$O$76:$Q124,$N124,FALSE) -> Germany | T124: country49
D125: =country54 -> Haiti | E125: 547 | N125: 50 | O125: Ghana | P125: Ghana | Q125: Ghana | R125: country | S125: =HLOOKUP($Q$72,$O$76:$Q125,$N125,FALSE) -> Ghana | T125: country50
D126: =country55 -> Honduras | E126: 344 | N126: 51 | O126: Gibraltar | P126: Gibraltar | Q126: Gibraltar | R126: country | S126: =HLOOKUP($Q$72,$O$76:$Q126,$N126,FALSE) -> Gibraltar | T126: country51
D127: =country56 -> China, Hong Kong | E127: 763 | N127: 52 | O127: Greece | P127: Grèce | Q127: Grecia | R127: country | S127: =HLOOKUP($Q$72,$O$76:$Q127,$N127,FALSE) -> Greece | T127: country52
D128: =country57 -> Hungary | E128: 302 | N128: 53 | O128: Guatemala | P128: Guatemala | Q128: Guatemala | R128: country | S128: =HLOOKUP($Q$72,$O$76:$Q128,$N128,FALSE) -> Guatemala | T128: country53
D129: =country58 -> Iceland | E129: 0 | N129: 54 | O129: Haiti | P129: Haïti | Q129: Haití | R129: country | S129: =HLOOKUP($Q$72,$O$76:$Q129,$N129,FALSE) -> Haiti | T129: country54
D130: =country59 -> India | E130: 951 | N130: 55 | O130: Honduras | P130: Honduras | Q130: Honduras | R130: country | S130: =HLOOKUP($Q$72,$O$76:$Q130,$N130,FALSE) -> Honduras | T130: country55
D131: =country60 -> Indonesia | E131: 746 | N131: 56 | O131: China, Hong Kong | P131: China, Hong Kong | Q131: China, Hong Kong | R131: country | S131: =HLOOKUP($Q$72,$O$76:$Q131,$N131,FALSE) -> China, Hong Kong | T131: country56
D132: =country61 -> Iraq | E132: 684 | N132: 57 | O132: Hungary | P132: Hongrie | Q132: Hungría | R132: country | S132: =HLOOKUP($Q$72,$O$76:$Q132,$N132,FALSE) -> Hungary | T132: country57
D133: =country62 -> Ireland | E133: 465 | N133: 58 | O133: Iceland | P133: Islande | Q133: Islandia | R133: country | S133: =HLOOKUP($Q$72,$O$76:$Q133,$N133,FALSE) -> Iceland | T133: country58
D134: =country63 -> Islamic Rep. of Iran | E134: 630 | N134: 59 | O134: India | P134: Inde | Q134: India | R134: country | S134: =HLOOKUP($Q$72,$O$76:$Q134,$N134,FALSE) -> India | T134: country59
D135: =country64 -> Israel | E135: 695 | N135: 60 | O135: Indonesia | P135: Indonésie | Q135: Indonesia | R135: country | S135: =HLOOKUP($Q$72,$O$76:$Q135,$N135,FALSE) -> Indonesia | T135: country60
D136: =country65 -> Italy | E136: 386 | N136: 61 | O136: Iraq | P136: Iraq | Q136: Iraq | R136: country | S136: =HLOOKUP($Q$72,$O$76:$Q136,$N136,FALSE) -> Iraq | T136: country61
D137: =country66 -> Jamaica | E137: 544 | N137: 62 | O137: Ireland | P137: Irlande | Q137: Irlanda | R137: country | S137: =HLOOKUP($Q$72,$O$76:$Q137,$N137,FALSE) -> Ireland | T137: country62
D138: =country67 -> Japan | E138: 415 | N138: 63 | O138: Islamic Rep. of Iran | P138: Rép. islamique d'Iran | Q138: Rep. Islámica del Irán | R138: country | S138: =HLOOKUP($Q$72,$O$76:$Q138,$N138,FALSE) -> Islamic Rep. of Iran | T138: country63
D139: =country68 -> Jordan | E139: 581 | N139: 64 | O139: Israel | P139: Israël | Q139: Israel | R139: country | S139: =HLOOKUP($Q$72,$O$76:$Q139,$N139,FALSE) -> Israel | T139: country64
D140: =country69 -> Kazakhstan | E140: 480 | N140: 65 | O140: Italy | P140: Italie | Q140: Italia | R140: country | S140: =HLOOKUP($Q$72,$O$76:$Q140,$N140,FALSE) -> Italy | T140: country65
D141: =country70 -> Kenya | E141: 395 | N141: 66 | O141: Jamaica | P141: Jamaïque | Q141: Jamaica | R141: country | S141: =HLOOKUP($Q$72,$O$76:$Q141,$N141,FALSE) -> Jamaica | T141: country66
D142: =country71 -> Korea | E142: 498 | N142: 67 | O142: Japan | P142: Japon | Q142: Japón | R142: country | S142: =HLOOKUP($Q$72,$O$76:$Q142,$N142,FALSE) -> Japan | T142: =$R142&$N142 -> country67
D143: =country72 -> Kuwait | E143: 870 | N143: 68 | O143: Jordan | P143: Jordanie | Q143: Jordania | R143: country | S143: =HLOOKUP($Q$72,$O$76:$Q143,$N143,FALSE) -> Jordan | T143: country68
D144: =country73 -> Kyrgyzstan | E144: 81 | N144: 69 | O144: Kazakhstan | P144: Kazakhstan | Q144: Kazajstán | R144: country | S144: =HLOOKUP($Q$72,$O$76:$Q144,$N144,FALSE) -> Kazakhstan | T144: country69
D145: =country74 -> Latvia | E145: 153 | N145: 70 | O145: Kenya | P145: Kenya | Q145: Kenya | R145: country | S145: =HLOOKUP($Q$72,$O$76:$Q145,$N145,FALSE) -> Kenya | T145: country70
D146: =country75 -> Lebanon | E146: 717 | N146: 71 | O146: Korea | P146: Corée | Q146: Corea | R146: country | S146: =HLOOKUP($Q$72,$O$76:$Q146,$N146,FALSE) -> Korea | T146: country71
D147: =country76 -> Libya | E147: 872 | N147: 72 | O147: Kuwait | P147: Koweït | Q147: Kuwait | R147: country | S147: =HLOOKUP($Q$72,$O$76:$Q147,$N147,FALSE) -> Kuwait | T147: country72
D148: =country77 -> Lithuania | E148: 111 | N148: 73 | O148: Kyrgyzstan | P148: Kirghizistan | Q148: Kirguistán | R148: country | S148: =HLOOKUP($Q$72,$O$76:$Q148,$N148,FALSE) -> Kyrgyzstan | T148: country73
D149: =country78 -> Luxembourg | E149: 384 | N149: 74 | O149: Latvia | P149: Lettonie | Q149: Letonia | R149: country | S149: =HLOOKUP($Q$72,$O$76:$Q149,$N149,FALSE) -> Latvia | T149: country74
D150: =country79 -> Malaysia | E150: 649 | N150: 75 | O150: Lebanon | P150: Liban | Q150: Líbano | R150: country | S150: =HLOOKUP($Q$72,$O$76:$Q150,$N150,FALSE) -> Lebanon | T150: country75
D151: =country80 -> Malta | E151: 850 | N151: 76 | O151: Libya | P151: Libye | Q151: Libia | R151: country | S151: =HLOOKUP($Q$72,$O$76:$Q151,$N151,FALSE) -> Libya | T151: country76
D152: =country81 -> Mongolia | E152: 535 | N152: 77 | O152: Lithuania | P152: Lituanie | Q152: Lituania | R152: country | S152: =HLOOKUP($Q$72,$O$76:$Q152,$N152,FALSE) -> Lithuania | T152: country77
D153: =country82 -> Morocco | E153: 638 | N153: 78 | O153: Luxembourg | P153: Luxembourg | Q153: Luxemburgo | R153: country | S153: =HLOOKUP($Q$72,$O$76:$Q153,$N153,FALSE) -> Luxembourg | T153: country78
D154: =country83 -> Mozambique | E154: 1 | N154: 79 | O154: Malaysia | P154: Malaisie | Q154: Malasia | R154: country | S154: =HLOOKUP($Q$72,$O$76:$Q154,$N154,FALSE) -> Malaysia | T154: country79
D155: =country84 -> Myanmar | E155: 196 | N155: 80 | O155: Malta | P155: Malte | Q155: Malta | R155: country | S155: =HLOOKUP($Q$72,$O$76:$Q155,$N155,FALSE) -> Malta | T155: country80
D156: =country85 -> Namibia | E156: 237 | N156: 81 | O156: Mongolia | P156: Mongolie | Q156: Mongolia | R156: country | S156: =HLOOKUP($Q$72,$O$76:$Q156,$N156,FALSE) -> Mongolia | T156: country81
D157: =country86 -> Nepal | E157: 4 | N157: 82 | O157: Morocco | P157: Maroc | Q157: Marruecos | R157: country | S157: =HLOOKUP($Q$72,$O$76:$Q157,$N157,FALSE) -> Morocco | T157: country82
D158: =country87 -> Netherlands | E158: 374 | N158: 83 | O158: Mozambique | P158: Mozambique | Q158: Mozambique | R158: country | S158: =HLOOKUP($Q$72,$O$76:$Q158,$N158,FALSE) -> Mozambique | T158: country83
D159: =country88 -> Netherlands Antilles | E159: 707 | N159: 84 | O159: Myanmar | P159: Myanmar | Q159: Myanmar | R159: country | S159: =HLOOKUP($Q$72,$O$76:$Q159,$N159,FALSE) -> Myanmar | T159: country84
D160: =country89 -> New Zealand | E160: 167 | N160: 85 | O160: Namibia | P160: Namibie | Q160: Namibia | R160: country | S160: =HLOOKUP($Q$72,$O$76:$Q160,$N160,FALSE) -> Namibia | T160: country85
D161: =country90 -> Nicaragua | E161: 506 | N161: 86 | O161: Nepal | P161: Népal | Q161: Nepal | R161: country | S161: =HLOOKUP($Q$72,$O$76:$Q161,$N161,FALSE) -> Nepal | T161: country86
D162: =country91 -> Nigeria | E162: 416 | N162: 87 | O162: Netherlands | P162: Pays-Bas | Q162: Países Bajos | R162: country | S162: =HLOOKUP($Q$72,$O$76:$Q162,$N162,FALSE) -> Netherlands | T162: country87
D163: =country92 -> Norway | E163: 17 | N163: 88 | O163: Netherlands Antilles | P163: Netherlands Antilles | Q163: Netherlands Antilles | R163: country | S163: =HLOOKUP($Q$72,$O$76:$Q163,$N163,FALSE) -> Netherlands Antilles | T163: country88
D164: =country93 -> Oman | E164: 842 | N164: 89 | O164: New Zealand | P164: Nouvelle-Zélande | Q164: Nueva Zelandia | R164: country | S164: =HLOOKUP($Q$72,$O$76:$Q164,$N164,FALSE) -> New Zealand | T164: country89
D165: =country94 -> Pakistan | E165: 458 | N165: 90 | O165: Nicaragua | P165: Nicaragua | Q165: Nicaragua | R165: country | S165: =HLOOKUP($Q$72,$O$76:$Q165,$N165,FALSE) -> Nicaragua | T165: country90
D166: =country95 -> Panama | E166: 302 | N166: 91 | O166: Nigeria | P166: Nigéria | Q166: Nigeria | R166: country | S166: =HLOOKUP($Q$72,$O$76:$Q166,$N166,FALSE) -> Nigeria | T166: country91
D167: =country96 -> People's Rep. of China | E167: 743 | N167: 92 | O167: Norway | P167: Norvège | Q167: Noruega | R167: country | S167: =HLOOKUP($Q$72,$O$76:$Q167,$N167,FALSE) -> Norway | T167: country92
D168: =country97 -> Peru | E168: 236 | N168: 93 | O168: Oman | P168: Oman | Q168: Omán | R168: country | S168: =HLOOKUP($Q$72,$O$76:$Q168,$N168,FALSE) -> Oman | T168: country93
D169: =country98 -> Philippines | E169: 478 | N169: 94 | O169: Pakistan | P169: Pakistan | Q169: Pakistán | R169: country | S169: =HLOOKUP($Q$72,$O$76:$Q169,$N169,FALSE) -> Pakistan | T169: country94
D170: =country99 -> Poland | E170: 640 | N170: 95 | O170: Panama | P170: Panama | Q170: Panamá | R170: country | S170: =HLOOKUP($Q$72,$O$76:$Q170,$N170,FALSE) -> Panama | T170: country95
D171: =country100 -> Portugal | E171: 368 | N171: 96 | O171: People's Rep. of China | P171: Rép. populaire de Chine | Q171: Rep. Popular de China | R171: country | S171: =HLOOKUP($Q$72,$O$76:$Q171,$N171,FALSE) -> People's Rep. of China | T171: country96
D172: =country101 -> Qatar | E172: 494 | N172: 97 | O172: Peru | P172: Pérou | Q172: Perú | R172: country | S172: =HLOOKUP($Q$72,$O$76:$Q172,$N172,FALSE) -> Peru | T172: country97
D173: =country102 -> Republic of Moldova | E173: 400 | N173: 98 | O173: Philippines | P173: Philippines | Q173: Filipinas | R173: country | S173: =HLOOKUP($Q$72,$O$76:$Q173,$N173,FALSE) -> Philippines | T173: country98
D174: =country103 -> Romania | E174: 414 | N174: 99 | O174: Poland | P174: Pologne | Q174: Polonia | R174: country | S174: =HLOOKUP($Q$72,$O$76:$Q174,$N174,FALSE) -> Poland | T174: country99
D175: =country104 -> Russian Federation | E175: 317 | N175: 100 | O175: Portugal | P175: Portugal | Q175: Portugal | R175: country | S175: =HLOOKUP($Q$72,$O$76:$Q175,$N175,FALSE) -> Portugal | T175: country100
D176: =country105 -> Saudi Arabia | E176: 757 | N176: 101 | O176: Qatar | P176: Qatar | Q176: Qatar | R176: country | S176: =HLOOKUP($Q$72,$O$76:$Q176,$N176,FALSE) -> Qatar | T176: country101
D177: =country106 -> Senegal | E177: 614 | N177: 102 | O177: Republic of Moldova | P177: République de Moldova | Q177: República de Moldova | R177: country | S177: =HLOOKUP($Q$72,$O$76:$Q177,$N177,FALSE) -> Republic of Moldova | T177: country102
D178: =country107 -> Serbia | E178: 680 | N178: 103 | O178: Romania | P178: Roumanie | Q178: Rumania | R178: country | S178: =HLOOKUP($Q$72,$O$76:$Q178,$N178,FALSE) -> Romania | T178: country103
D179: =country108 -> Singapore | E179: 519 | N179: 104 | O179: Russian Federation | P179: Fédération de Russie | Q179: Federación de Rusia | R179: country | S179: =HLOOKUP($Q$72,$O$76:$Q179,$N179,FALSE) -> Russian Federation | T179: country104
D180: =country109 -> Slovakia | E180: 222 | N180: 105 | O180: Saudi Arabia | P180: Arabie saoudite | Q180: Arabia Saudita | R180: country | S180: =HLOOKUP($Q$72,$O$76:$Q180,$N180,FALSE) -> Saudi Arabia | T180: country105
D181: =country110 -> Slovenia | E181: 316 | N181: 106 | O181: Senegal | P181: Sénégal | Q181: Senegal | R181: country | S181: =HLOOKUP($Q$72,$O$76:$Q181,$N181,FALSE) -> Senegal | T181: country106
D182: =country111 -> South Africa | E182: 926 | N182: 107 | O182: Serbia | P182: Serbie | Q182: Serbia | R182: country | S182: =HLOOKUP($Q$72,$O$76:$Q182,$N182,FALSE) -> Serbia | T182: country107
D183: =country112 -> Spain | E183: 299 | N183: 108 | O183: Singapore | P183: Singapour | Q183: Singapur | R183: country | S183: =HLOOKUP($Q$72,$O$76:$Q183,$N183,FALSE) -> Singapore | T183: country108
D184: =country113 -> Sri Lanka | E184: 460 | N184: 109 | O184: Slovakia | P184: Slovaquie | Q184: Eslovaquia | R184: country | S184: =HLOOKUP($Q$72,$O$76:$Q184,$N184,FALSE) -> Slovakia | T184: country109
D185: =country114 -> Sudan | E185: 356 | N185: 110 | O185: Slovenia | P185: Slovénie | Q185: Eslovenia | R185: country | S185: =HLOOKUP($Q$72,$O$76:$Q185,$N185,FALSE) -> Slovenia | T185: country110
D186: =country115 -> Sweden | E186: 43 | N186: 111 | O186: South Africa | P186: Afrique du Sud | Q186: Sudáfrica | R186: country | S186: =HLOOKUP($Q$72,$O$76:$Q186,$N186,FALSE) -> South Africa | T186: country111
D187: =country116 -> Switzerland | E187: 40 | N187: 112 | O187: Spain | P187: Espagne | Q187: España | R187: country | S187: =HLOOKUP($Q$72,$O$76:$Q187,$N187,FALSE) -> Spain | T187: country112
D188: =country117 -> Syrian Arab Republic | E188: 641 | N188: 113 | O188: Sri Lanka | P188: Sri Lanka | Q188: Sri Lanka | R188: country | S188: =HLOOKUP($Q$72,$O$76:$Q188,$N188,FALSE) -> Sri Lanka | T188: country113
D189: =country118 -> Tajikistan | E189: 29 | N189: 114 | O189: Sudan | P189: Soudan | Q189: Sudan | R189: country | S189: =HLOOKUP($Q$72,$O$76:$Q189,$N189,FALSE) -> Sudan | T189: country114
D190: =country119 -> Thailand | E190: 513 | N190: 115 | O190: Sweden | P190: Suède | Q190: Suecia | R190: country | S190: =HLOOKUP($Q$72,$O$76:$Q190,$N190,FALSE) -> Sweden | T190: country115
D191: =country120 -> Togo | E191: 202 | N191: 116 | O191: Switzerland | P191: Suisse | Q191: Suiza | R191: country | S191: =HLOOKUP($Q$72,$O$76:$Q191,$N191,FALSE) -> Switzerland | T191: country116
D192: =country121 -> Trinidad and Tobago | E192: 719 | N192: 117 | O192: Syrian Arab Republic | P192: République arabe syrienne | Q192: República Árabe Siria | R192: country | S192: =HLOOKUP($Q$72,$O$76:$Q192,$N192,FALSE) -> Syrian Arab Republic | T192: country117
D193: =country122 -> Tunisia | E193: 538 | N193: 118 | O193: Tajikistan | P193: Tadjikistan | Q193: Tayikistán | R193: country | S193: =HLOOKUP($Q$72,$O$76:$Q193,$N193,FALSE) -> Tajikistan | T193: country118
D194: =country123 -> Turkey | E194: 480 | N194: 119 | O194: Thailand | P194: Thaïlande | Q194: Tailandia | R194: country | S194: =HLOOKUP($Q$72,$O$76:$Q194,$N194,FALSE) -> Thailand | T194: country119
D195: =country124 -> Turkmenistan | E195: 789 | N195: 120 | O195: Togo | P195: Togo | Q195: Togo | R195: country | S195: =HLOOKUP($Q$72,$O$76:$Q195,$N195,FALSE) -> Togo | T195: country120
D196: =country125 -> Ukraine | E196: 374 | N196: 121 | O196: Trinidad and Tobago | P196: Trinité-et-Tobago | Q196: Trinidad y Tabago | R196: country | S196: =HLOOKUP($Q$72,$O$76:$Q196,$N196,FALSE) -> Trinidad and Tobago | T196: country121
D197: =country126 -> United Arab Emirates | E197: 631 | N197: 122 | O197: Tunisia | P197: Tunisie | Q197: Túnez | R197: country | S197: =HLOOKUP($Q$72,$O$76:$Q197,$N197,FALSE) -> Tunisia | T197: country122
D198: =country127 -> United Kingdom | E198: 450 | N198: 123 | O198: Turkey | P198: Turquie | Q198: Turquía | R198: country | S198: =HLOOKUP($Q$72,$O$76:$Q198,$N198,FALSE) -> Turkey | T198: country123
D199: =country128 -> United Rep.of Tanzania | E199: 281 | N199: 124 | O199: Turkmenistan | P199: Turkménistan | Q199: Turkmenistán | R199: country | S199: =HLOOKUP($Q$72,$O$76:$Q199,$N199,FALSE) -> Turkmenistan | T199: country124
D200: =country129 -> Uruguay | E200: 253 | N200: 125 | O200: Ukraine | P200: Ukraine | Q200: Ucrania | R200: country | S200: =HLOOKUP($Q$72,$O$76:$Q200,$N200,FALSE) -> Ukraine | T200: country125
D201: =country130 -> United States of America | E201: 562 | F201: https://www.epa.gov/sites/production/files/2015-07/documents/emission-factors_2014.pdf | N201: 126 | O201: United Arab Emirates | P201: Émirats arabes unis | Q201: Emiratos Árabes Unidos | R201: country | S201: =HLOOKUP($Q$72,$O$76:$Q201,$N201,FALSE) -> United Arab Emirates | T201: country126
D202: =country131 -> Uzbekistan | E202: 461 | N202: 127 | O202: United Kingdom | P202: Royaume-Uni | Q202: Reino Unido | R202: country | S202: =HLOOKUP($Q$72,$O$76:$Q202,$N202,FALSE) -> United Kingdom | T202: country127
D203: =country132 -> Venezuela | E203: 199 | N203: 128 | O203: United Rep.of Tanzania | P203: Rép. Unie de Tanzanie | Q203: Rep. Unida de Tanzanía | R203: country | S203: =HLOOKUP($Q$72,$O$76:$Q203,$N203,FALSE) -> United Rep.of Tanzania | T203: country128
D204: =country133 -> Viet Nam | E204: 384 | N204: 129 | O204: Uruguay | P204: Uruguay | Q204: Uruguay | R204: country | S204: =HLOOKUP($Q$72,$O$76:$Q204,$N204,FALSE) -> Uruguay | T204: country129
D205: =country134 -> Yemen | E205: 630 | N205: 130 | O205: United States of America | P205: Etats-Unis d'Amerique | Q205: Estados Unidos de America | R205: country | S205: =HLOOKUP($Q$72,$O$76:$Q205,$N205,FALSE) -> United States of America | T205: country130
D206: =country135 -> Zambia | E206: 3 | N206: 131 | O206: Uzbekistan | P206: Ouzbékistan | Q206: Uzbekistán | R206: country | S206: =HLOOKUP($Q$72,$O$76:$Q206,$N206,FALSE) -> Uzbekistan | T206: =$R206&$N206 -> country131
D207: =country136 -> Zimbabwe | E207: 619 | N207: 132 | O207: Venezuela | P207: Venezuela | Q207: Venezuela | R207: country | S207: =HLOOKUP($Q$72,$O$76:$Q207,$N207,FALSE) -> Venezuela | T207: country132
N208: 133 | O208: Viet Nam | P208: Viet Nam | Q208: Viet Nam | R208: country | S208: =HLOOKUP($Q$72,$O$76:$Q208,$N208,FALSE) -> Viet Nam | T208: country133
N209: 134 | O209: Yemen | P209: Yémen | Q209: Yemen | R209: country | S209: =HLOOKUP($Q$72,$O$76:$Q209,$N209,FALSE) -> Yemen | T209: country134
N210: 135 | O210: Zambia | P210: Zambie | Q210: Zambia | R210: country | S210: =HLOOKUP($Q$72,$O$76:$Q210,$N210,FALSE) -> Zambia | T210: country135
N211: 136 | O211: Zimbabwe | P211: Zimbabwe | Q211: Zimbabwe | R211: country | S211: =HLOOKUP($Q$72,$O$76:$Q211,$N211,FALSE) -> Zimbabwe | T211: country136

Sheet Label (hidden)
B2: Selection | C2: =VLOOKUP(START!C8,$A$3:$C$5,3,FALSE) -> 1
A3: EN | B3: English | C3: 1
A4: FR | B4: French | C4: 2
A5: ES | B5: Spanish | C5: 3
A7: ID | B7: English | C7: French | D7: Spanish | E7: Typeof | F7: Ref | G7: Name
A8: 1 | B8: 1 | C8: 2 | D8: 3
A9: 2 | B9: Process Description for Industrial Cogeneration | C9: Description du processus de Cogénération industrielle | D9: Descripción del proceso para cogeneración industrial | E9: label | F9: =HLOOKUP($C$2,$B$8:$D9,$A9,FALSE) -> Process Description for Industrial Cogeneration | G9: =$E9&$A9 -> label2
A10: 3 | B10: Data Entry | C10: Saisie de Données | D10: Datos de Entrada | E10: label | F10: =HLOOKUP($C$2,$B$8:$D10,$A10,FALSE) -> Data Entry | G10: label3
A11: 4 | B11: NEXT >> Energy Demand | C11: SUIVANT >> Demande d'Énergie | D11: SIGUIENTE >> Demanda de Energía | E11: label | F11: =HLOOKUP($C$2,$B$8:$D11,$A11,FALSE) -> NEXT >> Energy Demand | G11: label4
A12: 5 | B12: << BACK Start | C12: << RETOUR Début | D12: << VOLVER Inicio | E12: label | F12: =HLOOKUP($C$2,$B$8:$D12,$A12,FALSE) -> << BACK Start | G12: label5
A13: 6 | B13: Energy Demand | C13: Demande d'Énergie | D13: Demanda de Energía | E13: label | F13: =HLOOKUP($C$2,$B$8:$D13,$A13,FALSE) -> Energy Demand | G13: label6
A14: 7 | B14: NEXT >> Data Entry | C14: SUIVANT >> Saisie de Données | D14: SIGUIENTE >> Datos de Entrada | E14: label | F14: =HLOOKUP($C$2,$B$8:$D14,$A14,FALSE) -> NEXT >> Data Entry | G14: label7
A15: 8 | B15: Production Cost 1 | C15: Coût de Production 1 | D15: Costo de Producción 1 | E15: label | F15: =HLOOKUP($C$2,$B$8:$D15,$A15,FALSE) -> Production Cost 1 | G15: label8
A16: 9 | B16: Production Cost 2 | C16: Coût de Production 2 | D16: Costo de Producción 2 | E16: label | F16: =HLOOKUP($C$2,$B$8:$D16,$A16,FALSE) -> Production Cost 2 | G16: label9
A17: 10 | B17: Production Cost 3 | C17: Coût de Production 3 | D17: Costo de Producción 3 | E17: label | F17: =HLOOKUP($C$2,$B$8:$D17,$A17,FALSE) -> Production Cost 3 | G17: label10
A18: 11 | B18: Production Cost 4 | C18: Coût de Production 4 | D18: Costo de Producción 4 | E18: label | F18: =HLOOKUP($C$2,$B$8:$D18,$A18,FALSE) -> Production Cost 4 | G18: label11
A19: 12 | B19: Storage Calculator 1 | C19: Calculateur de Stockage 1 | D19: Calculadora de Almacenamiento 1 | E19: label | F19: =HLOOKUP($C$2,$B$8:$D19,$A19,FALSE) -> Storage Calculator 1 | G19: label12
A20: 13 | B20: Storage Calculator 2 | C20: Calculateur de Stockage 2 | D20: Calculadora de Almacenamiento 2 | E20: label | F20: =HLOOKUP($C$2,$B$8:$D20,$A20,FALSE) -> Storage Calculator 2 | G20: label13
A21: 14 | B21: Storage Calculator 3 | C21: Calculateur de Stockage 3 | D21: Calculadora de Almacenamiento 3 | E21: label | F21: =HLOOKUP($C$2,$B$8:$D21,$A21,FALSE) -> Storage Calculator 3 | G21: label14
A22: 15 | B22: Storage Calculator 4 | C22: Calculateur de Stockage 4 | D22: Calculadora de Almacenamiento 4 | E22: label | F22: =HLOOKUP($C$2,$B$8:$D22,$A22,FALSE) -> Storage Calculator 4 | G22: label15
A23: 16 | B23: Price Calculator 1 | C23: Calculateur de Prix 1 | D23: Calculadora de Precio 1 | E23: label | F23: =HLOOKUP($C$2,$B$8:$D23,$A23,FALSE) -> Price Calculator 1 | G23: label16
A24: 17 | B24: Price Calculator 2 | C24: Calculateur de Prix 2 | D24: Calculadora de Precio 2 | E24: label | F24: =HLOOKUP($C$2,$B$8:$D24,$A24,FALSE) -> Price Calculator 2 | G24: label17
A25: 18 | B25: Price Calculator 3 | C25: Calculateur de Prix 3 | D25: Calculadora de Precio 3 | E25: label | F25: =HLOOKUP($C$2,$B$8:$D25,$A25,FALSE) -> Price Calculator 3 | G25: label18
A26: 19 | B26: Price Calculator 4 | C26: Calculateur de Prix 4 | D26: Calculadora de Precio 4 | E26: label | F26: =HLOOKUP($C$2,$B$8:$D26,$A26,FALSE) -> Price Calculator 4 | G26: label19
A27: 20 | B27: Clear data | C27: Effacer les données | D27: Borrar datos | E27: label | F27: =HLOOKUP($C$2,$B$8:$D27,$A27,FALSE) -> Clear data | G27: label20
A28: 21 | B28: Load Default Values | C28: Charger les Valeurs par Défaut | D28: Cargar Valores por Defecto | E28: label | F28: =HLOOKUP($C$2,$B$8:$D28,$A28,FALSE) -> Load Default Values | G28: label21
A29: 22 | B29: NEXT >> Summary of Results Comparative | C29: SUIVANT >> Résumé des Résultats Comparatifs | D29: SIGUIENTE >> Resumen de Resultados Comparativos | E29: label | F29: =HLOOKUP($C$2,$B$8:$D29,$A29,FALSE) -> NEXT >> Summary of Results Comparative | G29: label22
A30: 23 | B30: NEXT >> Summary of Results by Feedstock | C30: SUIVANT >> Résumé des Résultats par Matière Première | D30: SIGUIENTE >> Resumen de Resultados por Materia Prima | E30: label | F30: =HLOOKUP($C$2,$B$8:$D30,$A30,FALSE) -> NEXT >> Summary of Results by Feedstock | G30: label23
A31: 24 | B31: << BACK Data Entry | C31: << RETOUR Saisie de Données | D31: << VOLVER Datos de Entrada | E31: label | F31: =HLOOKUP($C$2,$B$8:$D31,$A31,FALSE) -> << BACK Data Entry | G31: label24
A32: 25 | B32: Financial Analysis Simple | C32: Analyse Financière Simple | D32: Análisis financiero simple | E32: label | F32: =HLOOKUP($C$2,$B$8:$D32,$A32,FALSE) -> Financial Analysis Simple | G32: label25
A33: 26 | B33: Financial Analysis Semi-Advanced | C33: Analyse Financière Semi-Avancée | D33: Análisis financiero semiavanzado | E33: label | F33: =HLOOKUP($C$2,$B$8:$D33,$A33,FALSE) -> Financial Analysis Semi-Advanced | G33: label26
A34: 27 | B34: Financial Analysis Advanced | C34: Analyse Financière Avancée | D34: Análisis financiero avanzado | E34: label | F34: =HLOOKUP($C$2,$B$8:$D34,$A34,FALSE) -> Financial Analysis Advanced | G34: label27
A35: 28 | B35: << BACK Production Cost 1 | C35: << RETOUR Coût de Production 1 | D35: << VOLVER Costo de Producción 1 | E35: label | F35: =HLOOKUP($C$2,$B$8:$D35,$A35,FALSE) -> << BACK Production Cost 1 | G35: label28
A36: 29 | B36: << BACK Production Cost 2 | C36: << RETOUR Coût de Production 2 | D36: << VOLVER Costo de Producción 2 | E36: label | F36: =HLOOKUP($C$2,$B$8:$D36,$A36,FALSE) -> << BACK Production Cost 2 | G36: label29
A37: 30 | B37: << BACK Production Cost 3 | C37: << RETOUR Coût de Production 3 | D37: << VOLVER Costo de Producción 3 | E37: label | F37: =HLOOKUP($C$2,$B$8:$D37,$A37,FALSE) -> << BACK Production Cost 3 | G37: label30
A38: 31 | B38: << BACK Production Cost 4 | C38: << RETOUR Coût de Production 4 | D38: << VOLVER Costo de Producción 4 | E38: label | F38: =HLOOKUP($C$2,$B$8:$D38,$A38,FALSE) -> << BACK Production Cost 4 | G38: label31
A39: 32 | B39: Hide this sheet | C39: Cachez cette feuille | D39: Ocultar esta Hoja | E39: label | F39: =HLOOKUP($C$2,$B$8:$D39,$A39,FALSE) -> Hide this sheet | G39: label32
A40: 33 | B40: Create a PDF report | C40: Créer un rapport PDF | D40: Crear un Reporte en PDF | E40: label | F40: =HLOOKUP($C$2,$B$8:$D40,$A40,FALSE) -> Create a PDF report | G40: label33
A41: 34 | B41: Rescale energy charts | C41: Redimensionner les diagrammes énergétiques | D41: Re-escalar gráficos de energía | E41: label | F41: =HLOOKUP($C$2,$B$8:$D41,$A41,FALSE) -> Rescale energy charts | G41: label34

Sheet Title (hidden)
B2: Selection | C2: =VLOOKUP(START!C8,$A$3:$C$5,3,FALSE) -> 1
A3: EN | B3: English | C3: 1
A4: FR | B4: French | C4: 2
A5: ES | B5: Spanish | C5: 3
A7: ID | B7: English | C7: French | D7: Spanish | E7: Typeof | F7: Ref | G7: Name
A8: 1 | B8: 1 | C8: 2 | D8: 3
A9: 2 | B9: RAPID APPRAISAL TOOL FOR COGENERATION ANALYSIS | C9: OUTIL D'ÉVALUATION RAPIDE POUR L'ANALYSE DE LA COGÉNÉRATION | D9: HERRAMIENTA DE EVALUACIÓN RÁPIDA PARA EL ANÁLISIS DE COGENERACIÓN | E9: title | F9: =HLOOKUP($C$2,$B$8:$D9,$A9,FALSE) -> RAPID APPRAISAL TOOL FOR COGENERATION ANALYSIS | G9: =$E9&$A9 -> title2
A10: 3 | B10: Disclaimer | C10: Clause de non-responsabilité | D10: Descargo de Responsabilidad | E10: title | F10: =HLOOKUP($C$2,$B$8:$D10,$A10,FALSE) -> Disclaimer | G10: title3
A11: 4 | B11: FAO declines all responsibility for errors or deficiencies in the database or software or in the documentation accompanying it, for program maintenance and upgrading as well as for any damage that may arise from them. FAO also declines any responsibility for updating the data and assumes no responsibility for errors and omissions in the data provided. Users are, however, kindly asked to report any errors or deficiencies in this product to FAO. The choices of calculation made in this tool are those of the author(s) and do not necessarily reflect the views and choices of the Food and Agriculture Organization of the United Nations. | C11: La FAO décline toute responsabilité quant aux erreurs ou défauts des textes du présent site et des bases de données y afférentes, ainsi que pour les dommages pouvant en résulter. La FAO décline également toute responsabilité quant à la mise à jour des données et se dégage de toute responsabilité quant aux erreurs ou omissions concernant les données fournies. Les utilisateurs sont toutefois invités à signaler toute erreur ou lacune de ce produit à la FAO. Les choix des calculs faits dans le présent outil sont celles du/des auteur(s) et ne reflètent pas nécessairement les choix et opinions de l’Organisation des Nations Unies pour l’alimentation et l’agriculture (FAO). | D11: La FAO declina cualquier responsabilidad por errores u otros defectos del banco de datos, programa o de la documentación que los acompaña, o por cualquier daño derivado de ellos, así como por el mantenimiento y el mejoramiento de los programas. La FAO declina asimismo cualquier responsabilidad por la actualización de los datos, o por errores u omisiones en los datos que se han proporcionado. Se pide no obstante a los usuarios que señalen eventuales errores o defectos de este producto a la FAO. La elección de los cálculos presente en esta herramienta son las del/de los autor(es) y no reflejan necesariamente las opiniones y elecciones de la Organización de las Naciones Unidas para la Agricultura y la Alimentación. | E11: title | F11: =HLOOKUP($C$2,$B$8:$D11,$A11,FALSE) -> FAO declines all responsibility for errors or deficiencies in the database or software or in the documentation accompanying it, for program maintenance and upgrading as well as for any damage that may arise from them. FAO also declines any responsibility for updating the data and assumes no responsibility for errors and omissions in the data provided. Users are, however, kindly asked to report any errors or deficiencies in this product to FAO. The choices of calculation made in this tool are those of the author(s) and do not necessarily reflect the views and choices of the Food and Agriculture Organization of the United Nations. | G11: title4
A12: 5 | B12: COGENERATION UNIT FOR PROCESSING PLANT ENERGY SUPPLYING | C12: UNITÉ DE COGÉNÉRATION POUR ALIMENTER EN ÉNERGIE UNE CENTRALE DE TRANSFORMATION | D12: UNIDAD DE COGENERACIÓN PARA EL SUMINISTRO DE ENERGÍA EN PLANTAS DE PROCESAMIENTO | E12: title | F12: =HLOOKUP($C$2,$B$8:$D12,$A12,FALSE) -> COGENERATION UNIT FOR PROCESSING PLANT ENERGY SUPPLYING | G12: title5
A13: 6 | B13: Simple | C13: Simple | D13: Simple | E13: title | F13: =HLOOKUP($C$2,$B$8:$D13,$A13,FALSE) -> Simple | G13: title6
A14: 7 | B14: Main Technology : Condensing Turbine | C14: Technologie principale: Turbine à condensation | D14: Tecnología principal: Turbina de condensación | E14: title | F14: =HLOOKUP($C$2,$B$8:$D14,$A14,FALSE) -> Main Technology : Condensing Turbine | G14: title7
A15: 8 | B15: Main Products : Electricity Only | C15: Produits principaux: Uniquement électricité | D15: Productos Principales: Solo electricidad | E15: title | F15: =HLOOKUP($C$2,$B$8:$D15,$A15,FALSE) -> Main Products : Electricity Only | G15: title8
A16: 9 | B16: Main Fuel : Direct Biomass | C16: Combustible principal: Combustion directe de biomasse | D16: Combustible principal: Biomasa directa | E16: title | F16: =HLOOKUP($C$2,$B$8:$D16,$A16,FALSE) -> Main Fuel : Direct Biomass | G16: title9
A17: 10 | B17: Popular option for single electricity production. It is not an actual cogeneration technology. | C17: Option populaire pour la seule production d'électricité. Ce n'est pas une véritable technologie de cogénération. | D17: Opción popular para producción de electricidad. No es realmente una tecnología de cogeneración | E17: title | F17: =HLOOKUP($C$2,$B$8:$D17,$A17,FALSE) -> Popular option for single electricity production. It is not an actual cogeneration technology. | G17: title10
A18: 11 | B18: Good option for large amounts of electricity generation for self-consumption and/or selling. | C18: Bonne option pour la production d'un volume important d'électricité destinée à l'autoconsommation et/ou à la vente. | D18: Buena opción para grandes cantidades de electricidad para consumo propio y/o para venta | E18: title | F18: =HLOOKUP($C$2,$B$8:$D18,$A18,FALSE) -> Good option for large amounts of electricity generation for self-consumption and/or selling. | G18: title11
A19: 12 | B19: Heat supply is not important or can be supplied using external sources. High revenue is obtained from selling the generated electricity. | C19: La fourniture de chaleur n'est pas importante ou peut être fournie en utilisant des sources externes. La vente de l'électricité générée procure des revenus élevés. | D19: Provisión de calor no es importante o puede ser provista usando fuentes externas. Altos ingresos son obtenidos por la venta de la electricidad generada | E19: title | F19: =HLOOKUP($C$2,$B$8:$D19,$A19,FALSE) -> Heat supply is not important or can be supplied using external sources. High revenue is obtained from selling the generated electricity. | G19: title12
A20: 13 | B20: Semi-Advanced | C20: Semi perfectionné | D20: Semi-avanzada | E20: title | F20: =HLOOKUP($C$2,$B$8:$D20,$A20,FALSE) -> Semi-Advanced | G20: title13
A21: 14 | B21: Main Technology : Back-pressure Steam Turbine | C21: Technologie principale: Turbine à vapeur à contre-pression | D21: Tecnología principal: Turbina de vapor a contrapresión | E21: title | F21: =HLOOKUP($C$2,$B$8:$D21,$A21,FALSE) -> Main Technology : Back-pressure Steam Turbine | G21: title14
A22: 15 | B22: Main Products : Heat and Electricity | C22: Produits principaux: Chaleur et électricité | D22: Productos principales: Calor y electricidad | E22: title | F22: =HLOOKUP($C$2,$B$8:$D22,$A22,FALSE) -> Main Products : Heat and Electricity | G22: title15
A23: 16 | B23: This option cogenerates heat and electricity using conventional boilers and turbines. | C23: Cette option produit de la chaleur et de l'électricité par cogénération au moyen de chaudières et de turbines conventionnelles. | D23: Esta opción cogenera calor y electricidad usando calderos y turbinas convencionales | E23: title | F23: =HLOOKUP($C$2,$B$8:$D23,$A23,FALSE) -> This option cogenerates heat and electricity using conventional boilers and turbines. | G23: title16
A24: 17 | B24: Suitable for processing plants with low-moderate heat demands, interested in producing electricity for self-consumption and selling. | C24: Convient aux centrales de transformation ayant des besoins en chaleur faibles à modérés, intéressées par la production d'électricité pour l'autoconsommation et la vente. | D24: Adecuado para plantas de procesamiento con bajas/moderadas demandas de calor, interesado en producir electricidad para consumo propio y venta | E24: title | F24: =HLOOKUP($C$2,$B$8:$D24,$A24,FALSE) -> Suitable for processing plants with low-moderate heat demands, interested in producing electricity for self-consumption and selling. | G24: title17
A25: 18 | B25: Most of the plant's energy demand is covered. Additional revenue is obtained from selling the generated electricity. | C25: La majeure partie des besoins en énergie de la centrale est couverte. La vente de l'électricité générée procure des revenus supplémentaires. | D25: La mayor parte de la demanda de energía de la planta esta cubierta. Ingresos adicionales son obtenidos de la venta de la electricidad generada | E25: title | F25: =HLOOKUP($C$2,$B$8:$D25,$A25,FALSE) -> Most of the plant's energy demand is covered. Additional revenue is obtained from selling the generated electricity. | G25: title18
A26: 19 | B26: Advanced | C26: Perfectionné | D26: Avanzada | E26: title | F26: =HLOOKUP($C$2,$B$8:$D26,$A26,FALSE) -> Advanced | G26: title19
A27: 20 | B27: Main Technology : BIGCC (Biomass Gasification Combined Cycle) | C27: Technologie principale: CCGIB (Cycle combiné avec gazéification intégrée de la biomasse) | D27: Tecnología principal: BIGCC (Ciclo Combinado de Gasificación de Biomasa) | E27: title | F27: =HLOOKUP($C$2,$B$8:$D27,$A27,FALSE) -> Main Technology : BIGCC (Biomass Gasification Combined Cycle) | G27: title20
A28: 21 | B28: Main Fuel : Syngas from Biomass | C28: Combustible principal: Gaz de synthèse à partir de la biomasse | D28: Combustible principal: Syngas a partir de biomasa | E28: title | F28: =HLOOKUP($C$2,$B$8:$D28,$A28,FALSE) -> Main Fuel : Syngas from Biomass | G28: title21
A29: 22 | B29: This option cogenerates heat and electricity using a combined cycle. Advanced gasification system, gas turbine, heat recovery system and steam turbines are included. | C29: Cette option produit de la chaleur et de l'électricité par cogénération en utilisant un cycle combiné. L'option inclut un système perfectionné de gazéification, une turbine à gaz, un système de récupération de la chaleur, et des turbines à vapeur. | D29: Esta opción cogenera calor y electricidad usando un ciclo combinado. Sistema de gasificación avanzado, turbina de gas, sistema de recuperación de calor y turbinas de vapor estan incluidas | E29: title | F29: =HLOOKUP($C$2,$B$8:$D29,$A29,FALSE) -> This option cogenerates heat and electricity using a combined cycle. Advanced gasification system, gas turbine, heat recovery system and steam turbines are included. | G29: title22
A30: 23 | B30: Good for processing plants with moderate-high heat demands, interested in producing electricity for self-consumption and selling. | C30: Convient aux centrales de transformation ayant des besoins en chaleur modérés à élevés, intéressées par la production d'électricité pour l'autoconsommation et la vente. | D30: Adecuado para plantas de procesamiento con demandas moderadas-altas, interesadas en producir electricidas para consumo propio y para venta | E30: title | F30: =HLOOKUP($C$2,$B$8:$D30,$A30,FALSE) -> Good for processing plants with moderate-high heat demands, interested in producing electricity for self-consumption and selling. | G30: title23
A31: 24 | B31: All of the plant's energy demand is covered. Additional revenue is obtained from selling the generated electricity. | C31: Tous les besoins en énergie de la centrale sont couverts. La vente de l'électricité générée procure des revenus supplémentaires. | D31: Toda la demanda de energía de la planta esta cubierta. Ingresos adicionales son obtenidos de la venta de la electricidad generada. | E31: title | F31: =HLOOKUP($C$2,$B$8:$D31,$A31,FALSE) -> All of the plant's energy demand is covered. Additional revenue is obtained from selling the generated electricity. | G31: title24
A32: 25 | B32: Biomass residues | C32: Résidus de la biomasse | D32: Residuos de biomasa | E32: title | F32: =HLOOKUP($C$2,$B$8:$D32,$A32,FALSE) -> Biomass residues | G32: title25
A33: 26 | B33: Cogeneration plant | C33: Centrale de cogénération | D33: Planta de cogeneración | E33: title | F33: =HLOOKUP($C$2,$B$8:$D33,$A33,FALSE) -> Cogeneration plant | G33: title26
A34: 27 | B34: Heat and Electricity Supply | C34: Fourniture de chaleur et d'électricité | D34: Siuministro de Calor y Electricidad | E34: title | F34: =HLOOKUP($C$2,$B$8:$D34,$A34,FALSE) -> Heat and Electricity Supply | G34: title27
A35: 28 | B35: Processing Plant | C35: Centrale de transformation | D35: Planta de Procesamiento | E35: title | F35: =HLOOKUP($C$2,$B$8:$D35,$A35,FALSE) -> Processing Plant | G35: title28
A36: 29 | B36: ELECTRICITY PRICE CALCULATOR FOR ISOLATED AND RURAL AREAS | C36: CALCULATEUR DU PRIX DE L'ÉLECTRICITÉ POUR LES ZONES RURALES ET ISOLÉES | D36: CALCULADORA DEL PRECIO DE LA ELECTRICIDAD PARA AREAS RURALES Y AISLADAS | E36: title | F36: =HLOOKUP($C$2,$B$8:$D36,$A36,FALSE) -> ELECTRICITY PRICE CALCULATOR FOR ISOLATED AND RURAL AREAS | G36: title29
A37: 30 | B37: Instructions | C37: Instructions | D37: Instrucciones | E37: title | F37: =HLOOKUP($C$2,$B$8:$D37,$A37,FALSE) -> Instructions | G37: title30
A38: 31 | B38: Use white cells to input data | C38: Utilisez les cellules blanches pour saisir les données | D38: Utilice las celdas blancas para ingresar los datos | E38: title | F38: =HLOOKUP($C$2,$B$8:$D38,$A38,FALSE) -> Use white cells to input data | G38: title31
A39: 32 | B39: Grey cells are used for calculations | C39: Les cellules grises sont utilisées pour les calculs | D39: Utilice las celdas grises para los cálculos | E39: title | F39: =HLOOKUP($C$2,$B$8:$D39,$A39,FALSE) -> Grey cells are used for calculations | G39: title32
A40: 33 | B40: Current Electricity Technology | C40: Technologie de l'électricité actuelle | D40: Tecnología de generación eléctrica actual | E40: title | F40: =HLOOKUP($C$2,$B$8:$D40,$A40,FALSE) -> Current Electricity Technology | G40: title33
A41: 34 | B41: Typical diesel generator capacity | C41: Puissance type d'un groupe électrogène diesel | D41: Capacidad típica del generador diésel | E41: title | F41: =HLOOKUP($C$2,$B$8:$D41,$A41,FALSE) -> Typical diesel generator capacity | G41: title34
A42: 35 | B42: Operating hours per day | C42: Heures de fonctionnement par jour | D42: Horas de operación por día | E42: title | F42: =HLOOKUP($C$2,$B$8:$D42,$A42,FALSE) -> Operating hours per day | G42: title35
A43: 36 | B43: Operating days per year | C43: Jours de fonctionnement par an | D43: Días de operación por año | E43: title | F43: =HLOOKUP($C$2,$B$8:$D43,$A43,FALSE) -> Operating days per year | G43: title36
A44: 37 | B44: Typical efficiency | C44: Rendement type | D44: Eficiencia típica | E44: title | F44: =HLOOKUP($C$2,$B$8:$D44,$A44,FALSE) -> Typical efficiency | G44: title37
A45: 38 | B45: Calculated diesel consumption | C45: Consommation calculée de diesel | D45: Consumo de diésel calculado | E45: title | F45: =HLOOKUP($C$2,$B$8:$D45,$A45,FALSE) -> Calculated diesel consumption | G45: title38
A46: 39 | B46: day | C46: jour | D46: día | E46: title | F46: =HLOOKUP($C$2,$B$8:$D46,$A46,FALSE) -> day | G46: title39
A47: 40 | B47: L/year | C47: L/an | D47: L/año | E47: title | F47: =HLOOKUP($C$2,$B$8:$D47,$A47,FALSE) -> L/year | G47: title40
A48: 41 | B48: Total production cost of electricity | C48: Coût total de production de l'électricité | D48: Costo total de producción de la electricidad | E48: title | F48: =HLOOKUP($C$2,$B$8:$D48,$A48,FALSE) -> Total production cost of electricity | G48: title41
A49: 42 | B49: Concept | C49: Concept | D49: Concepto | E49: title | F49: =HLOOKUP($C$2,$B$8:$D49,$A49,FALSE) -> Concept | G49: title42
A50: 43 | B50: Diesel Cost | C50: Coût du diesel | D50: Costo del diésel | E50: title | F50: =HLOOKUP($C$2,$B$8:$D50,$A50,FALSE) -> Diesel Cost | G50: title43
A51: 44 | B51: Transportation Cost | C51: Frais du transport | D51: Costo de transporte | E51: title | F51: =HLOOKUP($C$2,$B$8:$D51,$A51,FALSE) -> Transportation Cost | G51: title44
A52: 45 | B52: Labor and Maintenance Costs | C52: Frais de main d'oeuvre et d'entretien | D52: Costos de mano de obra y mantenimiento | E52: title | F52: =HLOOKUP($C$2,$B$8:$D52,$A52,FALSE) -> Labor and Maintenance Costs | G52: title45
A53: 46 | B53: Investment Costs | C53: Montant des investissements | D53: Costos de inversion | E53: title | F53: =HLOOKUP($C$2,$B$8:$D53,$A53,FALSE) -> Investment Costs | G53: title46
A54: 47 | B54: Unit | C54: Unité | D54: Unidad | E54: title | F54: =HLOOKUP($C$2,$B$8:$D54,$A54,FALSE) -> Unit | G54: title47
A55: 48 | B55: USD/year | C55: USD/an | D55: USD/año | E55: title | F55: =HLOOKUP($C$2,$B$8:$D55,$A55,FALSE) -> USD/year | G55: title48
A56: 49 | B56: Costing parameters | C56: Paramètres budgétaires | D56: Parámetros de costos | E56: title | F56: =HLOOKUP($C$2,$B$8:$D56,$A56,FALSE) -> Costing parameters | G56: title49
A57: 50 | B57: National Diesel Price | C57: Prix national du diesel | D57: Precio nacional del diésel | E57: title | F57: =HLOOKUP($C$2,$B$8:$D57,$A57,FALSE) -> National Diesel Price | G57: title50
A58: 51 | B58: Transportation Cost of diesel | C58: Frais de transport du diesel | D58: Costo de transporte del diésel | E58: title | F58: =HLOOKUP($C$2,$B$8:$D58,$A58,FALSE) -> Transportation Cost of diesel | G58: title51
A59: 52 | B59: Transportation Distance | C59: Transport à distance | D59: Distancia de transporte | E59: title | F59: =HLOOKUP($C$2,$B$8:$D59,$A59,FALSE) -> Transportation Distance | G59: title52
A60: 53 | B60: Equipment Cost | C60: Coût du matériel | D60: Costo de los equipos | E60: title | F60: =HLOOKUP($C$2,$B$8:$D60,$A60,FALSE) -> Equipment Cost | G60: title53
A61: 54 | B61: Comparative Production Cost of Electricity | C61: Coût comparé de production de l'électricité | D61: Costo de producción de la electricidad comparativo | E61: title | F61: =HLOOKUP($C$2,$B$8:$D61,$A61,FALSE) -> Comparative Production Cost of Electricity | G61: title54
A62: 55 | B62: Please Select | C62: Sélectionnez | D62: Seleccione | E62: title | F62: =HLOOKUP($C$2,$B$8:$D62,$A62,FALSE) -> Please Select | G62: title55
A63: 56 | B63: Stand-Alone Energy Production | C63: Production autonome d'énergie | D63: Generación de producción autónoma | E63: title | F63: =HLOOKUP($C$2,$B$8:$D63,$A63,FALSE) -> Stand-Alone Energy Production | G63: title56
A64: 57 | B64: Attached Production | C64: Production rattachée | D64: Producción adjunta | E64: title | F64: =HLOOKUP($C$2,$B$8:$D64,$A64,FALSE) -> Attached Production | G64: title57
A65: 58 | B65: Please select and operation mode selection | C65: Sélectionner et choisir le mode de fonctionnement | D65: Seleccionar modo de operación | E65: title | F65: =HLOOKUP($C$2,$B$8:$D65,$A65,FALSE) -> Please select and operation mode selection | G65: title58
A66: 59 | B66: The main objective is to analyze how effective it is to use biomass to supply heat and electricity demands of established industries through cogeneration. | C66: L'objectif principal est d'analyser à quel point il est efficace d'utiliser la biomasse pour satisfaire les besoins en chaleur et en électricité d'industries établies au moyen de la cogénération. | D66: El objetivo principal es analizar la efectividad es el uso de biomasa para la provisión de calor y electricidad a industrias establecidas a través de la cogeneración. | E66: title | F66: =HLOOKUP($C$2,$B$8:$D66,$A66,FALSE) -> The main objective is to analyze how effective it is to use biomass to supply heat and electricity demands of established industries through cogeneration. | G66: title59
A67: 60 | B67: Assumption: Most of the heat and electricity will be supplied to the processing plant. Only the surplus will be distributed to central grid and district heating network. | C67: Principe: La majeure partie de la chaleur et de l'énergie produites servira à alimenter la centrale de transformation. Uniquement la chaleur et l'électricité excédentaires alimenteront le réseau central de distribution et le réseau de chauffage collectif. | D67: Suposición: La mayor parte del calor y la electricidad seran entregadas a la planta de procesamiento. Solo los excedentes serán distribuidos a la red eléctrica central y red de distribución de calor | E67: title | F67: =HLOOKUP($C$2,$B$8:$D67,$A67,FALSE) -> Assumption: Most of the heat and electricity will be supplied to the processing plant. Only the surplus will be distributed to central grid and district heating network. | G67: title60
A68: 61 | B68: Define the energy demand as heat and electricity for up to four processing plants options below. | C68: Préciser ci-dessous la demande d'énergie sous forme de chaleur et d'électricité pour un maximum de quatre options de centrales de transformation. | D68: Defina la demanda de energía como calor y electricidad para hasta cuatro de las plantas de procesamiento debajo | E68: title | F68: =HLOOKUP($C$2,$B$8:$D68,$A68,FALSE) -> Define the energy demand as heat and electricity for up to four processing plants options below. | G68: title61
A69: 62 | B69: Industrial Energy Demand | C69: Demande énergétique de l'industrie | D69: Demanda industrial de energía | E69: title | F69: =HLOOKUP($C$2,$B$8:$D69,$A69,FALSE) -> Industrial Energy Demand | G69: title62
A70: 63 | B70: Annual electricity consumption (1000 kWh/year) | C70: Consommation annuelle d'électricité (1000 kWh/an) | D70: Consumo anual de electricidad (1000 kWh/año) | E70: title | F70: =HLOOKUP($C$2,$B$8:$D70,$A70,FALSE) -> Annual electricity consumption (1000 kWh/year) | G70: title63
A71: 64 | B71: Annual heating consumption (1000 MJ/year) | C71: Consommation annuelle de chaleur (1000 MJ/an) | D71: Consumo anual de calor (1000 MJ/año) | E71: title | F71: =HLOOKUP($C$2,$B$8:$D71,$A71,FALSE) -> Annual heating consumption (1000 MJ/year) | G71: title64
A72: 65 | B72: DATA ENTRY FOR COGENERATION OF HEAT AND POWER | C72: SAISIE DE DONNÉES POUR LA COGÉNÉRATION DE CHALEUR ET D'ÉLECTRICITÉ | D72: DATOS DE ENTRADA PARA LA COGENERACIÓN DE CALOR Y ELECTRICIDAD | E72: title | F72: =HLOOKUP($C$2,$B$8:$D72,$A72,FALSE) -> DATA ENTRY FOR COGENERATION OF HEAT AND POWER | G72: title65
A73: 66 | B73: Feedstock Availability and Cost | C73: Disponibilité et Coût des Matières Premières | D73: Disponibilidad y costo de la materia prima | E73: title | F73: =HLOOKUP($C$2,$B$8:$D73,$A73,FALSE) -> Feedstock Availability and Cost | G73: =$E73&$A73 -> title66
A74: 67 | B74: Feedstock available | C74: Matières premières disponibles | D74: Materia prima disponible | E74: title | F74: =HLOOKUP($C$2,$B$8:$D74,$A74,FALSE) -> Feedstock available | G74: title67
A75: 68 | B75: Feedstock potential (t/year) | C75: Potentiel de matières premières (t/an) | D75: Materia prima potencial (t/año) | E75: title | F75: =HLOOKUP($C$2,$B$8:$D75,$A75,FALSE) -> Feedstock potential (t/year) | G75: title68
A76: 69 | B76: Feedstock yield (t/ha) | C76: Rendement de matières premières (t/ha) | D76: Rendimiento de la materia prima (t/ha) | E76: title | F76: =HLOOKUP($C$2,$B$8:$D76,$A76,FALSE) -> Feedstock yield (t/ha) | G76: title69
A77: 70 | B77: Heat (Steam Generation Cost) (USD/t) | C77: Chaleur (Coût de production de la vapeur) (USD/t) | D77: Calor (Costo de generación de vapor) (USD/t) | E77: title | F77: =HLOOKUP($C$2,$B$8:$D77,$A77,FALSE) -> Heat (Steam Generation Cost) (USD/t) | G77: title70
A78: 71 | B78: Main fossil fuel used in the processing plant | C78: Principal combustible fossile utilisé dans la centrale de transformation | D78: Principales combustibles fósiles utilizados en el procesamiento | E78: title | F78: =HLOOKUP($C$2,$B$8:$D78,$A78,FALSE) -> Main fossil fuel used in the processing plant | G78: title71
A79: 72 | B79: Feedstock price (USD/t) | C79: Prix des matières premières (USD/t) | D79: Precio de la materia prima (USD/t) | E79: title | F79: =HLOOKUP($C$2,$B$8:$D79,$A79,FALSE) -> Feedstock price (USD/t) | G79: title72
A80: 73 | B80: Use the price definition calculator | C80: Utilisez la calculatrice de définition de prix | D80: Use la calculadora de definición de precio | E80: title | F80: =HLOOKUP($C$2,$B$8:$D80,$A80,FALSE) -> Use the price definition calculator | G80: title73
A81: 74 | B81: Market price (transport excluded) | C81: Prix du marché (transport exclu) | D81: Precio del mercado (transporte excluido) | E81: title | F81: =HLOOKUP($C$2,$B$8:$D81,$A81,FALSE) -> Market price (transport excluded) | G81: title74
A82: 75 | B82: Feedstock storage cost (USD/t) | C82: Coût de stockage des matières premières (USD/t) | D82: Costo de almacenamiento de la materia prima (USD/t) | E82: title | F82: =HLOOKUP($C$2,$B$8:$D82,$A82,FALSE) -> Feedstock storage cost (USD/t) | G82: title75
A83: 76 | B83: t/year | C83: t/an | D83: t/año | E83: title | F83: =HLOOKUP($C$2,$B$8:$D83,$A83,FALSE) -> t/year | G83: title76
A84: 77 | B84: Input data below! | C84: Entrer données ci-dessous! | D84: Ingrese los datos debajo! | E84: title | F84: =HLOOKUP($C$2,$B$8:$D84,$A84,FALSE) -> Input data below! | G84: title77
A85: 78 | B85: Current Energy Price | C85: Prix de l'électricité actuelle | D85: Precio actual de la energía | E85: title | F85: =HLOOKUP($C$2,$B$8:$D85,$A85,FALSE) -> Current Energy Price | G85: title78
A86: 79 | B86: Electricity | C86: Électricité | D86: Electricidad | E86: title | F86: =HLOOKUP($C$2,$B$8:$D86,$A86,FALSE) -> Electricity | G86: title79
A87: 80 | B87: Electricity Cost | C87: Coût de l'électricité | D87: Costo de la electricidad | E87: title | F87: =HLOOKUP($C$2,$B$8:$D87,$A87,FALSE) -> Electricity Cost | G87: title80
A88: 81 | B88: Selling Electricity Price | C88: Prix de vente de l'électricité | D88: Precio de venta de la electricidad | E88: title | F88: =HLOOKUP($C$2,$B$8:$D88,$A88,FALSE) -> Selling Electricity Price | G88: title81
A89: 82 | B89: Country of Origin of Electricity | C89: Pays d'origine de l'électricité | D89: País de orígen de la electricidad | E89: title | F89: =HLOOKUP($C$2,$B$8:$D89,$A89,FALSE) -> Country of Origin of Electricity | G89: title82
A90: 83 | B90: Selling Heat Price | C90: Prix de vente de la chaleur | D90: Precio de venta del calor | E90: title | F90: =HLOOKUP($C$2,$B$8:$D90,$A90,FALSE) -> Selling Heat Price | G90: title83
A91: 84 | B91: Cogeneration Technologies | C91: Technologies de cogénération | D91: Tecnologías de cogeneración | E91: title | F91: =HLOOKUP($C$2,$B$8:$D91,$A91,FALSE) -> Cogeneration Technologies | G91: title84
A92: 85 | B92: Main Technology : BIGCC (Biomass Gasification Comb. Cycle) | C92: Technologie principale: CCGIB (Cycle combiné avec gazéification intégrée de la biomasse) | D92: Tecnología principal: BIGCC (Ciclo Combinado de Gasificación de Biomasa) | E92: title | F92: =HLOOKUP($C$2,$B$8:$D92,$A92,FALSE) -> Main Technology : BIGCC (Biomass Gasification Comb. Cycle) | G92: title85
A93: 86 | B93: Operation Mode of Cogeneration for | C93: Mode de fonctionnement de la cogénération pour | D93: Modo de operación de cogeneración para | E93: title | F93: =HLOOKUP($C$2,$B$8:$D93,$A93,FALSE) -> Operation Mode of Cogeneration for | G93: title86
A94: 87 | B94: Electricity Tracking | C94: Suivi de la consommation d'électricité | D94: Seguimiento de la electricidad | E94: title | F94: =HLOOKUP($C$2,$B$8:$D94,$A94,FALSE) -> Electricity Tracking | G94: title87
A95: 88 | B95: Thermal Tracking (Standard Option) | C95: Suivi thermique (Option type) | D95: Seguimiento de la energía térmica (Opción standard) | E95: title | F95: =HLOOKUP($C$2,$B$8:$D95,$A95,FALSE) -> Thermal Tracking (Standard Option) | G95: title88
A96: 89 | B96: Production Cost and Financial Parameters | C96: Coût de Production et Paramètres Financiers | D96: Costo de producción y parámetros financieros | E96: title | F96: =HLOOKUP($C$2,$B$8:$D96,$A96,FALSE) -> Production Cost and Financial Parameters | G96: title89
A97: 90 | B97: Labour | C97: Main d’oeuvre | D97: Mano de obra | E97: title | F97: =HLOOKUP($C$2,$B$8:$D97,$A97,FALSE) -> Labour | G97: title90
A98: 91 | B98: Unskilled worker | C98: Ouvrier non-qualifié | D98: Trabajadores no cualificados | E98: title | F98: =HLOOKUP($C$2,$B$8:$D98,$A98,FALSE) -> Unskilled worker | G98: title91
A99: 92 | B99: Other utilities | C99: Autres utilitaires | D99: Otros servicios | E99: title | F99: =HLOOKUP($C$2,$B$8:$D99,$A99,FALSE) -> Other utilities | G99: title92
A100: 93 | B100: Water | C100: Eau | D100: Agua | E100: title | F100: =HLOOKUP($C$2,$B$8:$D100,$A100,FALSE) -> Water | G100: title93
A101: 94 | B101: Feedstock collection | C101: Collecte des matières premières | D101: Recolección de la materia prima | E101: title | F101: =HLOOKUP($C$2,$B$8:$D101,$A101,FALSE) -> Feedstock collection | G101: title94
A102: 95 | B102: Working hours per day (manual) | C102: Heures de travail par jour (manuel) | D102: Horas de trabajo por día (manual) | E102: title | F102: =HLOOKUP($C$2,$B$8:$D102,$A102,FALSE) -> Working hours per day (manual) | G102: title95
A103: 96 | B103: Diesel | C103: Diesel | D103: Diésel | E103: title | F103: =HLOOKUP($C$2,$B$8:$D103,$A103,FALSE) -> Diesel | G103: title96
A104: 97 | B104: Transportation cost and distance | C104: Frais de transport et distance | D104: Costo de transporte y distancia | E104: title | F104: =HLOOKUP($C$2,$B$8:$D104,$A104,FALSE) -> Transportation cost and distance | G104: title97
A105: 98 | B105: Feedstock (collection point to plant) | C105: Matières premières (le point de collecte à la centrale) | D105: Materia prima (punto de recolección a la planta) | E105: title | F105: =HLOOKUP($C$2,$B$8:$D105,$A105,FALSE) -> Feedstock (collection point to plant) | G105: title98
A106: 99 | B106: Other costs | C106: Autres coûts | D106: Otros costos | E106: title | F106: =HLOOKUP($C$2,$B$8:$D106,$A106,FALSE) -> Other costs | G106: title99
A107: 100 | B107: General and administrative (%) | C107: Frais généraux et administratifs (%) | D107: Generales y administrativos (%) | E107: title | F107: =HLOOKUP($C$2,$B$8:$D107,$A107,FALSE) -> General and administrative (%) | G107: title100
A108: 101 | B108: Plant overhead (%) | C108: Frais généraux de l'usine (%) | D108: Gastos generales de planta (%) | E108: title | F108: =HLOOKUP($C$2,$B$8:$D108,$A108,FALSE) -> Plant overhead (%) | G108: title101
A109: 102 | B109: Financial parameters | C109: Paramètres financiers | D109: Parámetros financieros | E109: title | F109: =HLOOKUP($C$2,$B$8:$D109,$A109,FALSE) -> Financial parameters | G109: title102
A110: 103 | B110: Discount rate | C110: Taux d'escompte | D110: Tasa de descuento | E110: title | F110: =HLOOKUP($C$2,$B$8:$D110,$A110,FALSE) -> Discount rate | G110: title103
A111: 104 | B111: Loan ratio | C111: Ratio du prêt | D111: Proporción de créditos | E111: title | F111: =HLOOKUP($C$2,$B$8:$D111,$A111,FALSE) -> Loan ratio | G111: title104
A112: 105 | B112: Loan interest rate | C112: Taux d'intérêt du prêt | D112: Tasa de interés de créditos | E112: title | F112: =HLOOKUP($C$2,$B$8:$D112,$A112,FALSE) -> Loan interest rate | G112: title105
A113: 106 | B113: Loan term | C113: Durée du prêt | D113: Plazo del crédito | E113: title | F113: =HLOOKUP($C$2,$B$8:$D113,$A113,FALSE) -> Loan term | G113: title106
A114: 107 | B114: years | C114: années | D114: años | E114: title | F114: =HLOOKUP($C$2,$B$8:$D114,$A114,FALSE) -> years | G114: title107
A115: 108 | B115: year | C115: an | D115: año | E115: title | F115: =HLOOKUP($C$2,$B$8:$D115,$A115,FALSE) -> year | G115: title108
A116: 109 | B116: USD/person-h | C116: USD/personne-h | D116: USD/persona-h | E116: title | F116: =HLOOKUP($C$2,$B$8:$D116,$A116,FALSE) -> USD/person-h | G116: title109
A117: 110 | B117: h/day | C117: h/jour | D117: h/día | E117: title | F117: =HLOOKUP($C$2,$B$8:$D117,$A117,FALSE) -> h/day | G117: title110
A118: 111 | B118: Skilled worker | C118: Ouvrier qualifié | D118: Trabajadores cualificados | E118: title | F118: =HLOOKUP($C$2,$B$8:$D118,$A118,FALSE) -> Skilled worker | G118: title111
A119: 112 | B119: Working days per year | C119: Jours ouvrables par an | D119: Número de días trabajados por año | E119: title | F119: =HLOOKUP($C$2,$B$8:$D119,$A119,FALSE) -> Working days per year | G119: title112
A120: 113 | B120: Working hours per day (mechanized) | C120: Heures de travail par jour (mécanisé) | D120: Horas de trabajo por día (mecanizado) | E120: title | F120: =HLOOKUP($C$2,$B$8:$D120,$A120,FALSE) -> Working hours per day (mechanized) | G120: title113
A121: 114 | B121: Maintenance cost | C121: Coût de maintenance | D121: Costos de mantenimiento | E121: title | F121: =HLOOKUP($C$2,$B$8:$D121,$A121,FALSE) -> Maintenance cost | G121: title114
A122: 115 | B122: Miscellaneous cost | C122: Coût divers | D122: Costo varios | E122: title | F122: =HLOOKUP($C$2,$B$8:$D122,$A122,FALSE) -> Miscellaneous cost | G122: title115
A123: 116 | B123: Investment cost update | C123: Mise à jour des coûts d'investissement | D123: Actualización del costo de inversión | E123: title | F123: =HLOOKUP($C$2,$B$8:$D123,$A123,FALSE) -> Investment cost update | G123: title116
A124: 117 | B124: Plant Cost Index during | C124: Indice du coût de l'usine pendant | D124: Índice de costo de la planta durante | E124: title | F124: =HLOOKUP($C$2,$B$8:$D124,$A124,FALSE) -> Plant Cost Index during | G124: title117
A125: 118 | B125: USD/litre | C125: USD/litre | D125: USD/litro | E125: title | F125: =HLOOKUP($C$2,$B$8:$D125,$A125,FALSE) -> USD/litre | G125: title118
A126: 119 | B126: Wage for non-trained operators who supports the operation of the plant (e.g. biomass collection). | C126: Salaire pour les opérateurs non qualifiés qui prennent en charge le fonctionnement de la plante (par exemple, la collecte de la biomasse). | D126: Salario para los operadores no capacitados que soportan la operación en la planta (por ejemplo, la recolección de la biomasa). | E126: title | F126: =HLOOKUP($C$2,$B$8:$D126,$A126,FALSE) -> Wage for non-trained operators who supports the operation of the plant (e.g. biomass collection). | G126: title119
A127: 120 | B127: The general and administrative item is a percentage of the cost to cover rents, insurances and salaries of managerial, administrative and executive staff. | C127: L'item général et administratif est un pourcentage du coût pour couvrir les loyers, les assurances et les salaires du personnel de direction, d'administration et de direction. | D127: Los ítems generales y administrativos son un porcentaje del costo para cubrir los alquileres, seguros y salarios del personal directivo, administrativo y ejecutivo. | E127: title | F127: =HLOOKUP($C$2,$B$8:$D127,$A127,FALSE) -> The general and administrative item is a percentage of the cost to cover rents, insurances and salaries of managerial, administrative and executive staff. | G127: title120
A128: 121 | B128: Wage for trained operators and technicians who leads the operation and maintenance of the plant. | C128: Mener des opérateurs et des techniciens formés qui conduit l'opération et la maintenance de l'usine. | D128: Salarios para los operadores y técnicos capacitados que conduce la operación y mantenimiento de la planta. | E128: title | F128: =HLOOKUP($C$2,$B$8:$D128,$A128,FALSE) -> Wage for trained operators and technicians who leads the operation and maintenance of the plant. | G128: title121
A129: 122 | B129: The plant overhead is a percentage of costs for services, facilities, payroll overhead, etc. | C129: Les frais généraux de l'usine est un pourcentage des coûts des services, des installations, de la paie des frais généraux, etc. | D129: Los gastos generales son un porcentaje de los costos de los servicios, las instalaciones, gastos generales de la nómina, etc. | E129: title | F129: =HLOOKUP($C$2,$B$8:$D129,$A129,FALSE) -> The plant overhead is a percentage of costs for services, facilities, payroll overhead, etc. | G129: title122
A130: 123 | B130: This item is a percentage of the costs for maintenance of equipment, including labour and materials. | C130: Cet item est un pourcentage des coûts d'entretien des équipements, y compris le travail et les matériaux. | D130: Este ítem es un porcentaje de los costos de mantenimiento de los equipos, incluyendo mano de obra y los materiales. | E130: title | F130: =HLOOKUP($C$2,$B$8:$D130,$A130,FALSE) -> This item is a percentage of the costs for maintenance of equipment, including labour and materials. | G130: title123
A131: 124 | B131: The miscellaneous item is a percentage of the cost required for operating supplies and other charges of the daily vegetable oil extraction and electricity generation. | C131: L'objet divers est un pourcentage du coût requis pour les fournitures d'exploitation et autres frais quotidiens de l'extraction de l'huile végétale et de la production d'électricité. | D131: El ítem varios, es un porcentaje del costo de los suministros de operación y de otros cargos de las operaciones diarias. | E131: title | F131: =HLOOKUP($C$2,$B$8:$D131,$A131,FALSE) -> The miscellaneous item is a percentage of the cost required for operating supplies and other charges of the daily vegetable oil extraction and electricity generation. | G131: title124
A132: 125 | B132: This index is a proxy used to update the cost of equipments and installation at the current year. | C132: Cet indice est une valeur approximative utilisée pour mettre à jour les coûts du matériel et des installations pour l'année en cours. | D132: Este índice es un aproximado utilizado para actualizar el costo de los equipamientos y la instalación al año en curso | E132: title | F132: =HLOOKUP($C$2,$B$8:$D132,$A132,FALSE) -> This index is a proxy used to update the cost of equipments and installation at the current year. | G132: title125
A133: 126 | B133: barley | C133: orge | D133: cebada | E133: title | F133: =HLOOKUP($C$2,$B$8:$D133,$A133,FALSE) -> barley | G133: title126
A134: 127 | B134: cacao | C134: cacao | D134: cacao | E134: title | F134: =HLOOKUP($C$2,$B$8:$D134,$A134,FALSE) -> cacao | G134: title127
A135: 128 | B135: cassava | C135: manioc | D135: yuca | E135: title | F135: =HLOOKUP($C$2,$B$8:$D135,$A135,FALSE) -> cassava | G135: title128
A136: 129 | B136: coconut | C136: noix de coco | D136: coco | E136: title | F136: =HLOOKUP($C$2,$B$8:$D136,$A136,FALSE) -> coconut | G136: title129
A137: 130 | B137: coffee | C137: café | D137: café | E137: title | F137: =HLOOKUP($C$2,$B$8:$D137,$A137,FALSE) -> coffee | G137: =$E137&$A137 -> title130
A138: 131 | B138: cotton | C138: coton | D138: algodón | E138: title | F138: =HLOOKUP($C$2,$B$8:$D138,$A138,FALSE) -> cotton | G138: title131
A139: 132 | B139: groundnut | C139: arachide | D139: cacahuete | E139: title | F139: =HLOOKUP($C$2,$B$8:$D139,$A139,FALSE) -> groundnut | G139: title132
A140: 133 | B140: maize | C140: maïs | D140: maíz | E140: title | F140: =HLOOKUP($C$2,$B$8:$D140,$A140,FALSE) -> maize | G140: title133
A141: 134 | B141: millet | C141: millet | D141: mijo | E141: title | F141: =HLOOKUP($C$2,$B$8:$D141,$A141,FALSE) -> millet | G141: title134
A142: 135 | B142: oat | C142: avoine | D142: avena | E142: title | F142: =HLOOKUP($C$2,$B$8:$D142,$A142,FALSE) -> oat | G142: title135
A143: 136 | B143: oil palm | C143: palmier à huile | D143: palma aceitera | E143: title | F143: =HLOOKUP($C$2,$B$8:$D143,$A143,FALSE) -> oil palm | G143: title136
A144: 137 | B144: rice | C144: riz | D144: arroz | E144: title | F144: =HLOOKUP($C$2,$B$8:$D144,$A144,FALSE) -> rice | G144: title137
A145: 138 | B145: sorghum | C145: sorgho | D145: sorgo | E145: title | F145: =HLOOKUP($C$2,$B$8:$D145,$A145,FALSE) -> sorghum | G145: title138
A146: 139 | B146: soybean | C146: soja | D146: soja | E146: title | F146: =HLOOKUP($C$2,$B$8:$D146,$A146,FALSE) -> soybean | G146: title139
A147: 140 | B147: sugarcane | C147: canne à sucre | D147: caña de azúcar | E147: title | F147: =HLOOKUP($C$2,$B$8:$D147,$A147,FALSE) -> sugarcane | G147: title140
A148: 141 | B148: sunflower | C148: tournesol | D148: girasol | E148: title | F148: =HLOOKUP($C$2,$B$8:$D148,$A148,FALSE) -> sunflower | G148: title141
A149: 142 | B149: wheat | C149: blé | D149: trigo | E149: title | F149: =HLOOKUP($C$2,$B$8:$D149,$A149,FALSE) -> wheat | G149: title142
A150: 143 | B150: stalk | C150: tige | D150: tallos | E150: title | F150: =HLOOKUP($C$2,$B$8:$D150,$A150,FALSE) -> stalk | G150: title143
A151: 144 | B151: fronds | C151: frondes | D151: frondas | E151: title | F151: =HLOOKUP($C$2,$B$8:$D151,$A151,FALSE) -> fronds | G151: title144
A152: 145 | B152: husk | C152: écorce | D152: cascarilla | E152: title | F152: =HLOOKUP($C$2,$B$8:$D152,$A152,FALSE) -> husk | G152: title145
A153: 146 | B153: shell | C153: coquilles | D153: concha | E153: title | F153: =HLOOKUP($C$2,$B$8:$D153,$A153,FALSE) -> shell | G153: title146
A154: 147 | B154: cob | C154: épi | D154: mazorcas | E154: title | F154: =HLOOKUP($C$2,$B$8:$D154,$A154,FALSE) -> cob | G154: title147
A155: 148 | B155: straw/stalk | C155: paille/tige | D155: paja/tallos | E155: title | F155: =HLOOKUP($C$2,$B$8:$D155,$A155,FALSE) -> straw/stalk | G155: title148
A156: 149 | B156: straw | C156: paille | D156: paja | E156: title | F156: =HLOOKUP($C$2,$B$8:$D156,$A156,FALSE) -> straw | G156: title149
A157: 150 | B157: stover | C157: canne | D157: rastrojo | E157: title | F157: =HLOOKUP($C$2,$B$8:$D157,$A157,FALSE) -> stover | G157: title150
A158: 151 | B158: empty bunches | C158: péricarpe | D158: racimos | E158: title | F158: =HLOOKUP($C$2,$B$8:$D158,$A158,FALSE) -> empty bunches | G158: title151
A159: 152 | B159: tops/leaves | C159: dessus/feuilles | D159: copa/hojas | E159: title | F159: =HLOOKUP($C$2,$B$8:$D159,$A159,FALSE) -> tops/leaves | G159: title152
A160: 153 | B160: baggase | C160: bagasse | D160: bagazo | E160: title | F160: =HLOOKUP($C$2,$B$8:$D160,$A160,FALSE) -> baggase | G160: title153
A161: 154 | B161: pods | C161: cabosse | D161: vainas | E161: title | F161: =HLOOKUP($C$2,$B$8:$D161,$A161,FALSE) -> pods | G161: title154
A162: 155 | B162: hull | C162: coque | D162: cáscara | E162: title | F162: =HLOOKUP($C$2,$B$8:$D162,$A162,FALSE) -> hull | G162: title155
A163: 156 | B163: briquettes/pellets | C163: briquettes/granulés de bois | D163: briquetas/pellets | E163: title | F163: =HLOOKUP($C$2,$B$8:$D163,$A163,FALSE) -> briquettes/pellets | G163: title156
A164: 157 | B164: Forest | C164: Forêt | D164: Bosque | E164: title | F164: =HLOOKUP($C$2,$B$8:$D164,$A164,FALSE) -> Forest | G164: title157
A165: 158 | B165: Wood | C165: Bois | D165: Madera | E165: title | F165: =HLOOKUP($C$2,$B$8:$D165,$A165,FALSE) -> Wood | G165: title158
A166: 159 | B166: Harv. Res. | C166: Rés. de l'exploit | D166: Res. forestales | E166: title | F166: =HLOOKUP($C$2,$B$8:$D166,$A166,FALSE) -> Harv. Res. | G166: title159
A167: 160 | B167: Proc. Res. | C167: Résidus de la transf. | D167: Res. procesam. | E167: title | F167: =HLOOKUP($C$2,$B$8:$D167,$A167,FALSE) -> Proc. Res. | G167: title160
A168: 161 | B168: Gasoline | C168: Essence | D168: Gasolina | E168: title | F168: =HLOOKUP($C$2,$B$8:$D168,$A168,FALSE) -> Gasoline | G168: title161
A169: 162 | B169: Diesel Oil | C169: Carburant diesel | D169: Diésel | E169: title | F169: =HLOOKUP($C$2,$B$8:$D169,$A169,FALSE) -> Diesel Oil | G169: title162
A170: 163 | B170: Waste Oil / Lubrificants | C170: Huile usée / Lubrifiants | D170: Aceite usado / Lubricantes | E170: title | F170: =HLOOKUP($C$2,$B$8:$D170,$A170,FALSE) -> Waste Oil / Lubrificants | G170: title163
A171: 164 | B171: LPG | C171: GPL | D171: GLP | E171: title | F171: =HLOOKUP($C$2,$B$8:$D171,$A171,FALSE) -> LPG | G171: title164
A172: 165 | B172: Natural Gas | C172: Gaz naturel | D172: Gas Natural | E172: title | F172: =HLOOKUP($C$2,$B$8:$D172,$A172,FALSE) -> Natural Gas | G172: title165
A173: 166 | B173: Peat | C173: Tourbe | D173: Turba | E173: title | F173: =HLOOKUP($C$2,$B$8:$D173,$A173,FALSE) -> Peat | G173: title166
A174: 167 | B174: Butane | C174: Butane | D174: Butano | E174: title | F174: =HLOOKUP($C$2,$B$8:$D174,$A174,FALSE) -> Butane | G174: title167
A175: 168 | B175: Propane | C175: Propane | D175: Propano | E175: title | F175: =HLOOKUP($C$2,$B$8:$D175,$A175,FALSE) -> Propane | G175: title168
A176: 169 | B176: Methanol | C176: Méthanol | D176: Metanol | E176: title | F176: =HLOOKUP($C$2,$B$8:$D176,$A176,FALSE) -> Methanol | G176: title169
A177: 170 | B177: Ethanol | C177: Éthanol | D177: Etanol | E177: title | F177: =HLOOKUP($C$2,$B$8:$D177,$A177,FALSE) -> Ethanol | G177: title170
A178: 171 | B178: Biodiesel | C178: Biodiesel | D178: Biodiesel | E178: title | F178: =HLOOKUP($C$2,$B$8:$D178,$A178,FALSE) -> Biodiesel | G178: title171
A179: 172 | B179: Other bituminous coal | C179: Autre charbon bitumineux | D179: Otro tipo de carbón bituminoso | E179: title | F179: =HLOOKUP($C$2,$B$8:$D179,$A179,FALSE) -> Other bituminous coal | G179: title172
A180: 173 | B180: Sub bituminous coal | C180: Charbon sous-bitumineux | D180: Carbón sub bituminoso | E180: title | F180: =HLOOKUP($C$2,$B$8:$D180,$A180,FALSE) -> Sub bituminous coal | G180: title173
A181: 174 | B181: Lignite brown coal | C181: Lignite | D181: Lignito | E181: title | F181: =HLOOKUP($C$2,$B$8:$D181,$A181,FALSE) -> Lignite brown coal | G181: title174
A182: 175 | B182: Crop | C182: Culture | D182: Cultivo | E182: title | F182: =HLOOKUP($C$2,$B$8:$D182,$A182,FALSE) -> Crop | G182: title175
A183: 176 | B183: Feedstock | C183: Matière première | D183: Materia Prima | E183: title | F183: =HLOOKUP($C$2,$B$8:$D183,$A183,FALSE) -> Feedstock | G183: title176
A184: 177 | B184: Options | C184: Options | D184: Opciones | E184: title | F184: =HLOOKUP($C$2,$B$8:$D184,$A184,FALSE) -> Options | G184: title177
A185: 178 | B185: yes | C185: oui | D185: si | E185: title | F185: =HLOOKUP($C$2,$B$8:$D185,$A185,FALSE) -> yes | G185: title178
A186: 179 | B186: Selection Crop | C186: Culture de sélection | D186: Selección de cultivo | E186: title | F186: =HLOOKUP($C$2,$B$8:$D186,$A186,FALSE) -> Selection Crop | G186: title179
A187: 180 | B187: Crop Feedstock | C187: Matière première provenant de culture | D187: Materia Prima (cultivo) | E187: title | F187: =HLOOKUP($C$2,$B$8:$D187,$A187,FALSE) -> Crop Feedstock | G187: title180
A188: 181 | B188: Condition | C188: Condition | D188: Condición | E188: title | F188: =HLOOKUP($C$2,$B$8:$D188,$A188,FALSE) -> Condition | G188: title181
A189: 182 | B189: Wage1 | C189: Salaire1 | D189: Salario1 | E189: title | F189: =HLOOKUP($C$2,$B$8:$D189,$A189,FALSE) -> Wage1 | G189: title182
A190: 183 | B190: Wage2 | C190: Salaire2 | D190: Salario2 | E190: title | F190: =HLOOKUP($C$2,$B$8:$D190,$A190,FALSE) -> Wage2 | G190: title183
A191: 184 | B191: Decision1 | C191: Décision1 | D191: Decisión1 | E191: title | F191: =HLOOKUP($C$2,$B$8:$D191,$A191,FALSE) -> Decision1 | G191: title184
A192: 185 | B192: Decision2 | C192: Décision2 | D192: Desición2 | E192: title | F192: =HLOOKUP($C$2,$B$8:$D192,$A192,FALSE) -> Decision2 | G192: title185
A193: 186 | B193: PCI | C193: PCI | D193: PCI | E193: title | F193: =HLOOKUP($C$2,$B$8:$D193,$A193,FALSE) -> PCI | G193: title186
A194: 187 | B194: Operation Mode | C194: Mode de fonctionnement | D194: Modo de operación | E194: title | F194: =HLOOKUP($C$2,$B$8:$D194,$A194,FALSE) -> Operation Mode | G194: title187
A195: 188 | B195: Plants will favor electricty production. Heat systems will be designed based on specific demand. Heat surplus will not be obtained. | C195: Les centrales favoriseront la production d'électricité. Les systèmes de chauffage seront conçus suivant des exigences spécifiques. Aucune chaleur excédentaire ne pourra être générée. | D195: Planta favorecerá la producción de electricidad. Sistemas térmicos estarán diseñados basados en una demanda específica. No se obtendrán excedentes de calor. | E195: title | F195: =HLOOKUP($C$2,$B$8:$D195,$A195,FALSE) -> Plants will favor electricty production. Heat systems will be designed based on specific demand. Heat surplus will not be obtained. | G195: title188
A196: 189 | B196: Plants will favor heat production. If enough feedstock is available, heat surplus might be obtained. | C196: Les centrales favoriseront la production de chaleur. De la chaleur excédentaire pourrait être obtenue si la matière première est suffisante. | D196: Planta favorecerá la producción de calor. Si existe la materia prima suficiente, excedentes de calor podrían ser obtenidos. | E196: title | F196: =HLOOKUP($C$2,$B$8:$D196,$A196,FALSE) -> Plants will favor heat production. If enough feedstock is available, heat surplus might be obtained. | G196: title189
A197: 190 | B197: Plants will favor electricty production. Heat wastes will be used to generate additional electricity. | C197: Les centrales favoriseront la production d'électricité. La chaleur résiduelle sera utilisée pour générer de l'électricité supplémentaire. | D197: Planta favorecerá la producción de electricidad. Calor residual será utilizado para la generación adicional de electricidad. | E197: title | F197: =HLOOKUP($C$2,$B$8:$D197,$A197,FALSE) -> Plants will favor electricty production. Heat wastes will be used to generate additional electricity. | G197: title190
A198: 191 | B198: Plants will favor heat production.Heat wastes will be used to generate electricity. | C198: Les centrales favoriseront la production de chaleur.La chaleur résiduelle sera utilisée pour générer de l'électricité supplémentaire. | D198: Planta favorecerá la producción de calor. Calor residual será utilizado para la generación adicional de electricidad. | E198: title | F198: =HLOOKUP($C$2,$B$8:$D198,$A198,FALSE) -> Plants will favor heat production.Heat wastes will be used to generate electricity. | G198: title191
A199: 192 | B199: Cogeneration | C199: Cogénération | D199: Cogeneración | E199: title | F199: =HLOOKUP($C$2,$B$8:$D199,$A199,FALSE) -> Cogeneration | G199: title192
A200: 193 | B200: Technolgy | C200: Technologie | D200: Tecnología | E200: title | F200: =HLOOKUP($C$2,$B$8:$D200,$A200,FALSE) -> Technolgy | G200: title193
A201: 194 | B201: Condensing Turbine | C201: Turbine à Condensation | D201: Turbina de Condensación | E201: title | F201: =HLOOKUP($C$2,$B$8:$D201,$A201,FALSE) -> Condensing Turbine | G201: =$E201&$A201 -> title194
A202: 195 | B202: Back-pressure Steam Turbine | C202: Turbine à vapeur à contrepression | D202: Turbina de vapor a contrapresión | E202: title | F202: =HLOOKUP($C$2,$B$8:$D202,$A202,FALSE) -> Back-pressure Steam Turbine | G202: title195
... 401 more rows

Sheet START
E2: =title2 -> RAPID APPRAISAL TOOL FOR COGENERATION ANALYSIS
C8: EN
C23: =title3 -> Disclaimer
C24: =title4 -> FAO declines all responsibility for errors or deficiencies in the database or software or in the documentation accompanying it, for program maintenance and upgrading as well as for any damage that may arise from them. FAO also declines any responsibility for updating the data and assumes no responsibility for errors and omissions in the data provided. Users are, however, kindly asked to report any errors or deficiencies in this product to FAO. The choices of calculation made in this tool are those of the author(s) and do not necessarily reflect the views and choices of the Food and Agriculture Organization of the United Nations.
C29: © FAO, 2015

Sheet Process Description
C3: =title5 -> COGENERATION UNIT FOR PROCESSING PLANT ENERGY SUPPLYING
C6: =title6 -> Simple
C7: =title7 -> Main Technology : Condensing Turbine
C8: =title8 -> Main Products : Electricity Only
C9: =title9 -> Main Fuel : Direct Biomass
C11: =title10 -> Popular option for single electricity production. It is not an actual cogeneration technology.
C12: =title11 -> Good option for large amounts of electricity generation for self-consumption and/or selling.
C13: =title12 -> Heat supply is not important or can be supplied using external sources. High revenue is obtained from selling the generated electricity.
C15: =title13 -> Semi-Advanced
C16: =title14 -> Main Technology : Back-pressure Steam Turbine
C17: =title15 -> Main Products : Heat and Electricity
C18: =title9 -> Main Fuel : Direct Biomass
C20: =title16 -> This option cogenerates heat and electricity using conventional boilers and turbines.
C21: =title17 -> Suitable for processing plants with low-moderate heat demands, interested in producing electricity for self-consumption and selling.
C22: =title18 -> Most of the plant's energy demand is covered. Additional revenue is obtained from selling the generated electricity.
C24: =title19 -> Advanced
C25: =title20 -> Main Technology : BIGCC (Biomass Gasification Combined Cycle)
C26: =title15 -> Main Products : Heat and Electricity
C27: =title21 -> Main Fuel : Syngas from Biomass
C29: =title22 -> This option cogenerates heat and electricity using a combined cycle. Advanced gasification system, gas turbine, heat recovery system and steam turbines are included.
C30: =title23 -> Good for processing plants with moderate-high heat demands, interested in producing electricity for self-consumption and selling.
C31: =title24 -> All of the plant's energy demand is covered. Additional revenue is obtained from selling the generated electricity.

Sheet Rural Electricity Price (hidden)
C3: =title29 -> ELECTRICITY PRICE CALCULATOR FOR ISOLATED AND RURAL AREAS
C6: =title30 -> Instructions | E6: =title31 -> Use white cells to input data | J6: =title32 -> Grey cells are used for calculations
C8: =title33 -> Current Electricity Technology | J8: =title49 -> Costing parameters
C10: =title34 -> Typical diesel generator capacity | H10: kW | J10: =title50 -> National Diesel Price | M10: =+'Data Entry Needs'!$D$55 -> 0 | N10: USD/L
C11: =title35 -> Operating hours per day | H11: h | J11: =title51 -> Transportation Cost of diesel | N11: USD/t/km
C12: =title36 -> Operating days per year | H12: =title39 -> day | J12: =title52 -> Transportation Distance | N12: km
C13: =title37 -> Typical efficiency | H13: % | J13: =title45 -> Labor and Maintenance Costs | N13: USD/kWh
C14: =title38 -> Calculated diesel consumption | G14: =+$G$10*$G$11*($G$12/100)*G13/(42.8*0.837/3.6) -> 0 | H14: =title40 -> L/year | J14: =title53 -> Equipment Cost | N14: USD
C16: =title41 -> Total production cost of electricity
C18: =title42 -> Concept | H18: =title47 -> Unit | J18: =title54 -> Comparative Production Cost of Electricity | M18: =ROUND(IFERROR($G$23/($G$10*$G$11*($G$12/100)*G13),0),2) -> 0 | N18: USD/kWh
C19: =title43 -> Diesel Cost | G19: =+G14*M10 -> 0 | H19: =title48 -> USD/year
C20: =title44 -> Transportation Cost | G20: =+M11*G14*0.84*M12/1000 -> 0 | H20: =title48 -> USD/year
C21: =title45 -> Labor and Maintenance Costs | G21: =+$G$10*$G$11*($G$13/100)*$G$12*$M$13 -> 0 | H21: =title48 -> USD/year
C22: =title46 -> Investment Costs | G22: =+M14 -> 0 | H22: =title48 -> USD/year
C23: =title41 -> Total production cost of electricity | G23: =SUM(G19:G22) -> 0 | H23: =title48 -> USD/year

Sheet Energy Demand
C3: ENERGY DEMAND OF HEAT AND ELECTRICITY FOR COGENERATION
C6: =title58 -> Please select and operation mode selection | F6: =IFERROR(VLOOKUP($C$8,dummy_database!$T$43:$V$44,3,FALSE),"") -> 
C8: Please Select
C9: =VLOOKUP($C$8,dummy_database!$T$43:$U$44,2,FALSE) -> 
C11: =C8 -> Please Select
C12: =title59 -> The main objective is to analyze how effective it is to use biomass to supply heat and electricity demands of established industries through cogeneration.
C14: =title60 -> Assumption: Most of the heat and electricity will be supplied to the processing plant. Only the surplus will be distributed to central grid and district heating network.
C16: =title61 -> Define the energy demand as heat and electricity for up to four processing plants options below.
C18: =title62 -> Industrial Energy Demand
F20: =title28&" 1" -> Processing Plant 1 | H20: =title28&" 2" -> Processing Plant 2 | I20: =title28&" 3" -> Processing Plant 3 | J20: =title28&" 4" -> Processing Plant 4
C21: =title63 -> Annual electricity consumption (1000 kWh/year)
C22: =title64 -> Annual heating consumption (1000 MJ/year)
C25: =$C$8 -> Please Select
C26: The main objective is to assess how effective it is to use biomass to supply electricity and heat demand through cogeneration at different energy demand levels.
C28: Assumption: All heat and electricity will be supplied to the central grid and the district heating network.
C31: Define the energy demand as heat and electricity consumption of households in Summary of Results Sheet Directly.

Sheet Data Entry Needs
C3: =title65 -> DATA ENTRY FOR COGENERATION OF HEAT AND POWER
C6: =title31 -> Use white cells to input data | D6: =title32 -> Grey cells are used for calculations
C8: =title66 -> Feedstock Availability and Cost
D9: =IF(OR(entry1=title581,entry1=title582),TRUE,FALSE) -> FALSE | E9: =IF(OR(entry2=title581,entry2=title582),TRUE,FALSE) -> FALSE | F9: =IF(OR(entry3=title581,entry3=title582),TRUE,FALSE) -> FALSE | G9: =IF(OR(entry4=title581,entry4=title582),TRUE,FALSE) -> FALSE
D10: =title28&" 1" -> Processing Plant 1 | E10: =title28&" 2" -> Processing Plant 2 | F10: =title28&" 3" -> Processing Plant 3 | G10: =title28&" 4" -> Processing Plant 4
D11: Please Select | E11: Please Select | F11: Please Select | G11: Please Select
C12: =title67 -> Feedstock available
C13: =title68 -> Feedstock potential (t/year)
C14: =title69 -> Feedstock yield (t/ha)
C15: =title70 -> Heat (Steam Generation Cost) (USD/t)
C16: =title71 -> Main fossil fuel used in the processing plant
C17: =title72 -> Feedstock price (USD/t)
C18: TRUE | D18: =+IF(D$11=title55,0,IF($C$18=FALSE,PRICE_RES1!$I$26,title77)) -> 0 | E18: =+IF(E$11=title55,0,IF($C$18=FALSE,PRICE_RES2!$I$26,title77)) -> 0 | F18: =+IF(F$11=title55,0,IF($C$18=FALSE,PRICE_RES3!$I$26,title77)) -> 0 | G18: =+IF(G$11=title55,0,IF($C$18=FALSE,PRICE_RES4!$I$26,title77)) -> 0
C20: =title75 -> Feedstock storage cost (USD/t)
C23: =title78 -> Current Energy Price
C25: =title79 -> Electricity | E25: =title47 -> Unit
C26: =title80 -> Electricity Cost | E26: USD/kWh | F26: =title82 -> Country of Origin of Electricity | I26: Turkey
C28: =title81 -> Selling Electricity Price | E28: USD/kWh | F28: =title83 -> Selling Heat Price | J28: USD/GJ
C32: =title84 -> Cogeneration Technologies
C34: =title6 -> Simple | D34: =title13 -> Semi-Advanced | G34: =title19 -> Advanced
C35: =title7 -> Main Technology : Condensing Turbine | D35: =title14 -> Main Technology : Back-pressure Steam Turbine | G35: =title85 -> Main Technology : BIGCC (Biomass Gasification Comb. Cycle)
C36: =title8 -> Main Products : Electricity Only | D36: =title15 -> Main Products : Heat and Electricity | G36: =title15 -> Main Products : Heat and Electricity
C37: =title9 -> Main Fuel : Direct Biomass | D37: =title9 -> Main Fuel : Direct Biomass | G37: =title21 -> Main Fuel : Syngas from Biomass
C39: =title86&'Energy Demand'!$C$8 -> Operation Mode of Cogeneration for Please Select
C42: =title87 -> Electricity Tracking | E42: =IF($AN$121=1,$AP$121,$AP$122) -> 
C43: =title88 -> Thermal Tracking (Standard Option)
C45: =title89 -> Production Cost and Financial Parameters
C47: =title90 -> Labour | E47: =title47 -> Unit | J47: =title47 -> Unit
C48: =title91 -> Unskilled worker | E48: =title109 -> USD/person-h | F48: =title111 -> Skilled worker | J48: =title109 -> USD/person-h
F49: =title112 -> Working days per year | I49: 330 | J49: days
C50: =title92 -> Other utilities | E50: =title47 -> Unit | J50: =title47 -> Unit
C51: =title93 -> Water | E51: USD/m3
C53: =title94 -> Feedstock collection | E53: =title47 -> Unit | J53: =title47 -> Unit
C54: =title95 -> Working hours per day (manual) | E54: =title110 -> h/day | F54: =title113 -> Working hours per day (mechanized) | J54: =title110 -> h/day
C55: =title96 -> Diesel | E55: =title118 -> USD/litre
C56: =title97 -> Transportation cost and distance | E56: =title47 -> Unit
C57: =title98 -> Feedstock (collection point to plant) | E57: USD/t/km
C59: =title99 -> Other costs | E59: =title47 -> Unit | J59: =title47 -> Unit
C60: =title100 -> General and administrative (%) | F60: =title114&" (%)" -> Maintenance cost (%)
C61: =title101 -> Plant overhead (%) | F61: =title115&" (%)" -> Miscellaneous cost (%)
C63: =title102 -> Financial parameters | E63: =title47 -> Unit | F63: =title116 -> Investment cost update
C64: =title103 -> Discount rate
C65: =title104 -> Loan ratio | F65: =+title117&MONTH(TODAY())&"/"&YEAR(TODAY()) -> Plant Cost Index during 6/2018 | J65: =title593 -> IRR
C66: =title105 -> Loan interest rate | F66: http://base.intratec.us/home/ic-index | J66: =title594 -> MIRR
C67: =title106 -> Loan term | E67: =title108 -> year
C68: =title595 -> Select the internal rate of return to calculate | D68: IRR | F68: =title589 -> Finance rate (%) | J68: =IF(tir_cell=title593,TRUE,FALSE) -> TRUE
C69: =IF(tir_cell=title593,title591,title592) -> Financial analysis will use the conventional Internal Rate of Return formula. For a detailed explanation and examples please refer to BEFS RA website. | F69: =title590 -> Reinvestment rate (%) | J69: =IF(tir_cell=title594,TRUE,FALSE) -> FALSE
C74: Inflation rate | D74: 0.05
AB98: =+D$11&" "&D$12 -> Please Select | AC98: =+E$11&" "&E$12 -> Please Select | AD98: =+F$11&" "&F$12 -> Please Select | AE98: =+G$11&" "&G$12 -> Please Select
AE104: =title175 -> Crop | AF104: =title175 -> Crop | AG104: =title176 -> Feedstock | AH104: =title177 -> Options | AI104: =title55 -> Please Select
AE105: =title55 -> Please Select | AF105: =title55 -> Please Select | AG105: =title55 -> Please Select | AH105: =title178 -> yes | AI105: =title161 -> Gasoline
AE106: =title127 -> cacao | AF106: =title126 -> barley | AG106: =title149 -> straw | AH106: no | AI106: =title162 -> Diesel Oil
AE107: =title128 -> cassava | AF107: =title127 -> cacao | AG107: =title154 -> pods | AI107: =title163 -> Waste Oil / Lubrificants
W108: =title126 -> barley | AE108: =title129 -> coconut | AF108: =title128 -> cassava | AG108: =title143 -> stalk | AI108: =title164 -> LPG
W109: =title127 -> cacao | AE109: =title130 -> coffee | AF109: =title129 -> coconut | AG109: =title144 -> fronds | AI109: =title165 -> Natural Gas | AN109: =title181 -> Condition
W110: =title128 -> cassava | AE110: =title131 -> cotton | AF110: =title129&1 -> coconut1 | AG110: =title145 -> husk | AI110: =title166 -> Peat | AN110: =title182 -> Wage1 | AO110: =IF(OR($D$48="",$D$48=" "),TRUE,FALSE) -> TRUE
W111: =title129 -> coconut | AE111: =title132 -> groundnut | AF111: =title129&2 -> coconut2 | AG111: =title146 -> shell | AI111: =title167 -> Butane | AN111: =title183 -> Wage2 | AO111: =IF(OR($I$48="",$I$48=" "),TRUE,FALSE) -> TRUE
W112: =title130 -> coffee | AE112: =title133 -> maize | AF112: =title130 -> coffee | AG112: =title145 -> husk | AI112: =title168 -> Propane | AN112: =title96 -> Diesel | AO112: =IF(OR($D$55="",$D$55=" "),TRUE,FALSE) -> TRUE
W113: =title131 -> cotton | AE113: =title134 -> millet | AF113: =title131 -> cotton | AG113: =title155 -> hull | AI113: =title169 -> Methanol | AN113: =title184 -> Decision1 | AO113: =+OR(AO110,AO111,AO112) -> TRUE
W114: =title132 -> groundnut | AE114: =title135 -> oat | AF114: =title131&1 -> cotton1 | AG114: =title143 -> stalk | AI114: =title170 -> Ethanol | AN114: =title185 -> Decision2 | AO114: =+C18 -> TRUE
W115: =title133 -> maize | AE115: =title136 -> oil palm | AF115: =title132 -> groundnut | AG115: =title146 -> shell | AI115: =title171 -> Biodiesel | AN115: =title186 -> PCI | AO115: =IF(OR($I$65="",$I$65=" "),TRUE,FALSE) -> TRUE
W116: =title134 -> millet | AE116: =title137 -> rice | AF116: =title133 -> maize | AG116: =title147 -> cob | AI116: =title172 -> Other bituminous coal
W117: =title135 -> oat | AE117: =title138 -> sorghum | AF117: =title133&1 -> maize1 | AG117: =title145 -> husk | AI117: =title173 -> Sub bituminous coal
W118: =title136 -> oil palm | AE118: =title139 -> soybean | AF118: =title133&2 -> maize2 | AG118: =title150 -> stover | AI118: =title174 -> Lignite brown coal
W119: =title137 -> rice | AE119: =title140 -> sugarcane | AF119: =title134 -> millet | AG119: =title149 -> straw | AI119: =title158 -> Wood
W120: =title138 -> sorghum | AE120: =title142 -> wheat | AF120: =title135 -> oat | AG120: =title149 -> straw | AN120: =title187 -> Operation Mode | AQ120: 2 | AR120: 1
W121: =title139 -> soybean | AE121: =title156 -> briquettes/pellets | AF121: =title136 -> oil palm | AG121: =title151 -> empty bunches | AN121: 2 | AO121: =IF($AN$121=1,TRUE,FALSE) -> FALSE | AP121: =IF('Energy Demand'!$C$9=2,'Data Entry Needs'!AQ121,'Data Entry Needs'!AR121) ->  | AQ121: =title188 -> Plants will favor electricty production. Heat systems will be designed based on specific demand. Heat surplus will not be obtained. | AR121: =title190 -> Plants will favor electricty production. Heat wastes will be used to generate additional electricity.
W122: =title140 -> sugarcane | AE122: =title581 -> Forest Harv. Res. | AF122: =title136&1 -> oil palm1 | AG122: =title144 -> fronds | AP122: =IF('Energy Demand'!$C$9=2,'Data Entry Needs'!AQ122,'Data Entry Needs'!AR122) ->  | AQ122: =title189 -> Plants will favor heat production. If enough feedstock is available, heat surplus might be obtained. | AR122: =title191 -> Plants will favor heat production.Heat wastes will be used to generate electricity.
W123: =title141 -> sunflower | AE123: =title582 -> Wood Proc. Res. | AF123: =title136&2 -> oil palm2 | AG123: =title146 -> shell
W124: =title142 -> wheat | AF124: =title137 -> rice | AG124: =title149 -> straw
AF125: =title137&1 -> rice1 | AG125: =title145 -> husk
AF126: rye | AG126: =title149 -> straw
AF127: =title138 -> sorghum | AG127: =title148 -> straw/stalk
AF128: =title139 -> soybean | AG128: =title149 -> straw
AF129: =title139&1 -> soybean1 | AG129: =title154 -> pods
AF130: =title140 -> sugarcane | AG130: =title152 -> tops/leaves
AF131: sugarcane1 | AG131: =title153 -> baggase | AI131: FS
AF132: =title142 -> wheat | AG132: =title149 -> straw | AI132: 1 | AJ132: =+IF($D$11=title55,TRUE,FALSE) -> TRUE
AF133: =title156 -> briquettes/pellets | AG133: =title126 -> barley | AI133: 2 | AJ133: =+IF($E$11=title55,TRUE,FALSE) -> TRUE
AF134: =title156&1 -> briquettes/pellets1 | AG134: =title127 -> cacao | AI134: 3 | AJ134: =+IF($F$11=title55,TRUE,FALSE) -> TRUE
AF135: =title156&2 -> briquettes/pellets2 | AG135: =title128 -> cassava | AI135: 4 | AJ135: =+IF($G$11=title55,TRUE,FALSE) -> TRUE
AF136: =title156&3 -> briquettes/pellets3 | AG136: =title129 -> coconut | AJ136: 0
AF137: =title156&4 -> briquettes/pellets4 | AG137: =title130 -> coffee | AJ137: 1
AF138: =title156&5 -> briquettes/pellets5 | AG138: =title131 -> cotton | AJ138: 0
AF139: =title156&6 -> briquettes/pellets6 | AG139: =title132 -> groundnut
AB140: =title176&" 1" -> Feedstock 1 | AC140: =title179 -> Selection Crop | AD140: =title180 -> Crop Feedstock | AF140: =title156&7 -> briquettes/pellets7 | AG140: =title133 -> maize
AC141: =$D$11 -> Please Select | AD141: =+IFERROR(VLOOKUP($AC$141&AB141,$AF$106:$AG$151,2,FALSE),title55) -> Please Select | AF141: =title156&8 -> briquettes/pellets8 | AG141: =title134 -> millet
AB142: 1 | AD142: =+IFERROR(VLOOKUP($AC$141&AB142,$AF$106:$AG$151,2,FALSE),"") ->  | AF142: =title156&9 -> briquettes/pellets9 | AG142: =title135 -> oat
AB143: 2 | AF143: =title156&10 -> briquettes/pellets10 | AG143: =title136 -> oil palm | AJ143: =title192 -> Cogeneration | AM143: =title200 -> Number | AN143: =title201 -> Thermal Efficiency | AO143: =title202 -> Electric efficiency | AP143: =title203 -> Fuel | AQ143: =title206 -> Message1 | AR143: =title208 -> Message2 | AS143: =title212 -> Message3 | AT143: Ref | AU143: =title216 -> Investment (USD/kW) | AV143: =title217 -> Fixed O&M Cost (USD/Kw/YEAR) | AW143: =title218 -> Variable O&M Cost (USD/Kw/YEAR) | AX143: =title219 -> Boiler and Equipment (USD/kg steam/h) | AY143: =title220 -> Turbine (USD/kW) | AZ143: =title221 -> Reference year | BA143: Ref
AB144: 3 | AF144: =title156&11 -> briquettes/pellets11 | AG144: =title137 -> rice | AJ144: =title55 -> Please Select | AK144: =title193 -> Technolgy | AL144: =title197 -> Product | AM144: 0 | AN144: 0.2 | AO144: 0.2
AB145: 4 | AF145: =title156&12 -> briquettes/pellets12 | AG145: rye | AJ145: =title6 -> Simple | AK145: =title194 -> Condensing Turbine | AL145: =title198 -> Electricity Only | AM145: 1 | AN145: 0.2 | AO145: 0.2 | AP145: =title204 -> Direct Biomass | AQ145: =title10 -> Popular option for single electricity production. It is not an actual cogeneration technology. | AR145: =title209 -> Good option for large amounts of electricity generation for self-consumption and/or selling. | AS145: =title213 -> Heat demand is not important or can be supplied using external sources. High revenue is obtained from electricity selling. | AT145: http://www.localpower.org/deb_tech_st.html | AU145: n/a | AV145: =(0.25)*8000/100 -> 20 | AW145: =(0.25+7)*8000/100 -> 580 | AX145: =111.165223665224 -> 111.1652237 | AY145: 337.5536481 | AZ145: 2004 | BA145: http://www.understandingchp.com/appguide/Chapters/Chap6/6-8_Rules_of_Thumb_Costs.htm
AB146: 5 | AF146: =title156&13 -> briquettes/pellets13 | AG146: =title138 -> sorghum | AJ146: =title13 -> Semi-Advanced | AK146: =title195 | AL146: =title199 -> Heat and Electricity | AM146: 2 | AN146: 0.53 | AO146: 0.2 | AP146: =title204 -> Direct Biomass | AQ146: =title207 -> This Option cogenerates heat and electricity using conventional boiler and turbines. | AR146: =title210 -> Suits for Processing Planting plants with low-moderate heat demands, interested on producing electricity for self-consumption and selling. | AS146: =title214 -> Most of energy demand in plant is covered. Additional revenue is obtained from electricity selling. | AT146: http://almondtree.com/TechTalk/RefMatl/Steam%20Turbines.pdf | AU146: n/a | AV146: =(0.25)*8000/100 -> 20 | AW146: =(0.25+2.5)*8000/100 -> 220 | AX146: =111.165223665224+110.462428517984 -> 221.6276522 | AY146: 561.1111111 | AZ146: 2004 | BA146: http://www.understandingchp.com/appguide/Chapters/Chap6/6-8_Rules_of_Thumb_Costs.htm
AB147: 6 | AF147: =title156&14 -> briquettes/pellets14 | AG147: =title139 -> soybean | AJ147: =title19 -> Advanced | AK147: =title196 -> BIGCC (Biomass Gasification Combined Cycle) | AL147: =title199 -> Heat and Electricity | AM147: 3 | AN147: 0.71 | AO147: 0.3 | AP147: =title205 -> Syngas from Biomass | AQ147: =title22 -> This option cogenerates heat and electricity using a combined cycle. Advanced gasification system, gas turbine, heat recovery system and steam turbines are included. | AR147: =title211 -> Good for Processing Planting plants with moderate-high heat demands, interested on producing electricity for self-consumption and selling. | AS147: =title215 -> All energy demand in plant is covered. Additional revenue is obtained from electricity selling. | AT147: http://www.biomasschpethanol.umn.edu/papers/BIGCC-ECM-Manuscript_edited%20on%20June%2011_2009.pdf | AU147: =+AVERAGE(1510,1730,1805) -> 1681.666667 | AV147: =39 -> 39 | AW147: =85/1000 -> 0.085 | AZ147: 2003 | BA147: http://www.sciencedirect.com/science/article/pii/S0960148106001005
AB148: 7 | AF148: =title156&15 -> briquettes/pellets15 | AG148: =title140 -> sugarcane
AB149: 8 | AF149: =title156&16 -> briquettes/pellets16 | AG149: =title142 -> wheat
AB150: 9 | AF150: =title157 -> Forest | AG150: =title159 -> Harv. Res.
AB151: 10 | AF151: =title158 -> Wood | AG151: =title160 -> Proc. Res.
AB152: 11
AB153: 12
AB154: 13
AB155: 14
AB156: 15
AB157: 16
AB158: =title176&" 2" -> Feedstock 2
AC159: =title179 -> Selection Crop | AD159: =title180 -> Crop Feedstock
AC160: =$E$11 -> Please Select | AD160: =+IFERROR(VLOOKUP($AC$160&AB160,$AF$106:$AG$151,2,FALSE),title55) -> Please Select
AB161: 1 | AD161: =+IFERROR(VLOOKUP($AC$160&AB161,$AF$106:$AG$151,2,FALSE),"") -> 
AB162: 2
AB163: 3
AB164: 4
AB165: 5
AB166: 6
AB167: 7
AB168: 8
AB169: 9
AB170: 10
AB171: 11
AB172: 12
AB173: 13
AB174: 14
AB175: 15
AB176: 16
AB177: =title176&" 3" -> Feedstock 3
AC178: =title179 -> Selection Crop | AD178: =title180 -> Crop Feedstock
AC179: =$F$11 -> Please Select | AD179: =+IFERROR(VLOOKUP($AC$179&AB179,$AF$106:$AG$151,2,FALSE),title55) -> Please Select
AB180: 1 | AD180: =+IFERROR(VLOOKUP($AC$179&AB180,$AF$106:$AG$151,2,FALSE),"") -> 
AB181: 2
AB182: 3
AB183: 4
AB184: 5
AB185: 6
AB186: 7
AB187: 8
AB188: 9
AB189: 10
AB190: 11
AB191: 12
AB192: 13
AB193: 14
AB194: 15
AB195: 16
AB196: =title176&" 4" -> Feedstock 4
AC197: =title179 -> Selection Crop | AD197: =title180 -> Crop Feedstock
AC198: =$G$11 -> Please Select | AD198: =+IFERROR(VLOOKUP($AC$198&AB198,$AF$106:$AG$151,2,FALSE),title55) -> Please Select
AB199: 1 | AD199: =+IFERROR(VLOOKUP($AC$198&AB199,$AF$106:$AG$151,2,FALSE),"") -> 
AB200: 2
AB201: 3
AB202: 4
AB203: 5
AB204: 6
AB205: 7
AB206: 8
AB207: 9
AB208: 10
AB209: 11
AB210: 12
AB211: 13
AB212: 14
AB213: 15
AB214: 16

Sheet STORAGE_RES1 (hidden)
C3: =UPPER(title222&'Data Entry Needs'!$D$11&" "&'Data Entry Needs'!$D$12) -> STORAGE CALCULATOR FOR GASIFICATION+RURAL ELECTRIFICATION FROM PLEASE SELECT
C6: =title223 -> Biomass safety stock rate definition
F8: =title84 -> Cogeneration Technologies
D9: =title47 -> Unit | F9: Tech 1 | G9: Tech 2 | H9: Tech 3 | I9: Tech 2 | J9: Tech 5 | K9: Tech 6 | L9: Tech 3
C10: =title224 -> Biomass consumption | D10: =title76 -> t/year | F10: =+COST_RES1!$G$43 -> 0 | I10: =+COST_RES1!$I$43 -> 0 | L10: =+COST_RES1!$K$43 -> 0
D11: =title231 -> t/month | F11: =F10/12 -> 0 | I11: =I10/12 -> 0 | L11: =L10/12 -> 0
D12: =title232 -> t/day | F12: =F10/365 -> 0 | I12: =I10/365 -> 0 | L12: =L10/365 -> 0
C14: =title225 -> Biomass production within a specific distance | D14: =title76 -> t/year | F14: =+'Data Entry Needs'!$D$13 -> 0 | I14: =+'Data Entry Needs'!$D$13 -> 0 | L14: =+'Data Entry Needs'!$D$13 -> 0
C16: =title226 -> Biomass safety stock rate | F16: =+F17/100 -> 0.3 | I16: =+I17/100 -> 0.3 | L16: =+L17/100 -> 0.3
F17: 30 | I17: 30 | L17: 30
C18: =title227 -> Biomass stock pile capacity | D18: ts | F18: =+MAX(F25:F36) -> 0 | I18: =+MAX(I25:I36) -> 0 | L18: =+MAX(L25:L36) -> 0
C20: =title228 -> Maximum storage definition
F22: =title84 -> Cogeneration Technologies
F23: =+F9 -> Tech 1 | I23: =+I9 -> Tech 2 | L23: =+L9 -> Tech 3 | AD23: Depletion time definition
C24: =title229 -> Harvest Month Selection | D24: =title230 -> Storage Month | E24: Monthly Consumption (t/month) | F24: =title233 -> Biomass Stored (t) | G24: Storage Depletion (t/month) | H24: Monthly Consumption (t/month) | I24: =title233 -> Biomass Stored (t) | J24: Storage Depletion (t/month) | K24: Monthly Consumption (t/month) | L24: =title233 -> Biomass Stored (t) | M24: Storage Depletion (t/month) | AB24: Harvest Period | AC24: Harvest Period | AD24: Depletion term | AE24: Depletion month | AF24: EQ term | AG24: Depletion time | AH24: Storage term | AI24: =title230 -> Storage Month | AJ24: EQ term | AK24: Storage time
C25: =title234 -> January | D25: =+IF($AC25=0,0,IF($AC25>$AC36,1,IF($AC25=$AC36,$D36+1,IF($AC36>$AC25,0)))) -> 0 | E25: =+F$11 -> 0 | F25: =+IF(AND($D$25=1,$D$36=0,$D$26=0),$F$11*$AG25+$F$11*$F$16,IF(D25>0,($AG25*$F$11/$AK25)*$D25+$F$11*$F$16,0)) -> 0 | G25: =IF(AND($D$25=1,$D$36=0,$D$26=0),$F$11*11+$G$36-E25,IF($D25>0,IFERROR(($AG25*$F$11/$AK25)*$D25,"")+$F$11*$F$16,IF($D25=0,G36-E25))) -> 0 | H25: =+I$11 -> 0 | I25: =+IF(AND($D$25=1,$D$36=0,$D$26=0),$I$11*$AG25+$I$11*$I$16,IF($D25>0,($AG25*$I$11/$AK25)*$D25+$I$11*$I$16,0)) -> 0 | J25: =IF(AND($D$25=1,$D$36=0,$D$26=0),$I$11*11+J36-H25,IF($D25>0,IFERROR(($AG25*$I$11/$AK25)*$D25,"")+$I$11*$I$16,IF($D25=0,J36-H25))) -> 0 | K25: =+L$11 -> 0 | L25: =+IF(AND($D$25=1,$D$36=0,$D$26=0),$L$11*$AG25+$L$11*$L$16,IF($D25>0,($AG25*$L$11/$AK25)*$D25+$L$11*$I$16,0)) -> 0 | M25: =IF(AND($D$25=1,$D$36=0,$D$26=0),$L$11*11+M36-K25,IF($D25>0,IFERROR(($AG25*$L$11/$AK25)*$D25,"")+$L$11*$L$16,IF($D25=0,M36-K25))) -> 0 | AB25: FALSE | AC25: =+N(AB25) -> 0 | AD25: =+IF(AND(AC26>AC25,AC25=0),"Last"&AF25,"") ->  | AE25: =+IF($AC25=1,0,IF($AC25<$AC36,1,IF($AC25=$AC36,$AE36+1,IF($AC36>$AC25,1)))) -> 3 | AF25: 1 | AG25: =IFERROR(VLOOKUP("LAST"&AF25,$AD$25:$AE$36,2,FALSE),AK25) -> 10 | AH25: =+IF(AND(AI25>AI26,AI26=0),"Last"&AJ25,"") ->  | AI25: =+IF($AC25=0,0,IF($AC25>$AC36,1,IF($AC25=$AC36,$AI36+1,IF($AC36>$AC25,0)))) -> 0 | AJ25: 1 | AK25: =IFERROR(VLOOKUP("LAST"&AJ25,$AH$25:$AI$36,2,FALSE),VLOOKUP("LAST"&1,$AH$25:$AI$36,2,FALSE)) -> 2
C26: =title235 -> February | D26: =+IF($AC26=0,0,IF($AC26>$AC25,1,IF($AC26=$AC25,$D25+1,IF($AC25>$AC26,0)))) -> 0 | E26: 0 | F26: =IF(D26>0,($AG26*$F$11/$AK26)*$D26+$F$11*$F$16,0) -> 0 | G26: =+IF($D26>0,IFERROR(($AG26*$F$11/$AK26)*$D26,"")+$F$11*$F$16,IF($D26=0,G25-E26)) -> 0 | H26: 0 | I26: =IF($D26>0,($AG26*$I$11/$AK26)*$D26+$I$11*$I$16,0) -> 0 | J26: =+IF($D26>0,IFERROR(($AG26*$I$11/$AK26)*$D26,"")+$I$11*$I$16,IF($D26=0,J25-H26)) -> 0 | K26: 0 | L26: =IF($D26>0,($AG26*$L$11/$AK26)*$D26+$L$11*$L$16,0) -> 0 | M26: =+IF($D26>0,IFERROR(($AG26*$L$11/$AK26)*$D26,"")+$L$11*$L$16,IF($D26=0,M25-K26)) -> 0 | AB26: FALSE | AC26: =+N(AB26) -> 0 | AD26: =+IF(AND(AC27>AC26,AC26=0),"Last"&AF26,"") ->  | AE26: =+IF($AC26=1,0,IF($AC26<$AC25,1,IF($AC26=$AC25,$AE25+1,IF($AC25>$AC26,1)))) -> 4 | AF26: =+IF($AE25>$AE26,$AF25+1,$AF25) -> 1 | AG26: =IFERROR(VLOOKUP("LAST"&AF26,$AD$25:$AE$36,2,FALSE),$AG$25) -> 10 | AH26: =+IF(AND(AI26>AI27,AI27=0),"Last"&AJ26,"") ->  | AI26: =+IF($AC26=0,0,IF($AC26>$AC25,1,IF($AC26=$AC25,$AI25+1,IF($AC25>$AC26,0)))) -> 0 | AJ26: =+IF($AI25>$AI26,$AJ25+1,$AJ25) -> 1 | AK26: =IFERROR(VLOOKUP("LAST"&AJ26,$AH$25:$AI$36,2,FALSE),VLOOKUP("LAST"&1,$AH$25:$AI$36,2,FALSE)) -> 2
C27: =title236 -> March | D27: 0 | E27: 0 | F27: 0 | G27: 0 | H27: 0 | I27: =IF($D27>0,($AG27*$I$11/$AK27)*$D27+$I$11*$I$16,0) -> 0 | J27: 0 | K27: 0 | L27: =IF($D27>0,($AG27*$L$11/$AK27)*$D27+$L$11*$L$16,0) -> 0 | M27: 0 | AB27: FALSE | AC27: 0 | AD27: =+IF(AND(AC28>AC27,AC27=0),"Last"&AF27,"") ->  | AE27: 5 | AF27: =+IF($AE26>$AE27,$AF26+1,$AF26) -> 1 | AG27: 10 | AH27: =+IF(AND(AI27>AI28,AI28=0),"Last"&AJ27,"") ->  | AI27: =+IF($AC27=0,0,IF($AC27>$AC26,1,IF($AC27=$AC26,$AI26+1,IF($AC26>$AC27,0)))) -> 0 | AJ27: =+IF($AI26>$AI27,$AJ26+1,$AJ26) -> 1 | AK27: 2
C28: =title237 -> April | D28: 0 | E28: 0 | F28: 0 | G28: 0 | H28: 0 | I28: 0 | J28: 0 | K28: 0 | L28: 0 | M28: 0 | AB28: FALSE | AC28: 0 | AD28: =+IF(AND(AC29>AC28,AC28=0),"Last"&AF28,"") ->  | AE28: 6 | AF28: =+IF($AE27>$AE28,$AF27+1,$AF27) -> 1 | AG28: 10 | AH28: =+IF(AND(AI28>AI29,AI29=0),"Last"&AJ28,"") ->  | AI28: 0 | AJ28: 1 | AK28: 2
C29: =title238 -> May | D29: 0 | E29: 0 | F29: 0 | G29: 0 | H29: 0 | I29: 0 | J29: 0 | K29: 0 | L29: 0 | M29: 0 | AB29: FALSE | AC29: 0 | AE29: 7 | AF29: 1 | AG29: 10 | AH29: =+IF(AND(AI29>AI30,AI30=0),"Last"&AJ29,"") ->  | AI29: 0 | AJ29: 1 | AK29: 2
C30: =title239 -> June | D30: 0 | E30: 0 | F30: 0 | G30: 0 | H30: 0 | I30: 0 | J30: 0 | K30: 0 | L30: 0 | M30: 0 | AB30: FALSE | AC30: 0 | AE30: 8 | AF30: 1 | AG30: 10 | AI30: 0 | AJ30: 1 | AK30: 2
C31: =title240 -> July | D31: 0 | E31: 0 | F31: 0 | G31: 0 | H31: 0 | I31: 0 | J31: 0 | K31: 0 | L31: 0 | M31: 0 | AB31: FALSE | AC31: 0 | AE31: 9 | AF31: 1 | AG31: 10 | AI31: 0 | AJ31: 1 | AK31: 2
C32: =title241 -> August | D32: 0 | E32: 0 | F32: 0 | G32: 0 | H32: 0 | I32: 0 | J32: 0 | K32: 0 | L32: 0 | M32: 0 | AB32: FALSE | AC32: 0 | AD32: Last1 | AE32: 10 | AF32: 1 | AG32: 10 | AI32: 0 | AJ32: 1 | AK32: 2
C33: =title242 -> September | D33: 1 | E33: 0 | F33: 0 | G33: 0 | H33: 0 | I33: 0 | J33: 0 | K33: 0 | L33: 0 | M33: 0 | AB33: TRUE | AC33: 1 | AE33: 0 | AF33: 2 | AG33: 10 | AI33: 1 | AJ33: 1 | AK33: 2
C34: =title243 -> October | D34: 2 | E34: 0 | F34: 0 | G34: 0 | H34: 0 | I34: 0 | J34: 0 | K34: 0 | L34: 0 | M34: 0 | AB34: TRUE | AC34: 1 | AE34: 0 | AF34: 2 | AG34: 10 | AH34: Last1 | AI34: 2 | AJ34: 1 | AK34: 2
C35: =title244 -> November | D35: 0 | E35: 0 | F35: 0 | G35: 0 | H35: 0 | I35: 0 | J35: 0 | K35: 0 | L35: 0 | M35: 0 | AB35: FALSE | AC35: 0 | AE35: 1 | AF35: 2 | AG35: 10 | AI35: 0 | AJ35: 2 | AK35: 2
C36: =title245 -> December | D36: 0 | E36: 0 | F36: 0 | G36: 0 | H36: 0 | I36: 0 | J36: 0 | K36: 0 | L36: 0 | M36: 0 | AB36: FALSE | AC36: 0 | AD36: =+IF(AND(AC25>AC36,AC36=0),"Last"&AF36,"") ->  | AE36: 2 | AF36: =+IF($AE35>$AE36,$AF35+1,$AF35) -> 2 | AG36: =IFERROR(VLOOKUP("LAST"&AF36,$AD$25:$AE$36,2,FALSE),$AG$25) -> 10 | AH36: =+IF(AND(AI36>AI25,AI25=0),"Last"&AJ36,"") ->  | AI36: =+IF($AC36=0,0,IF($AC36>$AC35,1,IF($AC36=$AC35,$AI35+1,IF($AC35>$AC36,0)))) -> 0 | AJ36: =+IF($AI35>$AI36,$AJ35+1,$AJ35) -> 2 | AK36: 2
D37: =+MAX(D25:D36)*30 -> 60
C38: =title246 -> Maximum Storage Capacity Required (ts) | F38: =ROUNDUP(MAX(F25:F36),0) -> 0 | G38: =ROUNDUP(MAX(G25:G36),0) -> 0 | H38: 0 | I38: 0 | J38: 0 | K38: 0 | L38: 0 | AB38: No. Storage Months | AC38: =+COUNTIF(AC25:AC36,">0") -> 2
C39: =title247 -> Minimum Safety Storage (ts) | F39: =+ROUNDUP(MIN(G25:G36),0) -> 0 | I39: =+ROUNDUP(MIN(J25:J36),0) -> 0 | L39: =+ROUNDUP(MIN(M25:M36),0) -> 0 | AB39: Total Depletion Period | AC39: =12-AC38 -> 10
C41: =title248 -> Monthly Consumption of Biomass Stocked
AC43: =F23&" (kW)" -> Tech 1 (kW) | AD43: =I23&" (kW)" -> Tech 2 (kW) | AE43: =L23&" (kW)" -> Tech 3 (kW)
AB44: =+LEFT(C25,3) -> Jan | AC44: =+G25 -> 0 | AD44: =+J25 -> 0 | AE44: =+M25 -> 0
AB45: Feb | AC45: 0 | AD45: 0 | AE45: 0
AB46: Mar | AC46: 0 | AD46: 0 | AE46: 0
AB47: Apr | AC47: 0 | AD47: 0 | AE47: 0
AB48: May | AC48: 0 | AD48: 0 | AE48: 0
AB49: Jun | AC49: 0 | AD49: 0 | AE49: 0
AB50: =+LEFT(C32,3) -> Aug | AC50: =+G32 -> 0 | AD50: =+J32 -> 0 | AE50: =+M32 -> 0
AB51: =+LEFT(C33,3) -> Sep | AC51: =+G33 -> 0 | AD51: =+J33 -> 0 | AE51: =+M33 -> 0
AB52: =+LEFT(C34,3) -> Oct | AC52: =+G34 -> 0 | AD52: =+J34 -> 0 | AE52: =+M34 -> 0
AB53: =+LEFT(C35,3) -> Nov | AC53: =+G35 -> 0 | AD53: =+J35 -> 0 | AE53: =+M35 -> 0
AB54: =+LEFT(C36,3) -> Dec | AC54: =+G36 -> 0 | AD54: =+J36 -> 0 | AE54: =+M36 -> 0

Sheet COST_RES1
C3: =+UPPER(title249&'Data Entry Needs'!$D$11&" "&'Data Entry Needs'!$D$12) -> PROCESSING COSTS FOR POWER GENERATION FROM PLEASE SELECT
C6: =title31 -> Use white cells to input data | F6: =title32 -> Grey cells are used for calculations
C8: =title250 -> Summary of Feedstock and Storage | G8: =title251 -> Summary of Operational Parameters | K8: =title102 -> Financial parameters
C10: =title67&" ("&title76&")" -> Feedstock available (t/year) | E10: =+'Data Entry Needs'!$D$13 -> 0 | G10: =title252 -> CV Biomass (kWh/kg feedstock) | I10: =+VLOOKUP(IF('Data Entry Needs'!$D$11=title156,'Data Entry Needs'!$D$11,'Data Entry Needs'!$D$11&'Data Entry Needs'!$D$12),dummy_database!$C$1:$L$31,10,FALSE)/(3.6) ->  | K10: =title105&" (%)" -> Loan interest rate (%) | N10: =+'Data Entry Needs'!$D$66 -> 0
C11: =title69 -> Feedstock yield (t/ha) | E11: =+'Data Entry Needs'!$D$14 -> 0 | G11: =title253 -> CV Syngas (kWh/kg feedstock) | I11: =+VLOOKUP(IF('Data Entry Needs'!$D$11=title156,'Data Entry Needs'!$D$11,'Data Entry Needs'!$D$11&'Data Entry Needs'!$D$12),dummy_database!$C$1:$M$31,11,FALSE)/3.6 ->  | K11: =title104&" (%)" -> Loan ratio (%) | N11: =+'Data Entry Needs'!$D$65 -> 0
C12: =title75 -> Feedstock storage cost (USD/t) | E12: =+'Data Entry Needs'!$D$20 -> 0 | G12: =title254 -> Heat loss in distribution (%) | K12: =title106&" ("&title107&")" -> Loan term (years) | N12: =+'Data Entry Needs'!$D$67 -> 0
G13: =title255 -> Power loss in distribution (%) | K13: =title103&" (%)" -> Discount rate (%) | N13: =+'Data Entry Needs'!$D$64 -> 0
G14: =title256 -> Power - self use (%) | K14: =title260 -> Heat Price (USD/GJ) | N14: ='Data Entry Needs'!$D$15*1000/(Steam_Calculator!$F$11*(Steam_Calculator!$D$11-20)+Steam_Calculator!$E$14) -> 0
G15: =title35 -> Operating hours per day | K15: =title261 -> Sell Electricity Price (USD/kWh) | N15: ='Data Entry Needs'!$D$28 -> 0
G16: =title257 -> Distance to cogen. plant (km) | K16: =title262 -> Project lifetime | N16: ='Data Entry Needs'!$D$67 -> 0
G17: =title258 -> Electricity Processing Plant (1000 kWh/year) | I17: =IF('Energy Demand'!$C$9=2,'Energy Demand'!$F$21,0) -> 
G18: =title259 -> Heat Processing Plant (1000 MJ/year) | I18: =IF('Energy Demand'!$C$9=2,'Energy Demand'!$F$22,0) -> 
C22: =title263 -> Production Cost Details
G24: =title264 -> Capacities (MWe of power generation)
G25: =title6 -> Simple | I25: =title13 -> Semi-Advanced | K25: =title19 -> Advanced
G26: =G29/($H$38*1000*(1-$I$14)) ->  | I26: =I29/($H$38*1000*(1-$I$14)) ->  | K26: =K29/($H$38*1000*(1-$I$14)) -> 
F27: Energy Potential (MJ/year) | G27: =$I$10*$E$10*1000*3.6 ->  | I27: =$I$10*$E$10*1000*3.6 ->  | K27: =+VLOOKUP(IF('Data Entry Needs'!$D$11=title156,'Data Entry Needs'!$D$11,'Data Entry Needs'!$D$11&'Data Entry Needs'!$D$12),dummy_database!$C$1:$M$31,11,FALSE)*$E$10*1000 -> 
F28: Heat (MJ/year) | G28: =$G$27*(G30-G31)/(1-(G31/G32)) ->  | I28: =IF(NOT('Data Entry Needs'!$AO$121),$I$27*(I30-I31)*I35/(1-(I31/I32)),$I$18*1000) ->  | K28: =IF(NOT('Data Entry Needs'!$AO$121),$K$27*(K30-K31)*K35/(1-(K31/K32)),$I$18*1000) -> 
F29: Elect (kWh/year) | G29: =(G27*G30-G28)/3.6 ->  | I29: =(I27*I30-I28)/3.6 ->  | K29: =(K27*K30-K28)*K35/3.6 -> 
F30: Thermal Eff. | G30: 0.2 | I30: 0.63 | K30: 0.71
F31: Electrical Eff. | G31: 0.2 | I31: 0.2 | K31: 0.3
F32: Alpha | G32: 0.75 | I32: 0.75 | K32: 0.75
F33: Steam electricity only (kg/h) | G33: =G29*3600/(G34*(Steam_Calculator!$C$6+Steam_Calculator!$C$7)*COST_RES1!$H$38) ->  | I33: =I29*3600/(I34*(Steam_Calculator!$C$6+Steam_Calculator!$C$7)*COST_RES1!$H$38) ->  | K33: =K29*3600/(K34*(Steam_Calculator!$C$6+Steam_Calculator!$C$7)*COST_RES1!$H$38) -> 
F34: Turb eff. | G34: 0.17 | I34: 0.25 | K34: =AVERAGE(17%,60%) -> 0.385
F35: Utilization Factor | G35: 1 | I35: 1 | K35: 1
G36: =title265 -> Capacities (MWth of heat generation)
G37: =G28/3.6/1000/$H$38 ->  | I37: =I28/3.6/1000/$H$38 ->  | K37: =K28/3.6/1000/$H$38 -> 
G38: =title266 -> Operating hours per year | H38: =$I$15*'Data Entry Needs'!$I$49 -> 0 | I38: =title266 -> Operating hours per year | J38: =$I$15*'Data Entry Needs'!$I$49 -> 0 | K38: =title266 -> Operating hours per year | L38: =$I$15*'Data Entry Needs'!$I$49 -> 0
D41: =title267 -> Inputs | E41: =title47 -> Unit | F41: =title270 -> Unit Price | G41: =title294 -> Quantity | H41: Total | I41: =title294 -> Quantity | J41: Total | K41: =title294 -> Quantity | L41: Total
F42: =title271 -> (USD/Unit) | G42: (Unit/year) | H42: ="("&title48&")" -> (USD/year) | I42: (Unit/year) | J42: ="("&title48&")" -> (USD/year) | K42: (Unit/year) | L42: ="("&title48&")" -> (USD/year)
D43: =title176 -> Feedstock | E43: t | F43: =+IF('Data Entry Needs'!$C$18=FALSE,'Data Entry Needs'!D$18,'Data Entry Needs'!D$19) -> 0 | G43: =$E$10 -> 0 | H43: =+G43*$F43 -> 0 | I43: =$E$10 -> 0 | J43: =+I43*$F43 -> 0 | K43: =$E$10 -> 0 | L43: =+K43*$F43 -> 0
D44: =title268 -> Water make-up + chemical additives | E44: m3 | F44: =+'Data Entry Needs'!$D$51+0.002*1000/4.56 -> 0.4385964912 | G44: =+Steam_Calculator!$C$9*G33*H38/1000 ->  | H44: =+G44*$F44 ->  | I44: =+Steam_Calculator!$C$9*I33*J38/1000 ->  | J44: =+I44*$F44 ->  | K44: =+Steam_Calculator!$C$9*K33*L38/1000 ->  | L44: =+K44*$F44 -> 
D45: =title269 -> Subtotal | H45: =SUM(H43:H44) ->  | J45: =SUM(J43:J44) ->  | L45: =SUM(L43:L44) -> 
D47: =title272 -> Labour and miscellaneous costs | E47: =title47 -> Unit | F47: =title270 -> Unit Price | G47: =title294 -> Quantity | H47: Total | I47: =title294 -> Quantity | J47: Total | K47: =title294 -> Quantity | L47: Total
F48: =title274 -> (USD/person-hour) | G48: ="("&title47&")" -> (Unit) | H48: ="("&title48&")" -> (USD/year) | I48: ="("&title47&")" -> (Unit) | J48: ="("&title48&")" -> (USD/year) | K48: ="("&title47&")" -> (Unit) | L48: ="("&title48&")" -> (USD/year)
D49: =title91 -> Unskilled worker | E49: # employee | F49: =+'Data Entry Needs'!$D$48 -> 0 | G49: =ROUNDUP(4.9*G$26*5/6,0) ->  | H49: =+F49*G49*H38 ->  | I49: =ROUNDUP(4.9*I$26*5/6,0) ->  | J49: =+$F49*I49*$H$38 ->  | K49: =ROUNDUP(4.9*K$26*5/6,0) ->  | L49: =+$F49*K49*$H$38 -> 
D50: =title111 -> Skilled worker | E50: # employee | F50: =+'Data Entry Needs'!I$48 -> 0 | G50: =ROUNDUP(4.9*G$26*1/6,0) ->  | H50: =+F50*G50*H38 ->  | I50: =ROUNDUP(4.9*I$26*1/6,0) ->  | J50: =+$F50*I50*$H$38 ->  | K50: =ROUNDUP(4.9*K$26*1/6,0) ->  | L50: =+$F50*K50*$H$38 -> 
D51: =title115 -> Miscellaneous cost | G51: =+'Data Entry Needs'!$I$61 -> 0 | H51: =+G51*SUM(H49:H50) ->  | I51: =+G51 -> 0 | J51: =+I51*SUM(J49:J50) ->  | K51: =+G51 -> 0 | L51: =+K51*SUM(L49:L50) -> 
D52: =title269 -> Subtotal | G52: =G49+G50 ->  | H52: =+H49+H50+H51 ->  | I52: =I49+I50 ->  | J52: =+J49+J50+J51 ->  | K52: =K49+K50 ->  | L52: =+L49+L50+L51 -> 
G53: =+SUM(G49:G50) ->  | I53: =+SUM(I49:I50) ->  | K53: =+SUM(K49:K50) -> 
D54: =title275 -> Transport of feedstock | E54: =title47 -> Unit | F54: =title270 -> Unit Price | G54: =title294 -> Quantity | H54: Total | I54: =title294 -> Quantity | J54: Total | K54: =title294 -> Quantity | L54: Total
F55: (USD/t/km) | G55: ="("&title47&")" -> (Unit) | H55: ="("&title48&")" -> (USD/year) | I55: ="("&title47&")" -> (Unit) | J55: ="("&title48&")" -> (USD/year) | K55: ="("&title47&")" -> (Unit) | L55: ="("&title48&")" -> (USD/year)
D56: Feedstock (farm to plant) | E56: km | F56: =+'Data Entry Needs'!$D$57 -> 0 | G56: =$I$16 -> 0 | H56: =+G56*F56*G43 -> 0 | I56: =$I$16 -> 0 | J56: =+I56*$F56*I$43 -> 0 | K56: =$I$16 -> 0 | L56: =+K56*$F56*K$43 -> 0
D57: =title269 -> Subtotal | H57: =+H56 -> 0 | J57: =+J56 -> 0 | L57: =+L56 -> 0
D59: =title277 -> Storage | E59: =title47 -> Unit | F59: =title270 -> Unit Price | G59: =title294 -> Quantity | H59: Total | I59: =title294 -> Quantity | J59: Total | K59: =title294 -> Quantity | L59: Total
F60: =title273 -> (USD/t/year) | G60: ="("&title47&")" -> (Unit) | H60: ="("&title48&")" -> (USD/year) | I60: ="("&title47&")" -> (Unit) | J60: ="("&title48&")" -> (USD/year) | K60: ="("&title47&")" -> (Unit) | L60: ="("&title48&")" -> (USD/year)
D61: =title278 -> Feedstock | E61: t | F61: =+$E$12 -> 0 | G61: =+STORAGE_RES1!$F$38 -> 0 | H61: =+F61*G61 -> 0 | I61: =+STORAGE_RES1!$I$38 -> 0 | J61: =I61*F61 -> 0 | K61: =+STORAGE_RES1!$L$38 -> 0 | L61: =F61*K61 -> 0
D62: =title269 -> Subtotal | H62: =SUM(H61) -> 0 | J62: =SUM(J61) -> 0 | L62: =SUM(L61) -> 0
D64: =title279 -> Investment | E64: =title47 -> Unit | F64: =PROPER(title107) -> Years | G64: Total | H64: =title295 -> Depreciation | I64: Total | J64: =title295 -> Depreciation | K64: Total | L64: =title295 -> Depreciation
G65: (USD) | H65: ="("&title48&")" -> (USD/year) | I65: (USD) | J65: ="("&title48&")" -> (USD/year) | K65: (USD) | L65: ="("&title48&")" -> (USD/year)
D66: =title280 -> Equipments | E66: USD | F66: 20 | G66: =('COST(ADJUSTED)_RES1'!$F$22)*('Data Entry Needs'!$I$65/141) ->  | H66: =+G66/F66 ->  | I66: =('COST(ADJUSTED)_RES1'!$G$22)*('Data Entry Needs'!$I$65/141) ->  | J66: =+I66/F66 ->  | K66: =('COST(ADJUSTED)_RES1'!$H$22)*('Data Entry Needs'!$I$65/141) ->  | L66: =+K66/F66 -> 
D67: =title281 -> Building | E67: USD | F67: 20 | G67: =+'COST(ADJUSTED)_RES1'!$F$25 ->  | H67: =+G67/F67 ->  | I67: =+'COST(ADJUSTED)_RES1'!$G$25 ->  | J67: =+I67/F67 ->  | K67: =+'COST(ADJUSTED)_RES1'!$H$25 ->  | L67: =+K67/F67 -> 
D68: =title282 -> Installation | E68: USD | F68: 20 | G68: =+'COST(ADJUSTED)_RES1'!$F$28 ->  | H68: =+G68/F68 ->  | I68: =+'COST(ADJUSTED)_RES1'!$G$28 ->  | J68: =+I68/F68 ->  | K68: =+'COST(ADJUSTED)_RES1'!$H$28 ->  | L68: =+K68/F68 -> 
D69: =title283 -> Total investment | G69: =SUM(G66:G68) ->  | I69: =SUM(I66:I68) ->  | K69: =SUM(K66:K68) -> 
G70: =title293 -> Total Depreciation | H70: =SUM(H66:H69) ->  | I70: =title293 -> Total Depreciation | J70: =SUM(J66:J69) ->  | K70: =title293 -> Total Depreciation | L70: =SUM(L66:L69) -> 
D71: =title114 -> Maintenance cost | F71: =+'Data Entry Needs'!$I$60 -> 0 | H71: =+F71*H70 ->  | J71: =+F71*$J$70 ->  | L71: =+$F$71*L70 -> 
D72: =title269 -> Subtotal | H72: =SUM(H70:H71) ->  | J72: =SUM(J70:J71) ->  | L72: =SUM(L70:L71) -> 
D74: =title99 -> Other costs | E74: =title47 -> Unit | F74: =title284 -> Rate (%) | H74: Total | J74: Total | L74: Total
H75: ="("&title48&")" -> (USD/year) | J75: ="("&title48&")" -> (USD/year) | L75: ="("&title48&")" -> (USD/year)
D76: =title285 -> Plant overhead | E76: USD | F76: =+'Data Entry Needs'!$D$61 -> 0 | H76: =+(H49+H50+H71)*$F$76 ->  | J76: =+(J49+J50+J71)*$F$76 ->  | L76: =+(L49+L50+L71)*$F$76 -> 
D77: =title286 -> General and administrative cost | E77: USD | F77: =+'Data Entry Needs'!$D$60 -> 0 | H77: =+(H45+H52+H76+H71)*$F$77 ->  | J77: =+(J45+J52+J76+J71)*$F$77 ->  | L77: =+(L45+L52+L76+L71)*$F$77 -> 
D78: =title287 -> Loan interest | E78: USD | F78: =+'Data Entry Needs'!$D$66 -> 0 | H78: =-FA_Simple_RES1!G88 ->  | J78: =-FA_Semi_RES1!G88 ->  | L78: =-FA_Adv_RES1!G88 -> 
D80: =title269 -> Subtotal | H80: =SUM(H76:H78) ->  | J80: =SUM(J76:J78) ->  | L80: =SUM(L76:L78) -> 
G82: Total | H82: =title292 -> Share (%) | I82: Total | J82: =title292 -> Share (%) | K82: Total | L82: =title292 -> Share (%)
G83: ="("&title48&")" -> (USD/year) | I83: ="("&title48&")" -> (USD/year) | K83: ="("&title48&")" -> (USD/year)
D84: =title288 -> Total operating costs | G84: =+H45+H52+H57+H62 ->  | H84: =+G84/$G$87 ->  | I84: =+J45+J52+J57+J62 ->  | J84: =+I84/$I$87 ->  | K84: =+L45+L52+L57+L62 ->  | L84: =+K84/$K$87 -> 
D85: =title289 -> Total fixed costs | G85: =+H72 ->  | H85: =+G85/$G$87 ->  | I85: =+J72 ->  | J85: =+I85/$I$87 ->  | K85: =+L72 ->  | L85: =+K85/$K$87 -> 
D86: =title290 -> Total other costs | G86: =+H80 ->  | H86: =+G86/$G$87 ->  | I86: =+J80 ->  | J86: =+I86/$I$87 ->  | K86: =+L80 ->  | L86: =+K86/$K$87 -> 
D87: =title291 -> Total production costs | G87: =SUM(G84:G86) ->  | I87: =SUM(I84:I86) ->  | K87: =SUM(K84:K86) -> 
C89: =title296 -> Power Generation
E91: =title47 -> Unit | G91: =title294 -> Quantity | I91: =title294 -> Quantity | K91: =title294 -> Quantity
G92: ="("&title47&")" -> (Unit) | I92: ="("&title47&")" -> (Unit) | K92: ="("&title47&")" -> (Unit)
D93: =title296 -> Power Generation | E93: =title299 -> MWh/year | G93: =+G26*H38*(1-$I$14) ->  | I93: =+I26*J38*(1-$I$14) ->  | K93: =+K26*L38*(1-$I$14) -> 
D94: =title297 -> Electricity - self use | E94: =title299 -> MWh/year | G94: =-G93*$I$14 ->  | I94: =-I93*$I$14 ->  | K94: =-K93*$I$14 -> 
D95: =title298 -> Power loss in distribution network | E95: =title299 -> MWh/year | G95: =-G93*$I$13 ->  | I95: =-I93*$I$13 ->  | K95: =-K93*$I$13 -> 
D96: =title269 -> Subtotal | G96: =SUM(G93:H95) ->  | I96: =SUM(I93:J95) ->  | K96: =SUM(K93:L95) -> 
C98: =title300 -> Heat generation
E100: =title47 -> Unit | G100: =title294 -> Quantity | I100: =title294 -> Quantity | K100: =title294 -> Quantity
G101: ="("&title47&")" -> (Unit) | I101: ="("&title47&")" -> (Unit) | K101: ="("&title47&")" -> (Unit)
D102: =title300 -> Heat generation | E102: =title302 -> GJ/year | I102: =I28/1000 ->  | K102: =K28/1000 -> 
D103: =title301 -> Heat loss in distribution network | E103: =title302 -> GJ/year | I103: =-I102*$I$12 ->  | K103: =-K102*$I$12 -> 
D104: =title269 -> Subtotal | I104: =SUM(I102:J103) ->  | K104: =SUM(K102:L103) -> 
C106: =title303 -> Total Production Cost
G108: =title264 -> Capacities (MWe of power generation)
G109: =+G26 ->  | I109: =+I26 ->  | K109: =+K26 -> 
D110: =title304 -> Unit cost of electricity (USD/kWh) | G110: =G87/G96/1000 ->  | I110: =I87/I96/1000 ->  | K110: =K87/K96/1000 -> 
G112: =title265 -> Capacities (MWth of heat generation)
I113: =+I37 ->  | K113: =+K37 -> 
D114: =title305 -> Unit cost of Heat (USD/GJ) | I114: =IFERROR(I87/I102,0) -> 0 | K114: =IFERROR(K87/K102,0) -> 0
D116: =title306 -> Average loan interest | E116: =title47 -> Unit | F116: =title104&" (%)" -> Loan ratio (%) | G116: =title283 -> Total investment | H116: =title307 -> Loan amount | I116: =title283 -> Total investment | J116: =title307 -> Loan amount | K116: =title283 -> Total investment | L116: =title307 -> Loan amount
G117: (USD) | H117: (USD) | I117: (USD) | J117: (USD) | K117: (USD) | L117: (USD)
D118: =title307 -> Loan amount | E118: USD | F118: =+$N$11 -> 0 | G118: =G69 ->  | H118: =$F$118*G118 ->  | I118: =I69 ->  | J118: =$F$118*I118 ->  | K118: =K69 ->  | L118: =$F$118*K118 -> 
D119: =title105 -> Loan interest rate | E119: % | H119: =+$N$10 -> 0 | J119: =+$N$10 -> 0 | L119: =+$N$10 -> 0
D120: =title308 -> Loan payment | E120: =title311 -> USD/month | H120: =PMT(H119/12,H122*12,H118,0) ->  | J120: =PMT(J119/12,J122*12,J118,0) ->  | L120: =PMT(L119/12,L122*12,L118,0) -> 
D121: =title309 -> Annual loan payment | E121: =title48 -> USD/year | H121: =H120*12 ->  | J121: =J120*12 ->  | L121: =L120*12 -> 
D122: =title106 -> Loan term | E122: =title108 -> year | H122: =+$N$12 -> 0 | J122: =+$N$12 -> 0 | L122: =+$N$12 -> 0
D123: =title310 -> Total loan payment | E123: USD | H123: =H121*H122 ->  | J123: =J121*J122 ->  | L123: =L121*L122 -> 
D124: =title287 -> Loan interest | E124: USD | H124: =H123+H118 ->  | J124: =J123+J118 ->  | L124: =L123+L118 -> 
D125: =title306 -> Average loan interest | E125: =title48 -> USD/year | H125: =H124/$N$16 ->  | J125: =J124/$N$16 ->  | L125: =L124/$N$16 -> 

Sheet PRICE_RES1 (hidden)
C3: =+title314&UPPER('Data Entry Needs'!$D$11&" "&'Data Entry Needs'!$D$12) -> COLLECTION COSTS CALCULATOR FOR PLEASE SELECT | P3: =title316 -> Sources of biomass | Q3: No. | R3: Selection2 | S3: Number | T3: =title340 -> Mechanized | U3: =title325 -> Number of skilled workers | V3: =title331 -> person-hour/ha
P4: =title332 -> Agriculture residues spread in the field | Q4: 1 | R4: =+$F$11 -> Mechanized | T4: =title340&2 -> Mechanized2 | U4: =title326 -> Skilled labour wage | V4: =title343 -> USD/person-hour
P5: =title333 -> Agriculture residues collected from field | Q5: 2 | R5: Selection1 | S5: 1 | T5: =title340&4 -> Mechanized4 | U5: =title327 -> Average fuel economy | V5: l/h
C6: =title31 -> Use white cells to input data | E6: =title32 -> Grey cells are used for calculations | P6: =title334 -> Agriculture residues from food processing plant | Q6: 3 | R6: =+VLOOKUP($C$11,$P$3:$Q$10,2,FALSE) -> 1 | S6: 2 | T6: =title340&5 -> Mechanized5 | U6: =title328 -> Fuel price | V6: USD/l
P7: =title335 -> Forestry | Q7: 4 | S7: 3 | T7: =title341 -> Semi-mechanized | U7: =title325 -> Number of skilled workers | V7: =title331 -> person-hour/ha
C8: =title315 -> Biomass Collection Definition | P8: =title336 -> Forestry and plantation residues | Q8: 5 | S8: 4 | T8: =title341&1 -> Semi-mechanized1 | U8: =title329 -> Number of unskilled workers | V8: =title331 -> person-hour/ha
P9: =title337 -> Residues from wood industry | Q9: 6 | S9: 5 | T9: =title341&2 -> Semi-mechanized2 | U9: =title326 -> Skilled labour wage | V9: =title343 -> USD/person-hour
C10: =title316 -> Sources of biomass | F10: =title317 -> Collecting method | P10: =title338 -> Dedicated wood energy plantation | Q10: 7 | T10: =title341&3 -> Semi-mechanized3 | U10: =title330 -> Unskilled labour wage | V10: =title343 -> USD/person-hour
C11: Agriculture residues spread in the field | F11: Mechanized | P11: =title339 -> Collection method | T11: =title341&4 -> Semi-mechanized4 | U11: =title327 -> Average fuel economy | V11: l/h
P12: =title340 -> Mechanized | T12: =title341&5 -> Semi-mechanized5 | U12: =title328 -> Fuel price | V12: USD/l
C13: =IF($R$6=7,title321,IF(OR($R$6=1,$R$6=5,$R$6=4),title315,title322)) -> Biomass Collection Definition | P13: =title341 -> Semi-mechanized | T13: =title342 -> Manual | U13: =title329 -> Number of unskilled workers | V13: =title331 -> person-hour/ha
P14: =title342 -> Manual | T14: =title342&2 -> Manual2 | U14: =title330 -> Unskilled labour wage | V14: =title343 -> USD/person-hour
C16: =title318 -> Biomass price definition
C17: =title319 -> Labour cost | D17: =title294 -> Quantity | E17: =title47 -> Unit | F17: =title294 -> Quantity | H17: =title47 -> Unit | I17: Total | J17: =title47 -> Unit
C18: =+IF(OR($R$6=1,$R$6=4,$R$6=5),IFERROR(VLOOKUP($R$4&$S4,$T$3:$V$14,2,FALSE),""),"") -> Number of skilled workers | E18: =IF(OR(entry1=title581,entry1=title582),title583,IF(OR($R$6=1,$R$6=4,$R$6=5),IFERROR(VLOOKUP($R$4&$S4,$T$3:$V$23,3,FALSE),""),"")) -> person-hour/ha | F18: =IF(OR($R$6=1,$R$6=4,$R$6=5),IFERROR(VLOOKUP($R$4&$S6,$T$3:$V$14,2,FALSE),""),"") -> Skilled labour wage | G18: =IF(F18="","",IF(F18=title330,'Data Entry Needs'!$D$48,IF(F18=title326,'Data Entry Needs'!$I$48))) -> 0 | H18: =IF(OR($R$6=1,$R$6=4,$R$6=5),IFERROR(VLOOKUP($R$4&$S6,$T$3:$V$20,3,FALSE),""),"") -> USD/person-hour | I18: =+IFERROR(G18*D18*(COST_RES1!$E$10/created1),"") ->  | J18: =+IF(OR($R$6=1,$R$6=4,$R$6=5),title48,"") -> USD/year | K18: =IF(OR(entry1=title581,entry1=title582),1,COST_RES1!$E$11) -> 0
C19: =IF(OR($R$6=1,$R$6=4,$R$6=5),IFERROR(VLOOKUP($R$4&$S5,$T$3:$V$14,2,FALSE),""),"") ->  | E19: =IF(AND(selection1=title341,OR(entry1=title581,entry1=title582)),title583,IF(OR($R$6=1,$R$6=4,$R$6=5),IFERROR(VLOOKUP($R$4&$S5,$T$3:$V$23,3,FALSE),""),"")) ->  | F19: =IF(OR($R$6=1,$R$6=4,$R$6=5),IFERROR(VLOOKUP($R$4&$S7,$T$3:$V$14,2,FALSE),""),"") ->  | G19: =IF(F19="","",'Data Entry Needs'!$D$48) ->  | H19: =IF(OR($R$6=1,$R$6=4,$R$6=5),IFERROR(VLOOKUP($R$4&$S7,$T$3:$V$27,3,FALSE),""),"") ->  | I19: =+IFERROR(G19*D19*(COST_RES1!$E$10/created1),"") ->  | J19: =+IF(OR($R$6=1,$R$6=4,$R$6=5),title48,"") -> USD/year
D20: =+IF(AND(C18="",C19=""),0,IF(C18="",D19,IF(C19="",D18,D18+D19))) -> 0 | H20: =+IF(OR($R$6=1,$R$6=4,$R$6=5),title269,"") -> Subtotal | I20: =+SUMIF($I$18:$I$19,">0") -> 0 | J20: =+IF(OR($R$6=1,$R$6=4,$R$6=5),title48,"") -> USD/year
C21: =title320 -> Machinery and operating cost | D21: =title294 -> Quantity | E21: =title47 -> Unit | F21: =title294 -> Quantity | H21: =title47 -> Unit | I21: Total | J21: =title47 -> Unit
C22: =IF(OR($R$6=1,$R$6=4,$R$6=5),IFERROR(VLOOKUP($R$4&$S8,$T$3:$V$14,2,FALSE),""),"") -> Average fuel economy | E22: =IF(OR($R$6=1,$R$6=4,$R$6=5),IFERROR(VLOOKUP($R$4&$S8,$T$3:$V$27,3,FALSE),""),"") -> l/h | F22: =IF(OR($R$6=1,$R$6=4,$R$6=5),IFERROR(VLOOKUP($R$4&$S9,$T$3:$V$14,2,FALSE),""),"") -> Fuel price | G22: =IF(F22="","",'Data Entry Needs'!$D$55) -> 0 | H22: =+IFERROR(VLOOKUP($R$4&$S9,$T$3:$V$14,3,FALSE),"") -> USD/l | I22: =+IFERROR(G22*D22*IF($F$11=title342,0,$D$18*COST_RES1!$E$10/COST_RES1!$E$11),"") ->  | J22: =+IF(OR($R$6=1,$R$6=4,$R$6=5),title48,"") -> USD/year
H23: =+IF(OR($R$6=1,$R$6=4,$R$6=5),title269,"") -> Subtotal | I23: =+I22 ->  | J23: =+IF(OR($R$6=1,$R$6=4,$R$6=5),title48,"") -> USD/year
H24: =+IF(OR($R$6=1,$R$6=4,$R$6=5),"Total","") -> Total | I24: =IFERROR(I20+I23,I20) -> 0 | J24: =+IF(OR($R$6=1,$R$6=4,$R$6=5),title48,"") -> USD/year
F26: =IF($R$6=7,title324,title323)&'Data Entry Needs'!$D$11&" "&'Data Entry Needs'!$D$12 -> Collection price of Please Select | I26: =IFERROR(I24/COST_RES1!$E$10,0) -> 0 | J26: USD/t

Sheet STORAGE_RES2 (hidden)
C3: =UPPER(title222&'Data Entry Needs'!$E$11&" "&'Data Entry Needs'!$E$12) -> STORAGE CALCULATOR FOR GASIFICATION+RURAL ELECTRIFICATION FROM PLEASE SELECT
C6: =title223 -> Biomass safety stock rate definition
F8: =title84 -> Cogeneration Technologies
D9: =title47 -> Unit | F9: Tech 1 | G9: Tech 2 | H9: Tech 3 | I9: Tech 2 | J9: Tech 5 | K9: Tech 6 | L9: Tech 3
C10: =title224 -> Biomass consumption | D10: =title76 -> t/year | F10: =+COST_RES2!$G$43 -> 0 | I10: =+COST_RES2!$I$43 -> 0 | L10: =+COST_RES2!$K$43 -> 0
D11: =title231 -> t/month | F11: =F10/12 -> 0 | I11: =I10/12 -> 0 | L11: =L10/12 -> 0
D12: =title232 -> t/day | F12: =F10/365 -> 0 | I12: =I10/365 -> 0 | L12: =L10/365 -> 0
C14: =title225 -> Biomass production within a specific distance | D14: =title76 -> t/year | F14: =+'Data Entry Needs'!$E$13 -> 0 | G14: =+'Data Entry Needs'!$E$13 -> 0 | H14: =+'Data Entry Needs'!$E$13 -> 0 | I14: =+'Data Entry Needs'!$E$13 -> 0 | J14: =+'Data Entry Needs'!$E$13 -> 0 | K14: =+'Data Entry Needs'!$E$13 -> 0 | L14: =+'Data Entry Needs'!$E$13 -> 0
C16: =title226 -> Biomass safety stock rate | F16: =+F17/100 -> 0.3 | I16: =+I17/100 -> 0.3 | L16: =+L17/100 -> 0.3
F17: 30 | I17: 30 | L17: 30
C18: =title227 -> Biomass stock pile capacity | D18: ts | F18: =+MAX(F25:F36) -> 0 | I18: =+MAX(I25:I36) -> 0 | L18: =+MAX(L25:L36) -> 0
C20: =title228 -> Maximum storage definition
F22: =title84 -> Cogeneration Technologies
F23: =+F9 -> Tech 1 | I23: =+I9 -> Tech 2 | L23: =+L9 -> Tech 3 | AD23: Depletion time definition
C24: =title229 -> Harvest Month Selection | D24: =title230 -> Storage Month | E24: Monthly Consumption (t/month) | F24: =title233 -> Biomass Stored (t) | G24: Storage Depletion (t/month) | H24: Monthly Consumption (t/month) | I24: =title233 -> Biomass Stored (t) | J24: Storage Depletion (t/month) | K24: Monthly Consumption (t/month) | L24: =title233 -> Biomass Stored (t) | M24: Storage Depletion (t/month) | AB24: Harvest Period | AC24: Harvest Period | AD24: Depletion term | AE24: Depletion month | AF24: EQ term | AG24: Depletion time | AH24: Storage term | AI24: =title230 -> Storage Month | AJ24: EQ term | AK24: Storage time
C25: =title234 -> January | D25: =+IF($AC25=0,0,IF($AC25>$AC36,1,IF($AC25=$AC36,$D36+1,IF($AC36>$AC25,0)))) -> 0 | E25: =+F$11 -> 0 | F25: =+IF(AND($D$25=1,$D$36=0,$D$26=0),$F$11*$AG25+$F$11*$F$16,IF(D25>0,($AG25*$F$11/$AK25)*$D25+$F$11*$F$16,0)) -> 0 | G25: =IF(AND($D$25=1,$D$36=0,$D$26=0),$F$11*11+$G$36-E25,IF($D25>0,IFERROR(($AG25*$F$11/$AK25)*$D25,"")+$F$11*$F$16,IF($D25=0,G36-E25))) -> 0 | H25: =+I$11 -> 0 | I25: =+IF(AND($D$25=1,$D$36=0,$D$26=0),$I$11*$AG25+$I$11*$I$16,IF($D25>0,($AG25*$I$11/$AK25)*$D25+$I$11*$I$16,0)) -> 0 | J25: =IF(AND($D$25=1,$D$36=0,$D$26=0),$I$11*11+J36-H25,IF($D25>0,IFERROR(($AG25*$I$11/$AK25)*$D25,"")+$I$11*$I$16,IF($D25=0,J36-H25))) -> 0 | K25: =+L$11 -> 0 | L25: =+IF(AND($D$25=1,$D$36=0,$D$26=0),$L$11*$AG25+$L$11*$L$16,IF($D25>0,($AG25*$L$11/$AK25)*$D25+$L$11*$I$16,0)) -> 0 | M25: =IF(AND($D$25=1,$D$36=0,$D$26=0),$L$11*11+M36-K25,IF($D25>0,IFERROR(($AG25*$L$11/$AK25)*$D25,"")+$L$11*$L$16,IF($D25=0,M36-K25))) -> 0 | AB25: FALSE | AC25: =+N(AB25) -> 0 | AD25: =+IF(AND(AC26>AC25,AC25=0),"Last"&AF25,"") ->  | AE25: =+IF($AC25=1,0,IF($AC25<$AC36,1,IF($AC25=$AC36,$AE36+1,IF($AC36>$AC25,1)))) -> 3 | AF25: 1 | AG25: =IFERROR(VLOOKUP("LAST"&AF25,$AD$25:$AE$36,2,FALSE),AK25) -> 10 | AH25: =+IF(AND(AI25>AI26,AI26=0),"Last"&AJ25,"") ->  | AI25: =+IF($AC25=0,0,IF($AC25>$AC36,1,IF($AC25=$AC36,$AI36+1,IF($AC36>$AC25,0)))) -> 0 | AJ25: 1 | AK25: =IFERROR(VLOOKUP("LAST"&AJ25,$AH$25:$AI$36,2,FALSE),VLOOKUP("LAST"&1,$AH$25:$AI$36,2,FALSE)) -> 2
C26: =title235 -> February | D26: =+IF($AC26=0,0,IF($AC26>$AC25,1,IF($AC26=$AC25,$D25+1,IF($AC25>$AC26,0)))) -> 0 | E26: 0 | F26: =IF(D26>0,($AG26*$F$11/$AK26)*$D26+$F$11*$F$16,0) -> 0 | G26: =+IF($D26>0,IFERROR(($AG26*$F$11/$AK26)*$D26,"")+$F$11*$F$16,IF($D26=0,G25-E26)) -> 0 | H26: 0 | I26: =IF($D26>0,($AG26*$I$11/$AK26)*$D26+$I$11*$I$16,0) -> 0 | J26: =+IF($D26>0,IFERROR(($AG26*$I$11/$AK26)*$D26,"")+$I$11*$I$16,IF($D26=0,J25-H26)) -> 0 | K26: 0 | L26: =IF($D26>0,($AG26*$L$11/$AK26)*$D26+$L$11*$L$16,0) -> 0 | M26: =+IF($D26>0,IFERROR(($AG26*$L$11/$AK26)*$D26,"")+$L$11*$L$16,IF($D26=0,M25-K26)) -> 0 | AB26: FALSE | AC26: =+N(AB26) -> 0 | AD26: =+IF(AND(AC27>AC26,AC26=0),"Last"&AF26,"") ->  | AE26: =+IF($AC26=1,0,IF($AC26<$AC25,1,IF($AC26=$AC25,$AE25+1,IF($AC25>$AC26,1)))) -> 4 | AF26: =+IF($AE25>$AE26,$AF25+1,$AF25) -> 1 | AG26: =IFERROR(VLOOKUP("LAST"&AF26,$AD$25:$AE$36,2,FALSE),$AG$25) -> 10 | AH26: =+IF(AND(AI26>AI27,AI27=0),"Last"&AJ26,"") ->  | AI26: =+IF($AC26=0,0,IF($AC26>$AC25,1,IF($AC26=$AC25,$AI25+1,IF($AC25>$AC26,0)))) -> 0 | AJ26: =+IF($AI25>$AI26,$AJ25+1,$AJ25) -> 1 | AK26: =IFERROR(VLOOKUP("LAST"&AJ26,$AH$25:$AI$36,2,FALSE),VLOOKUP("LAST"&1,$AH$25:$AI$36,2,FALSE)) -> 2
C27: =title236 -> March | D27: 0 | E27: 0 | F27: 0 | G27: 0 | H27: 0 | I27: =IF($D27>0,($AG27*$I$11/$AK27)*$D27+$I$11*$I$16,0) -> 0 | J27: 0 | K27: 0 | L27: =IF($D27>0,($AG27*$L$11/$AK27)*$D27+$L$11*$L$16,0) -> 0 | M27: 0 | AB27: FALSE | AC27: 0 | AD27: =+IF(AND(AC28>AC27,AC27=0),"Last"&AF27,"") ->  | AE27: 5 | AF27: =+IF($AE26>$AE27,$AF26+1,$AF26) -> 1 | AG27: 10 | AH27: =+IF(AND(AI27>AI28,AI28=0),"Last"&AJ27,"") ->  | AI27: =+IF($AC27=0,0,IF($AC27>$AC26,1,IF($AC27=$AC26,$AI26+1,IF($AC26>$AC27,0)))) -> 0 | AJ27: =+IF($AI26>$AI27,$AJ26+1,$AJ26) -> 1 | AK27: 2
C28: =title237 -> April | D28: 0 | E28: 0 | F28: 0 | G28: 0 | H28: 0 | I28: 0 | J28: 0 | K28: 0 | L28: 0 | M28: 0 | AB28: FALSE | AC28: 0 | AD28: =+IF(AND(AC29>AC28,AC28=0),"Last"&AF28,"") ->  | AE28: 6 | AF28: =+IF($AE27>$AE28,$AF27+1,$AF27) -> 1 | AG28: 10 | AH28: =+IF(AND(AI28>AI29,AI29=0),"Last"&AJ28,"") ->  | AI28: 0 | AJ28: 1 | AK28: 2
C29: =title238 -> May | D29: 0 | E29: 0 | F29: 0 | G29: 0 | H29: 0 | I29: 0 | J29: 0 | K29: 0 | L29: 0 | M29: 0 | AB29: FALSE | AC29: 0 | AE29: 7 | AF29: 1 | AG29: 10 | AH29: =+IF(AND(AI29>AI30,AI30=0),"Last"&AJ29,"") ->  | AI29: 0 | AJ29: 1 | AK29: 2
C30: =title239 -> June | D30: 0 | E30: 0 | F30: 0 | G30: 0 | H30: 0 | I30: 0 | J30: 0 | K30: 0 | L30: 0 | M30: 0 | AB30: FALSE | AC30: 0 | AE30: 8 | AF30: 1 | AG30: 10 | AI30: 0 | AJ30: 1 | AK30: 2
C31: =title240 -> July | D31: 0 | E31: 0 | F31: 0 | G31: 0 | H31: 0 | I31: 0 | J31: 0 | K31: 0 | L31: 0 | M31: 0 | AB31: FALSE | AC31: 0 | AE31: 9 | AF31: 1 | AG31: 10 | AI31: 0 | AJ31: 1 | AK31: 2
C32: =title241 -> August | D32: 0 | E32: 0 | F32: 0 | G32: 0 | H32: 0 | I32: 0 | J32: 0 | K32: 0 | L32: 0 | M32: 0 | AB32: FALSE | AC32: 0 | AD32: Last1 | AE32: 10 | AF32: 1 | AG32: 10 | AI32: 0 | AJ32: 1 | AK32: 2
C33: =title242 -> September | D33: 1 | E33: 0 | F33: 0 | G33: 0 | H33: 0 | I33: 0 | J33: 0 | K33: 0 | L33: 0 | M33: 0 | AB33: TRUE | AC33: 1 | AE33: 0 | AF33: 2 | AG33: 10 | AI33: 1 | AJ33: 1 | AK33: 2
C34: =title243 -> October | D34: 2 | E34: 0 | F34: 0 | G34: 0 | H34: 0 | I34: 0 | J34: 0 | K34: 0 | L34: 0 | M34: 0 | AB34: TRUE | AC34: 1 | AE34: 0 | AF34: 2 | AG34: 10 | AH34: Last1 | AI34: 2 | AJ34: 1 | AK34: 2
C35: =title244 -> November | D35: 0 | E35: 0 | F35: 0 | G35: 0 | H35: 0 | I35: 0 | J35: 0 | K35: 0 | L35: 0 | M35: 0 | AB35: FALSE | AC35: 0 | AE35: 1 | AF35: 2 | AG35: 10 | AI35: 0 | AJ35: 2 | AK35: 2
C36: =title245 -> December | D36: 0 | E36: 0 | F36: 0 | G36: 0 | H36: 0 | I36: 0 | J36: 0 | K36: 0 | L36: 0 | M36: 0 | AB36: FALSE | AC36: 0 | AD36: =+IF(AND(AC25>AC36,AC36=0),"Last"&AF36,"") ->  | AE36: 2 | AF36: =+IF($AE35>$AE36,$AF35+1,$AF35) -> 2 | AG36: =IFERROR(VLOOKUP("LAST"&AF36,$AD$25:$AE$36,2,FALSE),$AG$25) -> 10 | AH36: =+IF(AND(AI36>AI25,AI25=0),"Last"&AJ36,"") ->  | AI36: =+IF($AC36=0,0,IF($AC36>$AC35,1,IF($AC36=$AC35,$AI35+1,IF($AC35>$AC36,0)))) -> 0 | AJ36: =+IF($AI35>$AI36,$AJ35+1,$AJ35) -> 2 | AK36: 2
D37: =+MAX(D25:D36)*30 -> 60
C38: =title246 -> Maximum Storage Capacity Required (ts) | F38: =ROUNDUP(MAX(F25:F36),0) -> 0 | G38: =ROUNDUP(MAX(G25:G36),0) -> 0 | H38: 0 | I38: 0 | J38: 0 | K38: 0 | L38: 0 | AB38: No. Storage Months | AC38: =+COUNTIF(AC25:AC36,">0") -> 2
C39: =title247 -> Minimum Safety Storage (ts) | F39: =+ROUNDUP(MIN(G25:G36),0) -> 0 | I39: =+ROUNDUP(MIN(J25:J36),0) -> 0 | L39: =+ROUNDUP(MIN(M25:M36),0) -> 0 | AB39: Total Depletion Period | AC39: =12-AC38 -> 10
C41: =title248 -> Monthly Consumption of Biomass Stocked
AC43: =F23&" (kW)" -> Tech 1 (kW) | AD43: =I23&" (kW)" -> Tech 2 (kW) | AE43: =L23&" (kW)" -> Tech 3 (kW)
AB44: =+LEFT(C25,3) -> Jan | AC44: =+G25 -> 0 | AD44: =+J25 -> 0 | AE44: =+M25 -> 0
AB45: Feb | AC45: 0 | AD45: 0 | AE45: 0
AB46: Mar | AC46: 0 | AD46: 0 | AE46: 0
AB47: Apr | AC47: 0 | AD47: 0 | AE47: 0
AB48: May | AC48: 0 | AD48: 0 | AE48: 0
AB49: Jun | AC49: 0 | AD49: 0 | AE49: 0
AB50: =+LEFT(C32,3) -> Aug | AC50: =+G32 -> 0 | AD50: =+J32 -> 0 | AE50: =+M32 -> 0
AB51: =+LEFT(C33,3) -> Sep | AC51: =+G33 -> 0 | AD51: =+J33 -> 0 | AE51: =+M33 -> 0
AB52: =+LEFT(C34,3) -> Oct | AC52: =+G34 -> 0 | AD52: =+J34 -> 0 | AE52: =+M34 -> 0
AB53: =+LEFT(C35,3) -> Nov | AC53: =+G35 -> 0 | AD53: =+J35 -> 0 | AE53: =+M35 -> 0
AB54: =+LEFT(C36,3) -> Dec | AC54: =+G36 -> 0 | AD54: =+J36 -> 0 | AE54: =+M36 -> 0

Sheet FA_Simple_RES1 (hidden)
B1: =title344 -> FINANCIAL EVALUATION OF COGENERATION SIMPLE TECHNOLOGY
A4: =title345 -> Revenues
B6: =title346 -> Operating Year | C6: 0 | D6: 1 | E6: 2 | F6: 3 | G6: 4 | H6: 5 | I6: 6 | J6: 7 | K6: 8 | L6: 9 | M6: 10 | N6: 11 | O6: 12 | P6: 13 | Q6: 14 | R6: 15 | S6: 16 | T6: 17 | U6: 18 | V6: 19 | W6: 20
B8: =title347 -> Power generation capacity (kW) | C8: =COST_RES1!$G$26*1000 ->  | D8: =C8 ->  | E8: =D8 -> 
B9: =title348 -> Power loss in distribution network (%) | C9: =+COST_RES1!$I$14 -> 0 | D9: =+C9 -> 0 | E9: =+D9 -> 0 | F9: 0 | G9: 0 | H9: 0 | I9: 0 | J9: 0 | K9: 0 | L9: 0 | M9: 0 | N9: 0 | O9: 0 | P9: 0 | Q9: 0 | R9: 0 | S9: 0 | T9: 0 | U9: 0 | V9: 0 | W9: 0
B10: =title266 -> Operating hours per year | C10: =+COST_RES1!$H$38 -> 0 | D10: =C10 -> 0 | E10: =D10 -> 0 | F10: 0 | G10: 0 | H10: 0 | I10: 0 | J10: 0 | K10: 0 | L10: 0 | M10: 0 | N10: 0 | O10: 0 | P10: 0 | Q10: 0 | R10: 0 | S10: 0 | T10: 0 | U10: 0 | V10: 0 | W10: 0
B12: =title349 -> Electricity generation (kWh per year) | C12: =C8*C10*(1-C9) ->  | D12: =D8*D10*(1-D9) -> 
B13: =title350 -> Electricity - self use cogeneration (kWh per year) | C13: =C12*COST_RES1!$I$14 ->  | D13: =D12*10% -> 
B14: =title351 -> Power loss in distribution network (kWh per year) | C14: =C12*COST_RES1!$I$13 ->  | D14: =C14 ->  | E14: =D14 -> 
B15: =title352 -> Electricity consumed by main Industry (kWh per year) | C15: ='Energy Demand'!$F$21*1000 -> 0 | D15: =C15 -> 0 | E15: =D15 -> 0 | F15: 0 | G15: 0 | H15: 0 | I15: 0 | J15: 0 | K15: 0 | L15: 0 | M15: 0 | N15: 0 | O15: 0 | P15: 0 | Q15: 0 | R15: 0 | S15: 0 | T15: 0 | U15: 0 | V15: 0 | W15: 0
B16: =title353 -> Total power sold to the customers (kWh per year) | C16: =IF(NOT('Summary of results-by feedstock'!$AE$199),IF(C12-C13-C14-C15>0,C12-C13-C14-C15,0),C12) ->  | D16: =C16 -> 
B18: =title354 -> Heat generation (GJ per year) | C18: 0 | D18: =C18 -> 0 | E18: =D18 -> 0 | F18: 0 | G18: 0 | H18: 0 | I18: 0 | J18: 0 | K18: 0 | L18: 0 | M18: 0 | N18: 0 | O18: 0 | P18: 0 | Q18: 0 | R18: 0 | S18: 0 | T18: 0 | U18: 0 | V18: 0 | W18: 0
B19: =title355 -> Heat loss in distribution network (GJ per year) | C19: =C18*COST_RES1!$I$12 -> 0 | D19: =C19 -> 0 | E19: =D19 -> 0 | F19: 0 | G19: 0 | H19: 0 | I19: 0 | J19: 0 | K19: 0 | L19: 0 | M19: 0 | N19: 0 | O19: 0 | P19: 0 | Q19: 0 | R19: 0 | S19: 0 | T19: 0 | U19: 0 | V19: 0 | W19: 0
B20: =title356 -> Heat available for main Industry (GJ per year) | C20: =C18-C19 -> 0 | D20: =C20 -> 0 | E20: =D20 -> 0 | F20: 0 | G20: 0 | H20: 0 | I20: 0 | J20: 0 | K20: 0 | L20: 0 | M20: 0 | N20: 0 | O20: 0 | P20: 0 | Q20: 0 | R20: 0 | S20: 0 | T20: 0 | U20: 0 | V20: 0 | W20: 0
B21: =title357 -> Heat demad main Industry (GJ per year) | C21: ='Energy Demand'!$F$22 -> 0 | D21: =C21 -> 0 | E21: =D21 -> 0 | F21: 0 | G21: 0 | H21: 0 | I21: 0 | J21: 0 | K21: 0 | L21: 0 | M21: 0 | N21: 0 | O21: 0 | P21: 0 | Q21: 0 | R21: 0 | S21: 0 | T21: 0 | U21: 0 | V21: 0 | W21: 0
B22: =title358 -> Heat supplied to main Industry (GJ per year) | C22: =IF(NOT('Summary of results-by feedstock'!$AE$197),IF(C21>C20,C20,C21),0) ->  | D22: =IF(NOT('Summary of results-by feedstock'!$AE$197),IF(D21>D20,D20,D21),0) ->  | E22: =IF(NOT('Summary of results-by feedstock'!$AE$197),IF(E21>E20,E20,E21),0) ->  | F22: =IF(NOT('Summary of results-by feedstock'!$AE$197),IF(F21>F20,F20,F21),0) ->  | G22: =IF(NOT('Summary of results-by feedstock'!$AE$197),IF(G21>G20,G20,G21),0) ->  | H22: =IF(NOT('Summary of results-by feedstock'!$AE$197),IF(H21>H20,H20,H21),0) ->  | I22: =IF(NOT('Summary of results-by feedstock'!$AE$197),IF(I21>I20,I20,I21),0) ->  | J22: =IF(NOT('Summary of results-by feedstock'!$AE$197),IF(J21>J20,J20,J21),0) ->  | K22: =IF(NOT('Summary of results-by feedstock'!$AE$197),IF(K21>K20,K20,K21),0) ->  | L22: =IF(NOT('Summary of results-by feedstock'!$AE$197),IF(L21>L20,L20,L21),0) ->  | M22: =IF(NOT('Summary of results-by feedstock'!$AE$197),IF(M21>M20,M20,M21),0) ->  | N22: =IF(NOT('Summary of results-by feedstock'!$AE$197),IF(N21>N20,N20,N21),0) ->  | O22: =IF(NOT('Summary of results-by feedstock'!$AE$197),IF(O21>O20,O20,O21),0) ->  | P22: =IF(NOT('Summary of results-by feedstock'!$AE$197),IF(P21>P20,P20,P21),0) ->  | Q22: =IF(NOT('Summary of results-by feedstock'!$AE$197),IF(Q21>Q20,Q20,Q21),0) ->  | R22: =IF(NOT('Summary of results-by feedstock'!$AE$197),IF(R21>R20,R20,R21),0) ->  | S22: =IF(NOT('Summary of results-by feedstock'!$AE$197),IF(S21>S20,S20,S21),0) ->  | T22: =IF(NOT('Summary of results-by feedstock'!$AE$197),IF(T21>T20,T20,T21),0) ->  | U22: =IF(NOT('Summary of results-by feedstock'!$AE$197),IF(U21>U20,U20,U21),0) ->  | V22: =IF(NOT('Summary of results-by feedstock'!$AE$197),IF(V21>V20,V20,V21),0) ->  | W22: =IF(NOT('Summary of results-by feedstock'!$AE$197),IF(W21>W20,W20,W21),0) -> 
B23: =title359 -> Heat sold to the customers (GJ per year) | C23: =IF('Summary of results-by feedstock'!$AE$197,C20,0) ->  | D23: =IF('Summary of results-by feedstock'!$AE$197,D20,0) ->  | E23: =IF('Summary of results-by feedstock'!$AE$197,E20,0) ->  | F23: =IF('Summary of results-by feedstock'!$AE$197,F20,0) ->  | G23: =IF('Summary of results-by feedstock'!$AE$197,G20,0) ->  | H23: =IF('Summary of results-by feedstock'!$AE$197,H20,0) ->  | I23: =IF('Summary of results-by feedstock'!$AE$197,I20,0) ->  | J23: =IF('Summary of results-by feedstock'!$AE$197,J20,0) ->  | K23: =IF('Summary of results-by feedstock'!$AE$197,K20,0) ->  | L23: =IF('Summary of results-by feedstock'!$AE$197,L20,0) ->  | M23: =IF('Summary of results-by feedstock'!$AE$197,M20,0) ->  | N23: =IF('Summary of results-by feedstock'!$AE$197,N20,0) ->  | O23: =IF('Summary of results-by feedstock'!$AE$197,O20,0) ->  | P23: =IF('Summary of results-by feedstock'!$AE$197,P20,0) ->  | Q23: =IF('Summary of results-by feedstock'!$AE$197,Q20,0) ->  | R23: =IF('Summary of results-by feedstock'!$AE$197,R20,0) ->  | S23: =IF('Summary of results-by feedstock'!$AE$197,S20,0) ->  | T23: =IF('Summary of results-by feedstock'!$AE$197,T20,0) ->  | U23: =IF('Summary of results-by feedstock'!$AE$197,U20,0) ->  | V23: =IF('Summary of results-by feedstock'!$AE$197,V20,0) ->  | W23: =IF('Summary of results-by feedstock'!$AE$197,W20,0) -> 
B25: =title360 -> Selling electricity Price (USD/kWh) | C25: ='Data Entry Needs'!$D$28 -> 0 | D25: =C25 -> 0 | E25: =D25 -> 0 | F25: 0 | G25: 0 | H25: 0 | I25: 0 | J25: 0 | K25: 0 | L25: 0 | M25: 0 | N25: 0 | O25: 0 | P25: 0 | Q25: 0 | R25: 0 | S25: 0 | T25: 0 | U25: 0 | V25: 0 | W25: 0
C26: =C25*C16 -> 
B27: =title361 -> Electricity cost avoided main industry (USD/kWh) | C27: ='Data Entry Needs'!$D$26 -> 0 | D27: =C27 -> 0 | E27: =D27 -> 0 | F27: 0 | G27: 0 | H27: 0 | I27: 0 | J27: 0 | K27: 0 | L27: 0 | M27: 0 | N27: 0 | O27: 0 | P27: 0 | Q27: 0 | R27: 0 | S27: 0 | T27: 0 | U27: 0 | V27: 0 | W27: 0
C28: =C27*(C12-C16) ->  | D28: =D27*(D12-D16) -> 
B29: =title362 -> Heat cost avoided main Industry (USD/Gj) | C29: =COST_RES1!$N$14 -> 0 | D29: =C29 -> 0 | E29: =D29 -> 0 | F29: 0 | G29: 0 | H29: 0 | I29: 0 | J29: 0 | K29: 0 | L29: 0 | M29: 0 | N29: 0 | O29: 0 | P29: 0 | Q29: 0 | R29: 0 | S29: 0 | T29: 0 | U29: 0 | V29: 0 | W29: 0
C30: =C22*C29 ->  | D30: =D22*D29 -> 
B31: =title363 -> Heat sales to nearby consumers (USD/Gj) | C31: ='Data Entry Needs'!$I$28 -> 0 | D31: ='Data Entry Needs'!$I$28 -> 0 | E31: ='Data Entry Needs'!$I$28 -> 0 | F31: ='Data Entry Needs'!$I$28 -> 0 | G31: ='Data Entry Needs'!$I$28 -> 0 | H31: ='Data Entry Needs'!$I$28 -> 0 | I31: ='Data Entry Needs'!$I$28 -> 0 | J31: ='Data Entry Needs'!$I$28 -> 0 | K31: ='Data Entry Needs'!$I$28 -> 0 | L31: ='Data Entry Needs'!$I$28 -> 0 | M31: ='Data Entry Needs'!$I$28 -> 0 | N31: ='Data Entry Needs'!$I$28 -> 0 | O31: ='Data Entry Needs'!$I$28 -> 0 | P31: ='Data Entry Needs'!$I$28 -> 0 | Q31: ='Data Entry Needs'!$I$28 -> 0 | R31: ='Data Entry Needs'!$I$28 -> 0 | S31: ='Data Entry Needs'!$I$28 -> 0 | T31: ='Data Entry Needs'!$I$28 -> 0 | U31: ='Data Entry Needs'!$I$28 -> 0 | V31: ='Data Entry Needs'!$I$28 -> 0 | W31: ='Data Entry Needs'!$I$28 -> 0
C32: =C31*C23 ->  | D32: =D31*D23 -> 
B33: =title364 -> Total income (USD/year) | C33: =C26+C28+C30+C32 ->  | D33: =D26+D28+D30+D32 -> 
B35: =title365 -> Project lifetime (years) | C35: =+COST_RES1!$N$16 -> 0
A38: =title366 -> Capital and operating cost
B40: =title346 -> Operating Year | C40: =title370 -> Appraisal | D40: 1 | E40: 2 | F40: 3 | G40: 4 | H40: 5 | I40: 6 | J40: 7 | K40: 8 | L40: 9 | M40: 10 | N40: 11 | O40: 12 | P40: 13 | Q40: 14 | R40: 15 | S40: 16 | T40: 17 | U40: 18 | V40: 19 | W40: 20
B41: =title367 -> Direct capital cost (USD)
B42: =title280 -> Equipments | C42: =COST_RES1!$G$66 -> 
B43: =title281 -> Building | C43: =COST_RES1!$G$67 -> 
B44: =title282 -> Installation | C44: =COST_RES1!$G$68 -> 
B45: =title368 -> Total capital cost (USD) | C45: =SUM(C42:C44) ->  | D45: =D42+D43+D44 -> 0 | E45: 0 | F45: 0 | G45: 0 | H45: 0 | I45: 0 | J45: 0 | K45: 0 | L45: 0 | M45: 0 | N45: 0 | O45: 0 | P45: 0 | Q45: 0 | R45: 0 | S45: 0 | T45: 0 | U45: 0 | V45: 0 | W45: 0
B46: =title369 -> Capital cost (USD/kW) | C46: =C45/C8 -> 
B49: =title346 -> Operating Year | C49: =title370 -> Appraisal | D49: 1 | E49: 2 | F49: 3 | G49: 4 | H49: 5 | I49: 6 | J49: 7 | K49: 8 | L49: 9 | M49: 10 | N49: 11 | O49: 12 | P49: 13 | Q49: 14 | R49: 15 | S49: 16 | T49: 17 | U49: 18 | V49: 19 | W49: 20
B50: =title372 -> Annual operating and maintenance cost
B51: =title373 -> Sub-total material cost (USD) | C51: =C52+C60 ->  | D51: =D52+D60 -> 
B52: =title374 -> Biomass cost (USD/year) | C52: =C53*C54 -> 0 | D52: =D53*D54 -> 0 | E52: =E53*E54 -> 0 | F52: 0 | G52: 0 | H52: 0 | I52: 0 | J52: 0 | K52: 0 | L52: 0 | M52: 0 | N52: 0 | O52: 0 | P52: 0 | Q52: 0 | R52: 0 | S52: 0 | T52: 0 | U52: 0 | V52: 0 | W52: 0
B53: =title375 -> Biomass consumption (tne per year) | C53: =+COST_RES1!$G$43 -> 0 | D53: =+C53 -> 0 | E53: =+D53 -> 0 | F53: 0 | G53: 0 | H53: 0 | I53: 0 | J53: 0 | K53: 0 | L53: 0 | M53: 0 | N53: 0 | O53: 0 | P53: 0 | Q53: 0 | R53: 0 | S53: 0 | T53: 0 | U53: 0 | V53: 0 | W53: 0
B54: =title376 -> Biomass total price (USD/t) | C54: =SUM(C55:C56) -> 0 | D54: =SUM(D55:D56) -> 0 | E54: 0 | F54: 0 | G54: 0 | H54: 0 | I54: 0 | J54: 0 | K54: 0 | L54: 0 | M54: 0 | N54: 0 | O54: 0 | P54: 0 | Q54: 0 | R54: 0 | S54: 0 | T54: 0 | U54: 0 | V54: 0 | W54: 0
B55: =title377 -> Biomass price (USD/t) | C55: =+COST_RES1!$F$43 -> 0 | D55: =C55 -> 0 | E55: =D55 -> 0 | F55: 0 | G55: 0 | H55: 0 | I55: 0 | J55: 0 | K55: 0 | L55: 0 | M55: 0 | N55: 0 | O55: 0 | P55: 0 | Q55: 0 | R55: 0 | S55: 0 | T55: 0 | U55: 0 | V55: 0 | W55: 0
B56: =title378 -> Biomass transportation cost (USD/t) | C56: =+C57*C58 -> 0 | D56: =C56 -> 0 | E56: =D56 -> 0 | F56: 0 | G56: 0 | H56: 0 | I56: 0 | J56: 0 | K56: 0 | L56: 0 | M56: 0 | N56: 0 | O56: 0 | P56: 0 | Q56: 0 | R56: 0 | S56: 0 | T56: 0 | U56: 0 | V56: 0 | W56: 0
B57: =title379 -> Biomass from farm to plant (USD/t/km) | C57: =+COST_RES1!$F$56 -> 0
B58: =title380 -> Transportation distance (km) | C58: =+COST_RES1!$G$56 -> 0
B60: =title381 -> Water cost (USD/year) | C60: =C61*C62 ->  | D60: =D61*D62 -> 
B61: =title382 -> Water consumption (m3 per year) | C61: =+COST_RES1!$G$44 ->  | D61: =+C61 ->  | E61: =+D61 -> 
B62: =title383 -> Water + chemical additives cost (USD/m3) | C62: =+COST_RES1!$F$44 -> 0.4385964912 | D62: =C62 -> 0.4385964912 | E62: =D62 -> 0.4385964912 | F62: 0.4385964912 | G62: 0.4385964912 | H62: 0.4385964912 | I62: 0.4385964912 | J62: 0.4385964912 | K62: 0.4385964912 | L62: 0.4385964912 | M62: 0.4385964912 | N62: 0.4385964912 | O62: 0.4385964912 | P62: 0.4385964912 | Q62: 0.4385964912 | R62: 0.4385964912 | S62: 0.4385964912 | T62: 0.4385964912 | U62: 0.4385964912 | V62: 0.4385964912 | W62: 0.4385964912
B64: =title384 -> Sub-total operating cost (USD) | C64: =C65+C66+C67 -> 
B65: =title319&" (USD)" -> Labour cost (USD) | C65: =COST_RES1!H52 ->  | D65: =C65 ->  | E65: =D65 -> 
B66: =title285 -> Plant overhead | C66: =COST_RES1!H76 ->  | D66: =C66 ->  | E66: =D66 -> 
B67: =title286 -> General and administrative cost | C67: =COST_RES1!H77 ->  | D67: =C67 ->  | E67: =D67 -> 
B68: =title385 -> Sub-total maintenance cost (USD) | C68: =COST_RES1!H71 ->  | D68: =C68 ->  | E68: =D68 -> 
B70: =title386 -> Sub-total of annual fixed cost | C70: =COST_RES1!H70 ->  | D70: =C70 ->  | E70: =D70 -> 
B72: =title387 -> Sub-total of storage capacity | C72: =+COST_RES1!H62 -> 0 | D72: =C72 -> 0 | E72: =D72 -> 0 | F72: 0 | G72: 0 | H72: 0 | I72: 0 | J72: 0 | K72: 0 | L72: 0 | M72: 0 | N72: 0 | O72: 0 | P72: 0 | Q72: 0 | R72: 0 | S72: 0 | T72: 0 | U72: 0 | V72: 0 | W72: 0
B74: =title388 -> Total operation and maintenance cost (USD) | C74: =C51+C64+C68+C70+C72 -> 
A76: =title102 -> Financial parameters
B77: =title346 -> Operating Year | C77: =title370 -> Appraisal | D77: 1 | E77: 2 | F77: 3 | G77: 4 | H77: 5 | I77: 6 | J77: 7 | K77: 8 | L77: 9 | M77: 10 | N77: 11 | O77: 12 | P77: 13 | Q77: 14 | R77: 15 | S77: 16 | T77: 17 | U77: 18 | V77: 19 | W77: 20
B78: =title103&" (%)" -> Discount rate (%) | C78: =+COST_RES1!$N$13 -> 0
B79: =title104&" (%)" -> Loan ratio (%) | C79: =+COST_RES1!$N$11 -> 0
B81: =title389 -> Loans | D81: 1 | E81: 2 | F81: 3 | G81: 4 | H81: 5 | I81: 6 | J81: 7 | K81: 8 | L81: 9 | M81: 10 | N81: 11 | O81: 12 | P81: 13 | Q81: 14 | R81: 15 | S81: 16 | T81: 17 | U81: 18 | V81: 19 | W81: 20
B82: =title307&" (USD)" -> Loan amount (USD) | C82: =C79*C45 -> 
B83: =title105&" (%)" -> Loan interest rate (%) | C83: =+COST_RES1!$N$10 -> 0
B84: =title106&" ("&title107&")" -> Loan term (years) | C84: =+COST_RES1!$N$12 -> 0
B85: =title390 -> Loan payment (USD/month) | C85: =(PMT(C83/12,(12*C84),C82)) -> 
B86: =title391 -> Loan payment (USD/year) | D86: =IF(D77<=$C$84,$C$85*12,0) -> 0 | E86: =IF(E77<=$C$84,$C$85*12,0) -> 0 | F86: 0 | G86: 0 | H86: 0 | I86: 0 | J86: 0 | K86: 0 | L86: 0 | M86: 0 | N86: 0 | O86: 0 | P86: 0 | Q86: 0 | R86: 0 | S86: 0 | T86: 0 | U86: 0 | V86: 0 | W86: 0
B87: =title392 -> Total loan payment (USD) | C87: =SUM(D86:W86) -> 0
B88: =title393 -> Loan interest payment (USD) | C88: =C87+C82 ->  | D88: =title396 -> Average loan interest payment for project lifetime | G88: =C88/C35 ->  | H88: =title397 -> USD per year
A90: =title295 -> Depreciation
B91: =title346 -> Operating Year | C91: =title370 -> Appraisal | D91: 1 | E91: 2 | F91: 3 | G91: 4 | H91: 5 | I91: 6 | J91: 7 | K91: 8 | L91: 9 | M91: 10 | N91: 11 | O91: 12 | P91: 13 | Q91: 14 | R91: 15 | S91: 16 | T91: 17 | U91: 18 | V91: 19 | W91: 20
B92: =title394 -> Depreciation method | C92: =title371 -> Straight-line
B93: =title395 -> Total depreciation (USD) | D93: =COST_RES1!H70 ->  | E93: =D93 ->  | F93: =E93 -> 
A96: =title398 -> Base case project
A97: =title399 -> Summary of this project - before tax
B98: =title346 -> Operating Year | C98: =title370 -> Appraisal | D98: 1 | E98: 2 | F98: 3 | G98: 4 | H98: 5 | I98: 6 | J98: 7 | K98: 8 | L98: 9 | M98: 10 | N98: 11 | O98: 12 | P98: 13 | Q98: 14 | R98: 15 | S98: 16 | T98: 17 | U98: 18 | V98: 19 | W98: 20
B99: =title400 -> Total revenue (USD) | D99: =D33 -> 
B100: =title368 -> Total capital cost (USD) | C100: =-(C45-C82) -> 
B101: =title401 -> Total operating and maintenance cost (USD) | D101: =-D74+D70 -> 
B102: =title402 -> Loan payment (USD) | D102: =D86 -> 0 | E102: 0 | F102: 0 | G102: 0 | H102: 0 | I102: 0 | J102: 0 | K102: 0 | L102: 0 | M102: 0 | N102: 0 | O102: 0 | P102: 0 | Q102: 0 | R102: 0 | S102: 0 | T102: 0 | U102: 0 | V102: 0 | W102: 0
B103: =title403 -> Cash flow - before tax (USD) | C103: =SUM(C99:C102) ->  | D103: =SUM(D99:D102) -> 
A105: =title404 -> Financial analysis results
B107: =title405 -> Net Present Value (NPV) (USD) - before tax | C107: =NPV(C78,D103:W103)+C103 -> 
B108: =title406 -> Internal Rate of Return (IRR) (%) - before tax | C108: =IF(tir_cell=title593,IF(C107<0,title407,IRR(C103:W103,0.000001)),IF(C107<0,title407,MIRR(C103:W103,fin_rate,rein_rate))) -> 

Sheet COST(ADJUSTED)_RES1 (hidden)
C3: =title410 -> DETAILED INVESTMENT OF BIOMASS COMBUSTION FOR RURAL ELECTRIFICATION
F5: =title427 -> Capacities (kW of power generation)
F6: =COST_RES1!G26*1000 ->  | G6: =COST_RES1!I26*1000 ->  | H6: =COST_RES1!K26*1000 -> 
D7: =title423 -> Operating period | E7: =title426 -> h/year | F7: =+COST_RES1!$H$38 -> 0 | G7: =+COST_RES1!$J$38 -> 0 | H7: =+COST_RES1!$L$38 -> 0
D8: =title424 -> Steam | E8: kg/h | F8: =COST_RES1!G33 ->  | G8: =COST_RES1!I33 ->  | H8: =COST_RES1!K33 -> 
C9: =title280 -> Equipments
C10: =title411 -> Boiler | D10: =title425 -> USDh/kg steam | E10: 127.8400072 | F10: =+$E$10*F8 ->  | G10: =+$F10*(G$8/$F$8)^0.6 -> 
C11: =title412 -> Condenser, cyclone, water pump, cooling tower | D11: =title425 -> USDh/kg steam | E11: 127.0317928 | F11: =+$E$11*F8 ->  | G11: =+$F11*(G$8/$F$8)^0.6 ->  | H11: =+$F11*(H$8/$F$8)^0.6 -> 
C12: =title413 -> Biomass cutter | D12: USD/kW | E12: 9.135123061 | F12: =$E12*F$6 ->  | G12: =+$F12*(G$6/$F$6)^0.6 ->  | H12: =+$F12*(H$6/$F$6)^0.6 -> 
C13: =title414 -> Biomass dryer | D13: USD/kW | E13: 18.27024612 | G13: =+$F13*(G$6/$F$6)^0.6 -> 
C14: =title415 -> Moisture meter | D14: USD/kW | E14: 6.09008204
C15: =title416 -> Chain pulley block | D15: USD/kW | E15: 4.50666071
C16: =title417 -> Water cooling system | D16: USD/kW | E16: 7.308098449
C17: =title418 -> Other accessories | D17: USD/kW | E17: 70.64495167
C18: Back pressure steam turbine | D18: USD/kW | E18: 561.1111111 | G18: =+$E18*$F$6*(G$6/$F$6)^0.6 ->  | H18: =+$E18*$F$6*(H$6/$F$6)^0.6 -> 
C19: =title419 -> Gas Turbine + HRSG system | D19: USD/kW | E19: =+AVERAGE(1510,1730,1805) -> 1681.666667 | H19: =+$E$19*H6 -> 
C20: =title194 -> Condensing Turbine | D20: USD/kW | E20: 337.5536481 | F20: =+$E$20*F6 -> 
C21: =title420 -> Generator | D21: USD/kW | E21: 400 | F21: =$E21*F$6 ->  | G21: =+$F21*(G$6/$F$6)^0.6 ->  | H21: =+$F21*(H$6/$F$6)^0.6 -> 
E22: =title269 -> Subtotal | F22: =SUM(F10:F21) ->  | G22: =SUM(G10:G21) ->  | H22: =SUM(H10:H21) -> 
C23: =title281 -> Building
C24: =title421 -> Civil work (building, generator platform etc.) | D24: USD | F24: =19.656* F6+ 1713.4 ->  | G24: =19.656* G6+ 1713.4 ->  | H24: =19.656* H6+ 1713.4 -> 
E25: =title269 -> Subtotal | F25: =SUM(F24) ->  | G25: =SUM(G24) ->  | H25: =SUM(H24) -> 
C26: =title282 -> Installation
C27: =title422 -> Connection and earthing | D27: USD/kW | E27: 27.14285714 | F27: =($E$27*F6) ->  | G27: =($E$27*G6) ->  | H27: =($E$27*H6) -> 
E28: =title269 -> Subtotal | F28: =SUM(F27) ->  | G28: =SUM(G27) ->  | H28: =SUM(H27) -> 

Sheet FA_Semi_RES1 (hidden)
B1: =title408 -> FINANCIAL EVALUATION OF COGENERATION SEMI-ADVANCED TECHNOLOGY
A4: =title345 -> Revenues
B6: =title346 -> Operating Year | C6: 0 | D6: 1 | E6: 2 | F6: 3 | G6: 4 | H6: 5 | I6: 6 | J6: 7 | K6: 8 | L6: 9 | M6: 10 | N6: 11 | O6: 12 | P6: 13 | Q6: 14 | R6: 15 | S6: 16 | T6: 17 | U6: 18 | V6: 19 | W6: 20
B8: =title347 -> Power generation capacity (kW) | C8: =COST_RES1!$I$26*1000 ->  | D8: =C8 ->  | E8: =D8 -> 
B9: =title348 -> Power loss in distribution network (%) | C9: =+COST_RES1!$I$14 -> 0 | D9: =+C9 -> 0 | E9: =+D9 -> 0 | F9: 0 | G9: 0 | H9: 0 | I9: 0 | J9: 0 | K9: 0 | L9: 0 | M9: 0 | N9: 0 | O9: 0 | P9: 0 | Q9: 0 | R9: 0 | S9: 0 | T9: 0 | U9: 0 | V9: 0 | W9: 0
B10: =title266 -> Operating hours per year | C10: =+COST_RES1!$H$38 -> 0 | D10: =C10 -> 0 | E10: =D10 -> 0 | F10: 0 | G10: 0 | H10: 0 | I10: 0 | J10: 0 | K10: 0 | L10: 0 | M10: 0 | N10: 0 | O10: 0 | P10: 0 | Q10: 0 | R10: 0 | S10: 0 | T10: 0 | U10: 0 | V10: 0 | W10: 0
B12: =title349 -> Electricity generation (kWh per year) | C12: =C8*C10*(1-C9) ->  | D12: =D8*D10*(1-D9) -> 
B13: =title350 -> Electricity - self use cogeneration (kWh per year) | C13: =C12*COST_RES1!$I$14 ->  | D13: =D12*10% -> 
B14: =title351 -> Power loss in distribution network (kWh per year) | C14: =C12*COST_RES1!$I$13 ->  | D14: =C14 -> 
B15: =title352 -> Electricity consumed by main Industry (kWh per year) | C15: ='Energy Demand'!$F$21*1000 -> 0 | D15: =C15 -> 0 | E15: =D15 -> 0 | F15: 0 | G15: 0 | H15: 0 | I15: 0 | J15: 0 | K15: 0 | L15: 0 | M15: 0 | N15: 0 | O15: 0 | P15: 0 | Q15: 0 | R15: 0 | S15: 0 | T15: 0 | U15: 0 | V15: 0 | W15: 0
B16: =title353 -> Total power sold to the customers (kWh per year) | C16: =IF(NOT('Summary of results-by feedstock'!$AE$199),IF(C12-C13-C14-C15>0,C12-C13-C14-C15,0),C12) ->  | D16: =C16 -> 
B18: =title354 -> Heat generation (GJ per year) | C18: =COST_RES1!I28/1000 ->  | D18: =C18 ->  | E18: =D18 -> 
B19: =title355 -> Heat loss in distribution network (GJ per year) | C19: =C18*COST_RES1!$I$12 ->  | D19: =C19 ->  | E19: =D19 -> 
B20: =title356 -> Heat available for main Industry (GJ per year) | C20: =C18-C19 ->  | D20: =C20 ->  | E20: =D20 -> 
B21: =title357 -> Heat demad main Industry (GJ per year) | C21: ='Energy Demand'!$F$22 -> 0 | D21: =C21 -> 0 | E21: =D21 -> 0 | F21: 0 | G21: 0 | H21: 0 | I21: 0 | J21: 0 | K21: 0 | L21: 0 | M21: 0 | N21: 0 | O21: 0 | P21: 0 | Q21: 0 | R21: 0 | S21: 0 | T21: 0 | U21: 0 | V21: 0 | W21: 0
B22: =title358 -> Heat supplied to main Industry (GJ per year) | C22: =IF(NOT('Summary of results-by feedstock'!$AE$197),IF(C21>C20,C20,C21),0) ->  | D22: =IF(NOT('Summary of results-by feedstock'!$AE$197),IF(D21>D20,D20,D21),0) ->  | E22: =IF(NOT('Summary of results-by feedstock'!$AE$197),IF(E21>E20,E20,E21),0) ->  | F22: =IF(NOT('Summary of results-by feedstock'!$AE$197),IF(F21>F20,F20,F21),0) ->  | G22: =IF(NOT('Summary of results-by feedstock'!$AE$197),IF(G21>G20,G20,G21),0) ->  | H22: =IF(NOT('Summary of results-by feedstock'!$AE$197),IF(H21>H20,H20,H21),0) ->  | I22: =IF(NOT('Summary of results-by feedstock'!$AE$197),IF(I21>I20,I20,I21),0) ->  | J22: =IF(NOT('Summary of results-by feedstock'!$AE$197),IF(J21>J20,J20,J21),0) ->  | K22: =IF(NOT('Summary of results-by feedstock'!$AE$197),IF(K21>K20,K20,K21),0) ->  | L22: =IF(NOT('Summary of results-by feedstock'!$AE$197),IF(L21>L20,L20,L21),0) ->  | M22: =IF(NOT('Summary of results-by feedstock'!$AE$197),IF(M21>M20,M20,M21),0) ->  | N22: =IF(NOT('Summary of results-by feedstock'!$AE$197),IF(N21>N20,N20,N21),0) ->  | O22: =IF(NOT('Summary of results-by feedstock'!$AE$197),IF(O21>O20,O20,O21),0) ->  | P22: =IF(NOT('Summary of results-by feedstock'!$AE$197),IF(P21>P20,P20,P21),0) ->  | Q22: =IF(NOT('Summary of results-by feedstock'!$AE$197),IF(Q21>Q20,Q20,Q21),0) ->  | R22: =IF(NOT('Summary of results-by feedstock'!$AE$197),IF(R21>R20,R20,R21),0) ->  | S22: =IF(NOT('Summary of results-by feedstock'!$AE$197),IF(S21>S20,S20,S21),0) ->  | T22: =IF(NOT('Summary of results-by feedstock'!$AE$197),IF(T21>T20,T20,T21),0) ->  | U22: =IF(NOT('Summary of results-by feedstock'!$AE$197),IF(U21>U20,U20,U21),0) ->  | V22: =IF(NOT('Summary of results-by feedstock'!$AE$197),IF(V21>V20,V20,V21),0) ->  | W22: =IF(NOT('Summary of results-by feedstock'!$AE$197),IF(W21>W20,W20,W21),0) -> 
B23: =title359 -> Heat sold to the customers (GJ per year) | C23: =IF('Summary of results-by feedstock'!$AE$197,C20,0) ->  | D23: =IF('Summary of results-by feedstock'!$AE$197,D20,0) ->  | E23: =IF('Summary of results-by feedstock'!$AE$197,E20,0) ->  | F23: =IF('Summary of results-by feedstock'!$AE$197,F20,0) ->  | G23: =IF('Summary of results-by feedstock'!$AE$197,G20,0) ->  | H23: =IF('Summary of results-by feedstock'!$AE$197,H20,0) ->  | I23: =IF('Summary of results-by feedstock'!$AE$197,I20,0) ->  | J23: =IF('Summary of results-by feedstock'!$AE$197,J20,0) ->  | K23: =IF('Summary of results-by feedstock'!$AE$197,K20,0) ->  | L23: =IF('Summary of results-by feedstock'!$AE$197,L20,0) ->  | M23: =IF('Summary of results-by feedstock'!$AE$197,M20,0) ->  | N23: =IF('Summary of results-by feedstock'!$AE$197,N20,0) ->  | O23: =IF('Summary of results-by feedstock'!$AE$197,O20,0) ->  | P23: =IF('Summary of results-by feedstock'!$AE$197,P20,0) ->  | Q23: =IF('Summary of results-by feedstock'!$AE$197,Q20,0) ->  | R23: =IF('Summary of results-by feedstock'!$AE$197,R20,0) ->  | S23: =IF('Summary of results-by feedstock'!$AE$197,S20,0) ->  | T23: =IF('Summary of results-by feedstock'!$AE$197,T20,0) ->  | U23: =IF('Summary of results-by feedstock'!$AE$197,U20,0) ->  | V23: =IF('Summary of results-by feedstock'!$AE$197,V20,0) ->  | W23: =IF('Summary of results-by feedstock'!$AE$197,W20,0) -> 
B25: =title360 -> Selling electricity Price (USD/kWh) | C25: ='Data Entry Needs'!$D$28 -> 0 | D25: =C25 -> 0 | E25: =D25 -> 0 | F25: 0 | G25: 0 | H25: 0 | I25: 0 | J25: 0 | K25: 0 | L25: 0 | M25: 0 | N25: 0 | O25: 0 | P25: 0 | Q25: 0 | R25: 0 | S25: 0 | T25: 0 | U25: 0 | V25: 0 | W25: 0
C26: =C25*C16 -> 
B27: =title361 -> Electricity cost avoided main industry (USD/kWh) | C27: ='Data Entry Needs'!$D$26 -> 0 | D27: =C27 -> 0 | E27: =D27 -> 0 | F27: 0 | G27: 0 | H27: 0 | I27: 0 | J27: 0 | K27: 0 | L27: 0 | M27: 0 | N27: 0 | O27: 0 | P27: 0 | Q27: 0 | R27: 0 | S27: 0 | T27: 0 | U27: 0 | V27: 0 | W27: 0
C28: =C27*(C12-C16) ->  | D28: =D27*(D12-D16) -> 
B29: =title362 -> Heat cost avoided main Industry (USD/Gj) | C29: =COST_RES1!$N$14 -> 0 | D29: =C29 -> 0 | E29: =D29 -> 0 | F29: 0 | G29: 0 | H29: 0 | I29: 0 | J29: 0 | K29: 0 | L29: 0 | M29: 0 | N29: 0 | O29: 0 | P29: 0 | Q29: 0 | R29: 0 | S29: 0 | T29: 0 | U29: 0 | V29: 0 | W29: 0
C30: =C22*C29 ->  | D30: =D22*D29 -> 
B31: =title363 -> Heat sales to nearby consumers (USD/Gj) | C31: ='Data Entry Needs'!$I$28 -> 0 | D31: ='Data Entry Needs'!$I$28 -> 0 | E31: ='Data Entry Needs'!$I$28 -> 0 | F31: ='Data Entry Needs'!$I$28 -> 0 | G31: ='Data Entry Needs'!$I$28 -> 0 | H31: ='Data Entry Needs'!$I$28 -> 0 | I31: ='Data Entry Needs'!$I$28 -> 0 | J31: ='Data Entry Needs'!$I$28 -> 0 | K31: ='Data Entry Needs'!$I$28 -> 0 | L31: ='Data Entry Needs'!$I$28 -> 0 | M31: ='Data Entry Needs'!$I$28 -> 0 | N31: ='Data Entry Needs'!$I$28 -> 0 | O31: ='Data Entry Needs'!$I$28 -> 0 | P31: ='Data Entry Needs'!$I$28 -> 0 | Q31: ='Data Entry Needs'!$I$28 -> 0 | R31: ='Data Entry Needs'!$I$28 -> 0 | S31: ='Data Entry Needs'!$I$28 -> 0 | T31: ='Data Entry Needs'!$I$28 -> 0 | U31: ='Data Entry Needs'!$I$28 -> 0 | V31: ='Data Entry Needs'!$I$28 -> 0 | W31: ='Data Entry Needs'!$I$28 -> 0
C32: =C31*C23 ->  | D32: =D31*D23 -> 
B33: =title364 -> Total income (USD/year) | C33: =C26+C28+C30+C32 ->  | D33: =D26+D28+D30+D32 -> 
B35: =title365 -> Project lifetime (years) | C35: =+COST_RES1!$N$16 -> 0
A38: =title366 -> Capital and operating cost
B40: =title346 -> Operating Year | C40: =title370 -> Appraisal | D40: 1 | E40: 2 | F40: 3 | G40: 4 | H40: 5 | I40: 6 | J40: 7 | K40: 8 | L40: 9 | M40: 10 | N40: 11 | O40: 12 | P40: 13 | Q40: 14 | R40: 15 | S40: 16 | T40: 17 | U40: 18 | V40: 19 | W40: 20
B41: =title367 -> Direct capital cost (USD)
B42: =title280 -> Equipments | C42: =COST_RES1!$I$66 -> 
B43: =title281 -> Building | C43: =COST_RES1!$I$67 -> 
B44: =title282 -> Installation | C44: =COST_RES1!$I$68 -> 
B45: =title368 -> Total capital cost (USD) | C45: =SUM(C42:C44) ->  | D45: =D42+D43+D44 -> 0 | E45: 0 | F45: 0 | G45: 0 | H45: 0 | I45: 0 | J45: 0 | K45: 0 | L45: 0 | M45: 0 | N45: 0 | O45: 0 | P45: 0 | Q45: 0 | R45: 0 | S45: 0 | T45: 0 | U45: 0 | V45: 0 | W45: 0
B46: =title369 -> Capital cost (USD/kW) | C46: =C45/C8 -> 
B49: =title346 -> Operating Year | C49: =title370 -> Appraisal | D49: 1 | E49: 2 | F49: 3 | G49: 4 | H49: 5 | I49: 6 | J49: 7 | K49: 8 | L49: 9 | M49: 10 | N49: 11 | O49: 12 | P49: 13 | Q49: 14 | R49: 15 | S49: 16 | T49: 17 | U49: 18 | V49: 19 | W49: 20
B50: =title372 -> Annual operating and maintenance cost
B51: =title373 -> Sub-total material cost (USD) | C51: =C52+C60 ->  | D51: =D52+D60 -> 
B52: =title374 -> Biomass cost (USD/year) | C52: =C53*C54 -> 0 | D52: =D53*D54 -> 0 | E52: =E53*E54 -> 0 | F52: 0 | G52: 0 | H52: 0 | I52: 0 | J52: 0 | K52: 0 | L52: 0 | M52: 0 | N52: 0 | O52: 0 | P52: 0 | Q52: 0 | R52: 0 | S52: 0 | T52: 0 | U52: 0 | V52: 0 | W52: 0
B53: =title375 -> Biomass consumption (tne per year) | C53: =+COST_RES1!$I$43 -> 0 | D53: =+C53 -> 0 | E53: =+D53 -> 0 | F53: 0 | G53: 0 | H53: 0 | I53: 0 | J53: 0 | K53: 0 | L53: 0 | M53: 0 | N53: 0 | O53: 0 | P53: 0 | Q53: 0 | R53: 0 | S53: 0 | T53: 0 | U53: 0 | V53: 0 | W53: 0
B54: =title376 -> Biomass total price (USD/t) | C54: =SUM(C55:C56) -> 0 | D54: =SUM(D55:D56) -> 0 | E54: 0 | F54: 0 | G54: 0 | H54: 0 | I54: 0 | J54: 0 | K54: 0 | L54: 0 | M54: 0 | N54: 0 | O54: 0 | P54: 0 | Q54: 0 | R54: 0 | S54: 0 | T54: 0 | U54: 0 | V54: 0 | W54: 0
B55: =title377 -> Biomass price (USD/t) | C55: =+COST_RES1!$F$43 -> 0 | D55: =C55 -> 0 | E55: =D55 -> 0 | F55: 0 | G55: 0 | H55: 0 | I55: 0 | J55: 0 | K55: 0 | L55: 0 | M55: 0 | N55: 0 | O55: 0 | P55: 0 | Q55: 0 | R55: 0 | S55: 0 | T55: 0 | U55: 0 | V55: 0 | W55: 0
B56: =title378 -> Biomass transportation cost (USD/t) | C56: =+C57*C58 -> 0 | D56: =C56 -> 0 | E56: 0 | F56: 0 | G56: 0 | H56: 0 | I56: 0 | J56: 0 | K56: 0 | L56: 0 | M56: 0 | N56: 0 | O56: 0 | P56: 0 | Q56: 0 | R56: 0 | S56: 0 | T56: 0 | U56: 0 | V56: 0 | W56: 0
B57: =title379 -> Biomass from farm to plant (USD/t/km) | C57: =+COST_RES1!$F$56 -> 0
B58: =title380 -> Transportation distance (km) | C58: =+COST_RES1!$I$56 -> 0
B60: =title381 -> Water cost (USD/year) | C60: =C61*C62 ->  | D60: =D61*D62 -> 
B61: =title382 -> Water consumption (m3 per year) | C61: =+COST_RES1!$I$44 ->  | D61: =+C61 ->  | E61: =+D61 -> 
B62: =title383 -> Water + chemical additives cost (USD/m3) | C62: =+COST_RES1!$F$44 -> 0.4385964912 | D62: =C62 -> 0.4385964912 | E62: =D62 -> 0.4385964912 | F62: 0.4385964912 | G62: 0.4385964912 | H62: 0.4385964912 | I62: 0.4385964912 | J62: 0.4385964912 | K62: 0.4385964912 | L62: 0.4385964912 | M62: 0.4385964912 | N62: 0.4385964912 | O62: 0.4385964912 | P62: 0.4385964912 | Q62: 0.4385964912 | R62: 0.4385964912 | S62: 0.4385964912 | T62: 0.4385964912 | U62: 0.4385964912 | V62: 0.4385964912 | W62: 0.4385964912
B64: =title384 -> Sub-total operating cost (USD) | C64: =C65+C66+C67 -> 
B65: =title319&" (USD)" -> Labour cost (USD) | C65: =COST_RES1!J52 ->  | D65: =C65 ->  | E65: =D65 -> 
B66: =title285 -> Plant overhead | C66: =COST_RES1!J76 ->  | D66: =C66 -> 
B67: =title286 -> General and administrative cost | C67: =COST_RES1!J77 ->  | D67: =C67 -> 
B68: =title385 -> Sub-total maintenance cost (USD) | C68: =COST_RES1!J71 ->  | D68: =C68 -> 
B70: =title386 -> Sub-total of annual fixed cost | C70: =COST_RES1!J70 ->  | D70: =C70 ->  | E70: =D70 -> 
B72: =title387 -> Sub-total of storage capacity | C72: =+COST_RES1!J62 -> 0 | D72: =C72 -> 0 | E72: =D72 -> 0 | F72: 0 | G72: 0 | H72: 0 | I72: 0 | J72: 0 | K72: 0 | L72: 0 | M72: 0 | N72: 0 | O72: 0 | P72: 0 | Q72: 0 | R72: 0 | S72: 0 | T72: 0 | U72: 0 | V72: 0 | W72: 0
B74: =title388 -> Total operation and maintenance cost (USD) | C74: =C51+C64+C68+C70+C72 -> 
A76: =title102 -> Financial parameters
B77: =title346 -> Operating Year | C77: =title370 -> Appraisal | D77: 1 | E77: 2 | F77: 3 | G77: 4 | H77: 5 | I77: 6 | J77: 7 | K77: 8 | L77: 9 | M77: 10 | N77: 11 | O77: 12 | P77: 13 | Q77: 14 | R77: 15 | S77: 16 | T77: 17 | U77: 18 | V77: 19 | W77: 20
B78: =title103&" (%)" -> Discount rate (%) | C78: =+COST_RES1!$N$13 -> 0
B79: =title104&" (%)" -> Loan ratio (%) | C79: =+COST_RES1!$N$11 -> 0
B81: =title389 -> Loans | D81: 1 | E81: 2 | F81: 3 | G81: 4 | H81: 5 | I81: 6 | J81: 7 | K81: 8 | L81: 9 | M81: 10 | N81: 11 | O81: 12 | P81: 13 | Q81: 14 | R81: 15 | S81: 16 | T81: 17 | U81: 18 | V81: 19 | W81: 20
B82: =title307&" (USD)" -> Loan amount (USD) | C82: =C79*C45 -> 
B83: =title105&" (%)" -> Loan interest rate (%) | C83: =+COST_RES1!$N$10 -> 0
B84: =title106&" ("&title107&")" -> Loan term (years) | C84: =+COST_RES1!$N$12 -> 0
B85: =title390 -> Loan payment (USD/month) | C85: =(PMT(C83/12,(12*C84),C82)) -> 
B86: =title391 -> Loan payment (USD/year) | D86: =IF(D77<=$C$84,$C$85*12,0) -> 0 | E86: =IF(E77<=$C$84,$C$85*12,0) -> 0 | F86: 0 | G86: 0 | H86: 0 | I86: 0 | J86: 0 | K86: 0 | L86: 0 | M86: 0 | N86: 0 | O86: 0 | P86: 0 | Q86: 0 | R86: 0 | S86: 0 | T86: 0 | U86: 0 | V86: 0 | W86: 0
B87: =title392 -> Total loan payment (USD) | C87: =SUM(D86:W86) -> 0
B88: =title393 -> Loan interest payment (USD) | C88: =C87+C82 ->  | D88: =title396 -> Average loan interest payment for project lifetime | G88: =C88/C35 ->  | H88: =title397 -> USD per year
A90: =title295 -> Depreciation
B91: =title346 -> Operating Year | C91: =title370 -> Appraisal | D91: 1 | E91: 2 | F91: 3 | G91: 4 | H91: 5 | I91: 6 | J91: 7 | K91: 8 | L91: 9 | M91: 10 | N91: 11 | O91: 12 | P91: 13 | Q91: 14 | R91: 15 | S91: 16 | T91: 17 | U91: 18 | V91: 19 | W91: 20
B92: =title394 -> Depreciation method | C92: =title371 -> Straight-line
B93: =title395 -> Total depreciation (USD) | D93: =COST_RES1!J70 ->  | E93: =D93 ->  | F93: =E93 -> 
A96: =title398 -> Base case project
A97: =title399 -> Summary of this project - before tax
B98: =title346 -> Operating Year | C98: =title370 -> Appraisal | D98: 1 | E98: 2 | F98: 3 | G98: 4 | H98: 5 | I98: 6 | J98: 7 | K98: 8 | L98: 9 | M98: 10 | N98: 11 | O98: 12 | P98: 13 | Q98: 14 | R98: 15 | S98: 16 | T98: 17 | U98: 18 | V98: 19 | W98: 20
B99: =title400 -> Total revenue (USD) | D99: =D33 -> 
B100: =title368 -> Total capital cost (USD) | C100: =-(C45-C82) -> 
B101: =title401 -> Total operating and maintenance cost (USD) | D101: =-D74+D70 -> 
B102: =title402 -> Loan payment (USD) | D102: =D86 -> 0 | E102: =E86 -> 0 | F102: 0 | G102: 0 | H102: 0 | I102: 0 | J102: 0 | K102: 0 | L102: 0 | M102: 0 | N102: 0 | O102: 0 | P102: 0 | Q102: 0 | R102: 0 | S102: 0 | T102: 0 | U102: 0 | V102: 0 | W102: 0
B103: =title403 -> Cash flow - before tax (USD) | C103: =SUM(C99:C102) ->  | D103: =SUM(D99:D102) -> 
A105: =title404 -> Financial analysis results
B107: =title405 -> Net Present Value (NPV) (USD) - before tax | C107: =NPV(C78,D103:W103)+C103 -> 
B108: =title406 -> Internal Rate of Return (IRR) (%) - before tax | C108: =IF(tir_cell=title593,IF(C107<0,title407,IRR(C103:W103,0.000001)),IF(C107<0,title407,MIRR(C103:W103,fin_rate,rein_rate))) -> 

Sheet FA_Adv_RES1 (hidden)
B1: =title409 -> FINANCIAL EVALUATION OF COGENERATION ADVANCED TECHNOLOGY
A4: =title345 -> Revenues
B6: =title346 -> Operating Year | C6: 0 | D6: 1 | E6: 2 | F6: 3 | G6: 4 | H6: 5 | I6: 6 | J6: 7 | K6: 8 | L6: 9 | M6: 10 | N6: 11 | O6: 12 | P6: 13 | Q6: 14 | R6: 15 | S6: 16 | T6: 17 | U6: 18 | V6: 19 | W6: 20
B8: =title347 -> Power generation capacity (kW) | C8: =COST_RES1!$K$26*1000 ->  | D8: =C8 ->  | E8: =D8 -> 
B9: =title348 -> Power loss in distribution network (%) | C9: =+COST_RES1!$I$14 -> 0 | D9: =+C9 -> 0 | E9: =+D9 -> 0 | F9: 0 | G9: 0 | H9: 0 | I9: 0 | J9: 0 | K9: 0 | L9: 0 | M9: 0 | N9: 0 | O9: 0 | P9: 0 | Q9: 0 | R9: 0 | S9: 0 | T9: 0 | U9: 0 | V9: 0 | W9: 0
B10: =title266 -> Operating hours per year | C10: =+COST_RES1!$H$38 -> 0 | D10: =C10 -> 0 | E10: =D10 -> 0 | F10: 0 | G10: 0 | H10: 0 | I10: 0 | J10: 0 | K10: 0 | L10: 0 | M10: 0 | N10: 0 | O10: 0 | P10: 0 | Q10: 0 | R10: 0 | S10: 0 | T10: 0 | U10: 0 | V10: 0 | W10: 0
B12: =title349 -> Electricity generation (kWh per year) | C12: =C8*C10*(1-C9) ->  | D12: =D8*D10*(1-D9) -> 
B13: =title350 -> Electricity - self use cogeneration (kWh per year) | C13: =C12*COST_RES1!$I$14 ->  | D13: =D12*10% -> 
B14: =title351 -> Power loss in distribution network (kWh per year) | C14: =C12*COST_RES1!$I$13 ->  | D14: =C14 -> 
B15: =title352 -> Electricity consumed by main Industry (kWh per year) | C15: ='Energy Demand'!$F$21*1000 -> 0 | D15: =C15 -> 0 | E15: =D15 -> 0 | F15: 0 | G15: 0 | H15: 0 | I15: 0 | J15: 0 | K15: 0 | L15: 0 | M15: 0 | N15: 0 | O15: 0 | P15: 0 | Q15: 0 | R15: 0 | S15: 0 | T15: 0 | U15: 0 | V15: 0 | W15: 0
B16: =title353 -> Total power sold to the customers (kWh per year) | C16: =IF(NOT('Summary of results-by feedstock'!$AE$199),IF(C12-C13-C14-C15>0,C12-C13-C14-C15,0),C12) ->  | D16: =C16 -> 
B18: =title354 -> Heat generation (GJ per year) | C18: =COST_RES1!K28/1000 ->  | D18: =C18 ->  | E18: =D18 -> 
B19: =title355 -> Heat loss in distribution network (GJ per year) | C19: =C18*COST_RES1!$I$12 ->  | D19: =C19 ->  | E19: =D19 -> 
B20: =title356 -> Heat available for main Industry (GJ per year) | C20: =C18-C19 ->  | D20: =C20 ->  | E20: =D20 -> 
B21: =title357 -> Heat demad main Industry (GJ per year) | C21: ='Energy Demand'!$F$22 -> 0 | D21: =C21 -> 0 | E21: =D21 -> 0 | F21: 0 | G21: 0 | H21: 0 | I21: 0 | J21: 0 | K21: 0 | L21: 0 | M21: 0 | N21: 0 | O21: 0 | P21: 0 | Q21: 0 | R21: 0 | S21: 0 | T21: 0 | U21: 0 | V21: 0 | W21: 0
B22: =title358 -> Heat supplied to main Industry (GJ per year) | C22: =IF(NOT('Summary of results-by feedstock'!$AE$197),IF(C21>C20,C20,C21),0) ->  | D22: =IF(NOT('Summary of results-by feedstock'!$AE$197),IF(D21>D20,D20,D21),0) ->  | E22: =IF(NOT('Summary of results-by feedstock'!$AE$197),IF(E21>E20,E20,E21),0) ->  | F22: =IF(NOT('Summary of results-by feedstock'!$AE$197),IF(F21>F20,F20,F21),0) ->  | G22: =IF(NOT('Summary of results-by feedstock'!$AE$197),IF(G21>G20,G20,G21),0) ->  | H22: =IF(NOT('Summary of results-by feedstock'!$AE$197),IF(H21>H20,H20,H21),0) ->  | I22: =IF(NOT('Summary of results-by feedstock'!$AE$197),IF(I21>I20,I20,I21),0) ->  | J22: =IF(NOT('Summary of results-by feedstock'!$AE$197),IF(J21>J20,J20,J21),0) ->  | K22: =IF(NOT('Summary of results-by feedstock'!$AE$197),IF(K21>K20,K20,K21),0) ->  | L22: =IF(NOT('Summary of results-by feedstock'!$AE$197),IF(L21>L20,L20,L21),0) ->  | M22: =IF(NOT('Summary of results-by feedstock'!$AE$197),IF(M21>M20,M20,M21),0) ->  | N22: =IF(NOT('Summary of results-by feedstock'!$AE$197),IF(N21>N20,N20,N21),0) ->  | O22: =IF(NOT('Summary of results-by feedstock'!$AE$197),IF(O21>O20,O20,O21),0) ->  | P22: =IF(NOT('Summary of results-by feedstock'!$AE$197),IF(P21>P20,P20,P21),0) ->  | Q22: =IF(NOT('Summary of results-by feedstock'!$AE$197),IF(Q21>Q20,Q20,Q21),0) ->  | R22: =IF(NOT('Summary of results-by feedstock'!$AE$197),IF(R21>R20,R20,R21),0) ->  | S22: =IF(NOT('Summary of results-by feedstock'!$AE$197),IF(S21>S20,S20,S21),0) ->  | T22: =IF(NOT('Summary of results-by feedstock'!$AE$197),IF(T21>T20,T20,T21),0) ->  | U22: =IF(NOT('Summary of results-by feedstock'!$AE$197),IF(U21>U20,U20,U21),0) ->  | V22: =IF(NOT('Summary of results-by feedstock'!$AE$197),IF(V21>V20,V20,V21),0) ->  | W22: =IF(NOT('Summary of results-by feedstock'!$AE$197),IF(W21>W20,W20,W21),0) -> 
B23: =title359 -> Heat sold to the customers (GJ per year) | C23: =IF('Summary of results-by feedstock'!$AE$197,C20,0) ->  | D23: =IF('Summary of results-by feedstock'!$AE$197,D20,0) ->  | E23: =IF('Summary of results-by feedstock'!$AE$197,E20,0) ->  | F23: =IF('Summary of results-by feedstock'!$AE$197,F20,0) ->  | G23: =IF('Summary of results-by feedstock'!$AE$197,G20,0) ->  | H23: =IF('Summary of results-by feedstock'!$AE$197,H20,0) ->  | I23: =IF('Summary of results-by feedstock'!$AE$197,I20,0) ->  | J23: =IF('Summary of results-by feedstock'!$AE$197,J20,0) ->  | K23: =IF('Summary of results-by feedstock'!$AE$197,K20,0) ->  | L23: =IF('Summary of results-by feedstock'!$AE$197,L20,0) ->  | M23: =IF('Summary of results-by feedstock'!$AE$197,M20,0) ->  | N23: =IF('Summary of results-by feedstock'!$AE$197,N20,0) ->  | O23: =IF('Summary of results-by feedstock'!$AE$197,O20,0) ->  | P23: =IF('Summary of results-by feedstock'!$AE$197,P20,0) ->  | Q23: =IF('Summary of results-by feedstock'!$AE$197,Q20,0) ->  | R23: =IF('Summary of results-by feedstock'!$AE$197,R20,0) ->  | S23: =IF('Summary of results-by feedstock'!$AE$197,S20,0) ->  | T23: =IF('Summary of results-by feedstock'!$AE$197,T20,0) ->  | U23: =IF('Summary of results-by feedstock'!$AE$197,U20,0) ->  | V23: =IF('Summary of results-by feedstock'!$AE$197,V20,0) ->  | W23: =IF('Summary of results-by feedstock'!$AE$197,W20,0) -> 
B25: =title360 -> Selling electricity Price (USD/kWh) | C25: ='Data Entry Needs'!$D$28 -> 0 | D25: =C25 -> 0 | E25: =D25 -> 0 | F25: 0 | G25: 0 | H25: 0 | I25: 0 | J25: 0 | K25: 0 | L25: 0 | M25: 0 | N25: 0 | O25: 0 | P25: 0 | Q25: 0 | R25: 0 | S25: 0 | T25: 0 | U25: 0 | V25: 0 | W25: 0
C26: =C25*C16 -> 
B27: =title361 -> Electricity cost avoided main industry (USD/kWh) | C27: ='Data Entry Needs'!$D$26 -> 0 | D27: =C27 -> 0 | E27: =D27 -> 0 | F27: 0 | G27: 0 | H27: 0 | I27: 0 | J27: 0 | K27: 0 | L27: 0 | M27: 0 | N27: 0 | O27: 0 | P27: 0 | Q27: 0 | R27: 0 | S27: 0 | T27: 0 | U27: 0 | V27: 0 | W27: 0
C28: =C27*(C12-C16) ->  | D28: =D27*(D12-D16) -> 
B29: =title362 -> Heat cost avoided main Industry (USD/Gj) | C29: =COST_RES1!$N$14 -> 0 | D29: =C29 -> 0 | E29: =D29 -> 0 | F29: 0 | G29: 0 | H29: 0 | I29: 0 | J29: 0 | K29: 0 | L29: 0 | M29: 0 | N29: 0 | O29: 0 | P29: 0 | Q29: 0 | R29: 0 | S29: 0 | T29: 0 | U29: 0 | V29: 0 | W29: 0
C30: =C22*C29 ->  | D30: =D22*D29 -> 
B31: =title363 -> Heat sales to nearby consumers (USD/Gj) | C31: ='Data Entry Needs'!$I$28 -> 0 | D31: ='Data Entry Needs'!$I$28 -> 0 | E31: ='Data Entry Needs'!$I$28 -> 0 | F31: ='Data Entry Needs'!$I$28 -> 0 | G31: ='Data Entry Needs'!$I$28 -> 0 | H31: ='Data Entry Needs'!$I$28 -> 0 | I31: ='Data Entry Needs'!$I$28 -> 0 | J31: ='Data Entry Needs'!$I$28 -> 0 | K31: ='Data Entry Needs'!$I$28 -> 0 | L31: ='Data Entry Needs'!$I$28 -> 0 | M31: ='Data Entry Needs'!$I$28 -> 0 | N31: ='Data Entry Needs'!$I$28 -> 0 | O31: ='Data Entry Needs'!$I$28 -> 0 | P31: ='Data Entry Needs'!$I$28 -> 0 | Q31: ='Data Entry Needs'!$I$28 -> 0 | R31: ='Data Entry Needs'!$I$28 -> 0 | S31: ='Data Entry Needs'!$I$28 -> 0 | T31: ='Data Entry Needs'!$I$28 -> 0 | U31: ='Data Entry Needs'!$I$28 -> 0 | V31: ='Data Entry Needs'!$I$28 -> 0 | W31: ='Data Entry Needs'!$I$28 -> 0
C32: =C31*C23 ->  | D32: =D31*D23 -> 
B33: =title364 -> Total income (USD/year) | C33: =C26+C28+C30+C32 ->  | D33: =D26+D28+D30+D32 -> 
B35: =title365 -> Project lifetime (years) | C35: =+COST_RES1!$N$16 -> 0
A38: =title366 -> Capital and operating cost
B40: =title346 -> Operating Year | C40: =title370 -> Appraisal | D40: 1 | E40: 2 | F40: 3 | G40: 4 | H40: 5 | I40: 6 | J40: 7 | K40: 8 | L40: 9 | M40: 10 | N40: 11 | O40: 12 | P40: 13 | Q40: 14 | R40: 15 | S40: 16 | T40: 17 | U40: 18 | V40: 19 | W40: 20
B41: =title367 -> Direct capital cost (USD)
B42: =title280 -> Equipments | C42: =COST_RES1!$K$66 -> 
B43: =title281 -> Building | C43: =COST_RES1!$K$67 -> 
B44: =title282 -> Installation | C44: =COST_RES1!$K$68 -> 
B45: =title368 -> Total capital cost (USD) | C45: =SUM(C42:C44) ->  | D45: =D42+D43+D44 -> 0 | E45: 0 | F45: 0 | G45: 0 | H45: 0 | I45: 0 | J45: 0 | K45: 0 | L45: 0 | M45: 0 | N45: 0 | O45: 0 | P45: 0 | Q45: 0 | R45: 0 | S45: 0 | T45: 0 | U45: 0 | V45: 0 | W45: 0
B46: =title369 -> Capital cost (USD/kW) | C46: =C45/C8 -> 
B49: =title346 -> Operating Year | C49: =title370 -> Appraisal | D49: 1 | E49: 2 | F49: 3 | G49: 4 | H49: 5 | I49: 6 | J49: 7 | K49: 8 | L49: 9 | M49: 10 | N49: 11 | O49: 12 | P49: 13 | Q49: 14 | R49: 15 | S49: 16 | T49: 17 | U49: 18 | V49: 19 | W49: 20
B50: =title372 -> Annual operating and maintenance cost
B51: =title373 -> Sub-total material cost (USD) | C51: =C52+C60 ->  | D51: =D52+D60 -> 
B52: =title374 -> Biomass cost (USD/year) | C52: =C53*C54 -> 0 | D52: =D53*D54 -> 0 | E52: =E53*E54 -> 0 | F52: 0 | G52: 0 | H52: 0 | I52: 0 | J52: 0 | K52: 0 | L52: 0 | M52: 0 | N52: 0 | O52: 0 | P52: 0 | Q52: 0 | R52: 0 | S52: 0 | T52: 0 | U52: 0 | V52: 0 | W52: 0
B53: =title375 -> Biomass consumption (tne per year) | C53: =+COST_RES1!$K$43 -> 0 | D53: =+C53 -> 0 | E53: =+D53 -> 0 | F53: 0 | G53: 0 | H53: 0 | I53: 0 | J53: 0 | K53: 0 | L53: 0 | M53: 0 | N53: 0 | O53: 0 | P53: 0 | Q53: 0 | R53: 0 | S53: 0 | T53: 0 | U53: 0 | V53: 0 | W53: 0
B54: =title376 -> Biomass total price (USD/t) | C54: =SUM(C55:C56) -> 0 | D54: =SUM(D55:D56) -> 0 | E54: 0 | F54: 0 | G54: 0 | H54: 0 | I54: 0 | J54: 0 | K54: 0 | L54: 0 | M54: 0 | N54: 0 | O54: 0 | P54: 0 | Q54: 0 | R54: 0 | S54: 0 | T54: 0 | U54: 0 | V54: 0 | W54: 0
B55: =title377 -> Biomass price (USD/t) | C55: =+COST_RES1!$F$43 -> 0 | D55: =C55 -> 0 | E55: =D55 -> 0 | F55: 0 | G55: 0 | H55: 0 | I55: 0 | J55: 0 | K55: 0 | L55: 0 | M55: 0 | N55: 0 | O55: 0 | P55: 0 | Q55: 0 | R55: 0 | S55: 0 | T55: 0 | U55: =T55 -> 0 | V55: 0 | W55: 0
B56: =title378 -> Biomass transportation cost (USD/t) | C56: =+C57*C58 -> 0 | D56: =C56 -> 0 | E56: 0 | F56: 0 | G56: 0 | H56: 0 | I56: 0 | J56: 0 | K56: 0 | L56: 0 | M56: 0 | N56: 0 | O56: 0 | P56: 0 | Q56: 0 | R56: 0 | S56: 0 | T56: 0 | U56: 0 | V56: 0 | W56: 0
B57: =title379 -> Biomass from farm to plant (USD/t/km) | C57: =+COST_RES1!$F$56 -> 0
B58: =title380 -> Transportation distance (km) | C58: =+COST_RES1!$K$56 -> 0
B60: =title381 -> Water cost (USD/year) | C60: =C61*C62 ->  | D60: =D61*D62 -> 
B61: =title382 -> Water consumption (m3 per year) | C61: =+COST_RES1!$K$44 ->  | D61: =+C61 ->  | E61: =+D61 -> 
B62: =title383 -> Water + chemical additives cost (USD/m3) | C62: =+COST_RES1!$F$44 -> 0.4385964912 | D62: =C62 -> 0.4385964912 | E62: =D62 -> 0.4385964912 | F62: 0.4385964912 | G62: 0.4385964912 | H62: 0.4385964912 | I62: 0.4385964912 | J62: 0.4385964912 | K62: 0.4385964912 | L62: 0.4385964912 | M62: 0.4385964912 | N62: 0.4385964912 | O62: 0.4385964912 | P62: 0.4385964912 | Q62: 0.4385964912 | R62: 0.4385964912 | S62: 0.4385964912 | T62: 0.4385964912 | U62: 0.4385964912 | V62: 0.4385964912 | W62: 0.4385964912
B64: =title384 -> Sub-total operating cost (USD) | C64: =C65+C66+C67 ->  | D64: =D65+D66+D67 -> 
B65: =title319&" (USD)" -> Labour cost (USD) | C65: =COST_RES1!L52 ->  | D65: =C65 ->  | E65: =D65 ->  | U65: =T65 -> 
B66: =title285 -> Plant overhead | C66: =COST_RES1!L76 ->  | D66: =C66 -> 
B67: =title286 -> General and administrative cost | C67: =COST_RES1!L77 ->  | D67: =C67 -> 
B68: =title385 -> Sub-total maintenance cost (USD) | C68: =COST_RES1!L71 ->  | D68: =C68 -> 
B70: =title386 -> Sub-total of annual fixed cost | C70: =COST_RES1!L70 ->  | D70: =C70 ->  | E70: =D70 -> 
B72: =title387 -> Sub-total of storage capacity | C72: =+COST_RES1!L62 -> 0 | D72: =C72 -> 0 | E72: =D72 -> 0 | F72: 0 | G72: 0 | H72: 0 | I72: 0 | J72: 0 | K72: 0 | L72: 0 | M72: 0 | N72: 0 | O72: 0 | P72: 0 | Q72: 0 | R72: 0 | S72: 0 | T72: 0 | U72: 0 | V72: 0 | W72: 0
B74: =title388 -> Total operation and maintenance cost (USD) | C74: =C51+C64+C68+C70+C72 -> 
A76: =title102 -> Financial parameters
B77: =title346 -> Operating Year | C77: =title370 -> Appraisal | D77: 1 | E77: 2 | F77: 3 | G77: 4 | H77: 5 | I77: 6 | J77: 7 | K77: 8 | L77: 9 | M77: 10 | N77: 11 | O77: 12 | P77: 13 | Q77: 14 | R77: 15 | S77: 16 | T77: 17 | U77: 18 | V77: 19 | W77: 20
B78: =title103&" (%)" -> Discount rate (%) | C78: =+COST_RES1!$N$13 -> 0
B79: =title104&" (%)" -> Loan ratio (%) | C79: =+COST_RES1!$N$11 -> 0
B81: =title389 -> Loans | D81: 1 | E81: 2 | F81: 3 | G81: 4 | H81: 5 | I81: 6 | J81: 7 | K81: 8 | L81: 9 | M81: 10 | N81: 11 | O81: 12 | P81: 13 | Q81: 14 | R81: 15 | S81: 16 | T81: 17 | U81: 18 | V81: 19 | W81: 20
B82: =title307&" (USD)" -> Loan amount (USD) | C82: =C79*C45 -> 
B83: =title105&" (%)" -> Loan interest rate (%) | C83: =+COST_RES1!$N$10 -> 0
B84: =title106&" ("&title107&")" -> Loan term (years) | C84: =+COST_RES1!$N$12 -> 0
B85: =title390 -> Loan payment (USD/month) | C85: =(PMT(C83/12,(12*C84),C82)) -> 
B86: =title391 -> Loan payment (USD/year) | D86: =IF(D77<=$C$84,$C$85*12,0) -> 0 | E86: =IF(E77<=$C$84,$C$85*12,0) -> 0 | F86: 0 | G86: 0 | H86: 0 | I86: 0 | J86: 0 | K86: 0 | L86: 0 | M86: 0 | N86: 0 | O86: 0 | P86: 0 | Q86: 0 | R86: 0 | S86: 0 | T86: 0 | U86: 0 | V86: 0 | W86: 0
B87: =title392 -> Total loan payment (USD) | C87: =SUM(D86:W86) -> 0
B88: =title393 -> Loan interest payment (USD) | C88: =C87+C82 ->  | D88: =title396 -> Average loan interest payment for project lifetime | G88: =C88/C35 ->  | H88: =title397 -> USD per year
A90: =title295 -> Depreciation
B91: =title346 -> Operating Year | C91: =title370 -> Appraisal | D91: 1 | E91: 2 | F91: 3 | G91: 4 | H91: 5 | I91: 6 | J91: 7 | K91: 8 | L91: 9 | M91: 10 | N91: 11 | O91: 12 | P91: 13 | Q91: 14 | R91: 15 | S91: 16 | T91: 17 | U91: 18 | V91: 19 | W91: 20
B92: =title394 -> Depreciation method | C92: =title371 -> Straight-line
B93: =title395 -> Total depreciation (USD) | D93: =COST_RES1!L70 ->  | E93: =D93 ->  | F93: =E93 -> 
A96: =title398 -> Base case project
A97: =title399 -> Summary of this project - before tax
B98: =title346 -> Operating Year | C98: =title370 -> Appraisal | D98: 1 | E98: 2 | F98: 3 | G98: 4 | H98: 5 | I98: 6 | J98: 7 | K98: 8 | L98: 9 | M98: 10 | N98: 11 | O98: 12 | P98: 13 | Q98: 14 | R98: 15 | S98: 16 | T98: 17 | U98: 18 | V98: 19 | W98: 20
B99: =title400 -> Total revenue (USD) | D99: =D33 -> 
B100: =title368 -> Total capital cost (USD) | C100: =-(C45-C82) -> 
B101: =title401 -> Total operating and maintenance cost (USD) | D101: =-D74+D70 -> 
B102: =title402 -> Loan payment (USD) | D102: =D86 -> 0 | E102: =E86 -> 0 | F102: 0 | G102: 0 | H102: 0 | I102: 0 | J102: 0 | K102: 0 | L102: 0 | M102: 0 | N102: 0 | O102: 0 | P102: 0 | Q102: 0 | R102: 0 | S102: 0 | T102: 0 | U102: 0 | V102: 0 | W102: 0
B103: =title403 -> Cash flow - before tax (USD) | C103: =SUM(C99:C102) ->  | D103: =SUM(D99:D102) -> 
A105: =title404 -> Financial analysis results
B107: =title405 -> Net Present Value (NPV) (USD) - before tax | C107: =NPV(C78,D103:W103)+C103 -> 
B108: =title406 -> Internal Rate of Return (IRR) (%) - before tax | C108: =IF(tir_cell=title593,IF(C107<0,title407,IRR(C103:W103,0.000001)),IF(C107<0,title407,MIRR(C103:W103,fin_rate,rein_rate))) -> 

Sheet COST_RES2
C3: =+UPPER(title249&'Data Entry Needs'!$E$11&" "&'Data Entry Needs'!$E$12) -> PROCESSING COSTS FOR POWER GENERATION FROM PLEASE SELECT
C6: =title31 -> Use white cells to input data | E6: =title32 -> Grey cells are used for calculations
C8: =title250 -> Summary of Feedstock and Storage | G8: =title251 -> Summary of Operational Parameters | K8: =title102 -> Financial parameters
C10: =title67&"("&title76&")" -> Feedstock available(t/year) | E10: =+'Data Entry Needs'!$E$13 -> 0 | G10: =title252 -> CV Biomass (kWh/kg feedstock) | I10: =+VLOOKUP(IF('Data Entry Needs'!$E$11=title156,'Data Entry Needs'!$E$11,'Data Entry Needs'!$E$11&'Data Entry Needs'!$E$12),dummy_database!$C$1:$L$31,10,FALSE)/(3.6) ->  | K10: =title105&" (%)" -> Loan interest rate (%) | N10: =+'Data Entry Needs'!$D$66 -> 0
C11: =title69 -> Feedstock yield (t/ha) | E11: =+'Data Entry Needs'!$E$14 -> 0 | G11: =title253 -> CV Syngas (kWh/kg feedstock) | I11: =+VLOOKUP(IF('Data Entry Needs'!$E$11=title156,'Data Entry Needs'!$E$11,'Data Entry Needs'!$E$11&'Data Entry Needs'!$E$12),dummy_database!$C$1:$M$31,11,FALSE)/3.6 ->  | K11: =title104&" (%)" -> Loan ratio (%) | N11: =+'Data Entry Needs'!$D$65 -> 0
C12: =title75 -> Feedstock storage cost (USD/t) | E12: =+'Data Entry Needs'!$E$20 -> 0 | G12: =title254 -> Heat loss in distribution (%) | K12: =title106&" ("&title107&")" -> Loan term (years) | N12: =+'Data Entry Needs'!$D$67 -> 0
G13: =title255 -> Power loss in distribution (%) | K13: =title103&" (%)" -> Discount rate (%) | N13: =+'Data Entry Needs'!$D$64 -> 0
G14: =title256 -> Power - self use (%) | K14: =title260 -> Heat Price (USD/GJ) | N14: ='Data Entry Needs'!$E$15*1000/(Steam_Calculator!$F$11*(Steam_Calculator!$D$11-20)+Steam_Calculator!$E$14) -> 0
G15: =title35 -> Operating hours per day | K15: =title261 -> Sell Electricity Price (USD/kWh) | N15: ='Data Entry Needs'!$D$28 -> 0
G16: =title257 -> Distance to cogen. plant (km) | K16: =title262 -> Project lifetime | N16: ='Data Entry Needs'!$D$67 -> 0
G17: =title258 -> Electricity Processing Plant (1000 kWh/year) | I17: =IF('Energy Demand'!$C$9=2,'Energy Demand'!$G$21,0) -> 
G18: =title259 -> Heat Processing Plant (1000 MJ/year) | I18: =IF('Energy Demand'!$C$9=2,'Energy Demand'!$G$22,0) -> 
C22: =title263 -> Production Cost Details
G24: =title264 -> Capacities (MWe of power generation)
G25: =title6 -> Simple | I25: =title13 -> Semi-Advanced | K25: =title19 -> Advanced
G26: =G29/($H$38*1000*(1-$I$14)) ->  | I26: =I29/($H$38*1000*(1-$I$14)) ->  | K26: =K29/($H$38*1000*(1-$I$14)) -> 
F27: Energy Potential (MJ/year) | G27: =$I$10*$E$10*1000*3.6 ->  | I27: =$I$10*$E$10*1000*3.6 ->  | K27: =+VLOOKUP(IF('Data Entry Needs'!$D$11=title156,'Data Entry Needs'!$D$11,'Data Entry Needs'!$D$11&'Data Entry Needs'!$D$12),dummy_database!$C$1:$M$31,11,FALSE)*$E$10*1000 -> 
F28: Heat (MJ/year) | G28: =$G$27*(G30-G31)/(1-(G31/G32)) ->  | I28: =IF(NOT('Data Entry Needs'!$AO$121),$I$27*(I30-I31)*I35/(1-(I31/I32)),$I$18*1000) ->  | K28: =IF(NOT('Data Entry Needs'!$AO$121),$K$27*(K30-K31)*K35/(1-(K31/K32)),$I$18*1000) -> 
F29: Elect (kWh/year) | G29: =(G27*G30-G28)/3.6 ->  | I29: =(I27*I30-I28)*I35/3.6 ->  | K29: =(K27*K30-K28)*K35/3.6 -> 
F30: Thermal Eff. | G30: 0.2 | I30: 0.63 | K30: 0.71
F31: Electrical Eff. | G31: 0.2 | I31: 0.2 | K31: 0.3
F32: Alpha | G32: 0.75 | I32: 0.75 | K32: 0.75
F33: Steam electricity only (kg/h) | G33: =G29*3600/(G34*(Steam_Calculator!$C$6+Steam_Calculator!$C$7)*COST_RES2!$H$38) ->  | I33: =I29*3600/(I34*(Steam_Calculator!$C$6+Steam_Calculator!$C$7)*COST_RES2!$H$38) ->  | K33: =K29*3600/(K34*(Steam_Calculator!$C$6+Steam_Calculator!$C$7)*COST_RES2!$H$38) -> 
F34: Turb eff. | G34: 0.17 | I34: 0.25 | K34: =AVERAGE(17%,60%) -> 0.385
F35: Utilization Factor | G35: 1 | I35: 1 | K35: 1
G36: =title265 -> Capacities (MWth of heat generation)
G37: =G28/3.6/1000/$H$38 ->  | I37: =I28/3.6/1000/$H$38 ->  | K37: =K28/3.6/1000/$H$38 -> 
G38: =title266 -> Operating hours per year | H38: =$I$15*'Data Entry Needs'!$I$49 -> 0 | I38: =title266 -> Operating hours per year | J38: =$I$15*'Data Entry Needs'!$I$49 -> 0 | K38: =title266 -> Operating hours per year | L38: =$I$15*'Data Entry Needs'!$I$49 -> 0
D41: =title267 -> Inputs | E41: =title47 -> Unit | F41: =title270 -> Unit Price | G41: =title294 -> Quantity | H41: Total | I41: =title294 -> Quantity | J41: Total | K41: =title294 -> Quantity | L41: Total
F42: =title271 -> (USD/Unit) | G42: (Unit/year) | H42: ="("&title48&")" -> (USD/year) | I42: (Unit/year) | J42: ="("&title48&")" -> (USD/year) | K42: (Unit/year) | L42: ="("&title48&")" -> (USD/year)
D43: =title176 -> Feedstock | E43: t | F43: =+IF('Data Entry Needs'!$C$18=FALSE,'Data Entry Needs'!E$18,'Data Entry Needs'!E$19) -> 0 | G43: =$E$10 -> 0 | H43: =+G43*$F43 -> 0 | I43: =$E$10 -> 0 | J43: =+I43*$F43 -> 0 | K43: =$E$10 -> 0 | L43: =+K43*$F43 -> 0
D44: =title268 -> Water make-up + chemical additives | E44: m3 | F44: =+'Data Entry Needs'!$D$51+0.002*1000/4.56 -> 0.4385964912 | G44: =+Steam_Calculator!$C$9*G33*H38/1000 ->  | H44: =+G44*$F44 ->  | I44: =+Steam_Calculator!$C$9*I33*J38/1000 ->  | J44: =+I44*$F44 ->  | K44: =+Steam_Calculator!$C$9*K33*L38/1000 ->  | L44: =+K44*$F44 -> 
D45: =title269 -> Subtotal | H45: =SUM(H43:H44) ->  | J45: =SUM(J43:J44) ->  | L45: =SUM(L43:L44) -> 
D47: =title272 -> Labour and miscellaneous costs | E47: =title47 -> Unit | F47: =title270 -> Unit Price | G47: =title294 -> Quantity | H47: Total | I47: =title294 -> Quantity | J47: Total | K47: =title294 -> Quantity | L47: Total
F48: =title274 -> (USD/person-hour) | G48: ="("&title47&")" -> (Unit) | H48: ="("&title48&")" -> (USD/year) | I48: ="("&title47&")" -> (Unit) | J48: ="("&title48&")" -> (USD/year) | K48: ="("&title47&")" -> (Unit) | L48: ="("&title48&")" -> (USD/year)
D49: =title91 -> Unskilled worker | E49: # employee | F49: =+'Data Entry Needs'!$D$48 -> 0 | G49: =ROUNDUP(4.9*G$26*5/6,0) ->  | H49: =+F49*G49*H38 ->  | I49: =ROUNDUP(4.9*I$26*5/6,0) ->  | J49: =+$F49*I49*$H$38 ->  | K49: =ROUNDUP(4.9*K$26*5/6,0) ->  | L49: =+$F49*K49*$H$38 -> 
D50: =title111 -> Skilled worker | E50: # employee | F50: =+'Data Entry Needs'!I$48 -> 0 | G50: =ROUNDUP(4.9*G$26*1/6,0) ->  | H50: =+F50*G50*H38 ->  | I50: =ROUNDUP(4.9*I$26*1/6,0) ->  | J50: =+$F50*I50*$H$38 ->  | K50: =ROUNDUP(4.9*K$26*1/6,0) ->  | L50: =+$F50*K50*$H$38 -> 
D51: =title115 -> Miscellaneous cost | G51: =+'Data Entry Needs'!$I$61 -> 0 | H51: =+G51*SUM(H49:H50) ->  | I51: =+G51 -> 0 | J51: =+I51*SUM(J49:J50) ->  | K51: =+G51 -> 0 | L51: =+K51*SUM(L49:L50) -> 
D52: =title269 -> Subtotal | G52: =G49+G50 ->  | H52: =+H49+H50+H51 ->  | I52: =I49+I50 ->  | J52: =+J49+J50+J51 ->  | K52: =K49+K50 ->  | L52: =+L49+L50+L51 -> 
G53: =+SUM(G49:G50) ->  | I53: =+SUM(I49:I50) ->  | K53: =+SUM(K49:K50) -> 
D54: =title275 -> Transport of feedstock | E54: =title47 -> Unit | F54: =title270 -> Unit Price | G54: =title294 -> Quantity | H54: Total | I54: =title294 -> Quantity | J54: Total | K54: =title294 -> Quantity | L54: Total
F55: (USD/t/km) | G55: ="("&title47&")" -> (Unit) | H55: ="("&title48&")" -> (USD/year) | I55: ="("&title47&")" -> (Unit) | J55: ="("&title48&")" -> (USD/year) | K55: ="("&title47&")" -> (Unit) | L55: ="("&title48&")" -> (USD/year)
D56: Feedstock (farm to plant) | E56: km | F56: =+'Data Entry Needs'!$D$57 -> 0 | G56: =$I$16 -> 0 | H56: =+G56*F56*G43 -> 0 | I56: =$I$16 -> 0 | J56: =+I56*$F56*I$43 -> 0 | K56: =$I$16 -> 0 | L56: =+K56*$F56*K$43 -> 0
D57: =title269 -> Subtotal | H57: =+H56 -> 0 | J57: =+J56 -> 0 | L57: =+L56 -> 0
D59: =title277 -> Storage | E59: =title47 -> Unit | F59: =title270 -> Unit Price | G59: =title294 -> Quantity | H59: Total | I59: =title294 -> Quantity | J59: Total | K59: =title294 -> Quantity | L59: Total
F60: =title273 -> (USD/t/year) | G60: ="("&title47&")" -> (Unit) | H60: ="("&title48&")" -> (USD/year) | I60: ="("&title47&")" -> (Unit) | J60: ="("&title48&")" -> (USD/year) | K60: ="("&title47&")" -> (Unit) | L60: ="("&title48&")" -> (USD/year)
D61: =title278 -> Feedstock | E61: t | F61: =+$E$12 -> 0 | G61: =+STORAGE_RES2!$F$38 -> 0 | H61: =+F61*G61 -> 0 | I61: =+STORAGE_RES2!$I$38 -> 0 | J61: =I61*F61 -> 0 | K61: =+STORAGE_RES2!$L$38 -> 0 | L61: =F61*K61 -> 0
D62: =title269 -> Subtotal | H62: =SUM(H61) -> 0 | J62: =SUM(J61) -> 0 | L62: =SUM(L61) -> 0
D64: =title279 -> Investment | E64: =title47 -> Unit | F64: =PROPER(title107) -> Years | G64: Total | H64: =title295 -> Depreciation | I64: Total | J64: =title295 -> Depreciation | K64: Total | L64: =title295 -> Depreciation
G65: (USD) | H65: ="("&title48&")" -> (USD/year) | I65: (USD) | J65: ="("&title48&")" -> (USD/year) | K65: (USD) | L65: ="("&title48&")" -> (USD/year)
D66: =title280 -> Equipments | E66: USD | F66: 20 | G66: =('COST(ADJUSTED)_RES2'!$F$22)*('Data Entry Needs'!$I$65/141) ->  | H66: =+G66/F66 ->  | I66: =('COST(ADJUSTED)_RES2'!$G$22)*('Data Entry Needs'!$I$65/141) ->  | J66: =+I66/F66 ->  | K66: =('COST(ADJUSTED)_RES2'!$H$22)*('Data Entry Needs'!$I$65/141) ->  | L66: =+K66/F66 -> 
D67: =title281 -> Building | E67: USD | F67: 20 | G67: =+'COST(ADJUSTED)_RES2'!$F$25 ->  | H67: =+G67/F67 ->  | I67: =+'COST(ADJUSTED)_RES2'!$G$25 ->  | J67: =+I67/F67 ->  | K67: =+'COST(ADJUSTED)_RES2'!$H$25 ->  | L67: =+K67/F67 -> 
D68: =title282 -> Installation | E68: USD | F68: 20 | G68: =+'COST(ADJUSTED)_RES2'!$F$28 ->  | H68: =+G68/F68 ->  | I68: =+'COST(ADJUSTED)_RES2'!$G$28 ->  | J68: =+I68/F68 ->  | K68: =+'COST(ADJUSTED)_RES2'!$H$28 ->  | L68: =+K68/F68 -> 
D69: =title283 -> Total investment | G69: =SUM(G66:G68) ->  | I69: =SUM(I66:I68) ->  | K69: =SUM(K66:K68) -> 
G70: =title293 -> Total Depreciation | H70: =SUM(H66:H69) ->  | I70: =title293 -> Total Depreciation | J70: =SUM(J66:J69) ->  | K70: =title293 -> Total Depreciation | L70: =SUM(L66:L69) -> 
D71: =title114 -> Maintenance cost | F71: =+'Data Entry Needs'!$I$60 -> 0 | H71: =+F71*H70 ->  | J71: =+F71*$J$70 ->  | L71: =+$F$71*L70 -> 
D72: =title269 -> Subtotal | H72: =SUM(H70:H71) ->  | J72: =SUM(J70:J71) ->  | L72: =SUM(L70:L71) -> 
D74: =title99 -> Other costs | E74: =title47 -> Unit | F74: =title284 -> Rate (%) | H74: Total | J74: Total | L74: Total
H75: ="("&title48&")" -> (USD/year) | J75: ="("&title48&")" -> (USD/year) | L75: ="("&title48&")" -> (USD/year)
D76: =title285 -> Plant overhead | E76: USD | F76: =+'Data Entry Needs'!$D$61 -> 0 | H76: =+(H49+H50+H71)*$F$76 ->  | J76: =+(J49+J50+J71)*$F$76 ->  | L76: =+(L49+L50+L71)*$F$76 -> 
D77: =title286 -> General and administrative cost | E77: USD | F77: =+'Data Entry Needs'!$D$60 -> 0 | H77: =+(H45+H52+H76+H71)*$F$77 ->  | J77: =+(J45+J52+J76+J71)*$F$77 ->  | L77: =+(L45+L52+L76+L71)*$F$77 -> 
D78: =title287 -> Loan interest | E78: USD | F78: =+'Data Entry Needs'!$D$66 -> 0 | H78: =-FA_Simple_RES2!G88 ->  | J78: =-FA_Semi_RES2!G88 ->  | L78: =-FA_Adv_RES2!G88 -> 
D80: =title269 -> Subtotal | H80: =SUM(H76:H78) ->  | J80: =SUM(J76:J78) ->  | L80: =SUM(L76:L78) -> 
G82: Total | H82: =title292 -> Share (%) | I82: Total | J82: =title292 -> Share (%) | K82: Total | L82: =title292 -> Share (%)
G83: ="("&title48&")" -> (USD/year) | I83: ="("&title48&")" -> (USD/year) | K83: ="("&title48&")" -> (USD/year)
D84: =title288 -> Total operating costs | G84: =+H45+H52+H57+H62 ->  | H84: =+G84/$G$87 ->  | I84: =+J45+J52+J57+J62 ->  | J84: =+I84/$I$87 ->  | K84: =+L45+L52+L57+L62 ->  | L84: =+K84/$K$87 -> 
D85: =title289 -> Total fixed costs | G85: =+H72 ->  | H85: =+G85/$G$87 ->  | I85: =+J72 ->  | J85: =+I85/$I$87 ->  | K85: =+L72 ->  | L85: =+K85/$K$87 -> 
D86: =title290 -> Total other costs | G86: =+H80 ->  | H86: =+G86/$G$87 ->  | I86: =+J80 ->  | J86: =+I86/$I$87 ->  | K86: =+L80 ->  | L86: =+K86/$K$87 -> 
D87: =title291 -> Total production costs | G87: =SUM(G84:G86) ->  | I87: =SUM(I84:I86) ->  | K87: =SUM(K84:K86) -> 
C89: =title296 -> Power Generation
E91: =title47 -> Unit | G91: =title294 -> Quantity | I91: =title294 -> Quantity | K91: =title294 -> Quantity
G92: ="("&title47&")" -> (Unit) | I92: ="("&title47&")" -> (Unit) | K92: ="("&title47&")" -> (Unit)
D93: =title296 -> Power Generation | E93: =title299 -> MWh/year | G93: =+G26*H38*(1-$I$14) ->  | I93: =+I26*J38*(1-$I$14) ->  | K93: =+K26*L38*(1-$I$14) -> 
D94: =title297 -> Electricity - self use | E94: =title299 -> MWh/year | G94: =-G93*$I$14 ->  | I94: =-I93*$I$14 ->  | K94: =-K93*$I$14 -> 
D95: =title298 -> Power loss in distribution network | E95: =title299 -> MWh/year | G95: =-G93*$I$13 ->  | I95: =-I93*$I$13 ->  | K95: =-K93*$I$13 -> 
D96: =title269 -> Subtotal | G96: =SUM(G93:H95) ->  | I96: =SUM(I93:J95) ->  | K96: =SUM(K93:L95) -> 
C98: =title300 -> Heat generation
E100: =title47 -> Unit | G100: =title294 -> Quantity | I100: =title294 -> Quantity | K100: =title294 -> Quantity
G101: ="("&title47&")" -> (Unit) | I101: ="("&title47&")" -> (Unit) | K101: ="("&title47&")" -> (Unit)
D102: =title300 -> Heat generation | E102: =title302 -> GJ/year | I102: =I28/1000 ->  | K102: =K28/1000 -> 
D103: =title301 -> Heat loss in distribution network | E103: =title302 -> GJ/year | I103: =-I102*$I$12 ->  | K103: =-K102*$I$12 -> 
D104: =title269 -> Subtotal | I104: =SUM(I102:J103) ->  | K104: =SUM(K102:L103) -> 
C106: =title303 -> Total Production Cost
G108: =title264 -> Capacities (MWe of power generation)
G109: =+G26 ->  | I109: =+I26 ->  | K109: =+K26 -> 
D110: =title304 -> Unit cost of electricity (USD/kWh) | G110: =G87/G96/1000 ->  | I110: =I87/I96/1000 ->  | K110: =K87/K96/1000 -> 
G112: =title265 -> Capacities (MWth of heat generation)
I113: =+I37 ->  | K113: =+K37 -> 
D114: =title305 -> Unit cost of Heat (USD/GJ) | I114: =IFERROR(I87/I102,0) -> 0 | K114: =IFERROR(K87/K102,0) -> 0
D116: =title306 -> Average loan interest | E116: =title47 -> Unit | F116: =title104&" (%)" -> Loan ratio (%) | G116: =title283 -> Total investment | H116: =title307 -> Loan amount | I116: =title283 -> Total investment | J116: =title307 -> Loan amount | K116: =title283 -> Total investment | L116: =title307 -> Loan amount
G117: (USD) | H117: (USD) | I117: (USD) | J117: (USD) | K117: (USD) | L117: (USD)
D118: =title307 -> Loan amount | E118: USD | F118: =+$N$11 -> 0 | G118: =G69 ->  | H118: =$F$118*G118 ->  | I118: =I69 ->  | J118: =$F$118*I118 ->  | K118: =K69 ->  | L118: =$F$118*K118 -> 
D119: =title105 -> Loan interest rate | E119: % | H119: =+$N$10 -> 0 | J119: =+$N$10 -> 0 | L119: =+$N$10 -> 0
D120: =title308 -> Loan payment | E120: =title311 -> USD/month | H120: =PMT(H119/12,H122*12,H118,0) ->  | J120: =PMT(J119/12,J122*12,J118,0) ->  | L120: =PMT(L119/12,L122*12,L118,0) -> 
D121: =title309 -> Annual loan payment | E121: =title48 -> USD/year | H121: =H120*12 ->  | J121: =J120*12 ->  | L121: =L120*12 -> 
D122: =title106 -> Loan term | E122: =title108 -> year | H122: =+$N$12 -> 0 | J122: =+$N$12 -> 0 | L122: =+$N$12 -> 0
D123: =title310 -> Total loan payment | E123: USD | H123: =H121*H122 ->  | J123: =J121*J122 ->  | L123: =L121*L122 -> 
D124: =title287 -> Loan interest | E124: USD | H124: =H123+H118 ->  | J124: =J123+J118 ->  | L124: =L123+L118 -> 
D125: =title306 -> Average loan interest | E125: =title48 -> USD/year | H125: =H124/$N$16 ->  | J125: =J124/$N$16 ->  | L125: =L124/$N$16 -> 

Sheet PRICE_RES2 (hidden)
C3: =+UPPER(title314&'Data Entry Needs'!$E$11&" "&'Data Entry Needs'!$E$12) -> COLLECTION COSTS CALCULATOR FOR PLEASE SELECT | P3: =title316 -> Sources of biomass | Q3: No. | R3: Selection2 | S3: Number | T3: =title340 -> Mechanized | U3: =title325 -> Number of skilled workers | V3: =title331 -> person-hour/ha
P4: =title332 -> Agriculture residues spread in the field | Q4: 1 | R4: =+$F$11 -> Mechanized | T4: =title340&2 -> Mechanized2 | U4: =title326 -> Skilled labour wage | V4: =title343 -> USD/person-hour
P5: =title333 -> Agriculture residues collected from field | Q5: 2 | R5: Selection1 | S5: 1 | T5: =title340&4 -> Mechanized4 | U5: =title327 -> Average fuel economy | V5: l/h
C6: =title31 -> Use white cells to input data | E6: =title32 -> Grey cells are used for calculations | P6: =title334 -> Agriculture residues from food processing plant | Q6: 3 | R6: =+VLOOKUP($C$11,$P$3:$Q$10,2,FALSE) -> 1 | S6: 2 | T6: =title340&5 -> Mechanized5 | U6: =title328 -> Fuel price | V6: USD/l
P7: =title335 -> Forestry | Q7: 4 | S7: 3 | T7: =title341 -> Semi-mechanized | U7: =title325 -> Number of skilled workers | V7: =title331 -> person-hour/ha
C8: =title315 -> Biomass Collection Definition | P8: =title336 -> Forestry and plantation residues | Q8: 5 | S8: 4 | T8: =title341&1 -> Semi-mechanized1 | U8: =title329 -> Number of unskilled workers | V8: =title331 -> person-hour/ha
P9: =title337 -> Residues from wood industry | Q9: 6 | S9: 5 | T9: =title341&2 -> Semi-mechanized2 | U9: =title326 -> Skilled labour wage | V9: =title343 -> USD/person-hour
C10: =title316 -> Sources of biomass | F10: =title317 -> Collecting method | P10: =title338 -> Dedicated wood energy plantation | Q10: 7 | T10: =title341&3 -> Semi-mechanized3 | U10: =title330 -> Unskilled labour wage | V10: =title343 -> USD/person-hour
C11: Agriculture residues spread in the field | F11: Mechanized | P11: =title339 -> Collection method | T11: =title341&4 -> Semi-mechanized4 | U11: =title327 -> Average fuel economy | V11: l/h
P12: =title340 -> Mechanized | T12: =title341&5 -> Semi-mechanized5 | U12: =title328 -> Fuel price | V12: USD/l
C13: =IF($R$6=7,title321,IF(OR($R$6=1,$R$6=5,$R$6=4),title315,title322)) -> Biomass Collection Definition | P13: =title341 -> Semi-mechanized | T13: =title342 -> Manual | U13: =title329 -> Number of unskilled workers | V13: =title331 -> person-hour/ha
P14: =title342 -> Manual | T14: =title342&2 -> Manual2 | U14: =title330 -> Unskilled labour wage | V14: =title343 -> USD/person-hour
C16: =title318 -> Biomass price definition
C17: =title319 -> Labour cost | D17: =title294 -> Quantity | E17: =title47 -> Unit | F17: =title294 -> Quantity | H17: =title47 -> Unit | I17: Total | J17: =title47 -> Unit
C18: =+IF(OR($R$6=1,$R$6=4,$R$6=5),IFERROR(VLOOKUP($R$4&$S4,$T$3:$V$14,2,FALSE),""),"") -> Number of skilled workers | E18: =IF(OR(entry2=title581,entry2=title582),title583,IF(OR($R$6=1,$R$6=4,$R$6=5),IFERROR(VLOOKUP($R$4&$S4,$T$3:$V$23,3,FALSE),""),"")) -> person-hour/ha | F18: =IF(OR($R$6=1,$R$6=4,$R$6=5),IFERROR(VLOOKUP($R$4&$S6,$T$3:$V$14,2,FALSE),""),"") -> Skilled labour wage | G18: =IF(F18="","",IF(F18=title330,'Data Entry Needs'!$D$48,IF(F18=title326,'Data Entry Needs'!$I$48))) -> 0 | H18: =IF(OR($R$6=1,$R$6=4,$R$6=5),IFERROR(VLOOKUP($R$4&$S6,$T$3:$V$20,3,FALSE),""),"") -> USD/person-hour | I18: =+IFERROR(G18*D18*(COST_RES2!$E$10/created2),"") ->  | J18: =+IF(OR($R$6=1,$R$6=4,$R$6=5),title48,"") -> USD/year | K18: =IF(OR(entry2=title581,entry2=title582),1,COST_RES2!$E$11) -> 0
C19: =IF(OR($R$6=1,$R$6=4,$R$6=5),IFERROR(VLOOKUP($R$4&$S5,$T$3:$V$14,2,FALSE),""),"") ->  | E19: =IF(AND(selection2=title341,OR(entry2=title581,entry2=title582)),title583,IF(OR($R$6=1,$R$6=4,$R$6=5),IFERROR(VLOOKUP($R$4&$S5,$T$3:$V$23,3,FALSE),""),"")) ->  | F19: =IF(OR($R$6=1,$R$6=4,$R$6=5),IFERROR(VLOOKUP($R$4&$S7,$T$3:$V$14,2,FALSE),""),"") ->  | G19: =IF(F19="","",'Data Entry Needs'!$D$48) ->  | H19: =IF(OR($R$6=1,$R$6=4,$R$6=5),IFERROR(VLOOKUP($R$4&$S7,$T$3:$V$27,3,FALSE),""),"") ->  | I19: =+IFERROR(G19*D19*(COST_RES2!$E$10/created2),"") ->  | J19: =+IF(OR($R$6=1,$R$6=4,$R$6=5),title48,"") -> USD/year
D20: =+IF(AND(C18="",C19=""),0,IF(C18="",D19,IF(C19="",D18,D18+D19))) -> 0 | H20: =+IF(OR($R$6=1,$R$6=4,$R$6=5),title269,"") -> Subtotal | I20: =+SUMIF($I$18:$I$19,">0") -> 0 | J20: =+IF(OR($R$6=1,$R$6=4,$R$6=5),title48,"") -> USD/year
C21: =title320 -> Machinery and operating cost | D21: =title294 -> Quantity | E21: =title47 -> Unit | F21: =title294 -> Quantity | H21: =title47 -> Unit | I21: Total | J21: =title47 -> Unit
C22: =IF(OR($R$6=1,$R$6=4,$R$6=5),IFERROR(VLOOKUP($R$4&$S8,$T$3:$V$14,2,FALSE),""),"") -> Average fuel economy | E22: =IF(OR($R$6=1,$R$6=4,$R$6=5),IFERROR(VLOOKUP($R$4&$S8,$T$3:$V$27,3,FALSE),""),"") -> l/h | F22: =IF(OR($R$6=1,$R$6=4,$R$6=5),IFERROR(VLOOKUP($R$4&$S9,$T$3:$V$14,2,FALSE),""),"") -> Fuel price | G22: =IF(F22="","",'Data Entry Needs'!$D$55) -> 0 | H22: =+IFERROR(VLOOKUP($R$4&$S9,$T$3:$V$14,3,FALSE),"") -> USD/l | I22: =+IFERROR(G22*D22*IF($F$11=title342,0,$D$18*COST_RES2!$E$10/COST_RES2!$E$11),"") ->  | J22: =+IF(OR($R$6=1,$R$6=4,$R$6=5),title48,"") -> USD/year
H23: =+IF(OR($R$6=1,$R$6=4,$R$6=5),title269,"") -> Subtotal | I23: =+I22 ->  | J23: =+IF(OR($R$6=1,$R$6=4,$R$6=5),title48,"") -> USD/year
H24: =+IF(OR($R$6=1,$R$6=4,$R$6=5),"Total","") -> Total | I24: =IFERROR(I20+I23,I20) -> 0 | J24: =+IF(OR($R$6=1,$R$6=4,$R$6=5),title48,"") -> USD/year
F26: =IF($R$6=7,title324,title323)&'Data Entry Needs'!$D$11&" "&'Data Entry Needs'!$D$12 -> Collection price of Please Select | I26: =IFERROR(I24/COST_RES2!$E$10,0) -> 0 | J26: USD/t

Sheet STORAGE_RES3 (hidden)
C3: =UPPER(title222&'Data Entry Needs'!$E$11&" "&'Data Entry Needs'!$E$12) -> STORAGE CALCULATOR FOR GASIFICATION+RURAL ELECTRIFICATION FROM PLEASE SELECT
C6: =title223 -> Biomass safety stock rate definition
F8: =title84 -> Cogeneration Technologies
D9: =title47 -> Unit | F9: Tech 1 | G9: Tech 2 | H9: Tech 3 | I9: Tech 2 | J9: Tech 5 | K9: Tech 6 | L9: Tech 3
C10: =title224 -> Biomass consumption | D10: =title76 -> t/year | F10: =+COST_RES3!$G$43 -> 0 | I10: =+COST_RES3!$I$43 -> 0 | L10: =+COST_RES3!$K$43 -> 0
D11: =title231 -> t/month | F11: =F10/12 -> 0 | I11: =I10/12 -> 0 | L11: =L10/12 -> 0
D12: =title232 -> t/day | F12: =F10/365 -> 0 | I12: =I10/365 -> 0 | L12: =L10/365 -> 0
C14: =title225 -> Biomass production within a specific distance | D14: =title76 -> t/year | F14: =+'Data Entry Needs'!$F$13 -> 0 | G14: =+'Data Entry Needs'!$F$13 -> 0 | H14: =+'Data Entry Needs'!$F$13 -> 0 | I14: =+'Data Entry Needs'!$F$13 -> 0 | J14: =+'Data Entry Needs'!$F$13 -> 0 | K14: =+'Data Entry Needs'!$F$13 -> 0 | L14: =+'Data Entry Needs'!$F$13 -> 0
C16: =title226 -> Biomass safety stock rate | F16: =+F17/100 -> 0.3 | I16: =+I17/100 -> 0.3 | L16: =+L17/100 -> 0.3
F17: 30 | I17: 30 | L17: 30
C18: =title227 -> Biomass stock pile capacity | D18: ts | F18: =+MAX(F25:F36) -> 0 | I18: =+MAX(I25:I36) -> 0 | L18: =+MAX(L25:L36) -> 0
C20: =title228 -> Maximum storage definition
F22: =title84 -> Cogeneration Technologies
F23: =+F9 -> Tech 1 | I23: =+I9 -> Tech 2 | L23: =+L9 -> Tech 3 | AD23: Depletion time definition
C24: =title229 -> Harvest Month Selection | D24: =title230 -> Storage Month | E24: Monthly Consumption (t/month) | F24: =title233 -> Biomass Stored (t) | G24: Storage Depletion (t/month) | H24: Monthly Consumption (t/month) | I24: =title233 -> Biomass Stored (t) | J24: Storage Depletion (t/month) | K24: Monthly Consumption (t/month) | L24: =title233 -> Biomass Stored (t) | M24: Storage Depletion (t/month) | AB24: Harvest Period | AC24: Harvest Period | AD24: Depletion term | AE24: Depletion month | AF24: EQ term | AG24: Depletion time | AH24: Storage term | AI24: =title230 -> Storage Month | AJ24: EQ term | AK24: Storage time
C25: =title234 -> January | D25: =+IF($AC25=0,0,IF($AC25>$AC36,1,IF($AC25=$AC36,$D36+1,IF($AC36>$AC25,0)))) -> 0 | E25: =+F$11 -> 0 | F25: =+IF(AND($D$25=1,$D$36=0,$D$26=0),$F$11*$AG25+$F$11*$F$16,IF(D25>0,($AG25*$F$11/$AK25)*$D25+$F$11*$F$16,0)) -> 0 | G25: =IF(AND($D$25=1,$D$36=0,$D$26=0),$F$11*11+$G$36-E25,IF($D25>0,IFERROR(($AG25*$F$11/$AK25)*$D25,"")+$F$11*$F$16,IF($D25=0,G36-E25))) -> 0 | H25: =+I$11 -> 0 | I25: =+IF(AND($D$25=1,$D$36=0,$D$26=0),$I$11*$AG25+$I$11*$I$16,IF($D25>0,($AG25*$I$11/$AK25)*$D25+$I$11*$I$16,0)) -> 0 | J25: =IF(AND($D$25=1,$D$36=0,$D$26=0),$I$11*11+J36-H25,IF($D25>0,IFERROR(($AG25*$I$11/$AK25)*$D25,"")+$I$11*$I$16,IF($D25=0,J36-H25))) -> 0 | K25: =+L$11 -> 0 | L25: =+IF(AND($D$25=1,$D$36=0,$D$26=0),$L$11*$AG25+$L$11*$L$16,IF($D25>0,($AG25*$L$11/$AK25)*$D25+$L$11*$I$16,0)) -> 0 | M25: =IF(AND($D$25=1,$D$36=0,$D$26=0),$L$11*11+M36-K25,IF($D25>0,IFERROR(($AG25*$L$11/$AK25)*$D25,"")+$L$11*$L$16,IF($D25=0,M36-K25))) -> 0 | AB25: FALSE | AC25: =+N(AB25) -> 0 | AD25: =+IF(AND(AC26>AC25,AC25=0),"Last"&AF25,"") ->  | AE25: =+IF($AC25=1,0,IF($AC25<$AC36,1,IF($AC25=$AC36,$AE36+1,IF($AC36>$AC25,1)))) -> 4 | AF25: 1 | AG25: =IFERROR(VLOOKUP("LAST"&AF25,$AD$25:$AE$36,2,FALSE),AK25) -> 6 | AH25: =+IF(AND(AI25>AI26,AI26=0),"Last"&AJ25,"") ->  | AI25: =+IF($AC25=0,0,IF($AC25>$AC36,1,IF($AC25=$AC36,$AI36+1,IF($AC36>$AC25,0)))) -> 0 | AJ25: 1 | AK25: =IFERROR(VLOOKUP("LAST"&AJ25,$AH$25:$AI$36,2,FALSE),VLOOKUP("LAST"&1,$AH$25:$AI$36,2,FALSE)) -> 1
C26: =title235 -> February | D26: =+IF($AC26=0,0,IF($AC26>$AC25,1,IF($AC26=$AC25,$D25+1,IF($AC25>$AC26,0)))) -> 0 | E26: 0 | F26: =IF(D26>0,($AG26*$F$11/$AK26)*$D26+$F$11*$F$16,0) -> 0 | G26: =+IF($D26>0,IFERROR(($AG26*$F$11/$AK26)*$D26,"")+$F$11*$F$16,IF($D26=0,G25-E26)) -> 0 | H26: 0 | I26: =IF($D26>0,($AG26*$I$11/$AK26)*$D26+$I$11*$I$16,0) -> 0 | J26: =+IF($D26>0,IFERROR(($AG26*$I$11/$AK26)*$D26,"")+$I$11*$I$16,IF($D26=0,J25-H26)) -> 0 | K26: 0 | L26: =IF($D26>0,($AG26*$L$11/$AK26)*$D26+$L$11*$L$16,0) -> 0 | M26: =+IF($D26>0,IFERROR(($AG26*$L$11/$AK26)*$D26,"")+$L$11*$L$16,IF($D26=0,M25-K26)) -> 0 | AB26: FALSE | AC26: =+N(AB26) -> 0 | AD26: =+IF(AND(AC27>AC26,AC26=0),"Last"&AF26,"") ->  | AE26: =+IF($AC26=1,0,IF($AC26<$AC25,1,IF($AC26=$AC25,$AE25+1,IF($AC25>$AC26,1)))) -> 5 | AF26: =+IF($AE25>$AE26,$AF25+1,$AF25) -> 1 | AG26: =IFERROR(VLOOKUP("LAST"&AF26,$AD$25:$AE$36,2,FALSE),$AG$25) -> 6 | AH26: =+IF(AND(AI26>AI27,AI27=0),"Last"&AJ26,"") ->  | AI26: =+IF($AC26=0,0,IF($AC26>$AC25,1,IF($AC26=$AC25,$AI25+1,IF($AC25>$AC26,0)))) -> 0 | AJ26: =+IF($AI25>$AI26,$AJ25+1,$AJ25) -> 1 | AK26: =IFERROR(VLOOKUP("LAST"&AJ26,$AH$25:$AI$36,2,FALSE),VLOOKUP("LAST"&1,$AH$25:$AI$36,2,FALSE)) -> 1
C27: =title236 -> March | D27: 0 | E27: 0 | F27: 0 | G27: 0 | H27: 0 | I27: =IF($D27>0,($AG27*$I$11/$AK27)*$D27+$I$11*$I$16,0) -> 0 | J27: 0 | K27: 0 | L27: =IF($D27>0,($AG27*$L$11/$AK27)*$D27+$L$11*$L$16,0) -> 0 | M27: 0 | AB27: FALSE | AC27: 0 | AD27: =+IF(AND(AC28>AC27,AC27=0),"Last"&AF27,"") -> Last1 | AE27: 6 | AF27: =+IF($AE26>$AE27,$AF26+1,$AF26) -> 1 | AG27: 6 | AH27: =+IF(AND(AI27>AI28,AI28=0),"Last"&AJ27,"") ->  | AI27: =+IF($AC27=0,0,IF($AC27>$AC26,1,IF($AC27=$AC26,$AI26+1,IF($AC26>$AC27,0)))) -> 0 | AJ27: =+IF($AI26>$AI27,$AJ26+1,$AJ26) -> 1 | AK27: 1
C28: =title237 -> April | D28: 1 | E28: 0 | F28: 0 | G28: 0 | H28: 0 | I28: =IF($D28>0,($AG28*$I$11/$AK28)*$D28+$I$11*$I$16,0) -> 0 | J28: 0 | K28: 0 | L28: 0 | M28: 0 | AB28: TRUE | AC28: 1 | AD28: =+IF(AND(AC29>AC28,AC28=0),"Last"&AF28,"") ->  | AE28: 0 | AF28: =+IF($AE27>$AE28,$AF27+1,$AF27) -> 2 | AG28: 4 | AH28: =+IF(AND(AI28>AI29,AI29=0),"Last"&AJ28,"") -> Last1 | AI28: 1 | AJ28: 1 | AK28: 1
C29: =title238 -> May | D29: 0 | E29: 0 | F29: 0 | G29: 0 | H29: 0 | I29: 0 | J29: 0 | K29: 0 | L29: 0 | M29: 0 | AB29: FALSE | AC29: 0 | AE29: 1 | AF29: 2 | AG29: 4 | AH29: =+IF(AND(AI29>AI30,AI30=0),"Last"&AJ29,"") ->  | AI29: 0 | AJ29: 2 | AK29: 1
C30: =title239 -> June | D30: 0 | E30: 0 | F30: 0 | G30: 0 | H30: 0 | I30: 0 | J30: 0 | K30: 0 | L30: 0 | M30: 0 | AB30: FALSE | AC30: 0 | AE30: 2 | AF30: 2 | AG30: 4 | AI30: 0 | AJ30: 2 | AK30: 1
C31: =title240 -> July | D31: 0 | E31: 0 | F31: 0 | G31: 0 | H31: 0 | I31: 0 | J31: 0 | K31: 0 | L31: 0 | M31: 0 | AB31: FALSE | AC31: 0 | AE31: 3 | AF31: 2 | AG31: 4 | AI31: 0 | AJ31: 2 | AK31: 1
C32: =title241 -> August | D32: 0 | E32: 0 | F32: 0 | G32: 0 | H32: 0 | I32: 0 | J32: 0 | K32: 0 | L32: 0 | M32: 0 | AB32: FALSE | AC32: 0 | AD32: Last2 | AE32: 4 | AF32: 2 | AG32: 4 | AI32: 0 | AJ32: 2 | AK32: 1
C33: =title242 -> September | D33: 1 | E33: 0 | F33: 0 | G33: 0 | H33: 0 | I33: 0 | J33: 0 | K33: 0 | L33: 0 | M33: 0 | AB33: TRUE | AC33: 1 | AE33: 0 | AF33: 3 | AG33: 6 | AH33: Last2 | AI33: 1 | AJ33: 2 | AK33: 1
C34: =title243 -> October | D34: 0 | E34: 0 | F34: 0 | G34: 0 | H34: 0 | I34: 0 | J34: 0 | K34: 0 | L34: 0 | M34: 0 | AB34: FALSE | AC34: 0 | AE34: 1 | AF34: 3 | AG34: 6 | AI34: 0 | AJ34: 3 | AK34: 1
C35: =title244 -> November | D35: 0 | E35: 0 | F35: 0 | G35: 0 | H35: 0 | I35: 0 | J35: 0 | K35: 0 | L35: 0 | M35: 0 | AB35: FALSE | AC35: 0 | AE35: 2 | AF35: 3 | AG35: 6 | AI35: 0 | AJ35: 3 | AK35: 1
C36: =title245 -> December | D36: 0 | E36: 0 | F36: 0 | G36: 0 | H36: 0 | I36: 0 | J36: 0 | K36: 0 | L36: 0 | M36: 0 | AB36: FALSE | AC36: 0 | AD36: =+IF(AND(AC25>AC36,AC36=0),"Last"&AF36,"") ->  | AE36: 3 | AF36: =+IF($AE35>$AE36,$AF35+1,$AF35) -> 3 | AG36: =IFERROR(VLOOKUP("LAST"&AF36,$AD$25:$AE$36,2,FALSE),$AG$25) -> 6 | AH36: =+IF(AND(AI36>AI25,AI25=0),"Last"&AJ36,"") ->  | AI36: =+IF($AC36=0,0,IF($AC36>$AC35,1,IF($AC36=$AC35,$AI35+1,IF($AC35>$AC36,0)))) -> 0 | AJ36: =+IF($AI35>$AI36,$AJ35+1,$AJ35) -> 3 | AK36: 1
D37: =+MAX(D25:D36)*30 -> 30
C38: =title246 -> Maximum Storage Capacity Required (ts) | F38: =ROUNDUP(MAX(F25:F36),0) -> 0 | G38: =ROUNDUP(MAX(G25:G36),0) -> 0 | H38: 0 | I38: 0 | J38: 0 | K38: 0 | L38: 0 | AB38: No. Storage Months | AC38: =+COUNTIF(AC25:AC36,">0") -> 2
C39: =title247 -> Minimum Safety Storage (ts) | F39: =+ROUNDUP(MIN(G25:G36),0) -> 0 | I39: =+ROUNDUP(MIN(J25:J36),0) -> 0 | L39: =+ROUNDUP(MIN(M25:M36),0) -> 0 | AB39: Total Depletion Period | AC39: =12-AC38 -> 10
C41: =title248 -> Monthly Consumption of Biomass Stocked
AC43: =F23&" (kW)" -> Tech 1 (kW) | AD43: =I23&" (kW)" -> Tech 2 (kW) | AE43: =L23&" (kW)" -> Tech 3 (kW)
AB44: =+LEFT(C25,3) -> Jan | AC44: =+G25 -> 0 | AD44: =+J25 -> 0 | AE44: =+M25 -> 0
AB45: Feb | AC45: 0 | AD45: 0 | AE45: 0
AB46: Mar | AC46: 0 | AD46: 0 | AE46: 0
AB47: Apr | AC47: 0 | AD47: 0 | AE47: 0
AB48: May | AC48: 0 | AD48: 0 | AE48: 0
AB49: Jun | AC49: 0 | AD49: 0 | AE49: 0
AB50: =+LEFT(C32,3) -> Aug | AC50: =+G32 -> 0 | AD50: =+J32 -> 0 | AE50: =+M32 -> 0
AB51: =+LEFT(C33,3) -> Sep | AC51: =+G33 -> 0 | AD51: =+J33 -> 0 | AE51: =+M33 -> 0
AB52: =+LEFT(C34,3) -> Oct | AC52: =+G34 -> 0 | AD52: =+J34 -> 0 | AE52: =+M34 -> 0
AB53: =+LEFT(C35,3) -> Nov | AC53: =+G35 -> 0 | AD53: =+J35 -> 0 | AE53: =+M35 -> 0
AB54: =+LEFT(C36,3) -> Dec | AC54: =+G36 -> 0 | AD54: =+J36 -> 0 | AE54: =+M36 -> 0

Sheet FA_Simple_RES2 (hidden)
B1: =title344 -> FINANCIAL EVALUATION OF COGENERATION SIMPLE TECHNOLOGY
A4: =title345 -> Revenues
B6: =title346 -> Operating Year | C6: 0 | D6: 1 | E6: 2 | F6: 3 | G6: 4 | H6: 5 | I6: 6 | J6: 7 | K6: 8 | L6: 9 | M6: 10 | N6: 11 | O6: 12 | P6: 13 | Q6: 14 | R6: 15 | S6: 16 | T6: 17 | U6: 18 | V6: 19 | W6: 20
B8: =title347 -> Power generation capacity (kW) | C8: =COST_RES2!$G$26*1000 ->  | D8: =C8 ->  | E8: =D8 -> 
B9: =title348 -> Power loss in distribution network (%) | C9: =+COST_RES2!$I$14 -> 0 | D9: =+C9 -> 0 | E9: =+D9 -> 0 | F9: 0 | G9: 0 | H9: 0 | I9: 0 | J9: 0 | K9: 0 | L9: 0 | M9: 0 | N9: 0 | O9: 0 | P9: 0 | Q9: 0 | R9: 0 | S9: 0 | T9: 0 | U9: 0 | V9: 0 | W9: 0
B10: =title266 -> Operating hours per year | C10: =+COST_RES2!$H$38 -> 0 | D10: =C10 -> 0 | E10: =D10 -> 0 | F10: 0 | G10: 0 | H10: 0 | I10: 0 | J10: 0 | K10: 0 | L10: 0 | M10: 0 | N10: 0 | O10: 0 | P10: 0 | Q10: 0 | R10: 0 | S10: 0 | T10: 0 | U10: 0 | V10: 0 | W10: 0
B12: =title349 -> Electricity generation (kWh per year) | C12: =C8*C10*(1-C9) ->  | D12: =D8*D10*(1-D9) -> 
B13: =title350 -> Electricity - self use cogeneration (kWh per year) | C13: =C12*COST_RES2!$I$14 ->  | D13: =D12*10% -> 
B14: =title351 -> Power loss in distribution network (kWh per year) | C14: =C12*COST_RES2!$I$13 ->  | D14: =C14 ->  | E14: =D14 -> 
B15: =title352 -> Electricity consumed by main Industry (kWh per year) | C15: ='Energy Demand'!$G$21*1000 -> 0 | D15: =C15 -> 0 | E15: 0 | F15: 0 | G15: 0 | H15: 0 | I15: 0 | J15: 0 | K15: 0 | L15: 0 | M15: 0 | N15: 0 | O15: 0 | P15: 0 | Q15: 0 | R15: 0 | S15: 0 | T15: 0 | U15: 0 | V15: 0 | W15: 0
B16: =title353 -> Total power sold to the customers (kWh per year) | C16: =IF(NOT('Summary of results-by feedstock'!$AE$199),IF(C12-C13-C14-C15>0,C12-C13-C14-C15,0),C12) ->  | D16: =C16 -> 
B18: =title354 -> Heat generation (GJ per year) | C18: 0 | D18: =C18 -> 0 | E18: =D18 -> 0 | F18: 0 | G18: 0 | H18: 0 | I18: 0 | J18: 0 | K18: 0 | L18: 0 | M18: 0 | N18: 0 | O18: 0 | P18: 0 | Q18: 0 | R18: 0 | S18: 0 | T18: 0 | U18: 0 | V18: 0 | W18: 0
B19: =title355 -> Heat loss in distribution network (GJ per year) | C19: =C18*COST_RES2!$I$12 -> 0 | D19: =C19 -> 0 | E19: 0 | F19: 0 | G19: 0 | H19: 0 | I19: 0 | J19: 0 | K19: 0 | L19: 0 | M19: 0 | N19: 0 | O19: 0 | P19: 0 | Q19: 0 | R19: 0 | S19: 0 | T19: 0 | U19: 0 | V19: 0 | W19: 0
B20: =title356 -> Heat available for main Industry (GJ per year) | C20: =C18-C19 -> 0 | D20: =C20 -> 0 | E20: 0 | F20: 0 | G20: 0 | H20: 0 | I20: 0 | J20: 0 | K20: 0 | L20: 0 | M20: 0 | N20: 0 | O20: 0 | P20: 0 | Q20: 0 | R20: 0 | S20: 0 | T20: 0 | U20: 0 | V20: 0 | W20: 0
B21: =title357 -> Heat demad main Industry (GJ per year) | C21: ='Energy Demand'!$G$22 -> 0 | D21: =C21 -> 0 | E21: 0 | F21: 0 | G21: 0 | H21: 0 | I21: 0 | J21: 0 | K21: 0 | L21: 0 | M21: 0 | N21: 0 | O21: 0 | P21: 0 | Q21: 0 | R21: 0 | S21: 0 | T21: 0 | U21: 0 | V21: 0 | W21: 0
B22: =title358 -> Heat supplied to main Industry (GJ per year) | C22: =IF(NOT('Summary of results-by feedstock'!$AE$197),IF(C21>C20,C20,C21),0) ->  | D22: =IF(NOT('Summary of results-by feedstock'!$AE$197),IF(D21>D20,D20,D21),0) ->  | E22: =IF(NOT('Summary of results-by feedstock'!$AE$197),IF(E21>E20,E20,E21),0) ->  | F22: =IF(NOT('Summary of results-by feedstock'!$AE$197),IF(F21>F20,F20,F21),0) ->  | G22: =IF(NOT('Summary of results-by feedstock'!$AE$197),IF(G21>G20,G20,G21),0) ->  | H22: =IF(NOT('Summary of results-by feedstock'!$AE$197),IF(H21>H20,H20,H21),0) ->  | I22: =IF(NOT('Summary of results-by feedstock'!$AE$197),IF(I21>I20,I20,I21),0) ->  | J22: =IF(NOT('Summary of results-by feedstock'!$AE$197),IF(J21>J20,J20,J21),0) ->  | K22: =IF(NOT('Summary of results-by feedstock'!$AE$197),IF(K21>K20,K20,K21),0) ->  | L22: =IF(NOT('Summary of results-by feedstock'!$AE$197),IF(L21>L20,L20,L21),0) ->  | M22: =IF(NOT('Summary of results-by feedstock'!$AE$197),IF(M21>M20,M20,M21),0) ->  | N22: =IF(NOT('Summary of results-by feedstock'!$AE$197),IF(N21>N20,N20,N21),0) ->  | O22: =IF(NOT('Summary of results-by feedstock'!$AE$197),IF(O21>O20,O20,O21),0) ->  | P22: =IF(NOT('Summary of results-by feedstock'!$AE$197),IF(P21>P20,P20,P21),0) ->  | Q22: =IF(NOT('Summary of results-by feedstock'!$AE$197),IF(Q21>Q20,Q20,Q21),0) ->  | R22: =IF(NOT('Summary of results-by feedstock'!$AE$197),IF(R21>R20,R20,R21),0) ->  | S22: =IF(NOT('Summary of results-by feedstock'!$AE$197),IF(S21>S20,S20,S21),0) ->  | T22: =IF(NOT('Summary of results-by feedstock'!$AE$197),IF(T21>T20,T20,T21),0) ->  | U22: =IF(NOT('Summary of results-by feedstock'!$AE$197),IF(U21>U20,U20,U21),0) ->  | V22: =IF(NOT('Summary of results-by feedstock'!$AE$197),IF(V21>V20,V20,V21),0) ->  | W22: =IF(NOT('Summary of results-by feedstock'!$AE$197),IF(W21>W20,W20,W21),0) -> 
B23: =title359 -> Heat sold to the customers (GJ per year) | C23: =IF('Summary of results-by feedstock'!$AE$197,C20,0) ->  | D23: =IF('Summary of results-by feedstock'!$AE$197,D20,0) ->  | E23: =IF('Summary of results-by feedstock'!$AE$197,E20,0) ->  | F23: =IF('Summary of results-by feedstock'!$AE$197,F20,0) ->  | G23: =IF('Summary of results-by feedstock'!$AE$197,G20,0) ->  | H23: =IF('Summary of results-by feedstock'!$AE$197,H20,0) ->  | I23: =IF('Summary of results-by feedstock'!$AE$197,I20,0) ->  | J23: =IF('Summary of results-by feedstock'!$AE$197,J20,0) ->  | K23: =IF('Summary of results-by feedstock'!$AE$197,K20,0) ->  | L23: =IF('Summary of results-by feedstock'!$AE$197,L20,0) ->  | M23: =IF('Summary of results-by feedstock'!$AE$197,M20,0) ->  | N23: =IF('Summary of results-by feedstock'!$AE$197,N20,0) ->  | O23: =IF('Summary of results-by feedstock'!$AE$197,O20,0) ->  | P23: =IF('Summary of results-by feedstock'!$AE$197,P20,0) ->  | Q23: =IF('Summary of results-by feedstock'!$AE$197,Q20,0) ->  | R23: =IF('Summary of results-by feedstock'!$AE$197,R20,0) ->  | S23: =IF('Summary of results-by feedstock'!$AE$197,S20,0) ->  | T23: =IF('Summary of results-by feedstock'!$AE$197,T20,0) ->  | U23: =IF('Summary of results-by feedstock'!$AE$197,U20,0) ->  | V23: =IF('Summary of results-by feedstock'!$AE$197,V20,0) ->  | W23: =IF('Summary of results-by feedstock'!$AE$197,W20,0) -> 
B25: =title360 -> Selling electricity Price (USD/kWh) | C25: ='Data Entry Needs'!$D$28 -> 0 | D25: =C25 -> 0 | E25: =D25 -> 0 | F25: 0 | G25: 0 | H25: 0 | I25: 0 | J25: 0 | K25: 0 | L25: 0 | M25: 0 | N25: 0 | O25: 0 | P25: 0 | Q25: 0 | R25: 0 | S25: 0 | T25: 0 | U25: 0 | V25: 0 | W25: 0
C26: =C25*C16 -> 
B27: =title361 -> Electricity cost avoided main industry (USD/kWh) | C27: ='Data Entry Needs'!$D$26 -> 0 | D27: =C27 -> 0 | E27: =D27 -> 0 | F27: 0 | G27: 0 | H27: 0 | I27: 0 | J27: 0 | K27: 0 | L27: 0 | M27: 0 | N27: 0 | O27: 0 | P27: 0 | Q27: 0 | R27: 0 | S27: 0 | T27: 0 | U27: 0 | V27: 0 | W27: 0
C28: =C27*(C12-C16) ->  | D28: =D27*(D12-D16) -> 
B29: =title362 -> Heat cost avoided main Industry (USD/Gj) | C29: =COST_RES2!$N$14 -> 0 | D29: =C29 -> 0 | E29: =D29 -> 0 | F29: 0 | G29: 0 | H29: 0 | I29: 0 | J29: 0 | K29: 0 | L29: 0 | M29: 0 | N29: 0 | O29: 0 | P29: 0 | Q29: 0 | R29: 0 | S29: 0 | T29: 0 | U29: 0 | V29: 0 | W29: 0
C30: =C22*C29 ->  | D30: =D22*D29 -> 
B31: =title363 -> Heat sales to nearby consumers (USD/Gj) | C31: ='Data Entry Needs'!$I$28 -> 0 | D31: ='Data Entry Needs'!$I$28 -> 0 | E31: ='Data Entry Needs'!$I$28 -> 0 | F31: ='Data Entry Needs'!$I$28 -> 0 | G31: ='Data Entry Needs'!$I$28 -> 0 | H31: ='Data Entry Needs'!$I$28 -> 0 | I31: ='Data Entry Needs'!$I$28 -> 0 | J31: ='Data Entry Needs'!$I$28 -> 0 | K31: ='Data Entry Needs'!$I$28 -> 0 | L31: ='Data Entry Needs'!$I$28 -> 0 | M31: ='Data Entry Needs'!$I$28 -> 0 | N31: ='Data Entry Needs'!$I$28 -> 0 | O31: ='Data Entry Needs'!$I$28 -> 0 | P31: ='Data Entry Needs'!$I$28 -> 0 | Q31: ='Data Entry Needs'!$I$28 -> 0 | R31: ='Data Entry Needs'!$I$28 -> 0 | S31: ='Data Entry Needs'!$I$28 -> 0 | T31: ='Data Entry Needs'!$I$28 -> 0 | U31: ='Data Entry Needs'!$I$28 -> 0 | V31: ='Data Entry Needs'!$I$28 -> 0 | W31: ='Data Entry Needs'!$I$28 -> 0
C32: =C31*C23 ->  | D32: =D31*D23 -> 
B33: =title364 -> Total income (USD/year) | C33: =C26+C28+C30+C32 ->  | D33: =D26+D28+D30+D32 -> 
B35: =title365 -> Project lifetime (years) | C35: =+COST_RES2!$N$16 -> 0
A38: =title366 -> Capital and operating cost
B40: =title346 -> Operating Year | C40: =title370 -> Appraisal | D40: 1 | E40: 2 | F40: 3 | G40: 4 | H40: 5 | I40: 6 | J40: 7 | K40: 8 | L40: 9 | M40: 10 | N40: 11 | O40: 12 | P40: 13 | Q40: 14 | R40: 15 | S40: 16 | T40: 17 | U40: 18 | V40: 19 | W40: 20
B41: =title367 -> Direct capital cost (USD)
B42: =title280 -> Equipments | C42: =COST_RES2!$G$66 -> 
B43: =title281 -> Building | C43: =COST_RES2!$G$67 -> 
B44: =title282 -> Installation | C44: =COST_RES2!$G$68 -> 
B45: =title368 -> Total capital cost (USD) | C45: =SUM(C42:C44) ->  | D45: =D42+D43+D44 -> 0 | E45: 0 | F45: 0 | G45: 0 | H45: 0 | I45: 0 | J45: 0 | K45: 0 | L45: 0 | M45: 0 | N45: 0 | O45: 0 | P45: 0 | Q45: 0 | R45: 0 | S45: 0 | T45: 0 | U45: 0 | V45: 0 | W45: 0
B46: =title369 -> Capital cost (USD/kW) | C46: =C45/C8 -> 
B49: =title346 -> Operating Year | C49: =title370 -> Appraisal | D49: 1 | E49: 2 | F49: 3 | G49: 4 | H49: 5 | I49: 6 | J49: 7 | K49: 8 | L49: 9 | M49: 10 | N49: 11 | O49: 12 | P49: 13 | Q49: 14 | R49: 15 | S49: 16 | T49: 17 | U49: 18 | V49: 19 | W49: 20
B50: =title372 -> Annual operating and maintenance cost
B51: =title373 -> Sub-total material cost (USD) | C51: =C52+C60 ->  | D51: =D52+D60 -> 
B52: =title374 -> Biomass cost (USD/year) | C52: =C53*C54 -> 0 | D52: =D53*D54 -> 0 | E52: =E53*E54 -> 0 | F52: 0 | G52: 0 | H52: 0 | I52: 0 | J52: 0 | K52: 0 | L52: 0 | M52: 0 | N52: 0 | O52: 0 | P52: 0 | Q52: 0 | R52: 0 | S52: 0 | T52: 0 | U52: 0 | V52: 0 | W52: 0
B53: =title375 -> Biomass consumption (tne per year) | C53: =+COST_RES2!$G$43 -> 0 | D53: =+C53 -> 0 | E53: =+D53 -> 0 | F53: 0 | G53: 0 | H53: 0 | I53: 0 | J53: 0 | K53: 0 | L53: 0 | M53: 0 | N53: 0 | O53: 0 | P53: 0 | Q53: 0 | R53: 0 | S53: 0 | T53: 0 | U53: 0 | V53: 0 | W53: 0
B54: =title376 -> Biomass total price (USD/t) | C54: =SUM(C55:C56) -> 0 | D54: =SUM(D55:D56) -> 0 | E54: 0 | F54: 0 | G54: 0 | H54: 0 | I54: 0 | J54: 0 | K54: 0 | L54: 0 | M54: 0 | N54: 0 | O54: 0 | P54: 0 | Q54: 0 | R54: 0 | S54: 0 | T54: 0 | U54: 0 | V54: 0 | W54: 0
B55: =title377 -> Biomass price (USD/t) | C55: =+COST_RES2!$F$43 -> 0 | D55: =C55 -> 0 | E55: =D55 -> 0 | F55: 0 | G55: 0 | H55: 0 | I55: 0 | J55: 0 | K55: 0 | L55: 0 | M55: 0 | N55: 0 | O55: 0 | P55: 0 | Q55: 0 | R55: 0 | S55: 0 | T55: 0 | U55: 0 | V55: 0 | W55: 0
B56: =title378 -> Biomass transportation cost (USD/t) | C56: =+C57*C58 -> 0 | D56: =C56 -> 0 | E56: 0 | F56: 0 | G56: 0 | H56: 0 | I56: 0 | J56: 0 | K56: 0 | L56: 0 | M56: 0 | N56: 0 | O56: 0 | P56: 0 | Q56: 0 | R56: 0 | S56: 0 | T56: 0 | U56: 0 | V56: 0 | W56: 0
B57: =title379 -> Biomass from farm to plant (USD/t/km) | C57: =+COST_RES2!$F$56 -> 0
B58: =title380 -> Transportation distance (km) | C58: =+COST_RES2!$G$56 -> 0
B60: =title381 -> Water cost (USD/year) | C60: =C61*C62 ->  | D60: =D61*D62 -> 
B61: =title382 -> Water consumption (m3 per year) | C61: =+COST_RES2!$G$44 ->  | D61: =+C61 ->  | E61: =+D61 -> 
B62: =title383 -> Water + chemical additives cost (USD/m3) | C62: =+COST_RES2!$F$44 -> 0.4385964912 | D62: =C62 -> 0.4385964912 | E62: =D62 -> 0.4385964912 | F62: 0.4385964912 | G62: 0.4385964912 | H62: 0.4385964912 | I62: 0.4385964912 | J62: 0.4385964912 | K62: 0.4385964912 | L62: 0.4385964912 | M62: 0.4385964912 | N62: 0.4385964912 | O62: 0.4385964912 | P62: 0.4385964912 | Q62: 0.4385964912 | R62: 0.4385964912 | S62: 0.4385964912 | T62: 0.4385964912 | U62: 0.4385964912 | V62: 0.4385964912 | W62: 0.4385964912
B64: =title384 -> Sub-total operating cost (USD) | C64: =C65+C66+C67 -> 
B65: =title319&" (USD)" -> Labour cost (USD) | C65: =COST_RES2!H52 ->  | D65: =C65 ->  | E65: =D65 -> 
B66: =title285 -> Plant overhead | C66: =COST_RES2!H76 ->  | D66: =C66 -> 
B67: =title286 -> General and administrative cost | C67: =COST_RES2!H77 ->  | D67: =C67 -> 
B68: =title385 -> Sub-total maintenance cost (USD) | C68: =COST_RES2!H71 ->  | D68: =C68 -> 
B70: =title386 -> Sub-total of annual fixed cost | C70: =COST_RES2!H70 ->  | D70: =C70 ->  | E70: =D70 -> 
B72: =title387 -> Sub-total of storage capacity | C72: =+COST_RES2!H62 -> 0 | D72: =C72 -> 0 | E72: =D72 -> 0 | F72: 0 | G72: 0 | H72: 0 | I72: 0 | J72: 0 | K72: 0 | L72: 0 | M72: 0 | N72: 0 | O72: 0 | P72: 0 | Q72: 0 | R72: 0 | S72: 0 | T72: 0 | U72: 0 | V72: 0 | W72: 0
B74: =title388 -> Total operation and maintenance cost (USD) | C74: =C51+C64+C68+C70+C72 -> 
A76: =title102 -> Financial parameters
B77: =title346 -> Operating Year | C77: =title370 -> Appraisal | D77: 1 | E77: 2 | F77: 3 | G77: 4 | H77: 5 | I77: 6 | J77: 7 | K77: 8 | L77: 9 | M77: 10 | N77: 11 | O77: 12 | P77: 13 | Q77: 14 | R77: 15 | S77: 16 | T77: 17 | U77: 18 | V77: 19 | W77: 20
B78: =title103&" (%)" -> Discount rate (%) | C78: =+COST_RES2!$N$13 -> 0
B79: =title104&" (%)" -> Loan ratio (%) | C79: =+COST_RES2!$N$11 -> 0
B81: =title389 -> Loans | D81: 1 | E81: 2 | F81: 3 | G81: 4 | H81: 5 | I81: 6 | J81: 7 | K81: 8 | L81: 9 | M81: 10 | N81: 11 | O81: 12 | P81: 13 | Q81: 14 | R81: 15 | S81: 16 | T81: 17 | U81: 18 | V81: 19 | W81: 20
B82: =title307&" (USD)" -> Loan amount (USD) | C82: =C79*C45 -> 
B83: =title105&" (%)" -> Loan interest rate (%) | C83: =+COST_RES2!$N$10 -> 0
B84: =title106&" ("&title107&")" -> Loan term (years) | C84: =+COST_RES2!$N$12 -> 0
B85: =title390 -> Loan payment (USD/month) | C85: =(PMT(C83/12,(12*C84),C82)) -> 
B86: =title391 -> Loan payment (USD/year) | D86: =IF(D77<=$C$84,$C$85*12,0) -> 0 | E86: =IF(E77<=$C$84,$C$85*12,0) -> 0 | F86: 0 | G86: 0 | H86: 0 | I86: 0 | J86: 0 | K86: 0 | L86: 0 | M86: 0 | N86: 0 | O86: 0 | P86: 0 | Q86: 0 | R86: 0 | S86: 0 | T86: 0 | U86: 0 | V86: 0 | W86: 0
B87: =title392 -> Total loan payment (USD) | C87: =SUM(D86:W86) -> 0
B88: =title393 -> Loan interest payment (USD) | C88: =C87+C82 ->  | D88: =title396 -> Average loan interest payment for project lifetime | G88: =C88/C35 ->  | H88: =title397 -> USD per year
A90: =title295 -> Depreciation
B91: =title346 -> Operating Year | C91: =title370 -> Appraisal | D91: 1 | E91: 2 | F91: 3 | G91: 4 | H91: 5 | I91: 6 | J91: 7 | K91: 8 | L91: 9 | M91: 10 | N91: 11 | O91: 12 | P91: 13 | Q91: 14 | R91: 15 | S91: 16 | T91: 17 | U91: 18 | V91: 19 | W91: 20
B92: =title394 -> Depreciation method | C92: =title371 -> Straight-line
B93: =title395 -> Total depreciation (USD) | D93: =COST_RES2!H70 ->  | E93: =D93 ->  | F93: =E93 -> 
A96: =title398 -> Base case project
A97: =title399 -> Summary of this project - before tax
B98: =title346 -> Operating Year | C98: =title370 -> Appraisal | D98: 1 | E98: 2 | F98: 3 | G98: 4 | H98: 5 | I98: 6 | J98: 7 | K98: 8 | L98: 9 | M98: 10 | N98: 11 | O98: 12 | P98: 13 | Q98: 14 | R98: 15 | S98: 16 | T98: 17 | U98: 18 | V98: 19 | W98: 20
B99: =title400 -> Total revenue (USD) | D99: =D33 -> 
B100: =title368 -> Total capital cost (USD) | C100: =-(C45-C82) -> 
B101: =title401 -> Total operating and maintenance cost (USD) | D101: =-D74+D70 -> 
B102: =title402 -> Loan payment (USD) | D102: =D86 -> 0 | E102: 0 | F102: 0 | G102: 0 | H102: 0 | I102: 0 | J102: 0 | K102: 0 | L102: 0 | M102: 0 | N102: 0 | O102: 0 | P102: 0 | Q102: 0 | R102: 0 | S102: 0 | T102: 0 | U102: 0 | V102: 0 | W102: 0
B103: =title403 -> Cash flow - before tax (USD) | C103: =SUM(C99:C102) ->  | D103: =SUM(D99:D102) -> 
A105: =title404 -> Financial analysis results
B107: =title405 -> Net Present Value (NPV) (USD) - before tax | C107: =NPV(C78,D103:W103)+C103 -> 
B108: =title406 -> Internal Rate of Return (IRR) (%) - before tax | C108: =IF(tir_cell=title593,IF(C107<0,title407,IRR(C103:W103,0.000001)),IF(C107<0,title407,MIRR(C103:W103,fin_rate,rein_rate))) -> 

Sheet FA_Semi_RES2 (hidden)
B1: =title408 -> FINANCIAL EVALUATION OF COGENERATION SEMI-ADVANCED TECHNOLOGY
A4: =title345 -> Revenues
B6: =title346 -> Operating Year | C6: 0 | D6: 1 | E6: 2 | F6: 3 | G6: 4 | H6: 5 | I6: 6 | J6: 7 | K6: 8 | L6: 9 | M6: 10 | N6: 11 | O6: 12 | P6: 13 | Q6: 14 | R6: 15 | S6: 16 | T6: 17 | U6: 18 | V6: 19 | W6: 20
B8: =title347 -> Power generation capacity (kW) | C8: =COST_RES2!$I$26*1000 ->  | D8: =C8 ->  | E8: =D8 -> 
B9: =title348 -> Power loss in distribution network (%) | C9: =+COST_RES2!$I$14 -> 0 | D9: =+C9 -> 0 | E9: =+D9 -> 0 | F9: 0 | G9: 0 | H9: 0 | I9: 0 | J9: 0 | K9: 0 | L9: 0 | M9: 0 | N9: 0 | O9: 0 | P9: 0 | Q9: 0 | R9: 0 | S9: 0 | T9: 0 | U9: 0 | V9: 0 | W9: 0
B10: =title266 -> Operating hours per year | C10: =+COST_RES2!$H$38 -> 0 | D10: =C10 -> 0 | E10: =D10 -> 0 | F10: 0 | G10: 0 | H10: 0 | I10: 0 | J10: 0 | K10: 0 | L10: 0 | M10: 0 | N10: 0 | O10: 0 | P10: 0 | Q10: 0 | R10: 0 | S10: 0 | T10: 0 | U10: 0 | V10: 0 | W10: 0
B12: =title349 -> Electricity generation (kWh per year) | C12: =C8*C10*(1-C9) ->  | D12: =D8*D10*(1-D9) -> 
B13: =title350 -> Electricity - self use cogeneration (kWh per year) | C13: =C12*COST_RES2!$I$14 ->  | D13: =D12*10% -> 
B14: =title351 -> Power loss in distribution network (kWh per year) | C14: =C12*COST_RES2!$I$13 ->  | D14: =C14 -> 
B15: =title352 -> Electricity consumed by main Industry (kWh per year) | C15: ='Energy Demand'!$G$21*1000 -> 0 | D15: =C15 -> 0 | E15: 0 | F15: 0 | G15: 0 | H15: 0 | I15: 0 | J15: 0 | K15: 0 | L15: 0 | M15: 0 | N15: 0 | O15: 0 | P15: 0 | Q15: 0 | R15: 0 | S15: 0 | T15: 0 | U15: 0 | V15: 0 | W15: 0
B16: =title353 -> Total power sold to the customers (kWh per year) | C16: =IF(NOT('Summary of results-by feedstock'!$AE$199),IF(C12-C13-C14-C15>0,C12-C13-C14-C15,0),C12) ->  | D16: =C16 -> 
B18: =title354 -> Heat generation (GJ per year) | C18: =COST_RES2!I28/1000 ->  | D18: =C18 ->  | E18: =D18 -> 
B19: =title355 -> Heat loss in distribution network (GJ per year) | C19: =C18*COST_RES2!$I$12 ->  | D19: =C19 -> 
B20: =title356 -> Heat available for main Industry (GJ per year) | C20: =C18-C19 ->  | D20: =C20 -> 
B21: =title357 -> Heat demad main Industry (GJ per year) | C21: ='Energy Demand'!$G$22 -> 0 | D21: =C21 -> 0 | E21: 0 | F21: 0 | G21: 0 | H21: 0 | I21: 0 | J21: 0 | K21: 0 | L21: 0 | M21: 0 | N21: 0 | O21: 0 | P21: 0 | Q21: 0 | R21: 0 | S21: 0 | T21: 0 | U21: 0 | V21: 0 | W21: 0
B22: =title358 -> Heat supplied to main Industry (GJ per year) | C22: =IF(NOT('Summary of results-by feedstock'!$AE$197),IF(C21>C20,C20,C21),0) ->  | D22: =IF(NOT('Summary of results-by feedstock'!$AE$197),IF(D21>D20,D20,D21),0) ->  | E22: =IF(NOT('Summary of results-by feedstock'!$AE$197),IF(E21>E20,E20,E21),0) ->  | F22: =IF(NOT('Summary of results-by feedstock'!$AE$197),IF(F21>F20,F20,F21),0) ->  | G22: =IF(NOT('Summary of results-by feedstock'!$AE$197),IF(G21>G20,G20,G21),0) ->  | H22: =IF(NOT('Summary of results-by feedstock'!$AE$197),IF(H21>H20,H20,H21),0) ->  | I22: =IF(NOT('Summary of results-by feedstock'!$AE$197),IF(I21>I20,I20,I21),0) ->  | J22: =IF(NOT('Summary of results-by feedstock'!$AE$197),IF(J21>J20,J20,J21),0) ->  | K22: =IF(NOT('Summary of results-by feedstock'!$AE$197),IF(K21>K20,K20,K21),0) ->  | L22: =IF(NOT('Summary of results-by feedstock'!$AE$197),IF(L21>L20,L20,L21),0) ->  | M22: =IF(NOT('Summary of results-by feedstock'!$AE$197),IF(M21>M20,M20,M21),0) ->  | N22: =IF(NOT('Summary of results-by feedstock'!$AE$197),IF(N21>N20,N20,N21),0) ->  | O22: =IF(NOT('Summary of results-by feedstock'!$AE$197),IF(O21>O20,O20,O21),0) ->  | P22: =IF(NOT('Summary of results-by feedstock'!$AE$197),IF(P21>P20,P20,P21),0) ->  | Q22: =IF(NOT('Summary of results-by feedstock'!$AE$197),IF(Q21>Q20,Q20,Q21),0) ->  | R22: =IF(NOT('Summary of results-by feedstock'!$AE$197),IF(R21>R20,R20,R21),0) ->  | S22: =IF(NOT('Summary of results-by feedstock'!$AE$197),IF(S21>S20,S20,S21),0) ->  | T22: =IF(NOT('Summary of results-by feedstock'!$AE$197),IF(T21>T20,T20,T21),0) ->  | U22: =IF(NOT('Summary of results-by feedstock'!$AE$197),IF(U21>U20,U20,U21),0) ->  | V22: =IF(NOT('Summary of results-by feedstock'!$AE$197),IF(V21>V20,V20,V21),0) ->  | W22: =IF(NOT('Summary of results-by feedstock'!$AE$197),IF(W21>W20,W20,W21),0) -> 
B23: =title359 -> Heat sold to the customers (GJ per year) | C23: =IF('Summary of results-by feedstock'!$AE$197,C20,0) ->  | D23: =IF('Summary of results-by feedstock'!$AE$197,D20,0) ->  | E23: =IF('Summary of results-by feedstock'!$AE$197,E20,0) ->  | F23: =IF('Summary of results-by feedstock'!$AE$197,F20,0) ->  | G23: =IF('Summary of results-by feedstock'!$AE$197,G20,0) ->  | H23: =IF('Summary of results-by feedstock'!$AE$197,H20,0) ->  | I23: =IF('Summary of results-by feedstock'!$AE$197,I20,0) ->  | J23: =IF('Summary of results-by feedstock'!$AE$197,J20,0) ->  | K23: =IF('Summary of results-by feedstock'!$AE$197,K20,0) ->  | L23: =IF('Summary of results-by feedstock'!$AE$197,L20,0) ->  | M23: =IF('Summary of results-by feedstock'!$AE$197,M20,0) ->  | N23: =IF('Summary of results-by feedstock'!$AE$197,N20,0) ->  | O23: =IF('Summary of results-by feedstock'!$AE$197,O20,0) ->  | P23: =IF('Summary of results-by feedstock'!$AE$197,P20,0) ->  | Q23: =IF('Summary of results-by feedstock'!$AE$197,Q20,0) ->  | R23: =IF('Summary of results-by feedstock'!$AE$197,R20,0) ->  | S23: =IF('Summary of results-by feedstock'!$AE$197,S20,0) ->  | T23: =IF('Summary of results-by feedstock'!$AE$197,T20,0) ->  | U23: =IF('Summary of results-by feedstock'!$AE$197,U20,0) ->  | V23: =IF('Summary of results-by feedstock'!$AE$197,V20,0) ->  | W23: =IF('Summary of results-by feedstock'!$AE$197,W20,0) -> 
B25: =title360 -> Selling electricity Price (USD/kWh) | C25: ='Data Entry Needs'!$D$28 -> 0 | D25: =C25 -> 0 | E25: =D25 -> 0 | F25: 0 | G25: 0 | H25: 0 | I25: 0 | J25: 0 | K25: 0 | L25: 0 | M25: 0 | N25: 0 | O25: 0 | P25: 0 | Q25: 0 | R25: 0 | S25: 0 | T25: 0 | U25: 0 | V25: 0 | W25: 0
C26: =C25*C16 -> 
B27: =title361 -> Electricity cost avoided main industry (USD/kWh) | C27: ='Data Entry Needs'!$D$26 -> 0 | D27: =C27 -> 0 | E27: =D27 -> 0 | F27: 0 | G27: 0 | H27: 0 | I27: 0 | J27: 0 | K27: 0 | L27: 0 | M27: 0 | N27: 0 | O27: 0 | P27: 0 | Q27: 0 | R27: 0 | S27: 0 | T27: 0 | U27: 0 | V27: 0 | W27: 0
C28: =C27*(C12-C16) ->  | D28: =D27*(D12-D16) -> 
B29: =title362 -> Heat cost avoided main Industry (USD/Gj) | C29: =COST_RES2!$N$14 -> 0 | D29: =C29 -> 0 | E29: =D29 -> 0 | F29: 0 | G29: 0 | H29: 0 | I29: 0 | J29: 0 | K29: 0 | L29: 0 | M29: 0 | N29: 0 | O29: 0 | P29: 0 | Q29: 0 | R29: 0 | S29: 0 | T29: 0 | U29: 0 | V29: 0 | W29: 0
C30: =C22*C29 ->  | D30: =D22*D29 -> 
B31: =title363 -> Heat sales to nearby consumers (USD/Gj) | C31: ='Data Entry Needs'!$I$28 -> 0 | D31: ='Data Entry Needs'!$I$28 -> 0 | E31: ='Data Entry Needs'!$I$28 -> 0 | F31: ='Data Entry Needs'!$I$28 -> 0 | G31: ='Data Entry Needs'!$I$28 -> 0 | H31: ='Data Entry Needs'!$I$28 -> 0 | I31: ='Data Entry Needs'!$I$28 -> 0 | J31: ='Data Entry Needs'!$I$28 -> 0 | K31: ='Data Entry Needs'!$I$28 -> 0 | L31: ='Data Entry Needs'!$I$28 -> 0 | M31: ='Data Entry Needs'!$I$28 -> 0 | N31: ='Data Entry Needs'!$I$28 -> 0 | O31: ='Data Entry Needs'!$I$28 -> 0 | P31: ='Data Entry Needs'!$I$28 -> 0 | Q31: ='Data Entry Needs'!$I$28 -> 0 | R31: ='Data Entry Needs'!$I$28 -> 0 | S31: ='Data Entry Needs'!$I$28 -> 0 | T31: ='Data Entry Needs'!$I$28 -> 0 | U31: ='Data Entry Needs'!$I$28 -> 0 | V31: ='Data Entry Needs'!$I$28 -> 0 | W31: ='Data Entry Needs'!$I$28 -> 0
C32: =C31*C23 ->  | D32: =D31*D23 -> 
B33: =title364 -> Total income (USD/year) | C33: =C26+C28+C30+C32 ->  | D33: =D26+D28+D30+D32 -> 
B35: =title365 -> Project lifetime (years) | C35: =+COST_RES2!$N$16 -> 0
A38: =title366 -> Capital and operating cost
B40: =title346 -> Operating Year | C40: =title370 -> Appraisal | D40: 1 | E40: 2 | F40: 3 | G40: 4 | H40: 5 | I40: 6 | J40: 7 | K40: 8 | L40: 9 | M40: 10 | N40: 11 | O40: 12 | P40: 13 | Q40: 14 | R40: 15 | S40: 16 | T40: 17 | U40: 18 | V40: 19 | W40: 20
B41: =title367 -> Direct capital cost (USD)
B42: =title280 -> Equipments | C42: =COST_RES2!$I$66 -> 
B43: =title281 -> Building | C43: =COST_RES2!$I$67 -> 
B44: =title282 -> Installation | C44: =COST_RES2!$I$68 -> 
B45: =title368 -> Total capital cost (USD) | C45: =SUM(C42:C44) ->  | D45: =D42+D43+D44 -> 0 | E45: 0 | F45: 0 | G45: 0 | H45: 0 | I45: 0 | J45: 0 | K45: 0 | L45: 0 | M45: 0 | N45: 0 | O45: 0 | P45: 0 | Q45: 0 | R45: 0 | S45: 0 | T45: 0 | U45: 0 | V45: 0 | W45: 0
B46: =title369 -> Capital cost (USD/kW) | C46: =C45/C8 -> 
B49: =title346 -> Operating Year | C49: =title370 -> Appraisal | D49: 1 | E49: 2 | F49: 3 | G49: 4 | H49: 5 | I49: 6 | J49: 7 | K49: 8 | L49: 9 | M49: 10 | N49: 11 | O49: 12 | P49: 13 | Q49: 14 | R49: 15 | S49: 16 | T49: 17 | U49: 18 | V49: 19 | W49: 20
B50: =title372 -> Annual operating and maintenance cost
B51: =title373 -> Sub-total material cost (USD) | C51: =C52+C60 ->  | D51: =D52+D60 -> 
B52: =title374 -> Biomass cost (USD/year) | C52: =C53*C54 -> 0 | D52: =D53*D54 -> 0 | E52: =E53*E54 -> 0 | F52: 0 | G52: 0 | H52: 0 | I52: 0 | J52: 0 | K52: 0 | L52: 0 | M52: 0 | N52: 0 | O52: 0 | P52: 0 | Q52: 0 | R52: 0 | S52: 0 | T52: 0 | U52: 0 | V52: 0 | W52: 0
B53: =title375 -> Biomass consumption (tne per year) | C53: =+COST_RES2!$I$43 -> 0 | D53: =+C53 -> 0 | E53: =+D53 -> 0 | F53: 0 | G53: 0 | H53: 0 | I53: 0 | J53: 0 | K53: 0 | L53: 0 | M53: 0 | N53: 0 | O53: 0 | P53: 0 | Q53: 0 | R53: 0 | S53: 0 | T53: 0 | U53: 0 | V53: 0 | W53: 0
B54: =title376 -> Biomass total price (USD/t) | C54: =SUM(C55:C56) -> 0 | D54: =SUM(D55:D56) -> 0 | E54: 0 | F54: 0 | G54: 0 | H54: 0 | I54: 0 | J54: 0 | K54: 0 | L54: 0 | M54: 0 | N54: 0 | O54: 0 | P54: 0 | Q54: 0 | R54: 0 | S54: 0 | T54: 0 | U54: 0 | V54: 0 | W54: 0
B55: =title377 -> Biomass price (USD/t) | C55: =+COST_RES2!$F$43 -> 0 | D55: =C55 -> 0 | E55: =D55 -> 0 | F55: 0 | G55: 0 | H55: 0 | I55: 0 | J55: 0 | K55: 0 | L55: 0 | M55: 0 | N55: 0 | O55: 0 | P55: 0 | Q55: 0 | R55: 0 | S55: 0 | T55: 0 | U55: =T55 -> 0 | V55: 0 | W55: 0
B56: =title378 -> Biomass transportation cost (USD/t) | C56: =+C57*C58 -> 0 | D56: =C56 -> 0 | E56: 0 | F56: 0 | G56: 0 | H56: 0 | I56: 0 | J56: 0 | K56: 0 | L56: 0 | M56: 0 | N56: 0 | O56: 0 | P56: 0 | Q56: 0 | R56: 0 | S56: 0 | T56: 0 | U56: 0 | V56: 0 | W56: 0
B57: =title379 -> Biomass from farm to plant (USD/t/km) | C57: =+COST_RES2!$F$56 -> 0
B58: =title380 -> Transportation distance (km) | C58: =+COST_RES2!$I$56 -> 0
B60: =title381 -> Water cost (USD/year) | C60: =C61*C62 ->  | D60: =D61*D62 -> 
B61: =title382 -> Water consumption (m3 per year) | C61: =+COST_RES2!$I$44 ->  | D61: =+C61 ->  | E61: =+D61 -> 
B62: =title383 -> Water + chemical additives cost (USD/m3) | C62: =+COST_RES2!$F$44 -> 0.4385964912 | D62: =C62 -> 0.4385964912 | E62: =D62 -> 0.4385964912 | F62: 0.4385964912 | G62: 0.4385964912 | H62: 0.4385964912 | I62: 0.4385964912 | J62: 0.4385964912 | K62: 0.4385964912 | L62: 0.4385964912 | M62: 0.4385964912 | N62: 0.4385964912 | O62: 0.4385964912 | P62: 0.4385964912 | Q62: 0.4385964912 | R62: 0.4385964912 | S62: 0.4385964912 | T62: 0.4385964912 | U62: 0.4385964912 | V62: 0.4385964912 | W62: 0.4385964912
B64: =title384 -> Sub-total operating cost (USD) | C64: =C65+C66+C67 -> 
B65: =title319&" (USD)" -> Labour cost (USD) | C65: =COST_RES2!J52 ->  | D65: =C65 ->  | E65: =D65 ->  | U65: =T65 -> 
B66: =title285 -> Plant overhead | C66: =COST_RES2!J76 ->  | D66: =C66 -> 
B67: =title286 -> General and administrative cost | C67: =COST_RES2!J77 ->  | D67: =C67 -> 
B68: =title385 -> Sub-total maintenance cost (USD) | C68: =COST_RES2!J71 ->  | D68: =C68 -> 
B70: =title386 -> Sub-total of annual fixed cost | C70: =COST_RES2!J70 ->  | D70: =C70 ->  | E70: =D70 -> 
B72: =title387 -> Sub-total of storage capacity | C72: =+COST_RES2!J62 -> 0 | D72: =C72 -> 0 | E72: =D72 -> 0 | F72: 0 | G72: 0 | H72: 0 | I72: 0 | J72: 0 | K72: 0 | L72: 0 | M72: 0 | N72: 0 | O72: 0 | P72: 0 | Q72: 0 | R72: 0 | S72: 0 | T72: 0 | U72: 0 | V72: 0 | W72: 0
B74: =title388 -> Total operation and maintenance cost (USD) | C74: =C51+C64+C68+C70+C72 -> 
A76: =title102 -> Financial parameters
B77: =title346 -> Operating Year | C77: =title370 -> Appraisal | D77: 1 | E77: 2 | F77: 3 | G77: 4 | H77: 5 | I77: 6 | J77: 7 | K77: 8 | L77: 9 | M77: 10 | N77: 11 | O77: 12 | P77: 13 | Q77: 14 | R77: 15 | S77: 16 | T77: 17 | U77: 18 | V77: 19 | W77: 20
B78: =title103&" (%)" -> Discount rate (%) | C78: =+COST_RES2!$N$13 -> 0
B79: =title104&" (%)" -> Loan ratio (%) | C79: =+COST_RES2!$N$11 -> 0
B81: =title389 -> Loans | D81: 1 | E81: 2 | F81: 3 | G81: 4 | H81: 5 | I81: 6 | J81: 7 | K81: 8 | L81: 9 | M81: 10 | N81: 11 | O81: 12 | P81: 13 | Q81: 14 | R81: 15 | S81: 16 | T81: 17 | U81: 18 | V81: 19 | W81: 20
B82: =title307&" (USD)" -> Loan amount (USD) | C82: =C79*C45 -> 
B83: =title105&" (%)" -> Loan interest rate (%) | C83: =+COST_RES2!$N$10 -> 0
B84: =title106&" ("&title107&")" -> Loan term (years) | C84: =+COST_RES2!$N$12 -> 0
B85: =title390 -> Loan payment (USD/month) | C85: =(PMT(C83/12,(12*C84),C82)) -> 
B86: =title391 -> Loan payment (USD/year) | D86: =IF(D77<=$C$84,$C$85*12,0) -> 0 | E86: =IF(E77<=$C$84,$C$85*12,0) -> 0 | F86: 0 | G86: 0 | H86: 0 | I86: 0 | J86: 0 | K86: 0 | L86: 0 | M86: 0 | N86: 0 | O86: 0 | P86: 0 | Q86: 0 | R86: 0 | S86: 0 | T86: 0 | U86: 0 | V86: 0 | W86: 0
B87: =title392 -> Total loan payment (USD) | C87: =SUM(D86:W86) -> 0
B88: =title393 -> Loan interest payment (USD) | C88: =C87+C82 ->  | D88: =title396 -> Average loan interest payment for project lifetime | G88: =C88/C35 ->  | H88: =title397 -> USD per year
A90: =title295 -> Depreciation
B91: =title346 -> Operating Year | C91: =title370 -> Appraisal | D91: 1 | E91: 2 | F91: 3 | G91: 4 | H91: 5 | I91: 6 | J91: 7 | K91: 8 | L91: 9 | M91: 10 | N91: 11 | O91: 12 | P91: 13 | Q91: 14 | R91: 15 | S91: 16 | T91: 17 | U91: 18 | V91: 19 | W91: 20
B92: =title394 -> Depreciation method | C92: =title371 -> Straight-line
B93: =title395 -> Total depreciation (USD) | D93: =COST_RES2!J70 ->  | E93: =D93 ->  | F93: =E93 -> 
A96: =title398 -> Base case project
A97: =title399 -> Summary of this project - before tax
B98: =title346 -> Operating Year | C98: =title370 -> Appraisal | D98: 1 | E98: 2 | F98: 3 | G98: 4 | H98: 5 | I98: 6 | J98: 7 | K98: 8 | L98: 9 | M98: 10 | N98: 11 | O98: 12 | P98: 13 | Q98: 14 | R98: 15 | S98: 16 | T98: 17 | U98: 18 | V98: 19 | W98: 20
B99: =title400 -> Total revenue (USD) | D99: =D33 -> 
B100: =title368 -> Total capital cost (USD) | C100: =-(C45-C82) -> 
B101: =title401 -> Total operating and maintenance cost (USD) | D101: =-D74+D70 -> 
B102: =title402 -> Loan payment (USD) | D102: =D86 -> 0 | E102: =E86 -> 0 | F102: 0 | G102: 0 | H102: 0 | I102: 0 | J102: 0 | K102: 0 | L102: 0 | M102: 0 | N102: 0 | O102: 0 | P102: 0 | Q102: 0 | R102: 0 | S102: 0 | T102: 0 | U102: 0 | V102: 0 | W102: 0
B103: =title403 -> Cash flow - before tax (USD) | C103: =SUM(C99:C102) ->  | D103: =SUM(D99:D102) -> 
A105: =title404 -> Financial analysis results
B107: =title405 -> Net Present Value (NPV) (USD) - before tax | C107: =NPV(C78,D103:W103)+C103 -> 
B108: =title406 -> Internal Rate of Return (IRR) (%) - before tax | C108: =IF(tir_cell=title593,IF(C107<0,title407,IRR(C103:W103,0.000001)),IF(C107<0,title407,MIRR(C103:W103,fin_rate,rein_rate))) -> 

Sheet FA_Adv_RES2 (hidden)
B1: =title409 -> FINANCIAL EVALUATION OF COGENERATION ADVANCED TECHNOLOGY
A4: =title345 -> Revenues
B6: =title346 -> Operating Year | C6: 0 | D6: 1 | E6: 2 | F6: 3 | G6: 4 | H6: 5 | I6: 6 | J6: 7 | K6: 8 | L6: 9 | M6: 10 | N6: 11 | O6: 12 | P6: 13 | Q6: 14 | R6: 15 | S6: 16 | T6: 17 | U6: 18 | V6: 19 | W6: 20
B8: =title347 -> Power generation capacity (kW) | C8: =COST_RES2!$K$26*1000 ->  | D8: =C8 ->  | E8: =D8 -> 
B9: =title348 -> Power loss in distribution network (%) | C9: =+COST_RES2!$I$14 -> 0 | D9: =+C9 -> 0 | E9: =+D9 -> 0 | F9: 0 | G9: 0 | H9: 0 | I9: 0 | J9: 0 | K9: 0 | L9: 0 | M9: 0 | N9: 0 | O9: 0 | P9: 0 | Q9: 0 | R9: 0 | S9: 0 | T9: 0 | U9: 0 | V9: 0 | W9: 0
B10: =title266 -> Operating hours per year | C10: =+COST_RES2!$H$38 -> 0 | D10: =C10 -> 0 | E10: =D10 -> 0 | F10: 0 | G10: 0 | H10: 0 | I10: 0 | J10: 0 | K10: 0 | L10: 0 | M10: 0 | N10: 0 | O10: 0 | P10: 0 | Q10: 0 | R10: 0 | S10: 0 | T10: 0 | U10: 0 | V10: 0 | W10: 0
B12: =title349 -> Electricity generation (kWh per year) | C12: =C8*C10*(1-C9) ->  | D12: =D8*D10*(1-D9) -> 
B13: =title350 -> Electricity - self use cogeneration (kWh per year) | C13: =C12*COST_RES2!$I$14 ->  | D13: =D12*10% -> 
B14: =title351 -> Power loss in distribution network (kWh per year) | C14: =C12*COST_RES2!$I$13 ->  | D14: =C14 -> 
B15: =title352 -> Electricity consumed by main Industry (kWh per year) | C15: ='Energy Demand'!$G$21*1000 -> 0 | D15: =C15 -> 0 | E15: 0 | F15: 0 | G15: 0 | H15: 0 | I15: 0 | J15: 0 | K15: 0 | L15: 0 | M15: 0 | N15: 0 | O15: 0 | P15: 0 | Q15: 0 | R15: 0 | S15: 0 | T15: 0 | U15: 0 | V15: 0 | W15: 0
B16: =title353 -> Total power sold to the customers (kWh per year) | C16: =IF(NOT('Summary of results-by feedstock'!$AE$199),IF(C12-C13-C14-C15>0,C12-C13-C14-C15,0),C12) ->  | D16: =C16 -> 
B18: =title354 -> Heat generation (GJ per year) | C18: =COST_RES2!K28/1000 ->  | D18: =C18 ->  | E18: =D18 -> 
B19: =title355 -> Heat loss in distribution network (GJ per year) | C19: =C18*COST_RES2!$I$12 ->  | D19: =C19 -> 
B20: =title356 -> Heat available for main Industry (GJ per year) | C20: =C18-C19 ->  | D20: =C20 -> 
B21: =title357 -> Heat demad main Industry (GJ per year) | C21: ='Energy Demand'!$G$22 -> 0 | D21: =C21 -> 0 | E21: 0 | F21: 0 | G21: 0 | H21: 0 | I21: 0 | J21: 0 | K21: 0 | L21: 0 | M21: 0 | N21: 0 | O21: 0 | P21: 0 | Q21: 0 | R21: 0 | S21: 0 | T21: 0 | U21: 0 | V21: 0 | W21: 0
B22: =title358 -> Heat supplied to main Industry (GJ per year) | C22: =IF(NOT('Summary of results-by feedstock'!$AE$197),IF(C21>C20,C20,C21),0) ->  | D22: =IF(NOT('Summary of results-by feedstock'!$AE$197),IF(D21>D20,D20,D21),0) ->  | E22: =IF(NOT('Summary of results-by feedstock'!$AE$197),IF(E21>E20,E20,E21),0) ->  | F22: =IF(NOT('Summary of results-by feedstock'!$AE$197),IF(F21>F20,F20,F21),0) ->  | G22: =IF(NOT('Summary of results-by feedstock'!$AE$197),IF(G21>G20,G20,G21),0) ->  | H22: =IF(NOT('Summary of results-by feedstock'!$AE$197),IF(H21>H20,H20,H21),0) ->  | I22: =IF(NOT('Summary of results-by feedstock'!$AE$197),IF(I21>I20,I20,I21),0) ->  | J22: =IF(NOT('Summary of results-by feedstock'!$AE$197),IF(J21>J20,J20,J21),0) ->  | K22: =IF(NOT('Summary of results-by feedstock'!$AE$197),IF(K21>K20,K20,K21),0) ->  | L22: =IF(NOT('Summary of results-by feedstock'!$AE$197),IF(L21>L20,L20,L21),0) ->  | M22: =IF(NOT('Summary of results-by feedstock'!$AE$197),IF(M21>M20,M20,M21),0) ->  | N22: =IF(NOT('Summary of results-by feedstock'!$AE$197),IF(N21>N20,N20,N21),0) ->  | O22: =IF(NOT('Summary of results-by feedstock'!$AE$197),IF(O21>O20,O20,O21),0) ->  | P22: =IF(NOT('Summary of results-by feedstock'!$AE$197),IF(P21>P20,P20,P21),0) ->  | Q22: =IF(NOT('Summary of results-by feedstock'!$AE$197),IF(Q21>Q20,Q20,Q21),0) ->  | R22: =IF(NOT('Summary of results-by feedstock'!$AE$197),IF(R21>R20,R20,R21),0) ->  | S22: =IF(NOT('Summary of results-by feedstock'!$AE$197),IF(S21>S20,S20,S21),0) ->  | T22: =IF(NOT('Summary of results-by feedstock'!$AE$197),IF(T21>T20,T20,T21),0) ->  | U22: =IF(NOT('Summary of results-by feedstock'!$AE$197),IF(U21>U20,U20,U21),0) ->  | V22: =IF(NOT('Summary of results-by feedstock'!$AE$197),IF(V21>V20,V20,V21),0) ->  | W22: =IF(NOT('Summary of results-by feedstock'!$AE$197),IF(W21>W20,W20,W21),0) -> 
B23: =title359 -> Heat sold to the customers (GJ per year) | C23: =IF('Summary of results-by feedstock'!$AE$197,C20,0) ->  | D23: =IF('Summary of results-by feedstock'!$AE$197,D20,0) ->  | E23: =IF('Summary of results-by feedstock'!$AE$197,E20,0) ->  | F23: =IF('Summary of results-by feedstock'!$AE$197,F20,0) ->  | G23: =IF('Summary of results-by feedstock'!$AE$197,G20,0) ->  | H23: =IF('Summary of results-by feedstock'!$AE$197,H20,0) ->  | I23: =IF('Summary of results-by feedstock'!$AE$197,I20,0) ->  | J23: =IF('Summary of results-by feedstock'!$AE$197,J20,0) ->  | K23: =IF('Summary of results-by feedstock'!$AE$197,K20,0) ->  | L23: =IF('Summary of results-by feedstock'!$AE$197,L20,0) ->  | M23: =IF('Summary of results-by feedstock'!$AE$197,M20,0) ->  | N23: =IF('Summary of results-by feedstock'!$AE$197,N20,0) ->  | O23: =IF('Summary of results-by feedstock'!$AE$197,O20,0) ->  | P23: =IF('Summary of results-by feedstock'!$AE$197,P20,0) ->  | Q23: =IF('Summary of results-by feedstock'!$AE$197,Q20,0) ->  | R23: =IF('Summary of results-by feedstock'!$AE$197,R20,0) ->  | S23: =IF('Summary of results-by feedstock'!$AE$197,S20,0) ->  | T23: =IF('Summary of results-by feedstock'!$AE$197,T20,0) ->  | U23: =IF('Summary of results-by feedstock'!$AE$197,U20,0) ->  | V23: =IF('Summary of results-by feedstock'!$AE$197,V20,0) ->  | W23: =IF('Summary of results-by feedstock'!$AE$197,W20,0) -> 
B25: =title360 -> Selling electricity Price (USD/kWh) | C25: ='Data Entry Needs'!$D$28 -> 0 | D25: =C25 -> 0 | E25: =D25 -> 0 | F25: 0 | G25: 0 | H25: 0 | I25: 0 | J25: 0 | K25: 0 | L25: 0 | M25: 0 | N25: 0 | O25: 0 | P25: 0 | Q25: 0 | R25: 0 | S25: 0 | T25: 0 | U25: 0 | V25: 0 | W25: 0
C26: =C25*C16 -> 
B27: =title361 -> Electricity cost avoided main industry (USD/kWh) | C27: ='Data Entry Needs'!$D$26 -> 0 | D27: =C27 -> 0 | E27: =D27 -> 0 | F27: 0 | G27: 0 | H27: 0 | I27: 0 | J27: 0 | K27: 0 | L27: 0 | M27: 0 | N27: 0 | O27: 0 | P27: 0 | Q27: 0 | R27: 0 | S27: 0 | T27: 0 | U27: 0 | V27: 0 | W27: 0
C28: =C27*(C12-C16) ->  | D28: =D27*(D12-D16) -> 
B29: =title362 -> Heat cost avoided main Industry (USD/Gj) | C29: =COST_RES2!$N$14 -> 0 | D29: =C29 -> 0 | E29: =D29 -> 0 | F29: 0 | G29: 0 | H29: 0 | I29: 0 | J29: 0 | K29: 0 | L29: 0 | M29: 0 | N29: 0 | O29: 0 | P29: 0 | Q29: 0 | R29: 0 | S29: 0 | T29: 0 | U29: 0 | V29: 0 | W29: 0
C30: =C22*C29 ->  | D30: =D22*D29 -> 
B31: =title363 -> Heat sales to nearby consumers (USD/Gj) | C31: ='Data Entry Needs'!$I$28 -> 0 | D31: ='Data Entry Needs'!$I$28 -> 0 | E31: ='Data Entry Needs'!$I$28 -> 0 | F31: ='Data Entry Needs'!$I$28 -> 0 | G31: ='Data Entry Needs'!$I$28 -> 0 | H31: ='Data Entry Needs'!$I$28 -> 0 | I31: ='Data Entry Needs'!$I$28 -> 0 | J31: ='Data Entry Needs'!$I$28 -> 0 | K31: ='Data Entry Needs'!$I$28 -> 0 | L31: ='Data Entry Needs'!$I$28 -> 0 | M31: ='Data Entry Needs'!$I$28 -> 0 | N31: ='Data Entry Needs'!$I$28 -> 0 | O31: ='Data Entry Needs'!$I$28 -> 0 | P31: ='Data Entry Needs'!$I$28 -> 0 | Q31: ='Data Entry Needs'!$I$28 -> 0 | R31: ='Data Entry Needs'!$I$28 -> 0 | S31: ='Data Entry Needs'!$I$28 -> 0 | T31: ='Data Entry Needs'!$I$28 -> 0 | U31: ='Data Entry Needs'!$I$28 -> 0 | V31: ='Data Entry Needs'!$I$28 -> 0 | W31: ='Data Entry Needs'!$I$28 -> 0
C32: =C31*C23 ->  | D32: =D31*D23 -> 
B33: =title364 -> Total income (USD/year) | C33: =C26+C28+C30+C32 ->  | D33: =D26+D28+D30+D32 -> 
B35: =title365 -> Project lifetime (years) | C35: =+COST_RES2!$N$16 -> 0
A38: =title366 -> Capital and operating cost
B40: =title346 -> Operating Year | C40: =title370 -> Appraisal | D40: 1 | E40: 2 | F40: 3 | G40: 4 | H40: 5 | I40: 6 | J40: 7 | K40: 8 | L40: 9 | M40: 10 | N40: 11 | O40: 12 | P40: 13 | Q40: 14 | R40: 15 | S40: 16 | T40: 17 | U40: 18 | V40: 19 | W40: 20
B41: =title367 -> Direct capital cost (USD)
B42: =title280 -> Equipments | C42: =COST_RES2!$K$66 -> 
B43: =title281 -> Building | C43: =COST_RES2!$K$67 -> 
B44: =title282 -> Installation | C44: =COST_RES2!$K$68 -> 
B45: =title368 -> Total capital cost (USD) | C45: =SUM(C42:C44) ->  | D45: =D42+D43+D44 -> 0 | E45: 0 | F45: 0 | G45: 0 | H45: 0 | I45: 0 | J45: 0 | K45: 0 | L45: 0 | M45: 0 | N45: 0 | O45: 0 | P45: 0 | Q45: 0 | R45: 0 | S45: 0 | T45: 0 | U45: 0 | V45: 0 | W45: 0
B46: =title369 -> Capital cost (USD/kW) | C46: =C45/C8 -> 
B49: =title346 -> Operating Year | C49: =title370 -> Appraisal | D49: 1 | E49: 2 | F49: 3 | G49: 4 | H49: 5 | I49: 6 | J49: 7 | K49: 8 | L49: 9 | M49: 10 | N49: 11 | O49: 12 | P49: 13 | Q49: 14 | R49: 15 | S49: 16 | T49: 17 | U49: 18 | V49: 19 | W49: 20
B50: =title372 -> Annual operating and maintenance cost
B51: =title373 -> Sub-total material cost (USD) | C51: =C52+C60 ->  | D51: =D52+D60 -> 
B52: =title374 -> Biomass cost (USD/year) | C52: =C53*C54 -> 0 | D52: =D53*D54 -> 0 | E52: =E53*E54 -> 0 | F52: 0 | G52: 0 | H52: 0 | I52: 0 | J52: 0 | K52: 0 | L52: 0 | M52: 0 | N52: 0 | O52: 0 | P52: 0 | Q52: 0 | R52: 0 | S52: 0 | T52: 0 | U52: 0 | V52: 0 | W52: 0
B53: =title375 -> Biomass consumption (tne per year) | C53: =+COST_RES2!$K$43 -> 0 | D53: =+C53 -> 0 | E53: =+D53 -> 0 | F53: 0 | G53: 0 | H53: 0 | I53: 0 | J53: 0 | K53: 0 | L53: 0 | M53: 0 | N53: 0 | O53: 0 | P53: 0 | Q53: 0 | R53: 0 | S53: 0 | T53: 0 | U53: 0 | V53: 0 | W53: 0
B54: =title376 -> Biomass total price (USD/t) | C54: =SUM(C55:C56) -> 0 | D54: =SUM(D55:D56) -> 0 | E54: 0 | F54: 0 | G54: 0 | H54: 0 | I54: 0 | J54: 0 | K54: 0 | L54: 0 | M54: 0 | N54: 0 | O54: 0 | P54: 0 | Q54: 0 | R54: 0 | S54: 0 | T54: 0 | U54: 0 | V54: 0 | W54: 0
B55: =title377 -> Biomass price (USD/t) | C55: =+COST_RES2!$F$43 -> 0 | D55: =C55 -> 0 | E55: =D55 -> 0 | F55: 0 | G55: 0 | H55: 0 | I55: 0 | J55: 0 | K55: 0 | L55: 0 | M55: 0 | N55: 0 | O55: 0 | P55: 0 | Q55: 0 | R55: 0 | S55: 0 | T55: 0 | U55: =T55 -> 0 | V55: 0 | W55: 0
B56: =title378 -> Biomass transportation cost (USD/t) | C56: =+C57*C58 -> 0 | D56: =C56 -> 0 | E56: 0 | F56: 0 | G56: 0 | H56: 0 | I56: 0 | J56: 0 | K56: 0 | L56: 0 | M56: 0 | N56: 0 | O56: 0 | P56: 0 | Q56: 0 | R56: 0 | S56: 0 | T56: 0 | U56: 0 | V56: 0 | W56: 0
B57: =title379 -> Biomass from farm to plant (USD/t/km) | C57: =+COST_RES2!$F$56 -> 0
B58: =title380 -> Transportation distance (km) | C58: =+COST_RES2!$K$56 -> 0
B60: =title381 -> Water cost (USD/year) | C60: =C61*C62 ->  | D60: =D61*D62 -> 
B61: =title382 -> Water consumption (m3 per year) | C61: =+COST_RES2!$K$44 ->  | D61: =+C61 ->  | E61: =+D61 -> 
B62: =title383 -> Water + chemical additives cost (USD/m3) | C62: =+COST_RES2!$F$44 -> 0.4385964912 | D62: =C62 -> 0.4385964912 | E62: =D62 -> 0.4385964912 | F62: 0.4385964912 | G62: 0.4385964912 | H62: 0.4385964912 | I62: 0.4385964912 | J62: 0.4385964912 | K62: 0.4385964912 | L62: 0.4385964912 | M62: 0.4385964912 | N62: 0.4385964912 | O62: 0.4385964912 | P62: 0.4385964912 | Q62: 0.4385964912 | R62: 0.4385964912 | S62: 0.4385964912 | T62: 0.4385964912 | U62: 0.4385964912 | V62: 0.4385964912 | W62: 0.4385964912
B64: =title384 -> Sub-total operating cost (USD) | C64: =C65+C66+C67 ->  | D64: =D65+D66+D67 -> 
B65: =title319&" (USD)" -> Labour cost (USD) | C65: =COST_RES2!L52 ->  | D65: =C65 ->  | E65: =D65 ->  | U65: =T65 -> 
B66: =title285 -> Plant overhead | C66: =COST_RES2!L76 ->  | D66: =C66 -> 
B67: =title286 -> General and administrative cost | C67: =COST_RES2!L77 ->  | D67: =C67 -> 
B68: =title385 -> Sub-total maintenance cost (USD) | C68: =COST_RES2!L71 ->  | D68: =C68 -> 
B70: =title386 -> Sub-total of annual fixed cost | C70: =COST_RES2!L70 ->  | D70: =C70 ->  | E70: =D70 -> 
B72: =title387 -> Sub-total of storage capacity | C72: =+COST_RES2!L62 -> 0 | D72: =C72 -> 0 | E72: =D72 -> 0 | F72: 0 | G72: 0 | H72: 0 | I72: 0 | J72: 0 | K72: 0 | L72: 0 | M72: 0 | N72: 0 | O72: 0 | P72: 0 | Q72: 0 | R72: 0 | S72: 0 | T72: 0 | U72: 0 | V72: 0 | W72: 0
B74: =title388 -> Total operation and maintenance cost (USD) | C74: =C51+C64+C68+C70+C72 -> 
A76: =title102 -> Financial parameters
B77: =title346 -> Operating Year | C77: =title370 -> Appraisal | D77: 1 | E77: 2 | F77: 3 | G77: 4 | H77: 5 | I77: 6 | J77: 7 | K77: 8 | L77: 9 | M77: 10 | N77: 11 | O77: 12 | P77: 13 | Q77: 14 | R77: 15 | S77: 16 | T77: 17 | U77: 18 | V77: 19 | W77: 20
B78: =title103&" (%)" -> Discount rate (%) | C78: =+COST_RES2!$N$13 -> 0
B79: =title104&" (%)" -> Loan ratio (%) | C79: =+COST_RES2!$N$11 -> 0
B81: =title389 -> Loans | D81: 1 | E81: 2 | F81: 3 | G81: 4 | H81: 5 | I81: 6 | J81: 7 | K81: 8 | L81: 9 | M81: 10 | N81: 11 | O81: 12 | P81: 13 | Q81: 14 | R81: 15 | S81: 16 | T81: 17 | U81: 18 | V81: 19 | W81: 20
B82: =title307&" (USD)" -> Loan amount (USD) | C82: =C79*C45 -> 
B83: =title105&" (%)" -> Loan interest rate (%) | C83: =+COST_RES2!$N$10 -> 0
B84: =title106&" ("&title107&")" -> Loan term (years) | C84: =+COST_RES2!$N$12 -> 0
B85: =title390 -> Loan payment (USD/month) | C85: =(PMT(C83/12,(12*C84),C82)) -> 
B86: =title391 -> Loan payment (USD/year) | D86: =IF(D77<=$C$84,$C$85*12,0) -> 0 | E86: =IF(E77<=$C$84,$C$85*12,0) -> 0 | F86: 0 | G86: 0 | H86: 0 | I86: 0 | J86: 0 | K86: 0 | L86: 0 | M86: 0 | N86: 0 | O86: 0 | P86: 0 | Q86: 0 | R86: 0 | S86: 0 | T86: 0 | U86: 0 | V86: 0 | W86: 0
B87: =title392 -> Total loan payment (USD) | C87: =SUM(D86:W86) -> 0
B88: =title393 -> Loan interest payment (USD) | C88: =C87+C82 ->  | D88: =title396 -> Average loan interest payment for project lifetime | G88: =C88/C35 ->  | H88: =title397 -> USD per year
A90: =title295 -> Depreciation
B91: =title346 -> Operating Year | C91: =title370 -> Appraisal | D91: 1 | E91: 2 | F91: 3 | G91: 4 | H91: 5 | I91: 6 | J91: 7 | K91: 8 | L91: 9 | M91: 10 | N91: 11 | O91: 12 | P91: 13 | Q91: 14 | R91: 15 | S91: 16 | T91: 17 | U91: 18 | V91: 19 | W91: 20
B92: =title394 -> Depreciation method | C92: =title371 -> Straight-line
B93: =title395 -> Total depreciation (USD) | D93: =COST_RES2!L70 ->  | E93: =D93 ->  | F93: =E93 -> 
A96: =title398 -> Base case project
A97: =title399 -> Summary of this project - before tax
B98: =title346 -> Operating Year | C98: =title370 -> Appraisal | D98: 1 | E98: 2 | F98: 3 | G98: 4 | H98: 5 | I98: 6 | J98: 7 | K98: 8 | L98: 9 | M98: 10 | N98: 11 | O98: 12 | P98: 13 | Q98: 14 | R98: 15 | S98: 16 | T98: 17 | U98: 18 | V98: 19 | W98: 20
B99: =title400 -> Total revenue (USD) | D99: =D33 -> 
B100: =title368 -> Total capital cost (USD) | C100: =-(C45-C82) -> 
B101: =title401 -> Total operating and maintenance cost (USD) | D101: =-D74+D70 -> 
B102: =title402 -> Loan payment (USD) | D102: =D86 -> 0 | E102: =E86 -> 0 | F102: 0 | G102: 0 | H102: 0 | I102: 0 | J102: 0 | K102: 0 | L102: 0 | M102: 0 | N102: 0 | O102: 0 | P102: 0 | Q102: 0 | R102: 0 | S102: 0 | T102: 0 | U102: 0 | V102: 0 | W102: 0
B103: =title403 -> Cash flow - before tax (USD) | C103: =SUM(C99:C102) ->  | D103: =SUM(D99:D102) -> 
A105: =title404 -> Financial analysis results
B107: =title405 -> Net Present Value (NPV) (USD) - before tax | C107: =NPV(C78,D103:W103)+C103 -> 
B108: =title406 -> Internal Rate of Return (IRR) (%) - before tax | C108: =IF(tir_cell=title593,IF(C107<0,title407,IRR(C103:W103,0.000001)),IF(C107<0,title407,MIRR(C103:W103,fin_rate,rein_rate))) -> 

Sheet COST_RES3
C3: =+UPPER(title249&'Data Entry Needs'!$F$11&" "&'Data Entry Needs'!$F$12) -> PROCESSING COSTS FOR POWER GENERATION FROM PLEASE SELECT
C6: =title31 -> Use white cells to input data | E6: =title32 -> Grey cells are used for calculations
C8: =title250 -> Summary of Feedstock and Storage | G8: =title251 -> Summary of Operational Parameters | K8: =title102 -> Financial parameters
C10: =title67&"("&title76&")" -> Feedstock available(t/year) | E10: =+'Data Entry Needs'!$F$13 -> 0 | G10: =title252 -> CV Biomass (kWh/kg feedstock) | I10: =+VLOOKUP(IF('Data Entry Needs'!$F$11=title156,'Data Entry Needs'!$F$11,'Data Entry Needs'!$F$11&'Data Entry Needs'!$F$12),dummy_database!$C$1:$L$31,10,FALSE)/(3.6) ->  | K10: =title105&" (%)" -> Loan interest rate (%) | N10: =+'Data Entry Needs'!$D$66 -> 0
C11: =title69 -> Feedstock yield (t/ha) | E11: =+'Data Entry Needs'!$F$14 -> 0 | G11: =title253 -> CV Syngas (kWh/kg feedstock) | I11: =+VLOOKUP(IF('Data Entry Needs'!$F$11=title156,'Data Entry Needs'!$F$11,'Data Entry Needs'!$F$11&'Data Entry Needs'!$F$12),dummy_database!$C$1:$M$31,11,FALSE)/3.6 ->  | K11: =title104&" (%)" -> Loan ratio (%) | N11: =+'Data Entry Needs'!$D$65 -> 0
C12: =title75 -> Feedstock storage cost (USD/t) | E12: =+'Data Entry Needs'!$F$20 -> 0 | G12: =title254 -> Heat loss in distribution (%) | K12: =title106&" ("&title107&")" -> Loan term (years) | N12: =+'Data Entry Needs'!$D$67 -> 0
G13: =title255 -> Power loss in distribution (%) | K13: =title103&" (%)" -> Discount rate (%) | N13: =+'Data Entry Needs'!$D$64 -> 0
G14: =title256 -> Power - self use (%) | K14: =title260 -> Heat Price (USD/GJ) | N14: ='Data Entry Needs'!$F$15*1000/(Steam_Calculator!$F$11*(Steam_Calculator!$D$11-20)+Steam_Calculator!$E$14) -> 0
G15: =title35 -> Operating hours per day | K15: =title261 -> Sell Electricity Price (USD/kWh) | N15: ='Data Entry Needs'!$D$28 -> 0
G16: =title257 -> Distance to cogen. plant (km) | K16: =title262 -> Project lifetime | N16: ='Data Entry Needs'!$D$67 -> 0
G17: =title258 -> Electricity Processing Plant (1000 kWh/year) | I17: =IF('Energy Demand'!$C$9=2,'Energy Demand'!$I$21,0) -> 
G18: =title259 -> Heat Processing Plant (1000 MJ/year) | I18: =IF('Energy Demand'!$C$9=2,'Energy Demand'!$I$22,0) -> 
C22: =title263 -> Production Cost Details
G24: =title264 -> Capacities (MWe of power generation)
G25: =title6 -> Simple | I25: =title13 -> Semi-Advanced | K25: =title19 -> Advanced
G26: =G29/($H$38*1000*(1-$I$14)) ->  | I26: =I29/($H$38*1000*(1-$I$14)) ->  | K26: =K29/($H$38*1000*(1-$I$14)) -> 
F27: Energy Potential (MJ/year) | G27: =$I$10*$E$10*1000*3.6 ->  | I27: =$I$10*$E$10*1000*3.6 ->  | K27: =+VLOOKUP(IF('Data Entry Needs'!$D$11=title156,'Data Entry Needs'!$D$11,'Data Entry Needs'!$D$11&'Data Entry Needs'!$D$12),dummy_database!$C$1:$M$31,11,FALSE)*$E$10*1000 -> 
F28: Heat (MJ/year) | G28: =$G$27*(G30-G31)/(1-(G31/G32)) ->  | I28: =IF(NOT('Data Entry Needs'!$AO$121),$I$27*(I30-I31)*I35/(1-(I31/I32)),$I$18*1000) ->  | K28: =IF(NOT('Data Entry Needs'!$AO$121),$K$27*(K30-K31)*K35/(1-(K31/K32)),$I$18*1000) -> 
F29: Elect (kWh/year) | G29: =(G27*G30-G28)/3.6 ->  | I29: =(I27*I30-I28)*I35/3.6 ->  | K29: =(K27*K30-K28)*K35/3.6 -> 
F30: Thermal Eff. | G30: 0.2 | I30: 0.63 | K30: 0.71
F31: Electrical Eff. | G31: 0.2 | I31: 0.2 | K31: 0.3
F32: Alpha | G32: 0.75 | I32: 0.75 | K32: 0.75
F33: Steam electricity only (kg/h) | G33: =G29*3600/(G34*(Steam_Calculator!$C$6+Steam_Calculator!$C$7)*COST_RES3!$H$38) ->  | I33: =I29*3600/(I34*(Steam_Calculator!$C$6+Steam_Calculator!$C$7)*COST_RES3!$H$38) ->  | K33: =K29*3600/(K34*(Steam_Calculator!$C$6+Steam_Calculator!$C$7)*COST_RES3!$H$38) -> 
F34: Turb eff. | G34: 0.17 | I34: 0.25 | K34: =AVERAGE(17%,60%) -> 0.385
F35: Utilization Factor | G35: 1 | I35: 1 | K35: 1
G36: =title265 -> Capacities (MWth of heat generation)
G37: =G28/3.6/1000/$H$38 ->  | I37: =I28/3.6/1000/$H$38 ->  | K37: =K28/3.6/1000/$H$38 -> 
G38: =title266 -> Operating hours per year | H38: =$I$15*'Data Entry Needs'!$I$49 -> 0 | I38: =title266 -> Operating hours per year | J38: =$I$15*'Data Entry Needs'!$I$49 -> 0 | K38: =title266 -> Operating hours per year | L38: =$I$15*'Data Entry Needs'!$I$49 -> 0
D41: =title267 -> Inputs | E41: =title47 -> Unit | F41: =title270 -> Unit Price | G41: =title294 -> Quantity | H41: Total | I41: =title294 -> Quantity | J41: Total | K41: =title294 -> Quantity | L41: Total
F42: =title271 -> (USD/Unit) | G42: (Unit/year) | H42: ="("&title48&")" -> (USD/year) | I42: (Unit/year) | J42: ="("&title48&")" -> (USD/year) | K42: (Unit/year) | L42: ="("&title48&")" -> (USD/year)
D43: =title176 -> Feedstock | E43: t | F43: =+IF('Data Entry Needs'!$C$18=FALSE,'Data Entry Needs'!F$18,'Data Entry Needs'!F$19) -> 0 | G43: =$E$10 -> 0 | H43: =+G43*$F43 -> 0 | I43: =$E$10 -> 0 | J43: =+I43*$F43 -> 0 | K43: =$E$10 -> 0 | L43: =+K43*$F43 -> 0
D44: =title268 -> Water make-up + chemical additives | E44: m3 | F44: =+'Data Entry Needs'!$D$51+0.002*1000/4.56 -> 0.4385964912 | G44: =+Steam_Calculator!$C$9*G33*H38/1000 ->  | H44: =+G44*$F44 ->  | I44: =+Steam_Calculator!$C$9*I33*J38/1000 ->  | J44: =+I44*$F44 ->  | K44: =+Steam_Calculator!$C$9*K33*L38/1000 ->  | L44: =+K44*$F44 -> 
D45: =title269 -> Subtotal | H45: =SUM(H43:H44) ->  | J45: =SUM(J43:J44) ->  | L45: =SUM(L43:L44) -> 
D47: =title272 -> Labour and miscellaneous costs | E47: =title47 -> Unit | F47: =title270 -> Unit Price | G47: =title294 -> Quantity | H47: Total | I47: =title294 -> Quantity | J47: Total | K47: =title294 -> Quantity | L47: Total
F48: =title274 -> (USD/person-hour) | G48: ="("&title47&")" -> (Unit) | H48: ="("&title48&")" -> (USD/year) | I48: ="("&title47&")" -> (Unit) | J48: ="("&title48&")" -> (USD/year) | K48: ="("&title47&")" -> (Unit) | L48: ="("&title48&")" -> (USD/year)
D49: =title91 -> Unskilled worker | E49: # employee | F49: =+'Data Entry Needs'!$D$48 -> 0 | G49: =ROUNDUP(4.9*G$26*5/6,0) ->  | H49: =+F49*G49*H38 ->  | I49: =ROUNDUP(4.9*I$26*5/6,0) ->  | J49: =+$F49*I49*$H$38 ->  | K49: =ROUNDUP(4.9*K$26*5/6,0) ->  | L49: =+$F49*K49*$H$38 -> 
D50: =title111 -> Skilled worker | E50: # employee | F50: =+'Data Entry Needs'!I$48 -> 0 | G50: =ROUNDUP(4.9*G$26*1/6,0) ->  | H50: =+F50*G50*H38 ->  | I50: =ROUNDUP(4.9*I$26*1/6,0) ->  | J50: =+$F50*I50*$H$38 ->  | K50: =ROUNDUP(4.9*K$26*1/6,0) ->  | L50: =+$F50*K50*$H$38 -> 
D51: =title115 -> Miscellaneous cost | G51: =+'Data Entry Needs'!$I$61 -> 0 | H51: =+G51*SUM(H49:H50) ->  | I51: =+G51 -> 0 | J51: =+I51*SUM(J49:J50) ->  | K51: =+G51 -> 0 | L51: =+K51*SUM(L49:L50) -> 
D52: =title269 -> Subtotal | G52: =G49+G50 ->  | H52: =+H49+H50+H51 ->  | I52: =I49+I50 ->  | J52: =+J49+J50+J51 ->  | K52: =K49+K50 ->  | L52: =+L49+L50+L51 -> 
G53: =+SUM(G49:G50) ->  | I53: =+SUM(I49:I50) ->  | K53: =+SUM(K49:K50) -> 
D54: =title275 -> Transport of feedstock | E54: =title47 -> Unit | F54: =title270 -> Unit Price | G54: =title294 -> Quantity | H54: Total | I54: =title294 -> Quantity | J54: Total | K54: =title294 -> Quantity | L54: Total
F55: (USD/t/km) | G55: ="("&title47&")" -> (Unit) | H55: ="("&title48&")" -> (USD/year) | I55: ="("&title47&")" -> (Unit) | J55: ="("&title48&")" -> (USD/year) | K55: ="("&title47&")" -> (Unit) | L55: ="("&title48&")" -> (USD/year)
D56: Feedstock (farm to plant) | E56: km | F56: =+'Data Entry Needs'!$D$57 -> 0 | G56: =$I$16 -> 0 | H56: =+G56*F56*G43 -> 0 | I56: =$I$16 -> 0 | J56: =+I56*$F56*I$43 -> 0 | K56: =$I$16 -> 0 | L56: =+K56*$F56*K$43 -> 0
D57: =title269 -> Subtotal | H57: =+H56 -> 0 | J57: =+J56 -> 0 | L57: =+L56 -> 0
D59: =title277 -> Storage | E59: =title47 -> Unit | F59: =title270 -> Unit Price | G59: =title294 -> Quantity | H59: Total | I59: =title294 -> Quantity | J59: Total | K59: =title294 -> Quantity | L59: Total
F60: =title273 -> (USD/t/year) | G60: ="("&title47&")" -> (Unit) | H60: ="("&title48&")" -> (USD/year) | I60: ="("&title47&")" -> (Unit) | J60: ="("&title48&")" -> (USD/year) | K60: ="("&title47&")" -> (Unit) | L60: ="("&title48&")" -> (USD/year)
D61: =title278 -> Feedstock | E61: t | F61: =+$E$12 -> 0 | G61: =+STORAGE_RES3!$F$38 -> 0 | H61: =+F61*G61 -> 0 | I61: =+STORAGE_RES3!$I$38 -> 0 | J61: =I61*F61 -> 0 | K61: =+STORAGE_RES3!$L$38 -> 0 | L61: =F61*K61 -> 0
D62: =title269 -> Subtotal | H62: =SUM(H61) -> 0 | J62: =SUM(J61) -> 0 | L62: =SUM(L61) -> 0
D64: =title279 -> Investment | E64: =title47 -> Unit | F64: =PROPER(title107) -> Years | G64: Total | H64: =title295 -> Depreciation | I64: Total | J64: =title295 -> Depreciation | K64: Total | L64: =title295 -> Depreciation
G65: (USD) | H65: ="("&title48&")" -> (USD/year) | I65: (USD) | J65: ="("&title48&")" -> (USD/year) | K65: (USD) | L65: ="("&title48&")" -> (USD/year)
D66: =title280 -> Equipments | E66: USD | F66: 20 | G66: =('COST(ADJUSTED)_RES3'!$F$22)*('Data Entry Needs'!$I$65/141) ->  | H66: =+G66/F66 ->  | I66: =('COST(ADJUSTED)_RES3'!$G$22)*('Data Entry Needs'!$I$65/141) ->  | J66: =+I66/F66 ->  | K66: =('COST(ADJUSTED)_RES3'!$H$22)*('Data Entry Needs'!$I$65/141) ->  | L66: =+K66/F66 -> 
D67: =title281 -> Building | E67: USD | F67: 20 | G67: =+'COST(ADJUSTED)_RES3'!$F$25 ->  | H67: =+G67/F67 ->  | I67: =+'COST(ADJUSTED)_RES3'!$G$25 ->  | J67: =+I67/F67 ->  | K67: =+'COST(ADJUSTED)_RES3'!$H$25 ->  | L67: =+K67/F67 -> 
D68: =title282 -> Installation | E68: USD | F68: 20 | G68: =+'COST(ADJUSTED)_RES3'!$F$28 ->  | H68: =+G68/F68 ->  | I68: =+'COST(ADJUSTED)_RES3'!$G$28 ->  | J68: =+I68/F68 ->  | K68: =+'COST(ADJUSTED)_RES3'!$H$28 ->  | L68: =+K68/F68 -> 
D69: =title283 -> Total investment | G69: =SUM(G66:G68) ->  | I69: =SUM(I66:I68) ->  | K69: =SUM(K66:K68) -> 
G70: =title293 -> Total Depreciation | H70: =SUM(H66:H69) ->  | I70: =title293 -> Total Depreciation | J70: =SUM(J66:J69) ->  | K70: =title293 -> Total Depreciation | L70: =SUM(L66:L69) -> 
D71: =title114 -> Maintenance cost | F71: =+'Data Entry Needs'!$I$60 -> 0 | H71: =+F71*H70 ->  | J71: =+F71*$J$70 ->  | L71: =+$F$71*L70 -> 
D72: =title269 -> Subtotal | H72: =SUM(H70:H71) ->  | J72: =SUM(J70:J71) ->  | L72: =SUM(L70:L71) -> 
